Workbook

Sheet Cover
A1: =CELL("address",'Input-Gen'!A1) -> '[SoW Model - Road (LGIP)_SEP 2017 PC Clean.xlsm]Input-Gen'!$A$1
D9: Brisbane City Council LGIP Schedule of Works Model Local Roads Network DRAFT
D23: Model Name: | F23: =MID(A1,FIND("[",A1)+1,LEN(A1)-(FIND("$1",A1)-FIND("]",A1)+4)) -> SoW Model - Road (LGIP)_SEP 2017 PC Clean.xlsm
D24: Last Updated: | F24: 2017-10-18T16:10:29
D25: Last Modified By: | F25: Raffaele Nardi
C45: Admin Access Enabled? --> | F45: No
C46: V1.1

Sheet Inputs
F19: =MID(CELL("filename",A15),FIND("]",CELL("filename",A15))+1,256) -> Inputs

Sheet LGIP existing infrastructure
A1: Existing trunk infrastructure value
A2: Road network
B5: Catchment | C5: Arterial | D5: Suburban | E5: District | F5: Total
B6: Catchment 1 | C6: 355024591.6 | D6: 122737085.7 | E6: 1185229020 | F6: 1662990698
B7: Catchment 2 | C7: 56913685.18 | D7: 161161133.9 | E7: 157560685.1 | F7: 375635504.2
B8: Catchment 3 | C8: 346798791.8 | D8: 406213182.8 | E8: 1186938310 | F8: 1939950285
B9: Catchment 4 | C9: 412352054.2 | D9: 634502701.3 | E9: 1528738268 | F9: 2575593024
B10: Catchment 5 | C10: 300353949.8 | D10: 258399470 | E10: 1172692742 | F10: 1731446162
B11: Catchment 6 | C11: 203759060.2 | D11: 650756323.8 | E11: 772903532.6 | F11: 1627418917
B12: Catchment 7 | C12: 918878164 | D12: 526775505 | E12: 1894885139 | F12: 3340538808
B13: Catchment 8 | C13: 1877431742 | D13: 1064308257 | E13: 4331651159 | F13: 7273391157
B14: Catchment 9 | C14: 347312541.3 | D14: 411092767.8 | E14: 437751089.9 | F14: 1196156399
B15: Catchment 10 | C15: 92758925.29 | D15: 624356220.3 | E15: 763754372.7 | F15: 1480869518
B16: Catchment 11 | C16: 417074664.2 | D16: 102317467 | E16: 1272192403 | F16: 1791584534
B17: Catchment 12 | C17: 195748344.7 | D17: 172282572.5 | E17: 1476739416 | F17: 1844770333
B18: Catchment 13 | C18: 120334031.4 | D18: 377357021.7 | E18: 608782637.4 | F18: 1106473690
B19: Catchment 14 | C19: 240449580.1 | D19: 779797305.6 | E19: 1858129976 | F19: 2878376862
B20: Catchment 15 | C20: 232617709.3 | D20: 710857499.8 | E20: 1492030426 | F20: 2435505635
B21: Catchment 16 | C21: 492734035.3 | D21: 479172521 | E21: 2199877911 | F21: 3171784467
B22: Catchment 17 | C22: 8704547.535 | D22: 26214294.04 | E22: 146452115.4 | F22: 181370957
A24: Notes:
A25: These costs represent total costs of roads physically located within each catchment. The costs used to inform the servicing costs are based on outputs from the BSTM. Refer to the SOW model extrinsic material report.
A26: Refer to the Transport network extrinsic material report for details on the valuation of existing assets for the ferry terminal network

Sheet LGIP future infrastructure
A1: LGIP ID (1) | B1: Map reference | C1: Suburb | D1: Project description | E1: Project type | F1: Lane configuration | G1: Estimated year of completion (2) | H1: Service catchment | I1: Length (m) | J1: Land cost ($) | K1: Direct construction cost ($) | L1: Indirect construction cost ($) (3) | M1: Project cost ($) (4) | N1: Construction contingency cost ($) (5) | O1: Utility cost ($) (6) | P1: Total construction cost ($) (7) | Q1: Value of the trunk infrastructure ($) (8) | R1: Grants and subsidies ($) (9) | S1: Establishment cost ($) (10)
A2: ACR-RI-001 | B2: R293 | C2: Acacia Ridge | D2: Learoyd Road/Bradman Street Intersection | E2: Road Intersection Project | F2: 6 Lane Road / 4 Lane Road | G2: 2021 - 2026 | H2: 7 | I2: - | J2: 243150 | K2: 896822 | L2: 152460 | M2: 136407 | N2: 177853 | O2: 269047 | P2: 1632588 | Q2: 1875738 | R2: 0 | S2: 1875738
A3: ACR-RI-002 | B3: R292 | C3: Acacia Ridge | D3: Learoyd Road/Paradise Road Intersection | E3: Road Intersection Project | F3: 6 Lane Road / 4 Lane Road | G3: 2021 - 2026 | H3: 7 | I3: - | J3: 88800 | K3: 597881 | L3: 101640 | M3: 90938 | N3: 118569 | O3: 179364 | P3: 1088391 | Q3: 1177191 | R3: 0 | S3: 1177191
A4: ACR-RI-003 | B4: R272 | C4: Acacia Ridge | D4: Beatty Road/Mortimer Road Intersection | E4: Road Intersection Project | F4: 4 Lane Road / 2 Lane Road | G4: 2021 - 2026 | H4: 7 | I4: - | J4: 387300 | K4: 474634 | L4: 80688 | M4: 72192 | N4: 94127 | O4: 142390 | P4: 864031 | Q4: 1251331 | R4: 0 | S4: 1251331
A5: AFD-RC-002 | B5: R272 | C5: Archerfield | D5: Beatty Road (Granard Road to Barton Street) | E5: Road Corridor Project | F5: 4 Lane Road | G5: 2021 - 2026 | H5: 7 | I5: 435.06 | J5: 1358623 | K5: 1072532 | L5: 182330 | M5: 163132 | N5: 212699 | O5: 321759 | P5: 1952453 | Q5: 3311076 | R5: 0 | S5: 3311076
A6: AFD-RC-004 | B6: R272 | C6: Archerfield | D6: Beatty Road (Mortimer Road to Kerry Road) | E6: Road Corridor Project | F6: 4 Lane Road | G6: 2021 - 2026 | H6: 7 | I6: 700.555786 | J6: 1770807 | K6: 1727045 | L6: 293598 | M6: 262684 | N6: 342499 | O6: 518114 | P6: 3143939 | Q6: 4914746 | R6: 0 | S6: 4914746
A7: AFD-RC-005 | B7: R272 | C7: Archerfield | D7: Beatty Road (Kerry Road to Boundary Road) | E7: Road Corridor Project | F7: 4 Lane Road | G7: 2021 - 2026 | H7: 7 | I7: 459.992906 | J7: 1098384 | K7: 1133998 | L7: 192780 | M7: 172481 | N7: 224889 | O7: 340199 | P7: 2064346 | Q7: 3162730 | R7: 0 | S7: 3162730
A8: AFD-RC-006 | B8: R272 | C8: Archerfield | D8: Beatty Road (Barton Street to Boundary Road) | E8: Road Corridor Project | F8: 4 Lane Road | G8: 2021 - 2026 | H8: 7 | I8: 511.53 | J8: 733790 | K8: 1261049 | L8: 214378 | M8: 191806 | N8: 250085 | O8: 378315 | P8: 2295633 | Q8: 3029423 | R8: 0 | S8: 3029423
A9: AFD-RI-001 | B9: R272 | C9: Archerfield | D9: Beatty Road/Boundary Road Intersection | E9: Road Intersection Project | F9: 4 Lane Road / 4 Lane Road | G9: 2016 - 2021 | H9: 7 | I9: - | J9: 133500 | K9: 476691 | L9: 81037 | M9: 72505 | N9: 47267 | O9: 143007 | P9: 820508 | Q9: 954008 | R9: 0 | S9: 954008
A10: AFD-RI-002 | B10: R272 | C10: Archerfield | D10: Beatty Road/Kerry Road Intersection | E10: Road Intersection Project | F10: 4 Lane Road / 2 Lane Road | G10: 2016 - 2021 | H10: 7 | I10: - | J10: 71250 | K10: 711951 | L10: 121032 | M10: 108288 | N10: 70595 | O10: 213585 | P10: 1225451 | Q10: 1296701 | R10: 0 | S10: 1296701
A11: AFD-RI-003 | B11: R272 | C11: Archerfield | D11: Beatty Road/Barton Street Intersection | E11: Road Intersection Project | F11: 4 Lane Road / 4 Lane Road | G11: 2021 - 2026 | H11: 7 | I11: - | J11: 204750 | K11: 544790 | L11: 92614 | M11: 82863 | N11: 108040 | O11: 163437 | P11: 991744 | Q11: 1196494 | R11: 0 | S11: 1196494
A12: AGR-RC-002 | B12: R293 | C12: Algester, Acacia Ridge | D12: Delathin Road (Range Drive to Delathin Road) | E12: Road Corridor Project | F12: 2 Lane Road | G12: 2021 - 2026 | H12: 7 | I12: 375.309229 | J12: 1051 | K12: 508788 | L12: 86494 | M12: 77387 | N12: 100900 | O12: 152636 | P12: 926205 | Q12: 927256 | R12: 0 | S12: 927256
A13: AGR-RC-003 | B13: R293 | C13: Algester, Acacia Ridge | D13: Learoyd Road (McCotter Street to Bradman Street) | E13: Road Corridor Project | F13: 6 Lane Road | G13: 2021 - 2026 | H13: 7 | I13: 150.196995 | J13: 0 | K13: 451034 | L13: 76676 | M13: 68602 | N13: 89447 | O13: 135310 | P13: 821069 | Q13: 821069 | R13: 0 | S13: 821069
A14: AGR-RC-004 | B14: R293 | C14: Algester, Acacia Ridge | D14: Delathin Road (Learoyd Road to Range Drive) | E14: Road Corridor Project | F14: 2 Lane Road | G14: 2021 - 2026 | H14: 7 | I14: 213.304978 | J14: 175436 | K14: 599206 | L14: 101865 | M14: 91139 | N14: 118831 | O14: 0 | P14: 911041 | Q14: 1086477 | R14: 0 | S14: 1086477
A15: AGR-RI-001 | B15: R293 | C15: Algester | D15: Learoyd Road/McCotter Street Intersection | E15: Road Intersection Project | F15: 6 Lane Road / 2 Lane Road | G15: 2021 - 2026 | H15: 7 | I15: - | J15: 139200 | K15: 700148 | L15: 119025 | M15: 106493 | N15: 138850 | O15: 210044 | P15: 1274560 | Q15: 1413760 | R15: 0 | S15: 1413760
A16: ALB-RC-001 | B16: R153 | C16: Albion, Hamilton | D16: Kingsford Smith Drive (Amy Street to Hunt Street) | E16: Road Corridor Project | F16: 6 Lane Road | G16: 2016 - 2021 | H16: 16 | I16: 188.221465 | J16: 124 | K16: 565220 | L16: 96087 | M16: 85970 | N16: 56046 | O16: 169566 | P16: 972889 | Q16: 973012 | R16: 0 | S16: 973012
A17: ALB-RC-004 | B17: R153 | C17: Albion | D17: Abbotsford Road (Crosby Road to Collingwood Street) | E17: Road Corridor Project | F17: 6 Lane Road | G17: 2016 - 2021 | H17: 16 | I17: 66.470284 | J17: 8982 | K17: 243431 | L17: 41383 | M17: 37026 | N17: 24138 | O17: 73029 | P17: 419007 | Q17: 427989 | R17: 0 | S17: 427989
A18: ALB-RC-007 | B18: R153 | C18: Albion | D18: Hudson Road (Bimbil Street to Albion Overpass) | E18: Road Corridor Project | F18: 4 Lane Road | G18: 2016 - 2021 | H18: 16 | I18: 225.489112 | J18: 1122293 | K18: 615867 | L18: 104697 | M18: 93673 | N18: 61068 | O18: 184760 | P18: 1060066 | Q18: 2182359 | R18: 0 | S18: 2182359
A19: ALB-RC-009 | B19: R153 | C19: Albion | D19: Hudson Road (Albion Overpass to Birkbeck Street) | E19: Road Corridor Project | F19: 4 Lane Road | G19: 2016 - 2021 | H19: 16 | I19: 262.377238 | J19: 3353066 | K19: 782999 | L19: 133110 | M19: 119094 | N19: 77640 | O19: 234900 | P19: 1347743 | Q19: 4700809 | R19: 0 | S19: 4700809
A20: ALB-RC-010 | B20: R153 | C20: Albion | D20: Hudson Road (Birkbeck Street to Store Street) | E20: Road Corridor Project | F20: 4 Lane Road | G20: 2016 - 2021 | H20: 16 | I20: 101.239352 | J20: 1039894 | K20: 276510 | L20: 47007 | M20: 42057 | N20: 27418 | O20: 82953 | P20: 475945 | Q20: 1515839 | R20: 0 | S20: 1515839
A21: ALB-RC-011 | B21: R153 | C21: Albion | D21: Sandgate Road (Albion Overpass to Anstey Street) | E21: Road Corridor Project | F21: 6 Lane Road | G21: 2016 - 2021 | H21: 16 | I21: 59.066927 | J21: 1220609 | K21: 261858 | L21: 44516 | M21: 39829 | N21: 25965 | O21: 78558 | P21: 450726 | Q21: 1671335 | R21: 0 | S21: 1671335
A22: ALB-RC-012 | B22: R153 | C22: Albion | D22: Sandgate Road Anstey Street to Abbotsford Road/Frodsham Street/Crosby Road) | E22: Road Corridor Project | F22: 6 Lane Road | G22: 2016 - 2021 | H22: 16 | I22: 118.093941 | J22: 1384733 | K22: 354630 | L22: 60287 | M22: 53939 | N22: 35164 | O22: 106389 | P22: 610410 | Q22: 1995143 | R22: 0 | S22: 1995143
A23: ALB-RI-001 | B23: R153 | C23: Albion | D23: Kingsford Smith Drive/Amy Street Intersection | E23: Road Intersection Project | F23: 6 Lane Road / 6 Lane Road | G23: 2016 - 2021 | H23: 16 | I23: - | J23: 608700 | K23: 552011 | L23: 93842 | M23: 83961 | N23: 54736 | O23: 165603 | P23: 950153 | Q23: 1558853 | R23: 0 | S23: 1558853
A24: ALB-RI-002 | B24: R153 | C24: Albion | D24: Hudson Road/Albion Road Intersection | E24: Road Intersection Project | F24: 4 Lane Road / 4 Lane Road | G24: 2016 - 2021 | H24: 16 | I24: - | J24: 811800 | K24: 659482 | L24: 112112 | M24: 100307 | N24: 65393 | O24: 197845 | P24: 1135139 | Q24: 1946939 | R24: 0 | S24: 1946939
A25: ALB-RI-005 | B25: R153 | C25: Albion | D25: Sandgate Road/Frodsham Street Intersection | E25: Road Intersection Project | F25: 6 Lane Road / 4 Lane Road | G25: 2016 - 2021 | H25: 16 | I25: - | J25: 241800 | K25: 597881 | L25: 101640 | M25: 90938 | N25: 59284 | O25: 179364 | P25: 1029106 | Q25: 1270906 | R25: 0 | S25: 1270906
A26: ALB-RI-006 | B26: R153 | C26: Albion | D26: Sandgate Road/Albion Overpass | E26: Road Intersection Project | F26: 6 Lane Road / 4 Lane Road | G26: 2016 - 2021 | H26: 16 | I26: - | J26: 472650 | K26: 633282 | L26: 107658 | M26: 96322 | N26: 62795 | O26: 189985 | P26: 1090041 | Q26: 1562691 | R26: 0 | S26: 1562691
A27: ALB-RI-007 | B27: R153 | C27: Albion | D27: Sandgate Road/Collingwood Street Intersection | E27: Road Intersection Project | F27: 6 Lane Road / 4 Lane Road | G27: 2016 - 2021 | H27: 16 | I27: - | J27: 133500 | K27: 523146 | L27: 88935 | M27: 79571 | N27: 51874 | O27: 156944 | P27: 900469 | Q27: 1033969 | R27: 0 | S27: 1033969
A28: ANN-RI-001 | B28: R213 | C28: Annerley | D28: Ipswich Road/Juliette Street Intersection | E28: Road Intersection Project | F28: 6 Lane Road / 6 Lane Road | G28: 2016 - 2021 | H28: 7 | I28: - | J28: 339150 | K28: 668224 | L28: 113598 | M28: 101637 | N28: 66259 | O28: 200467 | P28: 1150185 | Q28: 1489335 | R28: 0 | S28: 1489335
A29: ANN-RI-002 | B29: R232 | C29: Annerley | D29: Ipswich Road/Cracknell Road/Villa Street Intersection | E29: Road Intersection Project | F29: 6 Lane Road / 2 Lane Road | G29: 2016 - 2021 | H29: 7 | I29: - | J29: 662400 | K29: 526462 | L29: 89498 | M29: 80075 | N29: 52203 | O29: 157938 | P29: 906176 | Q29: 1568576 | R29: 0 | S29: 1568576
A30: ASH-RI-001 | B30: R171 | C30: Ashgrove | D30: Waterworks Road/Stewart Road Intersection | E30: Road Intersection Project | F30: 6 Lane Road / 6 Lane Road | G30: 2016 - 2021 | H30: 12 | I30: - | J30: 339150 | K30: 668224 | L30: 113598 | M30: 101637 | N30: 66259 | O30: 200467 | P30: 1150185 | Q30: 1489335 | R30: 0 | S30: 1489335
A31: ASH-RI-002 | B31: R171 | C31: Ashgrove | D31: Waterworks Road/Ashgrove Avenue Intersection | E31: Road Intersection Project | F31: 6 Lane Road / 4 Lane Road | G31: 2016 - 2021 | H31: 12 | I31: - | J31: 678300 | K31: 633282 | L31: 107658 | M31: 96322 | N31: 62795 | O31: 189985 | P31: 1090041 | Q31: 1768341 | R31: 0 | S31: 1768341
A32: ASH-RI-003 | B32: R171 | C32: Ashgrove | D32: Waterworks Road/Jubilee Terrace Intersection | E32: Road Intersection Project | F32: 6 Lane Road / 6 Lane Road | G32: 2016 - 2021 | H32: 12 | I32: - | J32: 710250 | K32: 630869 | L32: 107248 | M32: 95955 | N32: 62555 | O32: 189261 | P32: 1085889 | Q32: 1796139 | R32: 0 | S32: 1796139
A33: BEL-RC-002 | B33: R216 | C33: Belmont | D33: Meadowland Road (Wright Street to Belmont Road) | E33: Road Corridor Project | F33: 4 Lane Road | G33: 2016 - 2021 | H33: 1, 2 | I33: 399.51 | J33: 568115 | K33: 984892 | L33: 167432 | M33: 149802 | N33: 97659 | O33: 295468 | P33: 1695253 | Q33: 2263368 | R33: 0 | S33: 2263368
A34: BEL-RI-001 | B34: R216 | C34: Belmont | D34: Belmont Road/Meadowlands Road Intersection | E34: Road Intersection Project | F34: 4 Lane Road / 4 Lane Road | G34: 2021 - 2026 | H34: 1 | I34: - | J34: 125700 | K34: 476691 | L34: 81037 | M34: 72505 | N34: 94535 | O34: 143007 | P34: 867775 | Q34: 993475 | R34: 0 | S34: 993475
A35: BEL-RI-002 | B35: R216 | C35: Belmont | D35: Meadowlands Road/Wright Street Intersection | E35: Road Intersection Project | F35: 4 Lane Road / 4 Lane Road | G35: 2016 - 2021 | H35: 2 | I35: - | J35: 20850 | K35: 476691 | L35: 81037 | M35: 72505 | N35: 47267 | O35: 143007 | P35: 820508 | Q35: 841358 | R35: 0 | S35: 841358
A36: BOH-RC-001 | B36: R153 | C36: Bowen Hills | D36: Abbotsford Road (Burrows Street to Allison Street) | E36: Road Corridor Project | F36: 6 Lane Road | G36: 2016 - 2021 | H36: 8 | I36: 354.942949 | J36: 361193 | K36: 1012652 | L36: 172151 | M36: 154024 | N36: 100412 | O36: 303796 | P36: 1743035 | Q36: 2104228 | R36: 0 | S36: 2104228
A37: BOH-RC-002 | B37: R173 | C37: Bowen Hills, Fortitude Valley | D37: Costin Street/Constance Street (Gregory Terrace to St Pauls Terrace) | E37: Road Corridor Project | F37: 2 Lane Road | G37: 2021 - 2026 | H37: 8 | I37: 350.011706 | J37: 4084525 | K37: 499467 | L37: 84909 | M37: 75969 | N37: 99052 | O37: 149840 | P37: 909237 | Q37: 4993762 | R37: 0 | S37: 4993762
A38: BOH-RI-001 | B38: R173 | C38: Bowen Hills | D38: Gregory Terrace/Costin Street Intersection | E38: Road Intersection Project | F38: 2 Lane Road / 2 Lane Road | G38: 2016 - 2021 | H38: 8 | I38: - | J38: 718500 | K38: 418448 | L38: 71136 | M38: 63646 | N38: 41492 | O38: 125534 | P38: 720257 | Q38: 1438757 | R38: 0 | S38: 1438757
A39: BRG-RC-003 | B39: R73 | C39: Bracken Ridge, Fitzgibbon | D39: Telegraph Road (Mustang Street to Denham Street) | E39: Road Corridor Project | F39: 6 Lane Road | G39: 2016 - 2021 | H39: 15 | I39: 716.303521 | J39: 1755671 | K39: 1941433 | L39: 330044 | M39: 295292 | N39: 192508 | O39: 582430 | P39: 3341707 | Q39: 5097378 | R39: 0 | S39: 5097378
A40: BRG-RC-004 | B40: R73 | C40: Bracken Ridge, Fitzgibbon, Deagon | D40: Depot Road (Lemke Road to Quinlan Street) | E40: Road Corridor Project | F40: 6 Lane Road | G40: 2016 - 2021 | H40: 15 | I40: 86.984595 | J40: 0 | K40: 318559 | L40: 54155 | M40: 48453 | N40: 31588 | O40: 95568 | P40: 548323 | Q40: 548323 | R40: 0 | S40: 548323
A41: BRG-RC-005 | B41: R73 | C41: Bracken Ridge, Fitzgibbon | D41: Telegraph Road (Denham Street to Lemke Road) | E41: Road Corridor Project | F41: 6 Lane Road | G41: 2016 - 2021 | H41: 15 | I41: 376.462931 | J41: 728918 | K41: 1020346 | L41: 173459 | M41: 155195 | N41: 101175 | O41: 306104 | P41: 1756279 | Q41: 2485197 | R41: 0 | S41: 2485197
A42: BRG-RI-001 | B42: R73 | C42: Bracken Ridge | D42: Telegraph Road/Denham Street Intersection | E42: Road Intersection Project | F42: 6 Lane Road / 4 Lane Road | G42: 2016 - 2021 | H42: 15 | I42: - | J42: 45900 | K42: 597881 | L42: 101640 | M42: 90938 | N42: 59284 | O42: 179364 | P42: 1029106 | Q42: 1075006 | R42: 0 | S42: 1075006
A43: BRG-RI-002 | B43: R53 | C43: Bracken Ridge | D43: Robinson Road West/Kirby Road Intersection | E43: Road Intersection Project | F43: 6 Lane Road / 2 Lane Road | G43: 2021 - 2026 | H43: 15 | I43: - | J43: 502800 | K43: 789691 | L43: 134248 | M43: 120112 | N43: 156608 | O43: 236907 | P43: 1437566 | Q43: 1940366 | R43: 0 | S43: 1940366
A44: BRG-RI-003 | B44: R53 | C44: Bracken Ridge | D44: Bracken Ridge Road/Barfoot Road Intersection | E44: Road Intersection Project | F44: 4 Lane Road / 4 Lane Road | G44: 2021 - 2026 | H44: 15 | I44: - | J44: 0 | K44: 817184 | L44: 138921 | M44: 124294 | N44: 162060 | O44: 245155 | P44: 1487615 | Q44: 1487615 | R44: 0 | S44: 1487615
A45: BUL-RI-001 | B45: R174 | C45: Bulimba | D45: Lytton Road/Apollo Road/Thorpe Street Intersection | E45: Road Intersection Project | F45: 4 Lane Road / 2 Lane Road | G45: 2016 - 2021 | H45: 5 | I45: - | J45: 291150 | K45: 711951 | L45: 121032 | M45: 108288 | N45: 70595 | O45: 213585 | P45: 1225451 | Q45: 1516601 | R45: 0 | S45: 1516601
A46: BYO-RC-001 | B46: R114 | C46: Banyo | D46: Nudgee Road (Raubers Road to Tufnell Road) | E46: Road Corridor Project | F46: 4 Lane Road | G46: 2016 - 2021 | H46: 16 | I46: 615.338707 | J46: 730752 | K46: 1516964 | L46: 257884 | M46: 230730 | N46: 150418 | O46: 455089 | P46: 2611085 | Q46: 3341837 | R46: 0 | S46: 3341837
A47: BYO-RI-001 | B47: R114 | C47: Banyo | D47: Nudgee Road/Tufnell Street Intersection | E47: Road Intersection Project | F47: 4 Lane Road / 4 Lane Road | G47: 2016 - 2021 | H47: 16 | I47: - | J47: 133500 | K47: 476691 | L47: 81037 | M47: 72505 | N47: 47267 | O47: 143007 | P47: 820508 | Q47: 954008 | R47: 0 | S47: 954008
A48: CAH-RI-001 | B48: R214 | C48: Camp Hill | D48: Boundary Road/Chatsworth Road/Samuel Street Intersection | E48: Road Intersection Project | F48: 4 Lane Road / 4 Lane Road | G48: 2016 - 2021 | H48: 4 | I48: - | J48: 280800 | K48: 544790 | L48: 92614 | M48: 82863 | N48: 54020 | O48: 163437 | P48: 937724 | Q48: 1218524 | R48: 0 | S48: 1218524
A49: CDE-LC-001 | B49: R72 | C49: Carseldine | D49: Beams Road Open Level Crossing | E49: Open Level Crossing | F49: 4 Lane Road | G49: 2021 - 2026 | H49: 15 | I49: - | J49: 25000000 | K49: 123598191 | L49: 21011692 | M49: 18799285 | N49: 24511375 | O49: 37079457 | P49: 225000000 | Q49: 250000000 | R49: 191250000 | S49: 58750000
A50: CDE-RC-002 | B50: R72, R73 | C50: Carseldine, Fitzgibbon | D50: Beams Road (Balcara Avenue to Carselgrove Avenue) | E50: Road Corridor Project | F50: 4 Lane Road | G50: 2021 - 2026 | H50: 15 | I50: 462.678923 | J50: 234708 | K50: 1140619 | L50: 193905 | M50: 173488 | N50: 226202 | O50: 342186 | P50: 2076400 | Q50: 2311108 | R50: 0 | S50: 2311108
A51: CDE-RC-003 | B51: R72 | C51: Carseldine | D51: Beams Road (Dorville Road to Balcara Avenue) | E51: Road Corridor Project | F51: 4 Lane Road | G51: 2021 - 2026 | H51: 15 | I51: 475.152391 | J51: 227373 | K51: 1171369 | L51: 199133 | M51: 178165 | N51: 232300 | O51: 351411 | P51: 2132378 | Q51: 2359751 | R51: 0 | S51: 2359751
A52: CDE-RC-004 | B52: R72 | C52: Carseldine | D52: Beams Road (Gympie Road to Lacey Road) | E52: Road Corridor Project | F52: 4 Lane Road | G52: 2021 - 2026 | H52: 15 | I52: 144.890668 | J52: 29588 | K52: 395733 | L52: 67275 | M52: 60191 | N52: 78480 | O52: 118720 | P52: 720398 | Q52: 749986 | R52: 0 | S52: 749986
A53: CDE-RC-005 | B53: R72 | C53: Carseldine | D53: Beams Road (Lacey Road to Cowie Road) | E53: Road Corridor Project | F53: 4 Lane Road | G53: 2021 - 2026 | H53: 15 | I53: 384.323678 | J53: 1116763 | K53: 947454 | L53: 161067 | M53: 144108 | N53: 187894 | O53: 284236 | P53: 1724759 | Q53: 2841523 | R53: 0 | S53: 2841523
A54: CDE-RC-006 | B54: R72 | C54: Carseldine | D54: Beams Road (Cowie Road to Dorville Road) | E54: Road Corridor Project | F54: 4 Lane Road | G54: 2021 - 2026 | H54: 15 | I54: 383.484786 | J54: 1080688 | K54: 945386 | L54: 160716 | M54: 143793 | N54: 187484 | O54: 283616 | P54: 1720995 | Q54: 2801683 | R54: 0 | S54: 2801683
A55: CDE-RI-002 | B55: R72 | C55: Carseldine | D55: Beams Road/Dorville Road Intersection | E55: Road Intersection Project | F55: 4 Lane Road / 2 Lane Road | G55: 2021 - 2026 | H55: 15 | I55: - | J55: 146550 | K55: 711951 | L55: 121032 | M55: 108288 | N55: 141191 | O55: 213585 | P55: 1296046 | Q55: 1442596 | R55: 0 | S55: 1442596
A56: CDE-RI-003 | B56: R72 | C56: Carseldine | D56: Beams Road/Cowie Road Intersection | E56: Road Intersection Project | F56: 4 Lane Road / 2 Lane Road | G56: 2021 - 2026 | H56: 15 | I56: - | J56: 42000 | K56: 533964 | L56: 90774 | M56: 81216 | N56: 105893 | O56: 160189 | P56: 972035 | Q56: 1014035 | R56: 0 | S56: 1014035
A57: CDL-RB-002 | B57: R215 | C57: Carindale | D57: Meadowlands Road Bridge (between Cadogan Street and Wright Street) | E57: Road Bridge | F57: 4 Lane Road | G57: 2016 - 2021 | H57: 2, 4 | I57: 120.572359 | J57: 0 | K57: 5968332 | L57: 1014616 | M57: 907783 | N57: 591805 | O57: 596833 | P57: 9079369 | Q57: 9079369 | R57: 0 | S57: 9079369
A58: CDL-RC-002 | B58: R215 | C58: Carindale, Carina | D58: Meadowlands Road (Preston Road to bridge over Bulimba Creek) | E58: Road Corridor Project | F58: 4 Lane Road | G58: 2016 - 2021 | H58: 4 | I58: 454.577673 | J58: 935951 | K58: 1120648 | L58: 190510 | M58: 170451 | N58: 111121 | O58: 336194 | P58: 1928923 | Q58: 2864874 | R58: 0 | S58: 2864874
A59: CDL-RC-003 | B59: R216, R215 | C59: Carindale, Belmont | D59: Meadowlands Road (bridge over Bulimba Creek to Wright Street) | E59: Road Corridor Project | F59: 4 Lane Road | G59: 2016 - 2021 | H59: 2 | I59: 300.516417 | J59: 0 | K59: 740848 | L59: 125944 | M59: 112683 | N59: 73461 | O59: 222254 | P59: 1275190 | Q59: 1275190 | R59: 0 | S59: 1275190
A60: CHE-RC-007 | B60: R113, R93 | C60: Aspley, Chermside | D60: Murphy Road (Kittyhawk Drive to Ellison Road) | E60: Road Corridor Project | F60: 4 Lane Road | G60: 2016 - 2021 | H60: 15 | I60: 533.736106 | J60: 454683 | K60: 1315793 | L60: 223685 | M60: 200132 | N60: 130471 | O60: 394738 | P60: 2264818 | Q60: 2719501 | R60: 0 | S60: 2719501
A61: CHE-RC-008 | B61: R113, R112 | C61: Chermside, Aspley | D61: Murphy Road (Gympie Road to Kittyhawk Drive) | E61: Road Corridor Project | F61: 4 Lane Road | G61: 2016 - 2021 | H61: 15 | I61: 253.160053 | J61: 229670 | K61: 624103 | L61: 106097 | M61: 94926 | N61: 61884 | O61: 187231 | P61: 1074242 | Q61: 1303911 | R61: 0 | S61: 1303911
A62: CHE-RC-009 | B62: R113 | C62: Chermside | D62: Hamilton Road (Kittyhawk Drive to Pfingst Road) | E62: Road Corridor Project | F62: 4 Lane Road | G62: 2016 - 2021 | H62: 14 | I62: 792.478835 | J62: 3597921 | K62: 1953658 | L62: 332122 | M62: 297151 | N62: 193720 | O62: 586098 | P62: 3362749 | Q62: 6960671 | R62: 0 | S62: 6960671
A63: CHE-RC-010 | B63: R113 | C63: Chermside | D63: Hamilton Road (Gympie Road to Kingsmill Street) | E63: Road Corridor Project | F63: 4 Lane Road | G63: 2016 - 2021 | H63: 14 | I63: 321.501698 | J63: 124980 | K63: 959441 | L63: 163105 | M63: 145931 | N63: 95136 | O63: 287832 | P63: 1651446 | Q63: 1776426 | R63: 0 | S63: 1776426
A64: CHE-RC-011 | B64: R113 | C64: Chermside | D64: Hamilton Road (Pfingst Road to Newman Road) | E64: Road Corridor Project | F64: 4 Lane Road | G64: 2016 - 2021 | H64: 14 | I64: 145.335276 | J64: 737057 | K64: 396947 | L64: 67481 | M64: 60376 | N64: 39360 | O64: 119084 | P64: 683248 | Q64: 1420305 | R64: 0 | S64: 1420305
A65: CHE-RI-001 | B65: R113 | C65: Chermside | D65: Murphy Road/Kittyhawk Drive Intersection | E65: Road Intersection Project | F65: 4 Lane Road / 2 Lane Road | G65: 2016 - 2021 | H65: 15 | I65: - | J65: 0 | K65: 415305 | L65: 70602 | M65: 63168 | N65: 41181 | O65: 124591 | P65: 714847 | Q65: 714847 | R65: 0 | S65: 714847
A66: CHE-RI-006 | B66: R113 | C66: Chermside | D66: Hamilton Road/Kittyhawk Drive Intersection | E66: Road Intersection Project | F66: 4 Lane Road / 2 Lane Road | G66: 2016 - 2021 | H66: 14 | I66: - | J66: 588300 | K66: 474634 | L66: 80688 | M66: 72192 | N66: 47064 | O66: 142390 | P66: 816968 | Q66: 1405268 | R66: 0 | S66: 1405268
A67: CHE-RI-007 | B67: R113 | C67: Chermside | D67: Hamilton Road/Pfingst Road Intersection | E67: Road Intersection Project | F67: 4 Lane Road / 2 Lane Road | G67: 2016 - 2021 | H67: 14 | I67: - | J67: 268500 | K67: 415305 | L67: 70602 | M67: 63168 | N67: 41181 | O67: 124591 | P67: 714847 | Q67: 983347 | R67: 0 | S67: 983347
A68: CHW-RC-003 | B68: R112 | C68: Chermside West | D68: Rode Road (Maundrell Terrace to bridge over Downfall Creek) | E68: Road Corridor Project | F68: 4 Lane Road | G68: 2016 - 2021 | H68: 14 | I68: 584.135728 | J68: 2331754 | K68: 1440041 | L68: 244807 | M68: 219030 | N68: 142791 | O68: 432012 | P68: 2478681 | Q68: 4810435 | R68: 0 | S68: 4810435
A69: CHW-RC-004 | B69: R112 | C69: Chermside West | D69: Rode Road (Maundrell Terrace to Webster Road) | E69: Road Corridor Project | F69: 4 Lane Road | G69: 2016 - 2021 | H69: 14 | I69: 374.542889 | J69: 587032 | K69: 923342 | L69: 156968 | M69: 140440 | N69: 91556 | O69: 277003 | P69: 1589309 | Q69: 2176341 | R69: 0 | S69: 2176341
A70: CHW-RC-005 | B70: R112 | C70: Chermside West | D70: Rode Road (Maundrell Terrace to Webster Road) | E70: Road Corridor Project | F70: 4 Lane Road | G70: 2016 - 2021 | H70: 14 | I70: 101.883076 | J70: 0 | K70: 336851 | L70: 57265 | M70: 51235 | N70: 33401 | O70: 101055 | P70: 579807 | Q70: 579807 | R70: 0 | S70: 579807
A71: CHW-RI-001 | B71: R112 | C71: Chermside West | D71: Hamilton Road/Maundrell Terrace Intersection | E71: Road Intersection Project | F71: 4 Lane Road / 4 Lane Road | G71: 2021 - 2026 | H71: 15 | I71: - | J71: 421200 | K71: 544790 | L71: 92614 | M71: 82863 | N71: 108040 | O71: 163437 | P71: 991744 | Q71: 1412944 | R71: 0 | S71: 1412944
A72: CHW-RI-002 | B72: R112 | C72: Chermside West | D72: Rode Road/Webster Road Intersection | E72: Road Intersection Project | F72: 4 Lane Road / 4 Lane Road | G72: 2016 - 2021 | H72: 14 | I72: - | J72: 215400 | K72: 544790 | L72: 92614 | M72: 82863 | N72: 54020 | O72: 163437 | P72: 937724 | Q72: 1153124 | R72: 0 | S72: 1153124
A73: CHW-RI-003 | B73: R112 | C73: Chermside West | D73: Rode Road/Maundrell Terrace Intersection | E73: Road Intersection Project | F73: 4 Lane Road / 4 Lane Road | G73: 2016 - 2021 | H73: 14 | I73: - | J73: 280800 | K73: 544790 | L73: 92614 | M73: 82863 | N73: 54020 | O73: 163437 | P73: 937724 | Q73: 1218524 | R73: 0 | S73: 1218524
A74: CLL-RC-004 | B74: R195 | C74: Cannon Hill, Murarrie | D74: Wynnum Road (Southgate Avenue to Creek Road) | E74: Road Corridor Project | F74: 6 Lane Road | G74: 2021 - 2026 | H74: 5 | I74: 274.99 | J74: 433180 | K74: 902228 | L74: 153379 | M74: 137229 | N74: 178925 | O74: 270669 | P74: 1642430 | Q74: 2075610 | R74: 0 | S74: 2075610
A75: CLL-RI-003 | B75: R195 | C75: Cannon Hill | D75: Wynnum Road/Creek Road Intersection | E75: Road Intersection Project | F75: 6 Lane Road / 6 Lane Road | G75: 2021 - 2026 | H75: 5 | I75: - | J75: 118500 | K75: 763684 | L75: 129826 | M75: 116156 | N75: 151450 | O75: 229105 | P75: 1390222 | Q75: 1508722 | R75: 0 | S75: 1508722
A76: CLL-RI-004 | B76: R195 | C76: Cannon Hill | D76: Wynnum Road/Southgate Avenue/Cannondale Street Intersection | E76: Road Intersection Project | F76: 6 Lane Road / 2 Lane Road | G76: 2021 - 2026 | H76: 5 | I76: - | J76: 655350 | K76: 637296 | L76: 108340 | M76: 96933 | N76: 126385 | O76: 191189 | P76: 1160142 | Q76: 1815492 | R76: 0 | S76: 1815492
A77: CLR-RI-001 | B77: R211 | C77: Chelmer | D77: Coonan Street/Wharf Street Intersection | E77: Road Intersection Project | F77: 6 Lane Road / 6 Lane Road | G77: 2021 - 2026 | H77: 9 | I77: - | J77: 140400 | K77: 552011 | L77: 93842 | M77: 83961 | N77: 109472 | O77: 165603 | P77: 1004889 | Q77: 1145289 | R77: 0 | S77: 1145289
A78: COO-LC-001 | B78: R213 | C78: Coorparoo | D78: Cavendish Road Open Level Crossing | E78: Open Level Crossing | F78: 4 Lane Road | G78: 2016 - 2021 | H78: 4 | I78: - | J78: 35000000 | K78: 183005739 | L78: 31110976 | M78: 27835173 | N78: 18146392 | O78: 54901722 | P78: 315000000 | Q78: 350000000 | R78: 267750000 | S78: 82250000
A79: COO-RC-005 | B79: R213 | C79: Coorparoo | D79: Cavendish Road (Holdsworth Street to Wakefield Street) | E79: Road Corridor Project | F79: 4 Lane Road | G79: 2016 - 2021 | H79: 4 | I79: 159.270365 | J79: 874069 | K79: 526588 | L79: 89520 | M79: 80094 | N79: 52215 | O79: 157976 | P79: 906393 | Q79: 1780461 | R79: 0 | S79: 1780461
A80: COO-RC-006 | B80: R213, R193 | C80: Coorparoo | D80: Cavendish Road (Wakefield Street to Stanley Street East) | E80: Road Corridor Project | F80: 4 Lane Road | G80: 2016 - 2021 | H80: 4 | I80: 620.226427 | J80: 3831623 | K80: 1529013 | L80: 259932 | M80: 232563 | N80: 151613 | O80: 458704 | P80: 2631825 | Q80: 6463448 | R80: 0 | S80: 6463448
A81: COO-RC-007 | B81: R193 | C81: Coorparoo, East Brisbane | D81: Stanley Street East (Cavendish Road to bridge over Norman Creek) | E81: Road Corridor Project | F81: 4 Lane Road | G81: 2021 - 2026 | H81: 8, 4 | I81: 349.877262 | J81: 70444 | K81: 862535 | L81: 146631 | M81: 131192 | N81: 171054 | O81: 258760 | P81: 1570172 | Q81: 1640616 | R81: 0 | S81: 1640616
A82: COO-RC-008 | B82: R213 | C82: Coorparoo | D82: Cavendish Road (Old Cleveland Road to Holdsworth Street) | E82: Road Corridor Project | F82: 4 Lane Road | G82: 2016 - 2021 | H82: 4 | I82: 75.5629 | J82: 780416 | K82: 304749 | L82: 51807 | M82: 46352 | N82: 30218 | O82: 91425 | P82: 524551 | Q82: 1304967 | R82: 0 | S82: 1304967
A83: COO-RI-001 | B83: R193 | C83: Coorparoo | D83: Cavendish Road/Stanley Street East Intersection | E83: Road Intersection Project | F83: 4 Lane Road / 4 Lane Road | G83: 2016 - 2021 | H83: 4 | I83: - | J83: 133500 | K83: 544790 | L83: 92614 | M83: 82863 | N83: 54020 | O83: 163437 | P83: 937724 | Q83: 1071224 | R83: 0 | S83: 1071224
A84: COO-RI-002 | B84: R213 | C84: Coorparoo | D84: Cavendish Road/Holdsworth Street | E84: Road Intersection Project | F84: 4 Lane Road / 4 Lane Road | G84: 2016 - 2021 | H84: 4 | I84: - | J84: 489000 | K84: 741918 | L84: 126126 | M84: 112846 | N84: 73567 | O84: 222575 | P84: 1277032 | Q84: 1766032 | R84: 0 | S84: 1766032
A85: COO-RI-003 | B85: R214 | C85: Coorparoo | D85: Cavendish Road/Chatsworth Road Intersection | E85: Road Intersection Project | F85: 4 Lane Road / 4 Lane Road | G85: 2016 - 2021 | H85: 4 | I85: - | J85: 341400 | K85: 544790 | L85: 92614 | M85: 82863 | N85: 54020 | O85: 163437 | P85: 937724 | Q85: 1279124 | R85: 0 | S85: 1279124
A86: COO-RI-004 | B86: R214 | C86: Coorparoo | D86: Old Cleveland Road/Leicester Street Intersection | E86: Road Intersection Project | F86: 6 Lane Road / 2 Lane Road | G86: 2021 - 2026 | H86: 4 | I86: - | J86: 488100 | K86: 592269 | L86: 100686 | M86: 90084 | N86: 117456 | O86: 177681 | P86: 1078175 | Q86: 1566275 | R86: 0 | S86: 1566275
A87: COO-RI-005 | B87: R213 | C87: Coorparoo | D87: Old Cleveland Road/Cavendish Road Intersection | E87: Road Intersection Project | F87: 6 Lane Road / 4 Lane Road | G87: 2016 - 2021 | H87: 4 | I87: - | J87: 1016700 | K87: 723750 | L87: 123038 | M87: 110082 | N87: 71765 | O87: 217125 | P87: 1245760 | Q87: 2262460 | R87: 0 | S87: 2262460
A88: COP-LC-001 | B88: R273 | C88: Coopers Plains | D88: Boundary Road Open Level Crossing | E88: Open Level Crossing | F88: 4 Lane Road | G88: 2016 - 2021 | H88: 7 | I88: - | J88: 23000000 | K88: 120260914 | L88: 20444355 | M88: 18291685 | N88: 11924772 | O88: 36078274 | P88: 207000000 | Q88: 230000000 | R88: 175950000 | S88: 54050000
A89: CVE-RC-002 | B89: R313 | C89: Calamvale | D89: Ormskirk Street (Benhiam Street to Hamish Street) | E89: Road Corridor Project | F89: 2 Lane Road | G89: 2021 - 2026 | H89: 6 | I89: 372.276389 | J89: 421720 | K89: 943572 | L89: 160407 | M89: 143517 | N89: 187124 | O89: 0 | P89: 1434621 | Q89: 1856341 | R89: 0 | S89: 1856341
A90: CVE-RC-007 | B90: R313 | C90: Calamvale | D90: Benhiam Street (Benhiam Street to Highlands Drive) | E90: Road Corridor Project | F90: 2 Lane Road | G90: 2021 - 2026 | H90: 6 | I90: 310.151137 | J90: 1060594 | K90: 786109 | L90: 133639 | M90: 119567 | N90: 155897 | O90: 0 | P90: 1195212 | Q90: 2255807 | R90: 0 | S90: 2255807
A91: CVE-RC-010 | B91: R333 | C91: Calamvale | D91: Nottingham Road (Benthiam Street to Appleby Street) | E91: Road Corridor Project | F91: 4 Lane Road | G91: 2021 - 2026 | H91: 6 | I91: 402.582594 | J91: 400030 | K91: 992467 | L91: 168719 | M91: 150954 | N91: 196821 | O91: 297740 | P91: 1806701 | Q91: 2206732 | R91: 0 | S91: 2206732
A92: CVE-RC-011 | B92: R333 | C92: Calamvale | D92: Nottingham Road (Menser to Behiam Street) | E92: Road Corridor Project | F92: 4 Lane Road | G92: 2021 - 2026 | H92: 6 | I92: 399.304144 | J92: 612540 | K92: 984385 | L92: 167345 | M92: 149725 | N92: 195218 | O92: 295315 | P92: 1791988 | Q92: 2404528 | R92: 0 | S92: 2404528
A93: CVE-RI-001 | B93: R333 | C93: Calamvale | D93: Nottingham Road/Benhiam Street Intersection | E93: Road Intersection Project | F93: 4 Lane Road / 2 Lane Road | G93: 2021 - 2026 | H93: 6 | I93: - | J93: 167400 | K93: 415305 | L93: 70602 | M93: 63168 | N93: 82361 | O93: 124591 | P93: 756027 | Q93: 923427 | R93: 0 | S93: 923427
A94: DAR-RB-002 | B94: R270 | C94: Darra | D94: Harcourt Road Bridge (between Railway Parade and Manburgh Terrace) | E94: Road Bridge | F94: 4 Lane Road | G94: 2021 - 2026 | H94: 10 | I94: 34.04 | J94: 1590 | K94: 3063600 | L94: 520812 | M94: 465974 | N94: 607558 | O94: 306360 | P94: 4964303 | Q94: 4965893 | R94: 0 | S94: 4965893
A95: DAR-RC-007 | B95: R270 | C95: Darra | D95: Harcourt Road (Railway Parade to Winslow Street) | E95: Road Corridor Project | F95: 4 Lane Road | G95: 2021 - 2026 | H95: 10 | I95: 443.332269 | J95: 1319032 | K95: 1092925 | L95: 185797 | M95: 166234 | N95: 216743 | O95: 327877 | P95: 1989577 | Q95: 3308609 | R95: 0 | S95: 3308609
A96: DAR-RC-008 | B96: R270 | C96: Darra | D96: Harcourt Road (Winslow Street to Ipswich Road) | E96: Road Corridor Project | F96: 4 Lane Road | G96: 2021 - 2026 | H96: 10 | I96: 221.587048 | J96: 362323 | K96: 605210 | L96: 102886 | M96: 92052 | N96: 120022 | O96: 181563 | P96: 1101733 | Q96: 1464056 | R96: 0 | S96: 1464056
A97: DAR-RC-009 | B97: R270 | C97: Darra, Richlands | D97: Boundary Road (Archerfield Road to Acanthus Street) | E97: Road Corridor Project | F97: 4 Lane Road | G97: 2021 - 2026 | H97: 10 | I97: 589.188295 | J97: 570719 | K97: 1452496 | L97: 246924 | M97: 220925 | N97: 288052 | O97: 435749 | P97: 2644146 | Q97: 3214866 | R97: 0 | S97: 3214866
A98: DAR-RC-010 | B98: R270 | C98: Darra, Oxley | D98: Dowding Street (Englefield Road to Valance Street) | E98: Road Corridor Project | F98: 2 Lane Road | G98: 2021 - 2026 | H98: 10 | I98: 496.836891 | J98: 311789 | K98: 1259283 | L98: 214078 | M98: 191537 | N98: 249735 | O98: 0 | P98: 1914632 | Q98: 2226421 | R98: 0 | S98: 2226421
A99: DAR-RI-003 | B99: R270 | C99: Darra | D99: Cardiff Road/Harcourt Road Intersection | E99: Road Intersection Project | F99: 4 Lane Road / 2 Lane Road | G99: 2021 - 2026 | H99: 10 | I99: - | J99: 45900 | K99: 466452 | L99: 79297 | M99: 70947 | N99: 92504 | O99: 139936 | P99: 849136 | Q99: 895036 | R99: 0 | S99: 895036
A100: DAR-RI-004 | B100: R270 | C100: Darra | D100: Harcourt Road/Winslow Street Intersection | E100: Road Intersection Project | F100: 4 Lane Road / 2 Lane Road | G100: 2016 - 2021 | H100: 10 | I100: - | J100: 45900 | K100: 466452 | L100: 79297 | M100: 70947 | N100: 46252 | O100: 139936 | P100: 802884 | Q100: 848784 | R100: 0 | S100: 848784
A101: DAR-RI-005 | B101: R270 | C101: Darra | D101: Monier Road/Bellwood Street Intersection | E101: Road Intersection Project | F101: 4 Lane Road / 2 Lane Road | G101: 2016 - 2021 | H101: 10 | I101: - | J101: 272700 | K101: 711951 | L101: 121032 | M101: 108288 | N101: 70595 | O101: 213585 | P101: 1225451 | Q101: 1498151 | R101: 0 | S101: 1498151
A102: DEA-RC-002 | B102: R53 | C102: Deagon | D102: Depot Road (Gateway Motorway Ramp to Deagon Deviation) | E102: Road Corridor Project | F102: 6 Lane Road | G102: 2016 - 2021 | H102: 15 | I102: 736.394678 | J102: 78813 | K102: 1995887 | L102: 339301 | M102: 303574 | N102: 197907 | O102: 598766 | P102: 3435436 | Q102: 3514249 | R102: 0 | S102: 3514249
A103: DEA-RC-003 | B103: R73, R53 | C103: Deagon | D103: Depot Road (Quinlan Street to Gateway Motorway Ramp) | E103: Road Corridor Project | F103: 6 Lane Road | G103: 2016 - 2021 | H103: 15 | I103: 304.413648 | J103: 35910 | K103: 825068 | L103: 140261 | M103: 125493 | N103: 81812 | O103: 247520 | P103: 1420154 | Q103: 1456064 | R103: 0 | S103: 1456064
A104: DEA-RI-001 | B104: R54 | C104: Deagon | D104: Gateway Motorway Ramps/Depot Road Intersection | E104: Road Intersection Project | F104: 6 Lane Road / 6 Lane Road | G104: 2016 - 2021 | H104: 15 | I104: - | J104: 20850 | K104: 552011 | L104: 93842 | M104: 83961 | N104: 54736 | O104: 165603 | P104: 950153 | Q104: 971003 | R104: 0 | S104: 971003
A105: DUR-RC-002 | B105: R291 | C105: Durack, Willawong | D105: King Avenue (Inala Avenue to bridge over Bullockhead Creek) | E105: Road Corridor Project | F105: 6 Lane Road | G105: 2021 - 2026 | H105: 9 | I105: 299.789582 | J105: 1026 | K105: 812535 | L105: 138131 | M105: 123587 | N105: 161138 | O105: 243760 | P105: 1479150 | Q105: 1480177 | R105: 0 | S105: 1480177
A106: DUR-RI-001 | B106: R291 | C106: Durack | D106: King Avenue/Inala Avenue Intersection | E106: Road Intersection Project | F106: 6 Lane Road / 2 Lane Road | G106: 2021 - 2026 | H106: 9 | I106: - | J106: 300 | K106: 592269 | L106: 100686 | M106: 90084 | N106: 117456 | O106: 177681 | P106: 1078175 | Q106: 1078475 | R106: 0 | S106: 1078475
A107: EAB-RC-001 | B107: R193 | C107: East Brisbane | D107: Lytton Road (Heath Street to Laidlaw Parade) | E107: Road Corridor Project | F107: 6 Lane Road | G107: 2016 - 2021 | H107: 8 | I107: 367.350187 | J107: 6007481 | K107: 1048050 | L107: 178169 | M107: 159408 | N107: 103922 | O107: 314415 | P107: 1803964 | Q107: 7811445 | R107: 0 | S107: 7811445
A108: EAB-RC-004 | B108: R193 | C108: East Brisbane | D108: Lytton Road (Latrobe Street to Heidelberg Street) | E108: Road Corridor Project | F108: 6 Lane Road | G108: 2016 - 2021 | H108: 8 | I108: 234.766158 | J108: 3806002 | K108: 742096 | L108: 126156 | M108: 112873 | N108: 73584 | O108: 222629 | P108: 1277338 | Q108: 5083340 | R108: 0 | S108: 5083340
A109: EAB-RC-005 | B109: R193 | C109: East Brisbane | D109: Lytton Road (Wellington Road to Latrobe Street) | E109: Road Corridor Project | F109: 6 Lane Road | G109: 2016 - 2021 | H109: 8 | I109: 245.252624 | J109: 2765614 | K109: 775244 | L109: 131791 | M109: 117915 | N109: 76871 | O109: 232573 | P109: 1334394 | Q109: 4100008 | R109: 0 | S109: 4100008
A110: EAB-RC-006 | B110: R193, R213 | C110: East Brisbane | D110: Stanley Street East (Caswell Street to Lisburn Street) | E110: Road Corridor Project | F110: 4 Lane Road | G110: 2021 - 2026 | H110: 8 | I110: 790.4244 | J110: 7061112 | K110: 2051151 | L110: 348696 | M110: 311980 | N110: 406774 | O110: 615345 | P110: 3733947 | Q110: 10795058 | R110: 0 | S110: 10795058
A111: EAB-RC-007 | B111: R193 | C111: East Brisbane | D111: Stanley Street East (Lisburn Street to Wellington Road) | E111: Road Corridor Project | F111: 6 Lane Road | G111: 2021 - 2026 | H111: 8 | I111: 193.008977 | J111: 4500826 | K111: 610101 | L111: 103717 | M111: 92796 | N111: 120992 | O111: 183030 | P111: 1110638 | Q111: 5611464 | R111: 0 | S111: 5611464
A112: EAB-RC-009 | B112: R193 | C112: East Brisbane | D112: Wynnum Road (Laidlaw Parade to bridge over Norman Creek) | E112: Road Corridor Project | F112: 6 Lane Road | G112: 2021 - 2026 | H112: 8 | I112: 72.342731 | J112: 503408 | K112: 278881 | L112: 47410 | M112: 42418 | N112: 55306 | O112: 83664 | P112: 507680 | Q112: 1011087 | R112: 0 | S112: 1011087
A113: EAB-RC-010 | B113: R193 | C113: East Brisbane | D113: Wynnum Road (Laidlaw Parade to bridge over Norman Creek) | E113: Road Corridor Project | F113: 6 Lane Road | G113: 2021 - 2026 | H113: 8 | I113: 14.586457 | J113: 0 | K113: 75908 | L113: 12904 | M113: 11546 | N113: 15054 | O113: 22772 | P113: 138184 | Q113: 138184 | R113: 0 | S113: 138184
A114: EAB-RC-011 | B114: R193 | C114: East Brisbane | D114: Stanley Street East (Vulture Street East to bridge over Norman Creek) | E114: Road Corridor Project | F114: 4 Lane Road | G114: 2021 - 2026 | H114: 8 | I114: 100.092374 | J114: 145818 | K114: 287766 | L114: 48920 | M114: 43769 | N114: 57068 | O114: 86330 | P114: 523853 | Q114: 669670 | R114: 0 | S114: 669670
A115: EAB-RI-001 | B115: R193 | C115: East Brisbane | D115: Lytton Road/Laidlaw Parade Intersection | E115: Road Intersection Project | F115: 6 Lane Road / 2 Lane Road | G115: 2016 - 2021 | H115: 8 | I115: - | J115: 241800 | K115: 552749 | L115: 93967 | M115: 84073 | N115: 54809 | O115: 165825 | P115: 951423 | Q115: 1193223 | R115: 0 | S115: 1193223
A116: EAB-RI-002 | B116: R193 | C116: East Brisbane | D116: Shaftston Avenue/Latrobe Street Intersection | E116: Road Intersection Project | F116: 6 Lane Road / 6 Lane Road | G116: 2016 - 2021 | H116: 8 | I116: - | J116: 666300 | K116: 581064 | L116: 98781 | M116: 88380 | N116: 57617 | O116: 174319 | P116: 1000161 | Q116: 1666461 | R116: 0 | S116: 1666461
A117: EAB-RI-003 | B117: R193 | C117: East Brisbane | D117: Lytton Road/Heidelberg Street Intersection | E117: Road Intersection Project | F117: 6 Lane Road / 2 Lane Road | G117: 2016 - 2021 | H117: 8 | I117: - | J117: 333150 | K117: 554170 | L117: 94209 | M117: 84289 | N117: 54950 | O117: 166251 | P117: 953869 | Q117: 1287019 | R117: 0 | S117: 1287019
A118: EAB-RI-004 | B118: R193 | C118: East Brisbane | D118: Stanley Street East/Lisburn Street Intersection | E118: Road Intersection Project | F118: 6 Lane Road / 4 Lane Road | G118: 2021 - 2026 | H118: 8 | I118: - | J118: 915450 | K118: 629348 | L118: 106989 | M118: 95724 | N118: 124809 | O118: 188804 | P118: 1145675 | Q118: 2061125 | R118: 0 | S118: 2061125
A119: FGR-RB-001 | B119: R129 | C119: Ferny Grove | D119: Upper Kedron Road Bridge (between Nelson Place and Hogarth Road) | E119: Road Bridge | F119: 4 Lane Road | G119: 2021 - 2026 | H119: 13 | I119: 50.81 | J119: 554 | K119: 2515095 | L119: 427566 | M119: 382546 | N119: 498781 | O119: 251510 | P119: 4075498 | Q119: 4076052 | R119: 0 | S119: 4076052
A120: FGR-RC-002 | B120: R129 | C120: Ferny Grove, Upper Kedron | D120: Upper Kedron Road (bridge over Cedar Creek to Cemetery Road) | E120: Road Corridor Project | F120: 4 Lane Road | G120: 2021 - 2026 | H120: 13 | I120: 144.543378 | J120: 1132 | K120: 394784 | L120: 67113 | M120: 60047 | N120: 78292 | O120: 118435 | P120: 718671 | Q120: 719803 | R120: 0 | S120: 719803
A121: FGR-RC-003 | B121: R129 | C121: Ferny Grove | D121: Upper Kedron Road (Nelson Place to (bridge over Cedar Creek) | E121: Road Corridor Project | F121: 4 Lane Road | G121: 2021 - 2026 | H121: 13 | I121: 115.841209 | J121: 43073 | K121: 316391 | L121: 53787 | M121: 48123 | N121: 62745 | O121: 94917 | P121: 575963 | Q121: 619037 | R121: 0 | S121: 619037
A122: FLK-RI-001 | B122: R330 | C122: Forest Lake | D122: Johnson Road/Woogaroo Street Intersection | E122: Road Intersection Project | F122: 4 Lane Road / 4 Lane Road | G122: 2021 - 2026 | H122: 10 | I122: - | J122: 135900 | K122: 817184 | L122: 138921 | M122: 124294 | N122: 162060 | O122: 245155 | P122: 1487615 | Q122: 1623515 | R122: 0 | S122: 1623515
A123: FTZ-RB-002 | B123: R73 | C123: Fitzgibbon, Taigum | D123: Lemke Road Bridge (between Bluegum Place and Telegraph Road) | E123: Road Bridge | F123: 4 Lane Road | G123: 2016 - 2021 | H123: 15 | I123: 81.692597 | J123: 250 | K123: 4043784 | L123: 687443 | M123: 615059 | N123: 400971 | O123: 404378 | P123: 6151636 | Q123: 6151886 | R123: 0 | S123: 6151886
A124: FTZ-RC-003 | B124: R73, R72 | C124: Fitzgibbon, Bracken Ridge | D124: Telegraph Road (Norris Road to Mustang Street) | E124: Road Corridor Project | F124: 6 Lane Road | G124: 2016 - 2021 | H124: 15 | I124: 719.320199 | J124: 480718 | K124: 1949610 | L124: 331434 | M124: 296536 | N124: 193318 | O124: 584883 | P124: 3355780 | Q124: 3836498 | R124: 0 | S124: 3836498
A125: FTZ-RC-004 | B125: R72 | C125: Fitzgibbon, Bracken Ridge | D125: Telegraph Road (Norris Road to Mustang Street) | E125: Road Corridor Project | F125: 6 Lane Road | G125: 2016 - 2021 | H125: 15 | I125: 162.012281 | J125: 1029063 | K125: 486515 | L125: 82708 | M125: 73999 | N125: 48242 | O125: 145954 | P125: 837417 | Q125: 1866480 | R125: 0 | S125: 1866480
A126: FTZ-RC-005 | B126: R73 | C126: Fitzgibbon, Taigum, Zillmere | D126: Beams Road (Carselgrove Avenue to Handford Road) | E126: Road Corridor Project | F126: 4 Lane Road | G126: 2021 - 2026 | H126: 15 | I126: 782.023517 | J126: 232722 | K126: 1927883 | L126: 327740 | M126: 293231 | N126: 382328 | O126: 578365 | P126: 3509548 | Q126: 3742270 | R126: 0 | S126: 3742270
A127: FTZ-RC-006 | B127: R73 | C127: Fitzgibbon | D127: Lemke Road (bridge over Cabbage Tree Creek to Telegraph Road) | E127: Road Corridor Project | F127: 4 Lane Road | G127: 2016 - 2021 | H127: 15 | I127: 160.624772 | J127: 0 | K127: 438706 | L127: 74580 | M127: 66727 | N127: 43501 | O127: 131612 | P127: 755127 | Q127: 755127 | R127: 0 | S127: 755127
A128: FTZ-RI-001 | B128: R73 | C128: Fitzgibbon | D128: Telegraph Road/Lemke Road Intersection | E128: Road Intersection Project | F128: 6 Lane Road / 4 Lane Road | G128: 2016 - 2021 | H128: 15 | I128: - | J128: 0 | K128: 672616 | L128: 114345 | M128: 102305 | N128: 66695 | O128: 201785 | P128: 1157746 | Q128: 1157746 | R128: 0 | S128: 1157746
A129: FTZ-RI-002 | B129: R73 | C129: Fitzgibbon | D129: Telegraph Road/Mustang Street Intersection | E129: Road Intersection Project | F129: 6 Lane Road / 2 Lane Road | G129: 2016 - 2021 | H129: 15 | I129: - | J129: 251400 | K129: 592269 | L129: 100686 | M129: 90084 | N129: 58728 | O129: 177681 | P129: 1019447 | Q129: 1270847 | R129: 0 | S129: 1270847
A130: FTZ-RI-003 | B130: R73 | C130: Fitzgibbon | D130: Beams Road/Carselgrove Avenue Intersection | E130: Road Intersection Project | F130: 4 Lane Road / 2 Lane Road | G130: 2021 - 2026 | H130: 15 | I130: - | J130: 41700 | K130: 474634 | L130: 80688 | M130: 72192 | N130: 94127 | O130: 142390 | P130: 864031 | Q130: 905731 | R130: 0 | S130: 905731
A131: FVA-RI-001 | B131: R173 | C131: Fortitude Valley | D131: Warner Street/Wickham Street Intersection | E131: Road Intersection Project | F131: 6 Lane Road / 4 Lane Road | G131: 2016 - 2021 | H131: 8 | I131: - | J131: 2258700 | K131: 708017 | L131: 120363 | M131: 107689 | N131: 70205 | O131: 212405 | P131: 1218680 | Q131: 3477380 | R131: 0 | S131: 3477380
A132: FVA-RI-002 | B132: R173 | C132: Fortitude Valley | D132: St. Pauls Terrace/Constance Street Intersection | E132: Road Intersection Project | F132: 6 Lane Road / 2 Lane Road | G132: 2021 - 2026 | H132: 8 | I132: - | J132: 820200 | K132: 554170 | L132: 94209 | M132: 84289 | N132: 109900 | O132: 166251 | P132: 1008819 | Q132: 1829019 | R132: 0 | S132: 1829019
A133: GAP-RI-001 | B133: R170 | C133: The Gap | D133: Payne Road/Moggill Road Intersection | E133: Road Intersection Project | F133: 4 Lane Road / 2 Lane Road | G133: 2016 - 2021 | H133: 12 | I133: - | J133: 322800 | K133: 466452 | L133: 79297 | M133: 70947 | N133: 46252 | O133: 139936 | P133: 802884 | Q133: 1125684 | R133: 0 | S133: 1125684
A134: GAP-RI-002 | B134: R170 | C134: The Gap | D134: Waterworks Road/Settlement Road Intersection | E134: Road Intersection Project | F134: 6 Lane Road / 4 Lane Road | G134: 2021 - 2026 | H134: 12 | I134: - | J134: 280800 | K134: 597881 | L134: 101640 | M134: 90938 | N134: 118569 | O134: 179364 | P134: 1088391 | Q134: 1369191 | R134: 0 | S134: 1369191
A135: GEE-RC-002 | B135: R93 | C135: Geebung | D135: Murphy Road (Ellison Street to Queens Circuit) | E135: Road Corridor Project | F135: 4 Lane Road | G135: 2021 - 2026 | H135: 15 | I135: 627.638746 | J135: 2020423 | K135: 1547286 | L135: 263039 | M135: 235342 | N135: 306850 | O135: 464186 | P135: 2816703 | Q135: 4837127 | R135: 0 | S135: 4837127
A136: GEE-RI-001 | B136: R93 | C136: Geebung | D136: Murphy Road/Ellison Road Intersection | E136: Road Intersection Project | F136: 4 Lane Road / 2 Lane Road | G136: 2016 - 2021 | H136: 15 | I136: - | J136: 140400 | K136: 711951 | L136: 121032 | M136: 108288 | N136: 70595 | O136: 213585 | P136: 1225451 | Q136: 1365851 | R136: 0 | S136: 1365851
A137: GEE-RI-002 | B137: R93 | C137: Geebung | D137: Robinson Road West/Murphy Road Intersection | E137: Road Intersection Project | F137: 6 Lane Road / 4 Lane Road | G137: 2016 - 2021 | H137: 15 | I137: - | J137: 377100 | K137: 597881 | L137: 101640 | M137: 90938 | N137: 59284 | O137: 179364 | P137: 1029106 | Q137: 1406206 | R137: 0 | S137: 1406206
A138: GEE-RI-003 | B138: R93 | C138: Geebung | D138: Robinson Road East/Bilsen Road Intersection | E138: Road Intersection Project | F138: 6 Lane Road / 2 Lane Road | G138: 2016 - 2021 | H138: 15 | I138: - | J138: 201450 | K138: 789691 | L138: 134248 | M138: 120112 | N138: 78304 | O138: 236907 | P138: 1359262 | Q138: 1560712 | R138: 0 | S138: 1560712
A139: GNG-RI-001 | B139: R152 | C139: Grange | D139: Grange Road/Raymont Road Intersection | E139: Road Intersection Project | F139: 4 Lane Road / 4 Lane Road | G139: 2016 - 2021 | H139: 14 | I139: - | J139: 423600 | K139: 476691 | L139: 81037 | M139: 72505 | N139: 47267 | O139: 143007 | P139: 820508 | Q139: 1244108 | R139: 0 | S139: 1244108
A140: GNG-RI-002 | B140: R152 | C140: Grange | D140: Days Road/Kedron Brook Road Intersection | E140: Road Intersection Project | F140: 4 Lane Road / 4 Lane Road | G140: 2016 - 2021 | H140: 14 | I140: - | J140: 211800 | K140: 612889 | L140: 104191 | M140: 93220 | N140: 60773 | O140: 183867 | P140: 1054939 | Q140: 1266739 | R140: 0 | S140: 1266739
A141: GRA-RI-001 | B141: R231 | C141: Graceville | D141: Oxley Road/Long Street East Intersection | E141: Road Intersection Project | F141: 6 Lane Road / 4 Lane Road | G141: 2021 - 2026 | H141: 9 | I141: - | J141: 489000 | K141: 723750 | L141: 123038 | M141: 110082 | N141: 143531 | O141: 217125 | P141: 1317526 | Q141: 1806526 | R141: 0 | S141: 1806526
A142: GRE-RI-001 | B142: R213 | C142: Greenslopes | D142: Juliette Street/Marquis Street Intersection | E142: Road Intersection Project | F142: 6 Lane Road / 2 Lane Road | G142: 2021 - 2026 | H142: 4 | I142: - | J142: 241800 | K142: 466765 | L142: 79350 | M142: 70995 | N142: 92567 | O142: 140030 | P142: 849707 | Q142: 1091507 | R142: 0 | S142: 1091507
A143: GRE-RI-002 | B143: R213 | C143: Greenslopes | D143: Juliette Street/Earl Street Intersection | E143: Road Intersection Project | F143: 6 Lane Road / 4 Lane Road | G143: 2021 - 2026 | H143: 4 | I143: - | J143: 241800 | K143: 597881 | L143: 101640 | M143: 90938 | N143: 118569 | O143: 179364 | P143: 1088391 | Q143: 1330191 | R143: 0 | S143: 1330191
A144: GUM-RI-001 | B144: R217 | C144: Gumdale | D144: Green Camp Road/New Cleveland Road Intersection | E144: Road Intersection Project | F144: 6 Lane Road / 2 Lane Road | G144: 2021 - 2026 | H144: 1 | I144: - | J144: 46650 | K144: 789691 | L144: 134248 | M144: 120112 | N144: 156608 | O144: 236907 | P144: 1437566 | Q144: 1484216 | R144: 0 | S144: 1484216
A145: HAM-RC-004 | B145: R153 | C145: Hamilton | D145: Kingsford Smith Drive (Hunt Street to Cooksley Street) | E145: Road Corridor Project | F145: 6 Lane Road | G145: 2016 - 2021 | H145: 16 | I145: 127.014734 | J145: 596416 | K145: 381419 | L145: 64841 | M145: 58014 | N145: 37821 | O145: 114426 | P145: 656520 | Q145: 1252936 | R145: 0 | S145: 1252936
A146: HAM-RC-005 | B146: R154 | C146: Hamilton | D146: Kingsford Smith Drive (Flexington Terrace to Racecourse Road) | E146: Road Corridor Project | F146: 6 Lane Road | G146: 2016 - 2021 | H146: 16 | I146: 83.715982 | J146: 58868 | K146: 306589 | L146: 52120 | M146: 46632 | N146: 30401 | O146: 91977 | P146: 527718 | Q146: 586586 | R146: 0 | S146: 586586
A147: HAM-RC-006 | B147: R154 | C147: Hamilton | D147: Kingsford Smith Drive (Riverview Terrace to Flexington Terrace) | E147: Road Corridor Project | F147: 6 Lane Road | G147: 2016 - 2021 | H147: 16 | I147: 79.768842 | J147: 16865 | K147: 292133 | L147: 49663 | M147: 44433 | N147: 28967 | O147: 87640 | P147: 502837 | Q147: 519701 | R147: 0 | S147: 519701
A148: HAM-RC-007 | B148: R153, R154 | C148: Hamilton | D148: Kingsford Smith Drive (Crescent Road to Riverview Terrace) | E148: Road Corridor Project | F148: 6 Lane Road | G148: 2016 - 2021 | H148: 16 | I148: 692.847614 | J148: 3410965 | K148: 1877860 | L148: 319236 | M148: 285622 | N148: 186204 | O148: 563358 | P148: 3232280 | Q148: 6643245 | R148: 0 | S148: 6643245
A149: HAM-RC-008 | B149: R153 | C149: Hamilton | D149: Kingsford Smith Drive (Cooksley Street to Crescent Road) | E149: Road Corridor Project | F149: 6 Lane Road | G149: 2016 - 2021 | H149: 16 | I149: 596.28243 | J149: 1832287 | K149: 1616134 | L149: 274743 | M149: 245814 | N149: 160252 | O149: 484840 | P149: 2781783 | Q149: 4614070 | R149: 0 | S149: 4614070
A150: HAM-RC-009 | B150: R154 | C150: Hamilton | D150: Kingsford Smith Drive (Racecourse Road to Harbour Road) | E150: Road Corridor Project | F150: 6 Lane Road | G150: 2016 - 2021 | H150: 16 | I150: 108.837197 | J150: 584630 | K150: 395640 | L150: 67259 | M150: 60177 | N150: 39231 | O150: 118692 | P150: 680998 | Q150: 1265628 | R150: 0 | S150: 1265628
A151: HAM-RC-010 | B151: R154 | C151: Hamilton | D151: Kingsford Smith Drive (Harbour Road to Nudgee Road) | E151: Road Corridor Project | F151: 6 Lane Road | G151: 2016 - 2021 | H151: 16 | I151: 533.822128 | J151: 2033079 | K151: 1446845 | L151: 245964 | M151: 220065 | N151: 143466 | O151: 434053 | P151: 2490392 | Q151: 4523471 | R151: 0 | S151: 4523471
A152: HAM-RC-011 | B152: R154 | C152: Hamilton | D152: Kingsford Smith Drive (Nudgee Road to Theodore Street) | E152: Road Corridor Project | F152: 6 Lane Road | G152: 2016 - 2021 | H152: 16 | I152: 915.822773 | J152: 3933968 | K152: 2482200 | L152: 421974 | M152: 377543 | N152: 246129 | O152: 744660 | P152: 4272506 | Q152: 8206474 | R152: 0 | S152: 8206474
A153: HAM-RI-001 | B153: R153 | C153: Hamilton | D153: Kingsford Smith Drive/Cooksley Intersection | E153: Road Intersection Project | F153: 6 Lane Road / 2 Lane Road | G153: 2016 - 2021 | H153: 16 | I153: - | J153: 267150 | K153: 460653 | L153: 78311 | M153: 70065 | N153: 45677 | O153: 138196 | P153: 792903 | Q153: 1060053 | R153: 0 | S153: 1060053
A154: HAM-RI-002 | B154: R154 | C154: Hamilton | D154: Kingsford Smith Drive/Nudgee Road Intersection | E154: Road Intersection Project | F154: 6 Lane Road / 4 Lane Road | G154: 2016 - 2021 | H154: 16 | I154: - | J154: 165000 | K154: 597881 | L154: 101640 | M154: 90938 | N154: 59284 | O154: 179364 | P154: 1029106 | Q154: 1194106 | R154: 0 | S154: 1194106
A155: HAM-RI-005 | B155: R153 | C155: Hamilton | D155: Kingsford Smith Drive/Hunt Street Intersection | E155: Road Intersection Project | F155: 6 Lane Road / 4 Lane Road | G155: 2016 - 2021 | H155: 16 | I155: - | J155: 333150 | K155: 672616 | L155: 114345 | M155: 102305 | N155: 66695 | O155: 201785 | P155: 1157746 | Q155: 1490896 | R155: 0 | S155: 1490896
A156: HAM-RI-006 | B156: R153 | C156: Hamilton | D156: Kingsford Smith Drive/Crescent Road Intersection | E156: Road Intersection Project | F156: 6 Lane Road / 2 Lane Road | G156: 2016 - 2021 | H156: 16 | I156: - | J156: 241800 | K156: 525112 | L156: 89269 | M156: 79869 | N156: 52069 | O156: 157533 | P156: 903852 | Q156: 1145652 | R156: 0 | S156: 1145652
A157: HAW-RC-001 | B157: R194, R193 | C157: Hawthorne, Norman Park | D157: Balmoral Street (Hawthorne Road to Riding Road) | E157: Road Corridor Project | F157: 6 Lane Road | G157: 2021 - 2026 | H157: 5 | I157: 489.669011 | J157: 8413021 | K157: 1327174 | L157: 225620 | M157: 201863 | N157: 263199 | O157: 398152 | P157: 2416008 | Q157: 10829030 | R157: 0 | S157: 10829030
A158: HAW-RI-001 | B158: R194 | C158: Hawthorne | D158: Wynnum Road/Balmoral Street Intersection | E158: Road Intersection Project | F158: 6 Lane Road / 4 Lane Road | G158: 2021 - 2026 | H158: 5 | I158: - | J158: 213300 | K158: 597881 | L158: 101640 | M158: 90938 | N158: 118569 | O158: 179364 | P158: 1088391 | Q158: 1301691 | R158: 0 | S158: 1301691
A159: HEA-RC-002 | B159: R331 | C159: Heathwood | D159: Wadeville Street (Blunder Road to Stapylton Road) | E159: Road Corridor Project | F159: 4 Lane Road | G159: 2021 - 2026 | H159: 9 | I159: 789.927332 | J159: 593119 | K159: 1947368 | L159: 331053 | M159: 296195 | N159: 386192 | O159: 584211 | P159: 3545019 | Q159: 4138138 | R159: 0 | S159: 4138138
A160: HEA-RC-004 | B160: R331 | C160: Heathwood, Forest Lake | D160: Stapylton Road (Logan Motorway Ramp to Ritchie Road) | E160: Road Corridor Project | F160: 6 Lane Road | G160: 2016 - 2021 | H160: 9 | I160: 1056.416116 | J160: 1281963 | K160: 2863257 | L160: 486754 | M160: 435501 | N160: 283913 | O160: 858977 | P160: 4928403 | Q160: 6210367 | R160: 0 | S160: 6210367
A161: HEA-RC-007 | B161: R330, R331, R351 | C161: Heathwood, Forest Lake | D161: Johnson Road (Woogaroo Street to Stapylton Road) | E161: Road Corridor Project | F161: 4 Lane Road | G161: 2021 - 2026 | H161: 9, 10 | I161: 3671.949635 | J161: 274465 | K161: 9052274 | L161: 1538887 | M161: 1376851 | N161: 1795202 | O161: 2715682 | P161: 16478895 | Q161: 16753360 | R161: 0 | S161: 16753360
A162: HEA-RC-008 | B162: R351, R352 | C162: Heathwood, Larapinta | D162: Johnson Road (Stapylton Road to Paradise Road) | E162: Road Corridor Project | F162: 4 Lane Road | G162: 2021 - 2026 | H162: 9, 6 | I162: 2048.749897 | J162: 888669 | K162: 5050681 | L162: 858616 | M162: 768209 | N162: 1001626 | O162: 1515204 | P162: 9194335 | Q162: 10083004 | R162: 0 | S162: 10083004
A163: HEA-RI-001 | B163: R351 | C163: Heathwood | D163: Johnson Road/Stapylton Road Intersection | E163: Road Intersection Project | F163: 4 Lane Road / 4 Lane Road | G163: 2016 - 2021 | H163: 9 | I163: - | J163: 0 | K163: 817184 | L163: 138921 | M163: 124294 | N163: 81030 | O163: 245155 | P163: 1406585 | Q163: 1406585 | R163: 0 | S163: 1406585
A164: HEN-RI-003 | B164: R134 | C164: Hendra | D164: Zillman Road/Gerler Road Intersection | E164: Road Intersection Project | F164: 2 Lane Road / 2 Lane Road | G164: 2016 - 2021 | H164: 16 | I164: - | J164: 423600 | K164: 309186 | L164: 52562 | M164: 47027 | N164: 30658 | O164: 92756 | P164: 532189 | Q164: 955789 | R164: 0 | S164: 955789
A165: INA-RI-004 | B165: R291 | C165: Inala | D165: Partridge Road/Wirraway Parade Intersection | E165: Road Intersection Project | F165: 4 Lane Road / 2 Lane Road | G165: 2016 - 2021 | H165: 9 | I165: - | J165: 489000 | K165: 646377 | L165: 109884 | M165: 98314 | N165: 64093 | O165: 193913 | P165: 1112581 | Q165: 1601581 | R165: 0 | S165: 1601581
A166: IND-RI-003 | B166: R211 | C166: Indooroopilly | D166: Moggill Road/Coonan Street/Keating Street Intersection | E166: Road Intersection Project | F166: 6 Lane Road / 6 Lane Road | G166: 2016 - 2021 | H166: 11 | I166: - | J166: 0 | K166: 859144 | L166: 146055 | M166: 130676 | N166: 85191 | O166: 257743 | P166: 1478809 | Q166: 1478809 | R166: 0 | S166: 1478809
A167: KRR-RC-002 | B167: R150 | C167: Keperra, The Gap, Enoggera | D167: Settlement Road (Kilbowie Street to Mungarie Street) | E167: Road Corridor Project | F167: 4 Lane Road | G167: 2021 - 2026 | H167: 13, 12 | I167: 1671.864442 | J167: 276732 | K167: 4121564 | L167: 700666 | M167: 626890 | N167: 817368 | O167: 1236469 | P167: 7502957 | Q167: 7779688 | R167: 0 | S167: 7779688
A168: KRR-RI-001 | B168: R130 | C168: Keperra | D168: Dawson Road/Madsen Street Intersection | E168: Road Intersection Project | F168: 4 Lane Road / 2 Lane Road | G168: 2016 - 2021 | H168: 13 | I168: - | J168: 140400 | K168: 533964 | L168: 90774 | M168: 81216 | N168: 52947 | O168: 160189 | P168: 919089 | Q168: 1059489 | R168: 0 | S168: 1059489
A169: LPA-RC-002 | B169: R332 | C169: Larapinta, Pallara | D169: Paradise Road (Radius Drive to Adjacent Kulcha Street) | E169: Road Corridor Project | F169: 4 Lane Road | G169: 2016 - 2021 | H169: 6, 9 | I169: 1593.487188 | J169: 19457 | K169: 3928344 | L169: 667819 | M169: 597501 | N169: 389525 | O169: 1178503 | P169: 6761692 | Q169: 6781149 | R169: 0 | S169: 6781149
A170: LPA-RC-003 | B170: R352, R353 | C170: Larapinta, Parkinson | D170: Johnson Road (Paradise Road to Southlink Street) | E170: Road Corridor Project | F170: 4 Lane Road | G170: 2021 - 2026 | H170: 6 | I170: 2816.067098 | J170: 0 | K170: 6942309 | L170: 1180193 | M170: 1055925 | N170: 1376764 | O170: 2082693 | P170: 12637884 | Q170: 12637884 | R170: 0 | S170: 12637884
A171: LPA-RI-001 | B171: R352 | C171: Larapinta | D171: Johnson Road/Paradise Road Intersection | E171: Road Intersection Project | F171: 4 Lane Road / 4 Lane Road | G171: 2021 - 2026 | H171: 6 | I171: - | J171: 0 | K171: 544790 | L171: 92614 | M171: 82863 | N171: 108040 | O171: 163437 | P171: 991744 | Q171: 991744 | R171: 0 | S171: 991744
A172: LUT-RI-001 | B172: R153 | C172: Lutwyche | D172: Lutwyche Road/Chalk Street Intersection | E172: Road Intersection Project | F172: 6 Lane Road / 2 Lane Road | G172: 2021 - 2026 | H172: 14 | I172: - | J172: 631800 | K172: 637296 | L172: 108340 | M172: 96933 | N172: 126385 | O172: 191189 | P172: 1160142 | Q172: 1791942 | R172: 0 | S172: 1791942
A173: MDW-RC-001 | B173: R111 | C173: McDowall | D173: Rode Road (Brynner Street to Ifield Street) | E173: Road Corridor Project | F173: 4 Lane Road | G173: 2016 - 2021 | H173: 14 | I173: 385.508161 | J173: 1579931 | K173: 950374 | L173: 161564 | M173: 144552 | N173: 94237 | O173: 285112 | P173: 1635838 | Q173: 3215769 | R173: 0 | S173: 3215769
A174: MDW-RC-002 | B174: R111 | C174: McDowall | D174: Rode Road (Pleshette Place to Foambark Street) | E174: Road Corridor Project | F174: 4 Lane Road | G174: 2016 - 2021 | H174: 14 | I174: 351.244987 | J174: 541546 | K174: 865907 | L174: 147204 | M174: 131704 | N174: 85861 | O174: 259772 | P174: 1490448 | Q174: 2031995 | R174: 0 | S174: 2031995
A175: MDW-RI-003 | B175: R111 | C175: McDowall | D175: Beckett Road/Hamilton Road Intersection | E175: Road Intersection Project | F175: 6 Lane Road / 4 Lane Road | G175: 2016 - 2021 | H175: 15 | I175: - | J175: 125700 | K175: 597881 | L175: 101640 | M175: 90938 | N175: 59284 | O175: 179364 | P175: 1029106 | Q175: 1154806 | R175: 0 | S175: 1154806
A176: MGE-RC-001 | B176: R254, R255 | C176: Mt Gravatt East, Mt Gravatt | D176: Broadwater Road (Logan Road to Newnham Street) | E176: Road Corridor Project | F176: 4 Lane Road | G176: 2021 - 2026 | H176: 3 | I176: 1054.625468 | J176: 6214095 | K176: 2599915 | L176: 441986 | M176: 395447 | N176: 515602 | O176: 779975 | P176: 4732925 | Q176: 10947020 | R176: 0 | S176: 10947020
A177: MGE-RI-001 | B177: R235 | C177: Mount Gravatt East | D177: Newnham Road/Creek Road Intersection | E177: Road Intersection Project | F177: 6 Lane Road / 4 Lane Road | G177: 2016 - 2021 | H177: 3 | I177: - | J177: 125700 | K177: 597881 | L177: 101640 | M177: 90938 | N177: 59284 | O177: 179364 | P177: 1029106 | Q177: 1154806 | R177: 0 | S177: 1154806
A178: MGR-RI-001 | B178: R254 | C178: Mt Gravatt | D178: Logan Road/Creek Road Intersection | E178: Road Intersection Project | F178: 6 Lane Road / 4 Lane Road | G178: 2021 - 2026 | H178: 3 | I178: - | J178: 118500 | K178: 633282 | L178: 107658 | M178: 96322 | N178: 125589 | O178: 189985 | P178: 1152836 | Q178: 1271336 | R178: 0 | S178: 1271336
A179: MGR-RI-002 | B179: R254 | C179: Mt Gravatt | D179: Logan Road/Broadwater Road Intersection | E179: Road Intersection Project | F179: 6 Lane Road / 4 Lane Road | G179: 2021 - 2026 | H179: 3 | I179: - | J179: 348900 | K179: 523146 | L179: 88935 | M179: 79571 | N179: 103748 | O179: 156944 | P179: 952343 | Q179: 1301243 | R179: 0 | S179: 1301243
A180: MNW-RI-001 | B180: R196 | C180: Manly West | D180: Wondall Road/Bognor Street Intersection | E180: Road Intersection Project | F180: 2 Lane Road / 2 Lane Road | G180: 2016 - 2021 | H180: 1 | I180: - | J180: 125700 | K180: 397526 | L180: 67579 | M180: 60464 | N180: 39418 | O180: 119258 | P180: 684244 | Q180: 809944 | R180: 0 | S180: 809944
A181: MOM-RI-001 | B181: R249 | C181: Mount Ommaney | D181: Dandenong Road/Sirocco Street/Central Avenue Intersection | E181: Road Intersection Project | F181: 4 Lane Road / 2 Lane Road | G181: 2016 - 2021 | H181: 10 | I181: - | J181: 259200 | K181: 621937 | L181: 105729 | M181: 94597 | N181: 61670 | O181: 186581 | P181: 1070513 | Q181: 1329713 | R181: 0 | S181: 1329713
A182: MOR-RI-001 | B182: R174 | C182: Morningside | D182: Lytton Road/Junction Road Intersection | E182: Road Intersection Project | F182: 6 Lane Road / 4 Lane Road | G182: 2021 - 2026 | H182: 5 | I182: - | J182: 106350 | K182: 896822 | L182: 152460 | M182: 136407 | N182: 177853 | O182: 269047 | P182: 1632588 | Q182: 1738938 | R182: 0 | S182: 1738938
A183: MUR-RC-001 | B183: R175, R174 | C183: Murarrie, Cannon Hill | D183: Lytton Road (Junction Road to Creek Road) | E183: Road Corridor Project | F183: 6 Lane Road | G183: 2021 - 2026 | H183: 5 | I183: 1032.034662 | J183: 926121 | K183: 2797175 | L183: 475520 | M183: 425450 | N183: 554722 | O183: 839153 | P183: 5092020 | Q183: 6018140 | R183: 0 | S183: 6018140
A184: MUR-RC-002 | B184: R175 | C184: Murarrie | D184: Lytton Road (Creek Road to Gateway Motorway) | E184: Road Corridor Project | F184: 6 Lane Road | G184: 2021 - 2026 | H184: 5 | I184: 784.758366 | J184: 863436 | K184: 2126970 | L184: 361585 | M184: 323512 | N184: 421810 | O184: 638091 | P184: 3871968 | Q184: 4735404 | R184: 0 | S184: 4735404
A185: MUR-RI-001 | B185: R175 | C185: Murarrie | D185: Lytton Road/Creek Road Intersection | E185: Road Intersection Project | F185: 6 Lane Road / 6 Lane Road | G185: 2021 - 2026 | H185: 5 | I185: - | J185: 67950 | K185: 630869 | L185: 107248 | M185: 95955 | N185: 125111 | O185: 189261 | P185: 1148444 | Q185: 1216394 | R185: 0 | S185: 1216394
A186: NRP-RB-001 | B186: R193 | C186: Norman Park | D186: Wynnum Road Bridge (between Laidlaw Parade and Gillan Street) | E186: Road Bridge | F186: 6 Lane Road | G186: 2021 - 2026 | H186: 5, 8 | I186: 68.833806 | J186: 11 | K186: 3407273 | L186: 579236 | M186: 518246 | N186: 675713 | O186: 340727 | P186: 5521197 | Q186: 5521208 | R186: 0 | S186: 5521208
A187: NRP-RC-003 | B187: R194, R193 | C187: Norman Park, Morningside, Hawthorne, Norman Park | D187: Wynnum Road (Hawthorne Road to Bennetts Road) | E187: Road Corridor Project | F187: 6 Lane Road | G187: 2021 - 2026 | H187: 5 | I187: 402.356842 | J187: 6786807 | K187: 1090528 | L187: 185390 | M187: 165869 | N187: 216268 | O187: 327158 | P187: 1985213 | Q187: 8772020 | R187: 0 | S187: 8772020
A188: NRP-RC-004 | B188: R193 | C188: Norman Park | D188: Balmoral Road (Overend Street to Hawthorne Road) | E188: Road Corridor Project | F188: 6 Lane Road | G188: 2021 - 2026 | H188: 5 | I188: 251.577552 | J188: 1526039 | K188: 681863 | L188: 115917 | M188: 103711 | N188: 135224 | O188: 204559 | P188: 1241274 | Q188: 2767314 | R188: 0 | S188: 2767314
A189: NRP-RC-005 | B189: R194 | C189: Norman Park, Morningside | D189: Bennetts Road (Wynnum Road to Balmoral Street) | E189: Road Corridor Project | F189: 6 Lane Road | G189: 2021 - 2026 | H189: 5 | I189: 157.183031 | J189: 1005533 | K189: 472013 | L189: 80242 | M189: 71793 | N189: 93607 | O189: 141604 | P189: 859259 | Q189: 1864792 | R189: 0 | S189: 1864792
A190: NRP-RC-006 | B190: R193 | C190: Norman Park, East Brisbane | D190: Wynnum Road (Gillan Street to Norman Avenue) | E190: Road Corridor Project | F190: 6 Lane Road | G190: 2021 - 2026 | H190: 5 | I190: 442.161322 | J190: 14274254 | K190: 1198412 | L190: 203730 | M190: 182278 | N190: 237663 | O190: 359524 | P190: 2181607 | Q190: 16455861 | R190: 0 | S190: 16455861
A191: NRP-RC-007 | B191: R193 | C191: Norman Park | D191: Wynnum Road (Norman Avenue to Overend Street) | E191: Road Corridor Project | F191: 6 Lane Road | G191: 2021 - 2026 | H191: 5 | I191: 235.41256 | J191: 4780219 | K191: 706932 | L191: 120178 | M191: 107524 | N191: 140195 | O191: 212080 | P191: 1286910 | Q191: 6067129 | R191: 0 | S191: 6067129
A192: NRP-RI-001 | B192: R194 | C192: Norman Park | D192: Wynnum Road/Bennets Road Intersection | E192: Road Intersection Project | F192: 6 Lane Road / 4 Lane Road | G192: 2021 - 2026 | H192: 5 | I192: - | J192: 213300 | K192: 523146 | L192: 88935 | M192: 79571 | N192: 103748 | O192: 156944 | P192: 952343 | Q192: 1165643 | R192: 0 | S192: 1165643
A193: NRP-RI-002 | B193: R193 | C193: Norman Park | D193: Wynnum Road/Hawthorne Road Intersection | E193: Road Intersection Project | F193: 6 Lane Road / 4 Lane Road | G193: 2021 - 2026 | H193: 5 | I193: - | J193: 571350 | K193: 523146 | L193: 88935 | M193: 79571 | N193: 103748 | O193: 156944 | P193: 952343 | Q193: 1523693 | R193: 0 | S193: 1523693
A194: NRP-RI-004 | B194: R193 | C194: Norman Park | D194: Wynnum Road/Norman Avenue Intersection | E194: Road Intersection Project | F194: 6 Lane Road / 2 Lane Road | G194: 2021 - 2026 | H194: 5 | I194: - | J194: 241800 | K194: 460653 | L194: 78311 | M194: 70065 | N194: 91354 | O194: 138196 | P194: 838580 | Q194: 1080380 | R194: 0 | S194: 1080380
A195: NUD-RC-002 | B195: R95, R94 | C195: Nudgee | D195: Childs Road (Gateway Motorway to St Vincents Road) | E195: Road Corridor Project | F195: 2 Lane Road | G195: 2021 - 2026 | H195: 16 | I195: 1014.332838 | J195: 222052 | K195: 1375080 | L195: 233764 | M195: 209150 | N195: 272699 | O195: 412524 | P195: 2503217 | Q195: 2725269 | R195: 0 | S195: 2725269
A196: NUD-RI-001 | B196: R94 | C196: Nudgee | D196: St Vincents Road/Childs Road Intersection | E196: Road Intersection Project | F196: 2 Lane Road / 2 Lane Road | G196: 2016 - 2021 | H196: 16 | I196: - | J196: 200700 | K196: 397526 | L196: 67579 | M196: 60464 | N196: 39418 | O196: 119258 | P196: 684244 | Q196: 884944 | R196: 0 | S196: 884944
A197: NUN-RC-002 | B197: R134 | C197: Nundah | D197: Melton Road (Masefield Street to Buckland Road) | E197: Road Corridor Project | F197: 2 Lane Road | G197: 2021 - 2026 | H197: 16 | I197: 523.065974 | J197: 1415417 | K197: 709094 | L197: 120546 | M197: 107853 | N197: 140624 | O197: 212728 | P197: 1290846 | Q197: 2706263 | R197: 0 | S197: 2706263
A198: NUN-RI-001 | B198: R134 | C198: Nundah | D198: Melton Street/Buckland Road Intersection | E198: Road Intersection Project | F198: 2 Lane Road / 2 Lane Road | G198: 2021 - 2026 | H198: 16 | I198: - | J198: 475950 | K198: 530034 | L198: 90106 | M198: 80618 | N198: 105114 | O198: 159010 | P198: 964881 | Q198: 1440831 | R198: 0 | S198: 1440831
A199: NWM-RI-001 | B199: R152 | C199: Newmarket | D199: Newmarket Road/Wilston Road Intersection | E199: Road Intersection Project | F199: 4 Lane Road / 4 Lane Road | G199: 2016 - 2021 | H199: 13 | I199: - | J199: 211800 | K199: 476691 | L199: 81037 | M199: 72505 | N199: 47267 | O199: 143007 | P199: 820508 | Q199: 1032308 | R199: 0 | S199: 1032308
A200: OXY-RC-007 | B200: R271 | C200: Oxley, Rocklea | D200: New Road (Blunder Road to Boundary Road) | E200: Road Corridor Project | F200: 4 Lane Road | G200: 2021 - 2026 | H200: 9, 7 | I200: 1412.103793 | J200: 1028868 | K200: 6032719 | L200: 1025562 | M200: 917577 | N200: 1196379 | O200: 0 | P200: 9172237 | Q200: 10201104 | R200: 0 | S200: 10201104
... 146 more rows

Sheet Input-Gen
F2: Brisbane City Council
F3: LGIP SOW model - Road network
F5: Input - Gen
G6: =IF(BaseCaseCheck=0,BaseCase,NotBaseCase) -> Please Note: Model is not currently applying Base Case parameter values
G7: =IF(Integrity=0,IntOK,IntErr) -> Model integrity error
F15: General | M15: Value | O15: Source
G17: Timing & Structure
G19: Model Start Date | I19: dd-mmm-yy | M19: 2016-07-01
G20: Modelling Periods | I20: No. of Years | M20: =YEAR(M21)-YEAR(Model_Start_Date) -> 10
G21: Model End Date | I21: dd-mmm-yy | M21: =MAX(FY_End) -> 2026-06-30
G23: Months in Year | I23: months | M23: 12
G24: Thousand Conversion | I24: # | M24: 1000
G26: Method for calculating infrastructure charge
G28: Charge Rate Conversion factor (Trips to ETs) | I28: # | M28: 6.5
F30: Other Conditions
G32: Land, cut-off date for inclusion in infrastructure charges | I32: dd-mmm-yy | M32: 1990-01-01
G34: Maximum administration cost recoverable without approval from the Department of Infrastructure and Planning | I34: %
F36: Indexation/Discounting parameters
G38: Roads (Council)
G40: Most recent PPI value | I40: # | M40: 110.5634114
G41: Base PPI value | I41: # | M41: 100.7685196
G43: Year of most recent PPI value | I43: year | M43: 2016
G44: Year of base PPI value | I44: year | M44: 2011
G46: Number of periods | I46: # | M46: =M43-M44 -> 5
G47: PPI Charge-rate indexation rate | I47: % | M47: =(M40/M41)^(1/M46)-1 -> 0.0187258123
G48: Over-ride default charge-rate indexation rate | I48: % | M48: 0
G49: Comparison charge-rate indexation rate | I49: % | M49: 0.025
G51: Recommended premium to bond rate, post-tax nominal | I51: % | M51: 0
G53: ="Ten year bond rate, average 20 working days to "&TEXT(Model_Start_Date-1,"dd mmm yyyy") -> Ten year bond rate, average 20 working days to 30 Jun 2016 | I53: % | M53: 0
G54: Rate of return, post-tax nominal (Nominal WACC) | I54: % | M54: 0.0591
G55: Rate of return, post-tax real (Real WACC) | I55: % | M55: =(1+M54)/(1+RevEsc)-1 -> 0.0591
F57: Integrity
G59: Integrity OK message | I59: text | M59: Model integrity OK
G60: Integrity error message | I60: text | M60: Model integrity error
G61: Number of decimal places to which integrity checks are calculated | I61: # | M61: 2
G63: Base case message | I63: text | M63: Model is applying base case parameter values
G64: Alternative scenario message | I64: text | M64: Please Note: Model is not currently applying Base Case parameter values
F66: Input File References
G68: General
G69: ID Number | I69: text
G70: Type | I70: text
G71: Description | I71: text
G73: Land Information
G74: Date of Acquisition | I74: text
G75: Value as at 30 Jun 2009 for existing land | I75: text
G76: Design & Supervision Cost | I76: text
G77: Contingency Cost | I77: text
G79: Constructed Asset Costs (excld. Land and Admin costs)
G80: Expected Construction Completion / Commissioning Date | I80: text
G81: ="Actual / Expected Construction Cost at "&TEXT(Model_Start_Date-1,"dd-mmm-yy") -> Actual / Expected Construction Cost at 30-Jun-16 | I81: text
G82: Design & Supervision Cost | I82: text
G83: Contingency Cost | I83: text
G84: Subsidies / Grants as at 30-Jun-11 | I84: text
F88: End of Page

Sheet Input - Infra
F2: Brisbane City Council
F3: ='Input-Gen'!$F$3 -> LGIP SOW model - Road network
F5: Future Infrastructure
G6: =IF(BaseCaseCheck=0,BaseCase,NotBaseCase) -> Please Note: Model is not currently applying Base Case parameter values
G7: =IF(Integrity=0,IntOK,IntErr) -> Model integrity error
L9: General
R10: Land Information
AA11: Constructed Asset Costs (excld. Land and Admin costs)
AP12: Administration Costs (Not used in LGIP)
M14: ID Number | N14: Map reference | O14: Description | S14: Date of Acquisition | T14: ="Value as at " & TEXT(Model_Start_Date-1,"dd-mmm-yy") &" for existing land" -> Value as at 30-Jun-16 for existing land | U14: Spare column | V14: Spare column | X14: Land Total | AB14: Expected Construction Completion / Commissioning Date | AC14: Direct coonstruction cost | AD14: Construction allowances (incl. indirect construction, project, utility, subsidy and contingency cost | AE14: Spare column | AF14: ="Total @ "& TEXT(Model_Start_Date-1,"dd-mmm-yy") -> Total @ 30-Jun-16 | AG14: Source (e.g. unit cost report, contract, asset register, etc.) | AI14: TOTAL (Land and Constructed Asset) | AM14: ="Subsidies / Grants @ "& TEXT(Model_Start_Date-1,"dd-mmm-yy") -> Subsidies / Grants @ 30-Jun-16 | AQ14: Date of Administration Cost | AR14: Methodology Option (A) = 0, (B) = 1 | AS14: (A) Percentage point of total Constructed Asset costs | AT14: ="(B) Defined Value @ "&TEXT(Model_Start_Date-1,"dd-mmm-yy") -> (B) Defined Value @ 30-Jun-16 | AU14: Check: If (B) value is greater than 2% of total Constructed Asset cost
G15: Description/File Reference
M16: # | N16: # | S16: dd-mmm-yy | T16: $'000 | U16: $'000 | V16: $'000 | X16: $'000 | AB16: dd-mmm-yy | AC16: $'000 | AD16: $'000 | AE16: $'000 | AF16: $'000 | AI16: $'000 | AM16: $'000
AR18: Select >>> | AS18: % | AT18: $'000
F20: Future Infrastructure
G22: ='LGIP future infrastructure'!A2 -> ACR-RI-001 | M22: ='LGIP future infrastructure'!A2 -> ACR-RI-001 | N22: ='LGIP future infrastructure'!B2 -> R293 | O22: ='LGIP future infrastructure'!E2 -> Road Intersection Project | S22: =IF('LGIP future infrastructure'!G2="2016 - 2021",DATE(2019,6,30),DATE(2024,6,30)) -> 2024-06-30 | T22: ='LGIP future infrastructure'!J2/1000 -> 243.15 | X22: =SUM(T22:V22) -> 243.15 | AB22: =S22 -> 2024-06-30 | AC22: ='LGIP future infrastructure'!K2/1000 -> 896.822 | AD22: =SUM('LGIP future infrastructure'!L2:O2)/1000 -> 735.767 | AF22: =AC22+AD22 -> 1632.589 | AI22: =SUM(X22,AF22) -> 1875.739 | AM22: ='LGIP future infrastructure'!R2/1000 -> 0 | AQ22: =MAX(AB22,S22) -> 2024-06-30 | AU22: =IF(AR22=1,IF(AT22>AI22*'Input-Gen'!$M$31,"Check value","OK"),"") -> 
G23: ='LGIP future infrastructure'!A3 -> ACR-RI-002 | M23: ='LGIP future infrastructure'!A3 -> ACR-RI-002 | N23: ='LGIP future infrastructure'!B3 -> R292 | O23: ='LGIP future infrastructure'!E3 -> Road Intersection Project | S23: =IF('LGIP future infrastructure'!G3="2016 - 2021",DATE(2019,6,30),DATE(2024,6,30)) -> 2024-06-30 | T23: ='LGIP future infrastructure'!J3/1000 -> 88.8 | X23: 88.8 | AB23: =S23 -> 2024-06-30 | AC23: ='LGIP future infrastructure'!K3/1000 -> 597.881 | AD23: =SUM('LGIP future infrastructure'!L3:O3)/1000 -> 490.511 | AF23: =AC23+AD23 -> 1088.392 | AI23: =SUM(X23,AF23) -> 1177.192 | AM23: ='LGIP future infrastructure'!R3/1000 -> 0 | AQ23: =MAX(AB23,S23) -> 2024-06-30 | AU23: =IF(AR23=1,IF(AT23>AI23*'Input-Gen'!$M$31,"Check value","OK"),"") -> 
G24: ='LGIP future infrastructure'!A4 -> ACR-RI-003 | M24: ='LGIP future infrastructure'!A4 -> ACR-RI-003 | N24: ='LGIP future infrastructure'!B4 -> R272 | O24: ='LGIP future infrastructure'!E4 -> Road Intersection Project | S24: =IF('LGIP future infrastructure'!G4="2016 - 2021",DATE(2019,6,30),DATE(2024,6,30)) -> 2024-06-30 | T24: ='LGIP future infrastructure'!J4/1000 -> 387.3 | X24: 387.3 | AB24: 2024-06-30 | AC24: ='LGIP future infrastructure'!K4/1000 -> 474.634 | AD24: =SUM('LGIP future infrastructure'!L4:O4)/1000 -> 389.397 | AF24: 864.031 | AI24: 1251.331 | AM24: ='LGIP future infrastructure'!R4/1000 -> 0 | AQ24: 2024-06-30 | AU24: =IF(AR24=1,IF(AT24>AI24*'Input-Gen'!$M$31,"Check value","OK"),"") -> 
G25: ='LGIP future infrastructure'!A5 -> AFD-RC-002 | M25: ='LGIP future infrastructure'!A5 -> AFD-RC-002 | N25: ='LGIP future infrastructure'!B5 -> R272 | O25: ='LGIP future infrastructure'!E5 -> Road Corridor Project | S25: =IF('LGIP future infrastructure'!G5="2016 - 2021",DATE(2019,6,30),DATE(2024,6,30)) -> 2024-06-30 | T25: ='LGIP future infrastructure'!J5/1000 -> 1358.623 | X25: 1358.623 | AB25: 2024-06-30 | AC25: ='LGIP future infrastructure'!K5/1000 -> 1072.532 | AD25: =SUM('LGIP future infrastructure'!L5:O5)/1000 -> 879.92 | AF25: 1952.452 | AI25: 3311.075 | AM25: ='LGIP future infrastructure'!R5/1000 -> 0 | AQ25: 2024-06-30 | AU25: =IF(AR25=1,IF(AT25>AI25*'Input-Gen'!$M$31,"Check value","OK"),"") -> 
G26: ='LGIP future infrastructure'!A6 -> AFD-RC-004 | M26: ='LGIP future infrastructure'!A6 -> AFD-RC-004 | N26: ='LGIP future infrastructure'!B6 -> R272 | O26: ='LGIP future infrastructure'!E6 -> Road Corridor Project | S26: =IF('LGIP future infrastructure'!G6="2016 - 2021",DATE(2019,6,30),DATE(2024,6,30)) -> 2024-06-30 | T26: ='LGIP future infrastructure'!J6/1000 -> 1770.807 | X26: 1770.807 | AB26: 2024-06-30 | AC26: ='LGIP future infrastructure'!K6/1000 -> 1727.045 | AD26: =SUM('LGIP future infrastructure'!L6:O6)/1000 -> 1416.895 | AF26: 3143.94 | AI26: 4914.747 | AM26: ='LGIP future infrastructure'!R6/1000 -> 0 | AQ26: 2024-06-30 | AU26: =IF(AR26=1,IF(AT26>AI26*'Input-Gen'!$M$31,"Check value","OK"),"") -> 
G27: ='LGIP future infrastructure'!A7 -> AFD-RC-005 | M27: ='LGIP future infrastructure'!A7 -> AFD-RC-005 | N27: ='LGIP future infrastructure'!B7 -> R272 | O27: ='LGIP future infrastructure'!E7 -> Road Corridor Project | S27: =IF('LGIP future infrastructure'!G7="2016 - 2021",DATE(2019,6,30),DATE(2024,6,30)) -> 2024-06-30 | T27: ='LGIP future infrastructure'!J7/1000 -> 1098.384 | X27: 1098.384 | AB27: 2024-06-30 | AC27: ='LGIP future infrastructure'!K7/1000 -> 1133.998 | AD27: =SUM('LGIP future infrastructure'!L7:O7)/1000 -> 930.349 | AF27: 2064.347 | AI27: 3162.731 | AM27: ='LGIP future infrastructure'!R7/1000 -> 0 | AQ27: 2024-06-30 | AU27: =IF(AR27=1,IF(AT27>AI27*'Input-Gen'!$M$31,"Check value","OK"),"") -> 
G28: ='LGIP future infrastructure'!A8 -> AFD-RC-006 | M28: ='LGIP future infrastructure'!A8 -> AFD-RC-006 | N28: ='LGIP future infrastructure'!B8 -> R272 | O28: ='LGIP future infrastructure'!E8 -> Road Corridor Project | S28: =IF('LGIP future infrastructure'!G8="2016 - 2021",DATE(2019,6,30),DATE(2024,6,30)) -> 2024-06-30 | T28: ='LGIP future infrastructure'!J8/1000 -> 733.79 | X28: 733.79 | AB28: 2024-06-30 | AC28: ='LGIP future infrastructure'!K8/1000 -> 1261.049 | AD28: =SUM('LGIP future infrastructure'!L8:O8)/1000 -> 1034.584 | AF28: 2295.633 | AI28: 3029.423 | AM28: ='LGIP future infrastructure'!R8/1000 -> 0 | AQ28: 2024-06-30 | AU28: =IF(AR28=1,IF(AT28>AI28*'Input-Gen'!$M$31,"Check value","OK"),"") -> 
G29: ='LGIP future infrastructure'!A9 -> AFD-RI-001 | M29: ='LGIP future infrastructure'!A9 -> AFD-RI-001 | N29: ='LGIP future infrastructure'!B9 -> R272 | O29: ='LGIP future infrastructure'!E9 -> Road Intersection Project | S29: =IF('LGIP future infrastructure'!G9="2016 - 2021",DATE(2019,6,30),DATE(2024,6,30)) -> 2019-06-30 | T29: ='LGIP future infrastructure'!J9/1000 -> 133.5 | X29: 133.5 | AB29: 2019-06-30 | AC29: ='LGIP future infrastructure'!K9/1000 -> 476.691 | AD29: =SUM('LGIP future infrastructure'!L9:O9)/1000 -> 343.816 | AF29: 820.507 | AI29: 954.007 | AM29: ='LGIP future infrastructure'!R9/1000 -> 0 | AQ29: 2019-06-30 | AU29: =IF(AR29=1,IF(AT29>AI29*'Input-Gen'!$M$31,"Check value","OK"),"") -> 
G30: ='LGIP future infrastructure'!A10 -> AFD-RI-002 | M30: ='LGIP future infrastructure'!A10 -> AFD-RI-002 | N30: ='LGIP future infrastructure'!B10 -> R272 | O30: ='LGIP future infrastructure'!E10 -> Road Intersection Project | S30: =IF('LGIP future infrastructure'!G10="2016 - 2021",DATE(2019,6,30),DATE(2024,6,30)) -> 2019-06-30 | T30: ='LGIP future infrastructure'!J10/1000 -> 71.25 | X30: 71.25 | AB30: 2019-06-30 | AC30: ='LGIP future infrastructure'!K10/1000 -> 711.951 | AD30: =SUM('LGIP future infrastructure'!L10:O10)/1000 -> 513.5 | AF30: 1225.451 | AI30: 1296.701 | AM30: ='LGIP future infrastructure'!R10/1000 -> 0 | AQ30: 2019-06-30 | AU30: =IF(AR30=1,IF(AT30>AI30*'Input-Gen'!$M$31,"Check value","OK"),"") -> 
G31: ='LGIP future infrastructure'!A11 -> AFD-RI-003 | M31: ='LGIP future infrastructure'!A11 -> AFD-RI-003 | N31: ='LGIP future infrastructure'!B11 -> R272 | O31: ='LGIP future infrastructure'!E11 -> Road Intersection Project | S31: =IF('LGIP future infrastructure'!G11="2016 - 2021",DATE(2019,6,30),DATE(2024,6,30)) -> 2024-06-30 | T31: ='LGIP future infrastructure'!J11/1000 -> 204.75 | X31: 204.75 | AB31: 2024-06-30 | AC31: ='LGIP future infrastructure'!K11/1000 -> 544.79 | AD31: =SUM('LGIP future infrastructure'!L11:O11)/1000 -> 446.954 | AF31: 991.744 | AI31: 1196.494 | AM31: ='LGIP future infrastructure'!R11/1000 -> 0 | AQ31: 2024-06-30 | AU31: =IF(AR31=1,IF(AT31>AI31*'Input-Gen'!$M$31,"Check value","OK"),"") -> 
G32: ='LGIP future infrastructure'!A12 -> AGR-RC-002 | M32: ='LGIP future infrastructure'!A12 -> AGR-RC-002 | N32: ='LGIP future infrastructure'!B12 -> R293 | O32: ='LGIP future infrastructure'!E12 -> Road Corridor Project | S32: =IF('LGIP future infrastructure'!G12="2016 - 2021",DATE(2019,6,30),DATE(2024,6,30)) -> 2024-06-30 | T32: ='LGIP future infrastructure'!J12/1000 -> 1.051 | X32: 1.051 | AB32: 2024-06-30 | AC32: ='LGIP future infrastructure'!K12/1000 -> 508.788 | AD32: =SUM('LGIP future infrastructure'!L12:O12)/1000 -> 417.417 | AF32: 926.205 | AI32: 927.256 | AM32: ='LGIP future infrastructure'!R12/1000 -> 0 | AQ32: 2024-06-30 | AU32: =IF(AR32=1,IF(AT32>AI32*'Input-Gen'!$M$31,"Check value","OK"),"") -> 
G33: ='LGIP future infrastructure'!A13 -> AGR-RC-003 | M33: ='LGIP future infrastructure'!A13 -> AGR-RC-003 | N33: ='LGIP future infrastructure'!B13 -> R293 | O33: ='LGIP future infrastructure'!E13 -> Road Corridor Project | S33: =IF('LGIP future infrastructure'!G13="2016 - 2021",DATE(2019,6,30),DATE(2024,6,30)) -> 2024-06-30 | T33: ='LGIP future infrastructure'!J13/1000 -> 0 | X33: 0 | AB33: 2024-06-30 | AC33: ='LGIP future infrastructure'!K13/1000 -> 451.034 | AD33: =SUM('LGIP future infrastructure'!L13:O13)/1000 -> 370.035 | AF33: 821.069 | AI33: 821.069 | AM33: ='LGIP future infrastructure'!R13/1000 -> 0 | AQ33: 2024-06-30 | AU33: =IF(AR33=1,IF(AT33>AI33*'Input-Gen'!$M$31,"Check value","OK"),"") -> 
G34: ='LGIP future infrastructure'!A14 -> AGR-RC-004 | M34: ='LGIP future infrastructure'!A14 -> AGR-RC-004 | N34: ='LGIP future infrastructure'!B14 -> R293 | O34: ='LGIP future infrastructure'!E14 -> Road Corridor Project | S34: =IF('LGIP future infrastructure'!G14="2016 - 2021",DATE(2019,6,30),DATE(2024,6,30)) -> 2024-06-30 | T34: ='LGIP future infrastructure'!J14/1000 -> 175.436 | X34: 175.436 | AB34: 2024-06-30 | AC34: ='LGIP future infrastructure'!K14/1000 -> 599.206 | AD34: =SUM('LGIP future infrastructure'!L14:O14)/1000 -> 311.835 | AF34: 911.041 | AI34: 1086.477 | AM34: ='LGIP future infrastructure'!R14/1000 -> 0 | AQ34: 2024-06-30 | AU34: =IF(AR34=1,IF(AT34>AI34*'Input-Gen'!$M$31,"Check value","OK"),"") -> 
G35: ='LGIP future infrastructure'!A15 -> AGR-RI-001 | M35: ='LGIP future infrastructure'!A15 -> AGR-RI-001 | N35: ='LGIP future infrastructure'!B15 -> R293 | O35: ='LGIP future infrastructure'!E15 -> Road Intersection Project | S35: =IF('LGIP future infrastructure'!G15="2016 - 2021",DATE(2019,6,30),DATE(2024,6,30)) -> 2024-06-30 | T35: ='LGIP future infrastructure'!J15/1000 -> 139.2 | X35: 139.2 | AB35: 2024-06-30 | AC35: ='LGIP future infrastructure'!K15/1000 -> 700.148 | AD35: =SUM('LGIP future infrastructure'!L15:O15)/1000 -> 574.412 | AF35: 1274.56 | AI35: 1413.76 | AM35: ='LGIP future infrastructure'!R15/1000 -> 0 | AQ35: 2024-06-30 | AU35: =IF(AR35=1,IF(AT35>AI35*'Input-Gen'!$M$31,"Check value","OK"),"") -> 
G36: ='LGIP future infrastructure'!A16 -> ALB-RC-001 | M36: ='LGIP future infrastructure'!A16 -> ALB-RC-001 | N36: ='LGIP future infrastructure'!B16 -> R153 | O36: ='LGIP future infrastructure'!E16 -> Road Corridor Project | S36: =IF('LGIP future infrastructure'!G16="2016 - 2021",DATE(2019,6,30),DATE(2024,6,30)) -> 2019-06-30 | T36: ='LGIP future infrastructure'!J16/1000 -> 0.124 | X36: 0.124 | AB36: 2019-06-30 | AC36: ='LGIP future infrastructure'!K16/1000 -> 565.22 | AD36: =SUM('LGIP future infrastructure'!L16:O16)/1000 -> 407.669 | AF36: 972.889 | AI36: 973.013 | AM36: ='LGIP future infrastructure'!R16/1000 -> 0 | AQ36: 2019-06-30 | AU36: =IF(AR36=1,IF(AT36>AI36*'Input-Gen'!$M$31,"Check value","OK"),"") -> 
G37: ='LGIP future infrastructure'!A17 -> ALB-RC-004 | M37: ='LGIP future infrastructure'!A17 -> ALB-RC-004 | N37: ='LGIP future infrastructure'!B17 -> R153 | O37: ='LGIP future infrastructure'!E17 -> Road Corridor Project | S37: =IF('LGIP future infrastructure'!G17="2016 - 2021",DATE(2019,6,30),DATE(2024,6,30)) -> 2019-06-30 | T37: ='LGIP future infrastructure'!J17/1000 -> 8.982 | X37: 8.982 | AB37: 2019-06-30 | AC37: ='LGIP future infrastructure'!K17/1000 -> 243.431 | AD37: =SUM('LGIP future infrastructure'!L17:O17)/1000 -> 175.576 | AF37: 419.007 | AI37: 427.989 | AM37: ='LGIP future infrastructure'!R17/1000 -> 0 | AQ37: 2019-06-30 | AU37: =IF(AR37=1,IF(AT37>AI37*'Input-Gen'!$M$31,"Check value","OK"),"") -> 
G38: ='LGIP future infrastructure'!A18 -> ALB-RC-007 | M38: ='LGIP future infrastructure'!A18 -> ALB-RC-007 | N38: ='LGIP future infrastructure'!B18 -> R153 | O38: ='LGIP future infrastructure'!E18 -> Road Corridor Project | S38: =IF('LGIP future infrastructure'!G18="2016 - 2021",DATE(2019,6,30),DATE(2024,6,30)) -> 2019-06-30 | T38: ='LGIP future infrastructure'!J18/1000 -> 1122.293 | X38: 1122.293 | AB38: 2019-06-30 | AC38: ='LGIP future infrastructure'!K18/1000 -> 615.867 | AD38: =SUM('LGIP future infrastructure'!L18:O18)/1000 -> 444.198 | AF38: 1060.065 | AI38: 2182.358 | AM38: ='LGIP future infrastructure'!R18/1000 -> 0 | AQ38: 2019-06-30 | AU38: =IF(AR38=1,IF(AT38>AI38*'Input-Gen'!$M$31,"Check value","OK"),"") -> 
G39: ='LGIP future infrastructure'!A19 -> ALB-RC-009 | M39: ='LGIP future infrastructure'!A19 -> ALB-RC-009 | N39: ='LGIP future infrastructure'!B19 -> R153 | O39: ='LGIP future infrastructure'!E19 -> Road Corridor Project | S39: =IF('LGIP future infrastructure'!G19="2016 - 2021",DATE(2019,6,30),DATE(2024,6,30)) -> 2019-06-30 | T39: ='LGIP future infrastructure'!J19/1000 -> 3353.066 | X39: 3353.066 | AB39: 2019-06-30 | AC39: ='LGIP future infrastructure'!K19/1000 -> 782.999 | AD39: =SUM('LGIP future infrastructure'!L19:O19)/1000 -> 564.744 | AF39: 1347.743 | AI39: 4700.809 | AM39: ='LGIP future infrastructure'!R19/1000 -> 0 | AQ39: 2019-06-30 | AU39: =IF(AR39=1,IF(AT39>AI39*'Input-Gen'!$M$31,"Check value","OK"),"") -> 
G40: ='LGIP future infrastructure'!A20 -> ALB-RC-010 | M40: ='LGIP future infrastructure'!A20 -> ALB-RC-010 | N40: ='LGIP future infrastructure'!B20 -> R153 | O40: ='LGIP future infrastructure'!E20 -> Road Corridor Project | S40: =IF('LGIP future infrastructure'!G20="2016 - 2021",DATE(2019,6,30),DATE(2024,6,30)) -> 2019-06-30 | T40: ='LGIP future infrastructure'!J20/1000 -> 1039.894 | X40: 1039.894 | AB40: 2019-06-30 | AC40: ='LGIP future infrastructure'!K20/1000 -> 276.51 | AD40: =SUM('LGIP future infrastructure'!L20:O20)/1000 -> 199.435 | AF40: 475.945 | AI40: 1515.839 | AM40: ='LGIP future infrastructure'!R20/1000 -> 0 | AQ40: 2019-06-30 | AU40: =IF(AR40=1,IF(AT40>AI40*'Input-Gen'!$M$31,"Check value","OK"),"") -> 
G41: ='LGIP future infrastructure'!A21 -> ALB-RC-011 | M41: ='LGIP future infrastructure'!A21 -> ALB-RC-011 | N41: ='LGIP future infrastructure'!B21 -> R153 | O41: ='LGIP future infrastructure'!E21 -> Road Corridor Project | S41: =IF('LGIP future infrastructure'!G21="2016 - 2021",DATE(2019,6,30),DATE(2024,6,30)) -> 2019-06-30 | T41: ='LGIP future infrastructure'!J21/1000 -> 1220.609 | X41: 1220.609 | AB41: 2019-06-30 | AC41: ='LGIP future infrastructure'!K21/1000 -> 261.858 | AD41: =SUM('LGIP future infrastructure'!L21:O21)/1000 -> 188.868 | AF41: 450.726 | AI41: 1671.335 | AM41: ='LGIP future infrastructure'!R21/1000 -> 0 | AQ41: 2019-06-30 | AU41: =IF(AR41=1,IF(AT41>AI41*'Input-Gen'!$M$31,"Check value","OK"),"") -> 
G42: ='LGIP future infrastructure'!A22 -> ALB-RC-012 | M42: ='LGIP future infrastructure'!A22 -> ALB-RC-012 | N42: ='LGIP future infrastructure'!B22 -> R153 | O42: ='LGIP future infrastructure'!E22 -> Road Corridor Project | S42: =IF('LGIP future infrastructure'!G22="2016 - 2021",DATE(2019,6,30),DATE(2024,6,30)) -> 2019-06-30 | T42: ='LGIP future infrastructure'!J22/1000 -> 1384.733 | X42: 1384.733 | AB42: 2019-06-30 | AC42: ='LGIP future infrastructure'!K22/1000 -> 354.63 | AD42: =SUM('LGIP future infrastructure'!L22:O22)/1000 -> 255.779 | AF42: 610.409 | AI42: 1995.142 | AM42: ='LGIP future infrastructure'!R22/1000 -> 0 | AQ42: 2019-06-30 | AU42: =IF(AR42=1,IF(AT42>AI42*'Input-Gen'!$M$31,"Check value","OK"),"") -> 
G43: ='LGIP future infrastructure'!A23 -> ALB-RI-001 | M43: ='LGIP future infrastructure'!A23 -> ALB-RI-001 | N43: ='LGIP future infrastructure'!B23 -> R153 | O43: ='LGIP future infrastructure'!E23 -> Road Intersection Project | S43: =IF('LGIP future infrastructure'!G23="2016 - 2021",DATE(2019,6,30),DATE(2024,6,30)) -> 2019-06-30 | T43: ='LGIP future infrastructure'!J23/1000 -> 608.7 | X43: 608.7 | AB43: 2019-06-30 | AC43: ='LGIP future infrastructure'!K23/1000 -> 552.011 | AD43: =SUM('LGIP future infrastructure'!L23:O23)/1000 -> 398.142 | AF43: 950.153 | AI43: 1558.853 | AM43: ='LGIP future infrastructure'!R23/1000 -> 0 | AQ43: 2019-06-30 | AU43: =IF(AR43=1,IF(AT43>AI43*'Input-Gen'!$M$31,"Check value","OK"),"") -> 
G44: ='LGIP future infrastructure'!A24 -> ALB-RI-002 | M44: ='LGIP future infrastructure'!A24 -> ALB-RI-002 | N44: ='LGIP future infrastructure'!B24 -> R153 | O44: ='LGIP future infrastructure'!E24 -> Road Intersection Project | S44: =IF('LGIP future infrastructure'!G24="2016 - 2021",DATE(2019,6,30),DATE(2024,6,30)) -> 2019-06-30 | T44: ='LGIP future infrastructure'!J24/1000 -> 811.8 | X44: 811.8 | AB44: 2019-06-30 | AC44: ='LGIP future infrastructure'!K24/1000 -> 659.482 | AD44: =SUM('LGIP future infrastructure'!L24:O24)/1000 -> 475.657 | AF44: 1135.139 | AI44: 1946.939 | AM44: ='LGIP future infrastructure'!R24/1000 -> 0 | AQ44: 2019-06-30 | AU44: =IF(AR44=1,IF(AT44>AI44*'Input-Gen'!$M$31,"Check value","OK"),"") -> 
G45: ='LGIP future infrastructure'!A25 -> ALB-RI-005 | M45: ='LGIP future infrastructure'!A25 -> ALB-RI-005 | N45: ='LGIP future infrastructure'!B25 -> R153 | O45: ='LGIP future infrastructure'!E25 -> Road Intersection Project | S45: =IF('LGIP future infrastructure'!G25="2016 - 2021",DATE(2019,6,30),DATE(2024,6,30)) -> 2019-06-30 | T45: ='LGIP future infrastructure'!J25/1000 -> 241.8 | X45: 241.8 | AB45: 2019-06-30 | AC45: ='LGIP future infrastructure'!K25/1000 -> 597.881 | AD45: =SUM('LGIP future infrastructure'!L25:O25)/1000 -> 431.226 | AF45: 1029.107 | AI45: 1270.907 | AM45: ='LGIP future infrastructure'!R25/1000 -> 0 | AQ45: 2019-06-30 | AU45: =IF(AR45=1,IF(AT45>AI45*'Input-Gen'!$M$31,"Check value","OK"),"") -> 
G46: ='LGIP future infrastructure'!A26 -> ALB-RI-006 | M46: ='LGIP future infrastructure'!A26 -> ALB-RI-006 | N46: ='LGIP future infrastructure'!B26 -> R153 | O46: ='LGIP future infrastructure'!E26 -> Road Intersection Project | S46: =IF('LGIP future infrastructure'!G26="2016 - 2021",DATE(2019,6,30),DATE(2024,6,30)) -> 2019-06-30 | T46: ='LGIP future infrastructure'!J26/1000 -> 472.65 | X46: 472.65 | AB46: 2019-06-30 | AC46: ='LGIP future infrastructure'!K26/1000 -> 633.282 | AD46: =SUM('LGIP future infrastructure'!L26:O26)/1000 -> 456.76 | AF46: 1090.042 | AI46: 1562.692 | AM46: ='LGIP future infrastructure'!R26/1000 -> 0 | AQ46: 2019-06-30 | AU46: =IF(AR46=1,IF(AT46>AI46*'Input-Gen'!$M$31,"Check value","OK"),"") -> 
G47: ='LGIP future infrastructure'!A27 -> ALB-RI-007 | M47: ='LGIP future infrastructure'!A27 -> ALB-RI-007 | N47: ='LGIP future infrastructure'!B27 -> R153 | O47: ='LGIP future infrastructure'!E27 -> Road Intersection Project | S47: =IF('LGIP future infrastructure'!G27="2016 - 2021",DATE(2019,6,30),DATE(2024,6,30)) -> 2019-06-30 | T47: ='LGIP future infrastructure'!J27/1000 -> 133.5 | X47: 133.5 | AB47: 2019-06-30 | AC47: ='LGIP future infrastructure'!K27/1000 -> 523.146 | AD47: =SUM('LGIP future infrastructure'!L27:O27)/1000 -> 377.324 | AF47: 900.47 | AI47: 1033.97 | AM47: ='LGIP future infrastructure'!R27/1000 -> 0 | AQ47: 2019-06-30 | AU47: =IF(AR47=1,IF(AT47>AI47*'Input-Gen'!$M$31,"Check value","OK"),"") -> 
G48: ='LGIP future infrastructure'!A28 -> ANN-RI-001 | M48: ='LGIP future infrastructure'!A28 -> ANN-RI-001 | N48: ='LGIP future infrastructure'!B28 -> R213 | O48: ='LGIP future infrastructure'!E28 -> Road Intersection Project | S48: =IF('LGIP future infrastructure'!G28="2016 - 2021",DATE(2019,6,30),DATE(2024,6,30)) -> 2019-06-30 | T48: ='LGIP future infrastructure'!J28/1000 -> 339.15 | X48: 339.15 | AB48: 2019-06-30 | AC48: ='LGIP future infrastructure'!K28/1000 -> 668.224 | AD48: =SUM('LGIP future infrastructure'!L28:O28)/1000 -> 481.961 | AF48: 1150.185 | AI48: 1489.335 | AM48: ='LGIP future infrastructure'!R28/1000 -> 0 | AQ48: 2019-06-30 | AU48: =IF(AR48=1,IF(AT48>AI48*'Input-Gen'!$M$31,"Check value","OK"),"") -> 
G49: ='LGIP future infrastructure'!A29 -> ANN-RI-002 | M49: ='LGIP future infrastructure'!A29 -> ANN-RI-002 | N49: ='LGIP future infrastructure'!B29 -> R232 | O49: ='LGIP future infrastructure'!E29 -> Road Intersection Project | S49: =IF('LGIP future infrastructure'!G29="2016 - 2021",DATE(2019,6,30),DATE(2024,6,30)) -> 2019-06-30 | T49: ='LGIP future infrastructure'!J29/1000 -> 662.4 | X49: 662.4 | AB49: 2019-06-30 | AC49: ='LGIP future infrastructure'!K29/1000 -> 526.462 | AD49: =SUM('LGIP future infrastructure'!L29:O29)/1000 -> 379.714 | AF49: 906.176 | AI49: 1568.576 | AM49: ='LGIP future infrastructure'!R29/1000 -> 0 | AQ49: 2019-06-30 | AU49: =IF(AR49=1,IF(AT49>AI49*'Input-Gen'!$M$31,"Check value","OK"),"") -> 
G50: ='LGIP future infrastructure'!A30 -> ASH-RI-001 | M50: ='LGIP future infrastructure'!A30 -> ASH-RI-001 | N50: ='LGIP future infrastructure'!B30 -> R171 | O50: ='LGIP future infrastructure'!E30 -> Road Intersection Project | S50: =IF('LGIP future infrastructure'!G30="2016 - 2021",DATE(2019,6,30),DATE(2024,6,30)) -> 2019-06-30 | T50: ='LGIP future infrastructure'!J30/1000 -> 339.15 | X50: 339.15 | AB50: 2019-06-30 | AC50: ='LGIP future infrastructure'!K30/1000 -> 668.224 | AD50: =SUM('LGIP future infrastructure'!L30:O30)/1000 -> 481.961 | AF50: 1150.185 | AI50: 1489.335 | AM50: ='LGIP future infrastructure'!R30/1000 -> 0 | AQ50: 2019-06-30 | AU50: =IF(AR50=1,IF(AT50>AI50*'Input-Gen'!$M$31,"Check value","OK"),"") -> 
G51: ='LGIP future infrastructure'!A31 -> ASH-RI-002 | M51: ='LGIP future infrastructure'!A31 -> ASH-RI-002 | N51: ='LGIP future infrastructure'!B31 -> R171 | O51: ='LGIP future infrastructure'!E31 -> Road Intersection Project | S51: =IF('LGIP future infrastructure'!G31="2016 - 2021",DATE(2019,6,30),DATE(2024,6,30)) -> 2019-06-30 | T51: ='LGIP future infrastructure'!J31/1000 -> 678.3 | X51: 678.3 | AB51: 2019-06-30 | AC51: ='LGIP future infrastructure'!K31/1000 -> 633.282 | AD51: =SUM('LGIP future infrastructure'!L31:O31)/1000 -> 456.76 | AF51: 1090.042 | AI51: 1768.342 | AM51: ='LGIP future infrastructure'!R31/1000 -> 0 | AQ51: 2019-06-30 | AU51: =IF(AR51=1,IF(AT51>AI51*'Input-Gen'!$M$31,"Check value","OK"),"") -> 
G52: ='LGIP future infrastructure'!A32 -> ASH-RI-003 | M52: ='LGIP future infrastructure'!A32 -> ASH-RI-003 | N52: ='LGIP future infrastructure'!B32 -> R171 | O52: ='LGIP future infrastructure'!E32 -> Road Intersection Project | S52: =IF('LGIP future infrastructure'!G32="2016 - 2021",DATE(2019,6,30),DATE(2024,6,30)) -> 2019-06-30 | T52: ='LGIP future infrastructure'!J32/1000 -> 710.25 | X52: 710.25 | AB52: 2019-06-30 | AC52: ='LGIP future infrastructure'!K32/1000 -> 630.869 | AD52: =SUM('LGIP future infrastructure'!L32:O32)/1000 -> 455.019 | AF52: 1085.888 | AI52: 1796.138 | AM52: ='LGIP future infrastructure'!R32/1000 -> 0 | AQ52: 2019-06-30 | AU52: =IF(AR52=1,IF(AT52>AI52*'Input-Gen'!$M$31,"Check value","OK"),"") -> 
G53: ='LGIP future infrastructure'!A33 -> BEL-RC-002 | M53: ='LGIP future infrastructure'!A33 -> BEL-RC-002 | N53: ='LGIP future infrastructure'!B33 -> R216 | O53: ='LGIP future infrastructure'!E33 -> Road Corridor Project | S53: =IF('LGIP future infrastructure'!G33="2016 - 2021",DATE(2019,6,30),DATE(2024,6,30)) -> 2019-06-30 | T53: ='LGIP future infrastructure'!J33/1000 -> 568.115 | X53: 568.115 | AB53: 2019-06-30 | AC53: ='LGIP future infrastructure'!K33/1000 -> 984.892 | AD53: =SUM('LGIP future infrastructure'!L33:O33)/1000 -> 710.361 | AF53: 1695.253 | AI53: 2263.368 | AM53: ='LGIP future infrastructure'!R33/1000 -> 0 | AQ53: 2019-06-30 | AU53: =IF(AR53=1,IF(AT53>AI53*'Input-Gen'!$M$31,"Check value","OK"),"") -> 
G54: ='LGIP future infrastructure'!A34 -> BEL-RI-001 | M54: ='LGIP future infrastructure'!A34 -> BEL-RI-001 | N54: ='LGIP future infrastructure'!B34 -> R216 | O54: ='LGIP future infrastructure'!E34 -> Road Intersection Project | S54: =IF('LGIP future infrastructure'!G34="2016 - 2021",DATE(2019,6,30),DATE(2024,6,30)) -> 2024-06-30 | T54: ='LGIP future infrastructure'!J34/1000 -> 125.7 | X54: 125.7 | AB54: 2024-06-30 | AC54: ='LGIP future infrastructure'!K34/1000 -> 476.691 | AD54: =SUM('LGIP future infrastructure'!L34:O34)/1000 -> 391.084 | AF54: 867.775 | AI54: 993.475 | AM54: ='LGIP future infrastructure'!R34/1000 -> 0 | AQ54: 2024-06-30 | AU54: =IF(AR54=1,IF(AT54>AI54*'Input-Gen'!$M$31,"Check value","OK"),"") -> 
G55: ='LGIP future infrastructure'!A35 -> BEL-RI-002 | M55: ='LGIP future infrastructure'!A35 -> BEL-RI-002 | N55: ='LGIP future infrastructure'!B35 -> R216 | O55: ='LGIP future infrastructure'!E35 -> Road Intersection Project | S55: =IF('LGIP future infrastructure'!G35="2016 - 2021",DATE(2019,6,30),DATE(2024,6,30)) -> 2019-06-30 | T55: ='LGIP future infrastructure'!J35/1000 -> 20.85 | X55: 20.85 | AB55: 2019-06-30 | AC55: ='LGIP future infrastructure'!K35/1000 -> 476.691 | AD55: =SUM('LGIP future infrastructure'!L35:O35)/1000 -> 343.816 | AF55: 820.507 | AI55: 841.357 | AM55: ='LGIP future infrastructure'!R35/1000 -> 0 | AQ55: 2019-06-30 | AU55: =IF(AR55=1,IF(AT55>AI55*'Input-Gen'!$M$31,"Check value","OK"),"") -> 
G56: ='LGIP future infrastructure'!A36 -> BOH-RC-001 | M56: ='LGIP future infrastructure'!A36 -> BOH-RC-001 | N56: ='LGIP future infrastructure'!B36 -> R153 | O56: ='LGIP future infrastructure'!E36 -> Road Corridor Project | S56: =IF('LGIP future infrastructure'!G36="2016 - 2021",DATE(2019,6,30),DATE(2024,6,30)) -> 2019-06-30 | T56: ='LGIP future infrastructure'!J36/1000 -> 361.193 | X56: 361.193 | AB56: 2019-06-30 | AC56: ='LGIP future infrastructure'!K36/1000 -> 1012.652 | AD56: =SUM('LGIP future infrastructure'!L36:O36)/1000 -> 730.383 | AF56: 1743.035 | AI56: 2104.228 | AM56: ='LGIP future infrastructure'!R36/1000 -> 0 | AQ56: 2019-06-30 | AU56: =IF(AR56=1,IF(AT56>AI56*'Input-Gen'!$M$31,"Check value","OK"),"") -> 
G57: ='LGIP future infrastructure'!A37 -> BOH-RC-002 | M57: ='LGIP future infrastructure'!A37 -> BOH-RC-002 | N57: ='LGIP future infrastructure'!B37 -> R173 | O57: ='LGIP future infrastructure'!E37 -> Road Corridor Project | S57: =IF('LGIP future infrastructure'!G37="2016 - 2021",DATE(2019,6,30),DATE(2024,6,30)) -> 2024-06-30 | T57: ='LGIP future infrastructure'!J37/1000 -> 4084.525 | X57: 4084.525 | AB57: 2024-06-30 | AC57: ='LGIP future infrastructure'!K37/1000 -> 499.467 | AD57: =SUM('LGIP future infrastructure'!L37:O37)/1000 -> 409.77 | AF57: 909.237 | AI57: 4993.762 | AM57: ='LGIP future infrastructure'!R37/1000 -> 0 | AQ57: 2024-06-30 | AU57: =IF(AR57=1,IF(AT57>AI57*'Input-Gen'!$M$31,"Check value","OK"),"") -> 
G58: ='LGIP future infrastructure'!A38 -> BOH-RI-001 | M58: ='LGIP future infrastructure'!A38 -> BOH-RI-001 | N58: ='LGIP future infrastructure'!B38 -> R173 | O58: ='LGIP future infrastructure'!E38 -> Road Intersection Project | S58: =IF('LGIP future infrastructure'!G38="2016 - 2021",DATE(2019,6,30),DATE(2024,6,30)) -> 2019-06-30 | T58: ='LGIP future infrastructure'!J38/1000 -> 718.5 | X58: 718.5 | AB58: 2019-06-30 | AC58: ='LGIP future infrastructure'!K38/1000 -> 418.448 | AD58: =SUM('LGIP future infrastructure'!L38:O38)/1000 -> 301.808 | AF58: 720.256 | AI58: 1438.756 | AM58: ='LGIP future infrastructure'!R38/1000 -> 0 | AQ58: 2019-06-30 | AU58: =IF(AR58=1,IF(AT58>AI58*'Input-Gen'!$M$31,"Check value","OK"),"") -> 
G59: ='LGIP future infrastructure'!A39 -> BRG-RC-003 | M59: ='LGIP future infrastructure'!A39 -> BRG-RC-003 | N59: ='LGIP future infrastructure'!B39 -> R73 | O59: ='LGIP future infrastructure'!E39 -> Road Corridor Project | S59: =IF('LGIP future infrastructure'!G39="2016 - 2021",DATE(2019,6,30),DATE(2024,6,30)) -> 2019-06-30 | T59: ='LGIP future infrastructure'!J39/1000 -> 1755.671 | X59: 1755.671 | AB59: 2019-06-30 | AC59: ='LGIP future infrastructure'!K39/1000 -> 1941.433 | AD59: =SUM('LGIP future infrastructure'!L39:O39)/1000 -> 1400.274 | AF59: 3341.707 | AI59: 5097.378 | AM59: ='LGIP future infrastructure'!R39/1000 -> 0 | AQ59: 2019-06-30 | AU59: =IF(AR59=1,IF(AT59>AI59*'Input-Gen'!$M$31,"Check value","OK"),"") -> 
G60: ='LGIP future infrastructure'!A40 -> BRG-RC-004 | M60: ='LGIP future infrastructure'!A40 -> BRG-RC-004 | N60: ='LGIP future infrastructure'!B40 -> R73 | O60: ='LGIP future infrastructure'!E40 -> Road Corridor Project | S60: =IF('LGIP future infrastructure'!G40="2016 - 2021",DATE(2019,6,30),DATE(2024,6,30)) -> 2019-06-30 | T60: ='LGIP future infrastructure'!J40/1000 -> 0 | X60: 0 | AB60: 2019-06-30 | AC60: ='LGIP future infrastructure'!K40/1000 -> 318.559 | AD60: =SUM('LGIP future infrastructure'!L40:O40)/1000 -> 229.764 | AF60: 548.323 | AI60: 548.323 | AM60: ='LGIP future infrastructure'!R40/1000 -> 0 | AQ60: 2019-06-30 | AU60: =IF(AR60=1,IF(AT60>AI60*'Input-Gen'!$M$31,"Check value","OK"),"") -> 
G61: ='LGIP future infrastructure'!A41 -> BRG-RC-005 | M61: ='LGIP future infrastructure'!A41 -> BRG-RC-005 | N61: ='LGIP future infrastructure'!B41 -> R73 | O61: ='LGIP future infrastructure'!E41 -> Road Corridor Project | S61: =IF('LGIP future infrastructure'!G41="2016 - 2021",DATE(2019,6,30),DATE(2024,6,30)) -> 2019-06-30 | T61: ='LGIP future infrastructure'!J41/1000 -> 728.918 | X61: 728.918 | AB61: 2019-06-30 | AC61: ='LGIP future infrastructure'!K41/1000 -> 1020.346 | AD61: =SUM('LGIP future infrastructure'!L41:O41)/1000 -> 735.933 | AF61: 1756.279 | AI61: 2485.197 | AM61: ='LGIP future infrastructure'!R41/1000 -> 0 | AQ61: 2019-06-30 | AU61: =IF(AR61=1,IF(AT61>AI61*'Input-Gen'!$M$31,"Check value","OK"),"") -> 
G62: ='LGIP future infrastructure'!A42 -> BRG-RI-001 | M62: ='LGIP future infrastructure'!A42 -> BRG-RI-001 | N62: ='LGIP future infrastructure'!B42 -> R73 | O62: ='LGIP future infrastructure'!E42 -> Road Intersection Project | S62: =IF('LGIP future infrastructure'!G42="2016 - 2021",DATE(2019,6,30),DATE(2024,6,30)) -> 2019-06-30 | T62: ='LGIP future infrastructure'!J42/1000 -> 45.9 | X62: 45.9 | AB62: 2019-06-30 | AC62: ='LGIP future infrastructure'!K42/1000 -> 597.881 | AD62: =SUM('LGIP future infrastructure'!L42:O42)/1000 -> 431.226 | AF62: 1029.107 | AI62: 1075.007 | AM62: ='LGIP future infrastructure'!R42/1000 -> 0 | AQ62: 2019-06-30 | AU62: =IF(AR62=1,IF(AT62>AI62*'Input-Gen'!$M$31,"Check value","OK"),"") -> 
G63: ='LGIP future infrastructure'!A43 -> BRG-RI-002 | M63: ='LGIP future infrastructure'!A43 -> BRG-RI-002 | N63: ='LGIP future infrastructure'!B43 -> R53 | O63: ='LGIP future infrastructure'!E43 -> Road Intersection Project | S63: =IF('LGIP future infrastructure'!G43="2016 - 2021",DATE(2019,6,30),DATE(2024,6,30)) -> 2024-06-30 | T63: ='LGIP future infrastructure'!J43/1000 -> 502.8 | X63: =SUM(T63:V63) -> 502.8 | AB63: 2024-06-30 | AC63: ='LGIP future infrastructure'!K43/1000 -> 789.691 | AD63: =SUM('LGIP future infrastructure'!L43:O43)/1000 -> 647.875 | AF63: 1437.566 | AI63: =SUM(X63,AF63) -> 1940.366 | AM63: ='LGIP future infrastructure'!R43/1000 -> 0 | AQ63: 2024-06-30 | AU63: =IF(AR63=1,IF(AT63>AI63*'Input-Gen'!$M$31,"Check value","OK"),"") -> 
G64: ='LGIP future infrastructure'!A44 -> BRG-RI-003 | M64: ='LGIP future infrastructure'!A44 -> BRG-RI-003 | N64: ='LGIP future infrastructure'!B44 -> R53 | O64: ='LGIP future infrastructure'!E44 -> Road Intersection Project | S64: =IF('LGIP future infrastructure'!G44="2016 - 2021",DATE(2019,6,30),DATE(2024,6,30)) -> 2024-06-30 | T64: ='LGIP future infrastructure'!J44/1000 -> 0 | X64: 0 | AB64: 2024-06-30 | AC64: ='LGIP future infrastructure'!K44/1000 -> 817.184 | AD64: =SUM('LGIP future infrastructure'!L44:O44)/1000 -> 670.43 | AF64: 1487.614 | AI64: 1487.614 | AM64: ='LGIP future infrastructure'!R44/1000 -> 0 | AQ64: 2024-06-30 | AU64: =IF(AR64=1,IF(AT64>AI64*'Input-Gen'!$M$31,"Check value","OK"),"") -> 
G65: ='LGIP future infrastructure'!A45 -> BUL-RI-001 | M65: ='LGIP future infrastructure'!A45 -> BUL-RI-001 | N65: ='LGIP future infrastructure'!B45 -> R174 | O65: ='LGIP future infrastructure'!E45 -> Road Intersection Project | S65: =IF('LGIP future infrastructure'!G45="2016 - 2021",DATE(2019,6,30),DATE(2024,6,30)) -> 2019-06-30 | T65: ='LGIP future infrastructure'!J45/1000 -> 291.15 | X65: 291.15 | AB65: 2019-06-30 | AC65: ='LGIP future infrastructure'!K45/1000 -> 711.951 | AD65: =SUM('LGIP future infrastructure'!L45:O45)/1000 -> 513.5 | AF65: 1225.451 | AI65: 1516.601 | AM65: ='LGIP future infrastructure'!R45/1000 -> 0 | AQ65: 2019-06-30 | AU65: =IF(AR65=1,IF(AT65>AI65*'Input-Gen'!$M$31,"Check value","OK"),"") -> 
G66: ='LGIP future infrastructure'!A46 -> BYO-RC-001 | M66: ='LGIP future infrastructure'!A46 -> BYO-RC-001 | N66: ='LGIP future infrastructure'!B46 -> R114 | O66: ='LGIP future infrastructure'!E46 -> Road Corridor Project | S66: =IF('LGIP future infrastructure'!G46="2016 - 2021",DATE(2019,6,30),DATE(2024,6,30)) -> 2019-06-30 | T66: ='LGIP future infrastructure'!J46/1000 -> 730.752 | X66: 730.752 | AB66: 2019-06-30 | AC66: ='LGIP future infrastructure'!K46/1000 -> 1516.964 | AD66: =SUM('LGIP future infrastructure'!L46:O46)/1000 -> 1094.121 | AF66: 2611.085 | AI66: 3341.837 | AM66: ='LGIP future infrastructure'!R46/1000 -> 0 | AQ66: 2019-06-30 | AU66: =IF(AR66=1,IF(AT66>AI66*'Input-Gen'!$M$31,"Check value","OK"),"") -> 
G67: ='LGIP future infrastructure'!A47 -> BYO-RI-001 | M67: ='LGIP future infrastructure'!A47 -> BYO-RI-001 | N67: ='LGIP future infrastructure'!B47 -> R114 | O67: ='LGIP future infrastructure'!E47 -> Road Intersection Project | S67: =IF('LGIP future infrastructure'!G47="2016 - 2021",DATE(2019,6,30),DATE(2024,6,30)) -> 2019-06-30 | T67: ='LGIP future infrastructure'!J47/1000 -> 133.5 | X67: 133.5 | AB67: 2019-06-30 | AC67: ='LGIP future infrastructure'!K47/1000 -> 476.691 | AD67: =SUM('LGIP future infrastructure'!L47:O47)/1000 -> 343.816 | AF67: 820.507 | AI67: 954.007 | AM67: ='LGIP future infrastructure'!R47/1000 -> 0 | AQ67: 2019-06-30 | AU67: =IF(AR67=1,IF(AT67>AI67*'Input-Gen'!$M$31,"Check value","OK"),"") -> 
G68: ='LGIP future infrastructure'!A48 -> CAH-RI-001 | M68: ='LGIP future infrastructure'!A48 -> CAH-RI-001 | N68: ='LGIP future infrastructure'!B48 -> R214 | O68: ='LGIP future infrastructure'!E48 -> Road Intersection Project | S68: =IF('LGIP future infrastructure'!G48="2016 - 2021",DATE(2019,6,30),DATE(2024,6,30)) -> 2019-06-30 | T68: ='LGIP future infrastructure'!J48/1000 -> 280.8 | X68: 280.8 | AB68: 2019-06-30 | AC68: ='LGIP future infrastructure'!K48/1000 -> 544.79 | AD68: =SUM('LGIP future infrastructure'!L48:O48)/1000 -> 392.934 | AF68: 937.724 | AI68: 1218.524 | AM68: ='LGIP future infrastructure'!R48/1000 -> 0 | AQ68: 2019-06-30 | AU68: =IF(AR68=1,IF(AT68>AI68*'Input-Gen'!$M$31,"Check value","OK"),"") -> 
G69: ='LGIP future infrastructure'!A49 -> CDE-LC-001 | M69: ='LGIP future infrastructure'!A49 -> CDE-LC-001 | N69: ='LGIP future infrastructure'!B49 -> R72 | O69: ='LGIP future infrastructure'!E49 -> Open Level Crossing | S69: =IF('LGIP future infrastructure'!G49="2016 - 2021",DATE(2019,6,30),DATE(2024,6,30)) -> 2024-06-30 | T69: ='LGIP future infrastructure'!J49/1000 -> 25000 | X69: 25000 | AB69: 2024-06-30 | AC69: ='LGIP future infrastructure'!K49/1000 -> 123598.191 | AD69: =SUM('LGIP future infrastructure'!L49:O49)/1000 -> 101401.809 | AF69: 225000 | AI69: 250000 | AM69: ='LGIP future infrastructure'!R49/1000 -> 191250 | AQ69: 2024-06-30 | AU69: =IF(AR69=1,IF(AT69>AI69*'Input-Gen'!$M$31,"Check value","OK"),"") -> 
G70: ='LGIP future infrastructure'!A50 -> CDE-RC-002 | M70: ='LGIP future infrastructure'!A50 -> CDE-RC-002 | N70: ='LGIP future infrastructure'!B50 -> R72, R73 | O70: ='LGIP future infrastructure'!E50 -> Road Corridor Project | S70: =IF('LGIP future infrastructure'!G50="2016 - 2021",DATE(2019,6,30),DATE(2024,6,30)) -> 2024-06-30 | T70: ='LGIP future infrastructure'!J50/1000 -> 234.708 | X70: 234.708 | AB70: 2024-06-30 | AC70: ='LGIP future infrastructure'!K50/1000 -> 1140.619 | AD70: =SUM('LGIP future infrastructure'!L50:O50)/1000 -> 935.781 | AF70: 2076.4 | AI70: 2311.108 | AM70: ='LGIP future infrastructure'!R50/1000 -> 0 | AQ70: 2024-06-30 | AU70: =IF(AR70=1,IF(AT70>AI70*'Input-Gen'!$M$31,"Check value","OK"),"") -> 
G71: ='LGIP future infrastructure'!A51 -> CDE-RC-003 | M71: ='LGIP future infrastructure'!A51 -> CDE-RC-003 | N71: ='LGIP future infrastructure'!B51 -> R72 | O71: ='LGIP future infrastructure'!E51 -> Road Corridor Project | S71: =IF('LGIP future infrastructure'!G51="2016 - 2021",DATE(2019,6,30),DATE(2024,6,30)) -> 2024-06-30 | T71: ='LGIP future infrastructure'!J51/1000 -> 227.373 | X71: 227.373 | AB71: 2024-06-30 | AC71: ='LGIP future infrastructure'!K51/1000 -> 1171.369 | AD71: =SUM('LGIP future infrastructure'!L51:O51)/1000 -> 961.009 | AF71: 2132.378 | AI71: 2359.751 | AM71: ='LGIP future infrastructure'!R51/1000 -> 0 | AQ71: 2024-06-30 | AU71: =IF(AR71=1,IF(AT71>AI71*'Input-Gen'!$M$31,"Check value","OK"),"") -> 
G72: ='LGIP future infrastructure'!A52 -> CDE-RC-004 | M72: ='LGIP future infrastructure'!A52 -> CDE-RC-004 | N72: ='LGIP future infrastructure'!B52 -> R72 | O72: ='LGIP future infrastructure'!E52 -> Road Corridor Project | S72: =IF('LGIP future infrastructure'!G52="2016 - 2021",DATE(2019,6,30),DATE(2024,6,30)) -> 2024-06-30 | T72: ='LGIP future infrastructure'!J52/1000 -> 29.588 | X72: 29.588 | AB72: 2024-06-30 | AC72: ='LGIP future infrastructure'!K52/1000 -> 395.733 | AD72: =SUM('LGIP future infrastructure'!L52:O52)/1000 -> 324.666 | AF72: 720.399 | AI72: 749.987 | AM72: ='LGIP future infrastructure'!R52/1000 -> 0 | AQ72: 2024-06-30 | AU72: =IF(AR72=1,IF(AT72>AI72*'Input-Gen'!$M$31,"Check value","OK"),"") -> 
G73: ='LGIP future infrastructure'!A53 -> CDE-RC-005 | M73: ='LGIP future infrastructure'!A53 -> CDE-RC-005 | N73: ='LGIP future infrastructure'!B53 -> R72 | O73: ='LGIP future infrastructure'!E53 -> Road Corridor Project | S73: =IF('LGIP future infrastructure'!G53="2016 - 2021",DATE(2019,6,30),DATE(2024,6,30)) -> 2024-06-30 | T73: ='LGIP future infrastructure'!J53/1000 -> 1116.763 | X73: 1116.763 | AB73: 2024-06-30 | AC73: ='LGIP future infrastructure'!K53/1000 -> 947.454 | AD73: =SUM('LGIP future infrastructure'!L53:O53)/1000 -> 777.305 | AF73: 1724.759 | AI73: 2841.522 | AM73: ='LGIP future infrastructure'!R53/1000 -> 0 | AQ73: 2024-06-30 | AU73: =IF(AR73=1,IF(AT73>AI73*'Input-Gen'!$M$31,"Check value","OK"),"") -> 
G74: ='LGIP future infrastructure'!A54 -> CDE-RC-006 | M74: ='LGIP future infrastructure'!A54 -> CDE-RC-006 | N74: ='LGIP future infrastructure'!B54 -> R72 | O74: ='LGIP future infrastructure'!E54 -> Road Corridor Project | S74: =IF('LGIP future infrastructure'!G54="2016 - 2021",DATE(2019,6,30),DATE(2024,6,30)) -> 2024-06-30 | T74: ='LGIP future infrastructure'!J54/1000 -> 1080.688 | X74: 1080.688 | AB74: 2024-06-30 | AC74: ='LGIP future infrastructure'!K54/1000 -> 945.386 | AD74: =SUM('LGIP future infrastructure'!L54:O54)/1000 -> 775.609 | AF74: 1720.995 | AI74: 2801.683 | AM74: ='LGIP future infrastructure'!R54/1000 -> 0 | AQ74: 2024-06-30 | AU74: =IF(AR74=1,IF(AT74>AI74*'Input-Gen'!$M$31,"Check value","OK"),"") -> 
G75: ='LGIP future infrastructure'!A55 -> CDE-RI-002 | M75: ='LGIP future infrastructure'!A55 -> CDE-RI-002 | N75: ='LGIP future infrastructure'!B55 -> R72 | O75: ='LGIP future infrastructure'!E55 -> Road Intersection Project | S75: =IF('LGIP future infrastructure'!G55="2016 - 2021",DATE(2019,6,30),DATE(2024,6,30)) -> 2024-06-30 | T75: ='LGIP future infrastructure'!J55/1000 -> 146.55 | X75: 146.55 | AB75: 2024-06-30 | AC75: ='LGIP future infrastructure'!K55/1000 -> 711.951 | AD75: =SUM('LGIP future infrastructure'!L55:O55)/1000 -> 584.096 | AF75: 1296.047 | AI75: 1442.597 | AM75: ='LGIP future infrastructure'!R55/1000 -> 0 | AQ75: 2024-06-30 | AU75: =IF(AR75=1,IF(AT75>AI75*'Input-Gen'!$M$31,"Check value","OK"),"") -> 
G76: ='LGIP future infrastructure'!A56 -> CDE-RI-003 | M76: ='LGIP future infrastructure'!A56 -> CDE-RI-003 | N76: ='LGIP future infrastructure'!B56 -> R72 | O76: ='LGIP future infrastructure'!E56 -> Road Intersection Project | S76: =IF('LGIP future infrastructure'!G56="2016 - 2021",DATE(2019,6,30),DATE(2024,6,30)) -> 2024-06-30 | T76: ='LGIP future infrastructure'!J56/1000 -> 42 | X76: 42 | AB76: 2024-06-30 | AC76: ='LGIP future infrastructure'!K56/1000 -> 533.964 | AD76: =SUM('LGIP future infrastructure'!L56:O56)/1000 -> 438.072 | AF76: 972.036 | AI76: 1014.036 | AM76: ='LGIP future infrastructure'!R56/1000 -> 0 | AQ76: 2024-06-30 | AU76: =IF(AR76=1,IF(AT76>AI76*'Input-Gen'!$M$31,"Check value","OK"),"") -> 
G77: ='LGIP future infrastructure'!A57 -> CDL-RB-002 | M77: ='LGIP future infrastructure'!A57 -> CDL-RB-002 | N77: ='LGIP future infrastructure'!B57 -> R215 | O77: ='LGIP future infrastructure'!E57 -> Road Bridge | S77: =IF('LGIP future infrastructure'!G57="2016 - 2021",DATE(2019,6,30),DATE(2024,6,30)) -> 2019-06-30 | T77: ='LGIP future infrastructure'!J57/1000 -> 0 | X77: 0 | AB77: 2019-06-30 | AC77: ='LGIP future infrastructure'!K57/1000 -> 5968.332 | AD77: =SUM('LGIP future infrastructure'!L57:O57)/1000 -> 3111.037 | AF77: 9079.369 | AI77: 9079.369 | AM77: ='LGIP future infrastructure'!R57/1000 -> 0 | AQ77: 2019-06-30 | AU77: =IF(AR77=1,IF(AT77>AI77*'Input-Gen'!$M$31,"Check value","OK"),"") -> 
G78: ='LGIP future infrastructure'!A58 -> CDL-RC-002 | M78: ='LGIP future infrastructure'!A58 -> CDL-RC-002 | N78: ='LGIP future infrastructure'!B58 -> R215 | O78: ='LGIP future infrastructure'!E58 -> Road Corridor Project | S78: =IF('LGIP future infrastructure'!G58="2016 - 2021",DATE(2019,6,30),DATE(2024,6,30)) -> 2019-06-30 | T78: ='LGIP future infrastructure'!J58/1000 -> 935.951 | X78: 935.951 | AB78: 2019-06-30 | AC78: ='LGIP future infrastructure'!K58/1000 -> 1120.648 | AD78: =SUM('LGIP future infrastructure'!L58:O58)/1000 -> 808.276 | AF78: 1928.924 | AI78: 2864.875 | AM78: ='LGIP future infrastructure'!R58/1000 -> 0 | AQ78: 2019-06-30 | AU78: =IF(AR78=1,IF(AT78>AI78*'Input-Gen'!$M$31,"Check value","OK"),"") -> 
G79: ='LGIP future infrastructure'!A59 -> CDL-RC-003 | M79: ='LGIP future infrastructure'!A59 -> CDL-RC-003 | N79: ='LGIP future infrastructure'!B59 -> R216, R215 | O79: ='LGIP future infrastructure'!E59 -> Road Corridor Project | S79: =IF('LGIP future infrastructure'!G59="2016 - 2021",DATE(2019,6,30),DATE(2024,6,30)) -> 2019-06-30 | T79: ='LGIP future infrastructure'!J59/1000 -> 0 | X79: 0 | AB79: 2019-06-30 | AC79: ='LGIP future infrastructure'!K59/1000 -> 740.848 | AD79: =SUM('LGIP future infrastructure'!L59:O59)/1000 -> 534.342 | AF79: 1275.19 | AI79: 1275.19 | AM79: ='LGIP future infrastructure'!R59/1000 -> 0 | AQ79: 2019-06-30 | AU79: =IF(AR79=1,IF(AT79>AI79*'Input-Gen'!$M$31,"Check value","OK"),"") -> 
G80: ='LGIP future infrastructure'!A60 -> CHE-RC-007 | M80: ='LGIP future infrastructure'!A60 -> CHE-RC-007 | N80: ='LGIP future infrastructure'!B60 -> R113, R93 | O80: ='LGIP future infrastructure'!E60 -> Road Corridor Project | S80: =IF('LGIP future infrastructure'!G60="2016 - 2021",DATE(2019,6,30),DATE(2024,6,30)) -> 2019-06-30 | T80: ='LGIP future infrastructure'!J60/1000 -> 454.683 | X80: 454.683 | AB80: 2019-06-30 | AC80: ='LGIP future infrastructure'!K60/1000 -> 1315.793 | AD80: =SUM('LGIP future infrastructure'!L60:O60)/1000 -> 949.026 | AF80: 2264.819 | AI80: 2719.502 | AM80: ='LGIP future infrastructure'!R60/1000 -> 0 | AQ80: 2019-06-30 | AU80: =IF(AR80=1,IF(AT80>AI80*'Input-Gen'!$M$31,"Check value","OK"),"") -> 
G81: ='LGIP future infrastructure'!A61 -> CHE-RC-008 | M81: ='LGIP future infrastructure'!A61 -> CHE-RC-008 | N81: ='LGIP future infrastructure'!B61 -> R113, R112 | O81: ='LGIP future infrastructure'!E61 -> Road Corridor Project | S81: =IF('LGIP future infrastructure'!G61="2016 - 2021",DATE(2019,6,30),DATE(2024,6,30)) -> 2019-06-30 | T81: ='LGIP future infrastructure'!J61/1000 -> 229.67 | X81: 229.67 | AB81: 2019-06-30 | AC81: ='LGIP future infrastructure'!K61/1000 -> 624.103 | AD81: =SUM('LGIP future infrastructure'!L61:O61)/1000 -> 450.138 | AF81: 1074.241 | AI81: 1303.911 | AM81: ='LGIP future infrastructure'!R61/1000 -> 0 | AQ81: 2019-06-30 | AU81: =IF(AR81=1,IF(AT81>AI81*'Input-Gen'!$M$31,"Check value","OK"),"") -> 
G82: ='LGIP future infrastructure'!A62 -> CHE-RC-009 | M82: ='LGIP future infrastructure'!A62 -> CHE-RC-009 | N82: ='LGIP future infrastructure'!B62 -> R113 | O82: ='LGIP future infrastructure'!E62 -> Road Corridor Project | S82: =IF('LGIP future infrastructure'!G62="2016 - 2021",DATE(2019,6,30),DATE(2024,6,30)) -> 2019-06-30 | T82: ='LGIP future infrastructure'!J62/1000 -> 3597.921 | X82: 3597.921 | AB82: 2019-06-30 | AC82: ='LGIP future infrastructure'!K62/1000 -> 1953.658 | AD82: =SUM('LGIP future infrastructure'!L62:O62)/1000 -> 1409.091 | AF82: 3362.749 | AI82: 6960.67 | AM82: ='LGIP future infrastructure'!R62/1000 -> 0 | AQ82: 2019-06-30 | AU82: =IF(AR82=1,IF(AT82>AI82*'Input-Gen'!$M$31,"Check value","OK"),"") -> 
G83: ='LGIP future infrastructure'!A63 -> CHE-RC-010 | M83: ='LGIP future infrastructure'!A63 -> CHE-RC-010 | N83: ='LGIP future infrastructure'!B63 -> R113 | O83: ='LGIP future infrastructure'!E63 -> Road Corridor Project | S83: =IF('LGIP future infrastructure'!G63="2016 - 2021",DATE(2019,6,30),DATE(2024,6,30)) -> 2019-06-30 | T83: ='LGIP future infrastructure'!J63/1000 -> 124.98 | X83: 124.98 | AB83: 2019-06-30 | AC83: ='LGIP future infrastructure'!K63/1000 -> 959.441 | AD83: =SUM('LGIP future infrastructure'!L63:O63)/1000 -> 692.004 | AF83: 1651.445 | AI83: 1776.425 | AM83: ='LGIP future infrastructure'!R63/1000 -> 0 | AQ83: 2019-06-30 | AU83: =IF(AR83=1,IF(AT83>AI83*'Input-Gen'!$M$31,"Check value","OK"),"") -> 
G84: ='LGIP future infrastructure'!A64 -> CHE-RC-011 | M84: ='LGIP future infrastructure'!A64 -> CHE-RC-011 | N84: ='LGIP future infrastructure'!B64 -> R113 | O84: ='LGIP future infrastructure'!E64 -> Road Corridor Project | S84: =IF('LGIP future infrastructure'!G64="2016 - 2021",DATE(2019,6,30),DATE(2024,6,30)) -> 2019-06-30 | T84: ='LGIP future infrastructure'!J64/1000 -> 737.057 | X84: 737.057 | AB84: 2019-06-30 | AC84: ='LGIP future infrastructure'!K64/1000 -> 396.947 | AD84: =SUM('LGIP future infrastructure'!L64:O64)/1000 -> 286.301 | AF84: 683.248 | AI84: 1420.305 | AM84: ='LGIP future infrastructure'!R64/1000 -> 0 | AQ84: 2019-06-30 | AU84: =IF(AR84=1,IF(AT84>AI84*'Input-Gen'!$M$31,"Check value","OK"),"") -> 
G85: ='LGIP future infrastructure'!A65 -> CHE-RI-001 | M85: ='LGIP future infrastructure'!A65 -> CHE-RI-001 | N85: ='LGIP future infrastructure'!B65 -> R113 | O85: ='LGIP future infrastructure'!E65 -> Road Intersection Project | S85: =IF('LGIP future infrastructure'!G65="2016 - 2021",DATE(2019,6,30),DATE(2024,6,30)) -> 2019-06-30 | T85: ='LGIP future infrastructure'!J65/1000 -> 0 | X85: =SUM(T85:V85) -> 0 | AB85: 2019-06-30 | AC85: ='LGIP future infrastructure'!K65/1000 -> 415.305 | AD85: =SUM('LGIP future infrastructure'!L65:O65)/1000 -> 299.542 | AF85: 714.847 | AI85: 714.847 | AM85: ='LGIP future infrastructure'!R65/1000 -> 0 | AQ85: 2019-06-30 | AU85: =IF(AR85=1,IF(AT85>AI85*'Input-Gen'!$M$31,"Check value","OK"),"") -> 
G86: ='LGIP future infrastructure'!A66 -> CHE-RI-006 | M86: ='LGIP future infrastructure'!A66 -> CHE-RI-006 | N86: ='LGIP future infrastructure'!B66 -> R113 | O86: ='LGIP future infrastructure'!E66 -> Road Intersection Project | S86: =IF('LGIP future infrastructure'!G66="2016 - 2021",DATE(2019,6,30),DATE(2024,6,30)) -> 2019-06-30 | T86: ='LGIP future infrastructure'!J66/1000 -> 588.3 | X86: 588.3 | AB86: 2019-06-30 | AC86: ='LGIP future infrastructure'!K66/1000 -> 474.634 | AD86: =SUM('LGIP future infrastructure'!L66:O66)/1000 -> 342.334 | AF86: 816.968 | AI86: 1405.268 | AM86: ='LGIP future infrastructure'!R66/1000 -> 0 | AQ86: 2019-06-30 | AU86: =IF(AR86=1,IF(AT86>AI86*'Input-Gen'!$M$31,"Check value","OK"),"") -> 
G87: ='LGIP future infrastructure'!A67 -> CHE-RI-007 | M87: ='LGIP future infrastructure'!A67 -> CHE-RI-007 | N87: ='LGIP future infrastructure'!B67 -> R113 | O87: ='LGIP future infrastructure'!E67 -> Road Intersection Project | S87: =IF('LGIP future infrastructure'!G67="2016 - 2021",DATE(2019,6,30),DATE(2024,6,30)) -> 2019-06-30 | T87: ='LGIP future infrastructure'!J67/1000 -> 268.5 | X87: 268.5 | AB87: =S87 -> 2019-06-30 | AC87: ='LGIP future infrastructure'!K67/1000 -> 415.305 | AD87: =SUM('LGIP future infrastructure'!L67:O67)/1000 -> 299.542 | AF87: =AC87+AD87 -> 714.847 | AI87: 983.347 | AM87: ='LGIP future infrastructure'!R67/1000 -> 0 | AQ87: =MAX(AB87,S87) -> 2019-06-30 | AU87: =IF(AR87=1,IF(AT87>AI87*'Input-Gen'!$M$31,"Check value","OK"),"") -> 
G88: ='LGIP future infrastructure'!A68 -> CHW-RC-003 | M88: ='LGIP future infrastructure'!A68 -> CHW-RC-003 | N88: ='LGIP future infrastructure'!B68 -> R112 | O88: ='LGIP future infrastructure'!E68 -> Road Corridor Project | S88: =IF('LGIP future infrastructure'!G68="2016 - 2021",DATE(2019,6,30),DATE(2024,6,30)) -> 2019-06-30 | T88: ='LGIP future infrastructure'!J68/1000 -> 2331.754 | X88: 2331.754 | AB88: 2019-06-30 | AC88: ='LGIP future infrastructure'!K68/1000 -> 1440.041 | AD88: =SUM('LGIP future infrastructure'!L68:O68)/1000 -> 1038.64 | AF88: 2478.681 | AI88: 4810.435 | AM88: ='LGIP future infrastructure'!R68/1000 -> 0 | AQ88: 2019-06-30 | AU88: =IF(AR88=1,IF(AT88>AI88*'Input-Gen'!$M$31,"Check value","OK"),"") -> 
G89: ='LGIP future infrastructure'!A69 -> CHW-RC-004 | M89: ='LGIP future infrastructure'!A69 -> CHW-RC-004 | N89: ='LGIP future infrastructure'!B69 -> R112 | O89: ='LGIP future infrastructure'!E69 -> Road Corridor Project | S89: =IF('LGIP future infrastructure'!G69="2016 - 2021",DATE(2019,6,30),DATE(2024,6,30)) -> 2019-06-30 | T89: ='LGIP future infrastructure'!J69/1000 -> 587.032 | X89: 587.032 | AB89: 2019-06-30 | AC89: ='LGIP future infrastructure'!K69/1000 -> 923.342 | AD89: =SUM('LGIP future infrastructure'!L69:O69)/1000 -> 665.967 | AF89: 1589.309 | AI89: 2176.341 | AM89: ='LGIP future infrastructure'!R69/1000 -> 0 | AQ89: 2019-06-30 | AU89: =IF(AR89=1,IF(AT89>AI89*'Input-Gen'!$M$31,"Check value","OK"),"") -> 
G90: ='LGIP future infrastructure'!A70 -> CHW-RC-005 | M90: ='LGIP future infrastructure'!A70 -> CHW-RC-005 | N90: ='LGIP future infrastructure'!B70 -> R112 | O90: ='LGIP future infrastructure'!E70 -> Road Corridor Project | S90: =IF('LGIP future infrastructure'!G70="2016 - 2021",DATE(2019,6,30),DATE(2024,6,30)) -> 2019-06-30 | T90: ='LGIP future infrastructure'!J70/1000 -> 0 | X90: 0 | AB90: 2019-06-30 | AC90: ='LGIP future infrastructure'!K70/1000 -> 336.851 | AD90: =SUM('LGIP future infrastructure'!L70:O70)/1000 -> 242.956 | AF90: 579.807 | AI90: 579.807 | AM90: ='LGIP future infrastructure'!R70/1000 -> 0 | AQ90: 2019-06-30 | AU90: =IF(AR90=1,IF(AT90>AI90*'Input-Gen'!$M$31,"Check value","OK"),"") -> 
G91: ='LGIP future infrastructure'!A71 -> CHW-RI-001 | M91: ='LGIP future infrastructure'!A71 -> CHW-RI-001 | N91: ='LGIP future infrastructure'!B71 -> R112 | O91: ='LGIP future infrastructure'!E71 -> Road Intersection Project | S91: =IF('LGIP future infrastructure'!G71="2016 - 2021",DATE(2019,6,30),DATE(2024,6,30)) -> 2024-06-30 | T91: ='LGIP future infrastructure'!J71/1000 -> 421.2 | X91: 421.2 | AB91: 2024-06-30 | AC91: ='LGIP future infrastructure'!K71/1000 -> 544.79 | AD91: =SUM('LGIP future infrastructure'!L71:O71)/1000 -> 446.954 | AF91: 991.744 | AI91: 1412.944 | AM91: ='LGIP future infrastructure'!R71/1000 -> 0 | AQ91: 2024-06-30 | AU91: =IF(AR91=1,IF(AT91>AI91*'Input-Gen'!$M$31,"Check value","OK"),"") -> 
G92: ='LGIP future infrastructure'!A72 -> CHW-RI-002 | M92: ='LGIP future infrastructure'!A72 -> CHW-RI-002 | N92: ='LGIP future infrastructure'!B72 -> R112 | O92: ='LGIP future infrastructure'!E72 -> Road Intersection Project | S92: =IF('LGIP future infrastructure'!G72="2016 - 2021",DATE(2019,6,30),DATE(2024,6,30)) -> 2019-06-30 | T92: ='LGIP future infrastructure'!J72/1000 -> 215.4 | X92: 215.4 | AB92: 2019-06-30 | AC92: ='LGIP future infrastructure'!K72/1000 -> 544.79 | AD92: =SUM('LGIP future infrastructure'!L72:O72)/1000 -> 392.934 | AF92: 937.724 | AI92: 1153.124 | AM92: ='LGIP future infrastructure'!R72/1000 -> 0 | AQ92: 2019-06-30 | AU92: =IF(AR92=1,IF(AT92>AI92*'Input-Gen'!$M$31,"Check value","OK"),"") -> 
G93: ='LGIP future infrastructure'!A73 -> CHW-RI-003 | M93: ='LGIP future infrastructure'!A73 -> CHW-RI-003 | N93: ='LGIP future infrastructure'!B73 -> R112 | O93: ='LGIP future infrastructure'!E73 -> Road Intersection Project | S93: =IF('LGIP future infrastructure'!G73="2016 - 2021",DATE(2019,6,30),DATE(2024,6,30)) -> 2019-06-30 | T93: ='LGIP future infrastructure'!J73/1000 -> 280.8 | X93: 280.8 | AB93: 2019-06-30 | AC93: ='LGIP future infrastructure'!K73/1000 -> 544.79 | AD93: =SUM('LGIP future infrastructure'!L73:O73)/1000 -> 392.934 | AF93: 937.724 | AI93: 1218.524 | AM93: ='LGIP future infrastructure'!R73/1000 -> 0 | AQ93: 2019-06-30 | AU93: =IF(AR93=1,IF(AT93>AI93*'Input-Gen'!$M$31,"Check value","OK"),"") -> 
G94: ='LGIP future infrastructure'!A74 -> CLL-RC-004 | M94: ='LGIP future infrastructure'!A74 -> CLL-RC-004 | N94: ='LGIP future infrastructure'!B74 -> R195 | O94: ='LGIP future infrastructure'!E74 -> Road Corridor Project | S94: =IF('LGIP future infrastructure'!G74="2016 - 2021",DATE(2019,6,30),DATE(2024,6,30)) -> 2024-06-30 | T94: ='LGIP future infrastructure'!J74/1000 -> 433.18 | X94: 433.18 | AB94: 2024-06-30 | AC94: ='LGIP future infrastructure'!K74/1000 -> 902.228 | AD94: =SUM('LGIP future infrastructure'!L74:O74)/1000 -> 740.202 | AF94: 1642.43 | AI94: 2075.61 | AM94: ='LGIP future infrastructure'!R74/1000 -> 0 | AQ94: 2024-06-30 | AU94: =IF(AR94=1,IF(AT94>AI94*'Input-Gen'!$M$31,"Check value","OK"),"") -> 
G95: ='LGIP future infrastructure'!A75 -> CLL-RI-003 | M95: ='LGIP future infrastructure'!A75 -> CLL-RI-003 | N95: ='LGIP future infrastructure'!B75 -> R195 | O95: ='LGIP future infrastructure'!E75 -> Road Intersection Project | S95: =IF('LGIP future infrastructure'!G75="2016 - 2021",DATE(2019,6,30),DATE(2024,6,30)) -> 2024-06-30 | T95: ='LGIP future infrastructure'!J75/1000 -> 118.5 | X95: 118.5 | AB95: 2024-06-30 | AC95: ='LGIP future infrastructure'!K75/1000 -> 763.684 | AD95: =SUM('LGIP future infrastructure'!L75:O75)/1000 -> 626.537 | AF95: 1390.221 | AI95: =SUM(X95,AF95) -> 1508.721 | AM95: ='LGIP future infrastructure'!R75/1000 -> 0 | AQ95: 2024-06-30 | AU95: =IF(AR95=1,IF(AT95>AI95*'Input-Gen'!$M$31,"Check value","OK"),"") -> 
G96: ='LGIP future infrastructure'!A76 -> CLL-RI-004 | M96: ='LGIP future infrastructure'!A76 -> CLL-RI-004 | N96: ='LGIP future infrastructure'!B76 -> R195 | O96: ='LGIP future infrastructure'!E76 -> Road Intersection Project | S96: =IF('LGIP future infrastructure'!G76="2016 - 2021",DATE(2019,6,30),DATE(2024,6,30)) -> 2024-06-30 | T96: ='LGIP future infrastructure'!J76/1000 -> 655.35 | X96: 655.35 | AB96: 2024-06-30 | AC96: ='LGIP future infrastructure'!K76/1000 -> 637.296 | AD96: =SUM('LGIP future infrastructure'!L76:O76)/1000 -> 522.847 | AF96: 1160.143 | AI96: 1815.493 | AM96: ='LGIP future infrastructure'!R76/1000 -> 0 | AQ96: 2024-06-30 | AU96: =IF(AR96=1,IF(AT96>AI96*'Input-Gen'!$M$31,"Check value","OK"),"") -> 
G97: ='LGIP future infrastructure'!A77 -> CLR-RI-001 | M97: ='LGIP future infrastructure'!A77 -> CLR-RI-001 | N97: ='LGIP future infrastructure'!B77 -> R211 | O97: ='LGIP future infrastructure'!E77 -> Road Intersection Project | S97: =IF('LGIP future infrastructure'!G77="2016 - 2021",DATE(2019,6,30),DATE(2024,6,30)) -> 2024-06-30 | T97: ='LGIP future infrastructure'!J77/1000 -> 140.4 | X97: 140.4 | AB97: 2024-06-30 | AC97: ='LGIP future infrastructure'!K77/1000 -> 552.011 | AD97: =SUM('LGIP future infrastructure'!L77:O77)/1000 -> 452.878 | AF97: 1004.889 | AI97: 1145.289 | AM97: ='LGIP future infrastructure'!R77/1000 -> 0 | AQ97: 2024-06-30 | AU97: =IF(AR97=1,IF(AT97>AI97*'Input-Gen'!$M$31,"Check value","OK"),"") -> 
G98: ='LGIP future infrastructure'!A78 -> COO-LC-001 | M98: ='LGIP future infrastructure'!A78 -> COO-LC-001 | N98: ='LGIP future infrastructure'!B78 -> R213 | O98: ='LGIP future infrastructure'!E78 -> Open Level Crossing | S98: =IF('LGIP future infrastructure'!G78="2016 - 2021",DATE(2019,6,30),DATE(2024,6,30)) -> 2019-06-30 | T98: ='LGIP future infrastructure'!J78/1000 -> 35000 | X98: 35000 | AB98: 2019-06-30 | AC98: ='LGIP future infrastructure'!K78/1000 -> 183005.739 | AD98: =SUM('LGIP future infrastructure'!L78:O78)/1000 -> 131994.263 | AF98: 315000.002 | AI98: 350000.002 | AM98: ='LGIP future infrastructure'!R78/1000 -> 267750 | AQ98: 2019-06-30 | AU98: =IF(AR98=1,IF(AT98>AI98*'Input-Gen'!$M$31,"Check value","OK"),"") -> 
G99: ='LGIP future infrastructure'!A79 -> COO-RC-005 | M99: ='LGIP future infrastructure'!A79 -> COO-RC-005 | N99: ='LGIP future infrastructure'!B79 -> R213 | O99: ='LGIP future infrastructure'!E79 -> Road Corridor Project | S99: =IF('LGIP future infrastructure'!G79="2016 - 2021",DATE(2019,6,30),DATE(2024,6,30)) -> 2019-06-30 | T99: ='LGIP future infrastructure'!J79/1000 -> 874.069 | X99: 874.069 | AB99: 2019-06-30 | AC99: ='LGIP future infrastructure'!K79/1000 -> 526.588 | AD99: =SUM('LGIP future infrastructure'!L79:O79)/1000 -> 379.805 | AF99: 906.393 | AI99: 1780.462 | AM99: ='LGIP future infrastructure'!R79/1000 -> 0 | AQ99: 2019-06-30 | AU99: =IF(AR99=1,IF(AT99>AI99*'Input-Gen'!$M$31,"Check value","OK"),"") -> 
G100: ='LGIP future infrastructure'!A80 -> COO-RC-006 | M100: ='LGIP future infrastructure'!A80 -> COO-RC-006 | N100: ='LGIP future infrastructure'!B80 -> R213, R193 | O100: ='LGIP future infrastructure'!E80 -> Road Corridor Project | S100: =IF('LGIP future infrastructure'!G80="2016 - 2021",DATE(2019,6,30),DATE(2024,6,30)) -> 2019-06-30 | T100: ='LGIP future infrastructure'!J80/1000 -> 3831.623 | X100: 3831.623 | AB100: 2019-06-30 | AC100: ='LGIP future infrastructure'!K80/1000 -> 1529.013 | AD100: =SUM('LGIP future infrastructure'!L80:O80)/1000 -> 1102.812 | AF100: 2631.825 | AI100: 6463.448 | AM100: ='LGIP future infrastructure'!R80/1000 -> 0 | AQ100: 2019-06-30 | AU100: =IF(AR100=1,IF(AT100>AI100*'Input-Gen'!$M$31,"Check value","OK"),"") -> 
G101: ='LGIP future infrastructure'!A81 -> COO-RC-007 | M101: ='LGIP future infrastructure'!A81 -> COO-RC-007 | N101: ='LGIP future infrastructure'!B81 -> R193 | O101: ='LGIP future infrastructure'!E81 -> Road Corridor Project | S101: =IF('LGIP future infrastructure'!G81="2016 - 2021",DATE(2019,6,30),DATE(2024,6,30)) -> 2024-06-30 | T101: ='LGIP future infrastructure'!J81/1000 -> 70.444 | X101: 70.444 | AB101: 2024-06-30 | AC101: ='LGIP future infrastructure'!K81/1000 -> 862.535 | AD101: =SUM('LGIP future infrastructure'!L81:O81)/1000 -> 707.637 | AF101: 1570.172 | AI101: 1640.616 | AM101: ='LGIP future infrastructure'!R81/1000 -> 0 | AQ101: 2024-06-30 | AU101: =IF(AR101=1,IF(AT101>AI101*'Input-Gen'!$M$31,"Check value","OK"),"") -> 
G102: ='LGIP future infrastructure'!A82 -> COO-RC-008 | M102: ='LGIP future infrastructure'!A82 -> COO-RC-008 | N102: ='LGIP future infrastructure'!B82 -> R213 | O102: ='LGIP future infrastructure'!E82 -> Road Corridor Project | S102: =IF('LGIP future infrastructure'!G82="2016 - 2021",DATE(2019,6,30),DATE(2024,6,30)) -> 2019-06-30 | T102: ='LGIP future infrastructure'!J82/1000 -> 780.416 | X102: 780.416 | AB102: 2019-06-30 | AC102: ='LGIP future infrastructure'!K82/1000 -> 304.749 | AD102: =SUM('LGIP future infrastructure'!L82:O82)/1000 -> 219.802 | AF102: 524.551 | AI102: 1304.967 | AM102: ='LGIP future infrastructure'!R82/1000 -> 0 | AQ102: 2019-06-30 | AU102: =IF(AR102=1,IF(AT102>AI102*'Input-Gen'!$M$31,"Check value","OK"),"") -> 
G103: ='LGIP future infrastructure'!A83 -> COO-RI-001 | M103: ='LGIP future infrastructure'!A83 -> COO-RI-001 | N103: ='LGIP future infrastructure'!B83 -> R193 | O103: ='LGIP future infrastructure'!E83 -> Road Intersection Project | S103: =IF('LGIP future infrastructure'!G83="2016 - 2021",DATE(2019,6,30),DATE(2024,6,30)) -> 2019-06-30 | T103: ='LGIP future infrastructure'!J83/1000 -> 133.5 | X103: 133.5 | AB103: 2019-06-30 | AC103: ='LGIP future infrastructure'!K83/1000 -> 544.79 | AD103: =SUM('LGIP future infrastructure'!L83:O83)/1000 -> 392.934 | AF103: 937.724 | AI103: 1071.224 | AM103: ='LGIP future infrastructure'!R83/1000 -> 0 | AQ103: 2019-06-30 | AU103: =IF(AR103=1,IF(AT103>AI103*'Input-Gen'!$M$31,"Check value","OK"),"") -> 
G104: ='LGIP future infrastructure'!A84 -> COO-RI-002 | M104: ='LGIP future infrastructure'!A84 -> COO-RI-002 | N104: ='LGIP future infrastructure'!B84 -> R213 | O104: ='LGIP future infrastructure'!E84 -> Road Intersection Project | S104: =IF('LGIP future infrastructure'!G84="2016 - 2021",DATE(2019,6,30),DATE(2024,6,30)) -> 2019-06-30 | T104: ='LGIP future infrastructure'!J84/1000 -> 489 | X104: 489 | AB104: 2019-06-30 | AC104: ='LGIP future infrastructure'!K84/1000 -> 741.918 | AD104: =SUM('LGIP future infrastructure'!L84:O84)/1000 -> 535.114 | AF104: 1277.032 | AI104: 1766.032 | AM104: ='LGIP future infrastructure'!R84/1000 -> 0 | AQ104: 2019-06-30 | AU104: =IF(AR104=1,IF(AT104>AI104*'Input-Gen'!$M$31,"Check value","OK"),"") -> 
G105: ='LGIP future infrastructure'!A85 -> COO-RI-003 | M105: ='LGIP future infrastructure'!A85 -> COO-RI-003 | N105: ='LGIP future infrastructure'!B85 -> R214 | O105: ='LGIP future infrastructure'!E85 -> Road Intersection Project | S105: =IF('LGIP future infrastructure'!G85="2016 - 2021",DATE(2019,6,30),DATE(2024,6,30)) -> 2019-06-30 | T105: ='LGIP future infrastructure'!J85/1000 -> 341.4 | X105: 341.4 | AB105: 2019-06-30 | AC105: ='LGIP future infrastructure'!K85/1000 -> 544.79 | AD105: =SUM('LGIP future infrastructure'!L85:O85)/1000 -> 392.934 | AF105: 937.724 | AI105: 1279.124 | AM105: ='LGIP future infrastructure'!R85/1000 -> 0 | AQ105: 2019-06-30 | AU105: =IF(AR105=1,IF(AT105>AI105*'Input-Gen'!$M$31,"Check value","OK"),"") -> 
G106: ='LGIP future infrastructure'!A86 -> COO-RI-004 | M106: ='LGIP future infrastructure'!A86 -> COO-RI-004 | N106: ='LGIP future infrastructure'!B86 -> R214 | O106: ='LGIP future infrastructure'!E86 -> Road Intersection Project | S106: =IF('LGIP future infrastructure'!G86="2016 - 2021",DATE(2019,6,30),DATE(2024,6,30)) -> 2024-06-30 | T106: ='LGIP future infrastructure'!J86/1000 -> 488.1 | X106: 488.1 | AB106: 2024-06-30 | AC106: ='LGIP future infrastructure'!K86/1000 -> 592.269 | AD106: =SUM('LGIP future infrastructure'!L86:O86)/1000 -> 485.907 | AF106: 1078.176 | AI106: 1566.276 | AM106: ='LGIP future infrastructure'!R86/1000 -> 0 | AQ106: 2024-06-30 | AU106: =IF(AR106=1,IF(AT106>AI106*'Input-Gen'!$M$31,"Check value","OK"),"") -> 
G107: ='LGIP future infrastructure'!A87 -> COO-RI-005 | M107: ='LGIP future infrastructure'!A87 -> COO-RI-005 | N107: ='LGIP future infrastructure'!B87 -> R213 | O107: ='LGIP future infrastructure'!E87 -> Road Intersection Project | S107: =IF('LGIP future infrastructure'!G87="2016 - 2021",DATE(2019,6,30),DATE(2024,6,30)) -> 2019-06-30 | T107: ='LGIP future infrastructure'!J87/1000 -> 1016.7 | X107: 1016.7 | AB107: 2019-06-30 | AC107: ='LGIP future infrastructure'!K87/1000 -> 723.75 | AD107: =SUM('LGIP future infrastructure'!L87:O87)/1000 -> 522.01 | AF107: 1245.76 | AI107: 2262.46 | AM107: ='LGIP future infrastructure'!R87/1000 -> 0 | AQ107: 2019-06-30 | AU107: =IF(AR107=1,IF(AT107>AI107*'Input-Gen'!$M$31,"Check value","OK"),"") -> 
G108: ='LGIP future infrastructure'!A88 -> COP-LC-001 | M108: ='LGIP future infrastructure'!A88 -> COP-LC-001 | N108: ='LGIP future infrastructure'!B88 -> R273 | O108: ='LGIP future infrastructure'!E88 -> Open Level Crossing | S108: =IF('LGIP future infrastructure'!G88="2016 - 2021",DATE(2019,6,30),DATE(2024,6,30)) -> 2019-06-30 | T108: ='LGIP future infrastructure'!J88/1000 -> 23000 | X108: 23000 | AB108: 2019-06-30 | AC108: ='LGIP future infrastructure'!K88/1000 -> 120260.914 | AD108: =SUM('LGIP future infrastructure'!L88:O88)/1000 -> 86739.086 | AF108: 207000 | AI108: 230000 | AM108: ='LGIP future infrastructure'!R88/1000 -> 175950 | AQ108: 2019-06-30 | AU108: =IF(AR108=1,IF(AT108>AI108*'Input-Gen'!$M$31,"Check value","OK"),"") -> 
G109: ='LGIP future infrastructure'!A89 -> CVE-RC-002 | M109: ='LGIP future infrastructure'!A89 -> CVE-RC-002 | N109: ='LGIP future infrastructure'!B89 -> R313 | O109: ='LGIP future infrastructure'!E89 -> Road Corridor Project | S109: =IF('LGIP future infrastructure'!G89="2016 - 2021",DATE(2019,6,30),DATE(2024,6,30)) -> 2024-06-30 | T109: ='LGIP future infrastructure'!J89/1000 -> 421.72 | X109: 421.72 | AB109: 2024-06-30 | AC109: ='LGIP future infrastructure'!K89/1000 -> 943.572 | AD109: =SUM('LGIP future infrastructure'!L89:O89)/1000 -> 491.048 | AF109: 1434.62 | AI109: 1856.34 | AM109: ='LGIP future infrastructure'!R89/1000 -> 0 | AQ109: 2024-06-30 | AU109: =IF(AR109=1,IF(AT109>AI109*'Input-Gen'!$M$31,"Check value","OK"),"") -> 
G110: ='LGIP future infrastructure'!A90 -> CVE-RC-007 | M110: ='LGIP future infrastructure'!A90 -> CVE-RC-007 | N110: ='LGIP future infrastructure'!B90 -> R313 | O110: ='LGIP future infrastructure'!E90 -> Road Corridor Project | S110: =IF('LGIP future infrastructure'!G90="2016 - 2021",DATE(2019,6,30),DATE(2024,6,30)) -> 2024-06-30 | T110: ='LGIP future infrastructure'!J90/1000 -> 1060.594 | X110: 1060.594 | AB110: 2024-06-30 | AC110: ='LGIP future infrastructure'!K90/1000 -> 786.109 | AD110: =SUM('LGIP future infrastructure'!L90:O90)/1000 -> 409.103 | AF110: 1195.212 | AI110: 2255.806 | AM110: ='LGIP future infrastructure'!R90/1000 -> 0 | AQ110: 2024-06-30 | AU110: =IF(AR110=1,IF(AT110>AI110*'Input-Gen'!$M$31,"Check value","OK"),"") -> 
G111: ='LGIP future infrastructure'!A91 -> CVE-RC-010 | M111: ='LGIP future infrastructure'!A91 -> CVE-RC-010 | N111: ='LGIP future infrastructure'!B91 -> R333 | O111: ='LGIP future infrastructure'!E91 -> Road Corridor Project | S111: =IF('LGIP future infrastructure'!G91="2016 - 2021",DATE(2019,6,30),DATE(2024,6,30)) -> 2024-06-30 | T111: ='LGIP future infrastructure'!J91/1000 -> 400.03 | X111: 400.03 | AB111: 2024-06-30 | AC111: ='LGIP future infrastructure'!K91/1000 -> 992.467 | AD111: =SUM('LGIP future infrastructure'!L91:O91)/1000 -> 814.234 | AF111: 1806.701 | AI111: 2206.731 | AM111: ='LGIP future infrastructure'!R91/1000 -> 0 | AQ111: 2024-06-30 | AU111: =IF(AR111=1,IF(AT111>AI111*'Input-Gen'!$M$31,"Check value","OK"),"") -> 
G112: ='LGIP future infrastructure'!A92 -> CVE-RC-011 | M112: ='LGIP future infrastructure'!A92 -> CVE-RC-011 | N112: ='LGIP future infrastructure'!B92 -> R333 | O112: ='LGIP future infrastructure'!E92 -> Road Corridor Project | S112: =IF('LGIP future infrastructure'!G92="2016 - 2021",DATE(2019,6,30),DATE(2024,6,30)) -> 2024-06-30 | T112: ='LGIP future infrastructure'!J92/1000 -> 612.54 | X112: 612.54 | AB112: 2024-06-30 | AC112: ='LGIP future infrastructure'!K92/1000 -> 984.385 | AD112: =SUM('LGIP future infrastructure'!L92:O92)/1000 -> 807.603 | AF112: 1791.988 | AI112: 2404.528 | AM112: ='LGIP future infrastructure'!R92/1000 -> 0 | AQ112: 2024-06-30 | AU112: =IF(AR112=1,IF(AT112>AI112*'Input-Gen'!$M$31,"Check value","OK"),"") -> 
G113: ='LGIP future infrastructure'!A93 -> CVE-RI-001 | M113: ='LGIP future infrastructure'!A93 -> CVE-RI-001 | N113: ='LGIP future infrastructure'!B93 -> R333 | O113: ='LGIP future infrastructure'!E93 -> Road Intersection Project | S113: =IF('LGIP future infrastructure'!G93="2016 - 2021",DATE(2019,6,30),DATE(2024,6,30)) -> 2024-06-30 | T113: ='LGIP future infrastructure'!J93/1000 -> 167.4 | X113: 167.4 | AB113: 2024-06-30 | AC113: ='LGIP future infrastructure'!K93/1000 -> 415.305 | AD113: =SUM('LGIP future infrastructure'!L93:O93)/1000 -> 340.722 | AF113: 756.027 | AI113: 923.427 | AM113: ='LGIP future infrastructure'!R93/1000 -> 0 | AQ113: 2024-06-30 | AU113: =IF(AR113=1,IF(AT113>AI113*'Input-Gen'!$M$31,"Check value","OK"),"") -> 
G114: ='LGIP future infrastructure'!A94 -> DAR-RB-002 | M114: ='LGIP future infrastructure'!A94 -> DAR-RB-002 | N114: ='LGIP future infrastructure'!B94 -> R270 | O114: ='LGIP future infrastructure'!E94 -> Road Bridge | S114: =IF('LGIP future infrastructure'!G94="2016 - 2021",DATE(2019,6,30),DATE(2024,6,30)) -> 2024-06-30 | T114: ='LGIP future infrastructure'!J94/1000 -> 1.59 | X114: 1.59 | AB114: 2024-06-30 | AC114: ='LGIP future infrastructure'!K94/1000 -> 3063.6 | AD114: =SUM('LGIP future infrastructure'!L94:O94)/1000 -> 1900.704 | AF114: 4964.304 | AI114: 4965.894 | AM114: ='LGIP future infrastructure'!R94/1000 -> 0 | AQ114: 2024-06-30 | AU114: =IF(AR114=1,IF(AT114>AI114*'Input-Gen'!$M$31,"Check value","OK"),"") -> 
G115: ='LGIP future infrastructure'!A95 -> DAR-RC-007 | M115: ='LGIP future infrastructure'!A95 -> DAR-RC-007 | N115: ='LGIP future infrastructure'!B95 -> R270 | O115: ='LGIP future infrastructure'!E95 -> Road Corridor Project | S115: =IF('LGIP future infrastructure'!G95="2016 - 2021",DATE(2019,6,30),DATE(2024,6,30)) -> 2024-06-30 | T115: ='LGIP future infrastructure'!J95/1000 -> 1319.032 | X115: 1319.032 | AB115: 2024-06-30 | AC115: ='LGIP future infrastructure'!K95/1000 -> 1092.925 | AD115: =SUM('LGIP future infrastructure'!L95:O95)/1000 -> 896.651 | AF115: 1989.576 | AI115: 3308.608 | AM115: ='LGIP future infrastructure'!R95/1000 -> 0 | AQ115: 2024-06-30 | AU115: =IF(AR115=1,IF(AT115>AI115*'Input-Gen'!$M$31,"Check value","OK"),"") -> 
G116: ='LGIP future infrastructure'!A96 -> DAR-RC-008 | M116: ='LGIP future infrastructure'!A96 -> DAR-RC-008 | N116: ='LGIP future infrastructure'!B96 -> R270 | O116: ='LGIP future infrastructure'!E96 -> Road Corridor Project | S116: =IF('LGIP future infrastructure'!G96="2016 - 2021",DATE(2019,6,30),DATE(2024,6,30)) -> 2024-06-30 | T116: ='LGIP future infrastructure'!J96/1000 -> 362.323 | X116: 362.323 | AB116: 2024-06-30 | AC116: ='LGIP future infrastructure'!K96/1000 -> 605.21 | AD116: =SUM('LGIP future infrastructure'!L96:O96)/1000 -> 496.523 | AF116: 1101.733 | AI116: 1464.056 | AM116: ='LGIP future infrastructure'!R96/1000 -> 0 | AQ116: 2024-06-30 | AU116: =IF(AR116=1,IF(AT116>AI116*'Input-Gen'!$M$31,"Check value","OK"),"") -> 
G117: ='LGIP future infrastructure'!A97 -> DAR-RC-009 | M117: ='LGIP future infrastructure'!A97 -> DAR-RC-009 | N117: ='LGIP future infrastructure'!B97 -> R270 | O117: ='LGIP future infrastructure'!E97 -> Road Corridor Project | S117: =IF('LGIP future infrastructure'!G97="2016 - 2021",DATE(2019,6,30),DATE(2024,6,30)) -> 2024-06-30 | T117: ='LGIP future infrastructure'!J97/1000 -> 570.719 | X117: 570.719 | AB117: 2024-06-30 | AC117: ='LGIP future infrastructure'!K97/1000 -> 1452.496 | AD117: =SUM('LGIP future infrastructure'!L97:O97)/1000 -> 1191.65 | AF117: 2644.146 | AI117: 3214.865 | AM117: ='LGIP future infrastructure'!R97/1000 -> 0 | AQ117: 2024-06-30 | AU117: =IF(AR117=1,IF(AT117>AI117*'Input-Gen'!$M$31,"Check value","OK"),"") -> 
G118: ='LGIP future infrastructure'!A98 -> DAR-RC-010 | M118: ='LGIP future infrastructure'!A98 -> DAR-RC-010 | N118: ='LGIP future infrastructure'!B98 -> R270 | O118: ='LGIP future infrastructure'!E98 -> Road Corridor Project | S118: =IF('LGIP future infrastructure'!G98="2016 - 2021",DATE(2019,6,30),DATE(2024,6,30)) -> 2024-06-30 | T118: ='LGIP future infrastructure'!J98/1000 -> 311.789 | X118: 311.789 | AB118: 2024-06-30 | AC118: ='LGIP future infrastructure'!K98/1000 -> 1259.283 | AD118: =SUM('LGIP future infrastructure'!L98:O98)/1000 -> 655.35 | AF118: 1914.633 | AI118: 2226.422 | AM118: ='LGIP future infrastructure'!R98/1000 -> 0 | AQ118: 2024-06-30 | AU118: =IF(AR118=1,IF(AT118>AI118*'Input-Gen'!$M$31,"Check value","OK"),"") -> 
G119: ='LGIP future infrastructure'!A99 -> DAR-RI-003 | M119: ='LGIP future infrastructure'!A99 -> DAR-RI-003 | N119: ='LGIP future infrastructure'!B99 -> R270 | O119: ='LGIP future infrastructure'!E99 -> Road Intersection Project | S119: =IF('LGIP future infrastructure'!G99="2016 - 2021",DATE(2019,6,30),DATE(2024,6,30)) -> 2024-06-30 | T119: ='LGIP future infrastructure'!J99/1000 -> 45.9 | X119: 45.9 | AB119: 2024-06-30 | AC119: ='LGIP future infrastructure'!K99/1000 -> 466.452 | AD119: =SUM('LGIP future infrastructure'!L99:O99)/1000 -> 382.684 | AF119: 849.136 | AI119: 895.036 | AM119: ='LGIP future infrastructure'!R99/1000 -> 0 | AQ119: 2024-06-30 | AU119: =IF(AR119=1,IF(AT119>AI119*'Input-Gen'!$M$31,"Check value","OK"),"") -> 
G120: ='LGIP future infrastructure'!A100 -> DAR-RI-004 | M120: ='LGIP future infrastructure'!A100 -> DAR-RI-004 | N120: ='LGIP future infrastructure'!B100 -> R270 | O120: ='LGIP future infrastructure'!E100 -> Road Intersection Project | S120: =IF('LGIP future infrastructure'!G100="2016 - 2021",DATE(2019,6,30),DATE(2024,6,30)) -> 2019-06-30 | T120: ='LGIP future infrastructure'!J100/1000 -> 45.9 | X120: 45.9 | AB120: 2019-06-30 | AC120: ='LGIP future infrastructure'!K100/1000 -> 466.452 | AD120: =SUM('LGIP future infrastructure'!L100:O100)/1000 -> 336.432 | AF120: 802.884 | AI120: 848.784 | AM120: ='LGIP future infrastructure'!R100/1000 -> 0 | AQ120: 2019-06-30 | AU120: =IF(AR120=1,IF(AT120>AI120*'Input-Gen'!$M$31,"Check value","OK"),"") -> 
G121: ='LGIP future infrastructure'!A101 -> DAR-RI-005 | M121: ='LGIP future infrastructure'!A101 -> DAR-RI-005 | N121: ='LGIP future infrastructure'!B101 -> R270 | O121: ='LGIP future infrastructure'!E101 -> Road Intersection Project | S121: =IF('LGIP future infrastructure'!G101="2016 - 2021",DATE(2019,6,30),DATE(2024,6,30)) -> 2019-06-30 | T121: ='LGIP future infrastructure'!J101/1000 -> 272.7 | X121: 272.7 | AB121: 2019-06-30 | AC121: ='LGIP future infrastructure'!K101/1000 -> 711.951 | AD121: =SUM('LGIP future infrastructure'!L101:O101)/1000 -> 513.5 | AF121: 1225.451 | AI121: 1498.151 | AM121: ='LGIP future infrastructure'!R101/1000 -> 0 | AQ121: 2019-06-30 | AU121: =IF(AR121=1,IF(AT121>AI121*'Input-Gen'!$M$31,"Check value","OK"),"") -> 
G122: ='LGIP future infrastructure'!A102 -> DEA-RC-002 | M122: ='LGIP future infrastructure'!A102 -> DEA-RC-002 | N122: ='LGIP future infrastructure'!B102 -> R53 | O122: ='LGIP future infrastructure'!E102 -> Road Corridor Project | S122: =IF('LGIP future infrastructure'!G102="2016 - 2021",DATE(2019,6,30),DATE(2024,6,30)) -> 2019-06-30 | T122: ='LGIP future infrastructure'!J102/1000 -> 78.813 | X122: 78.813 | AB122: 2019-06-30 | AC122: ='LGIP future infrastructure'!K102/1000 -> 1995.887 | AD122: =SUM('LGIP future infrastructure'!L102:O102)/1000 -> 1439.548 | AF122: 3435.435 | AI122: 3514.248 | AM122: ='LGIP future infrastructure'!R102/1000 -> 0 | AQ122: 2019-06-30 | AU122: =IF(AR122=1,IF(AT122>AI122*'Input-Gen'!$M$31,"Check value","OK"),"") -> 
G123: ='LGIP future infrastructure'!A103 -> DEA-RC-003 | M123: ='LGIP future infrastructure'!A103 -> DEA-RC-003 | N123: ='LGIP future infrastructure'!B103 -> R73, R53 | O123: ='LGIP future infrastructure'!E103 -> Road Corridor Project | S123: =IF('LGIP future infrastructure'!G103="2016 - 2021",DATE(2019,6,30),DATE(2024,6,30)) -> 2019-06-30 | T123: ='LGIP future infrastructure'!J103/1000 -> 35.91 | X123: 35.91 | AB123: 2019-06-30 | AC123: ='LGIP future infrastructure'!K103/1000 -> 825.068 | AD123: =SUM('LGIP future infrastructure'!L103:O103)/1000 -> 595.086 | AF123: 1420.154 | AI123: 1456.064 | AM123: ='LGIP future infrastructure'!R103/1000 -> 0 | AQ123: 2019-06-30 | AU123: =IF(AR123=1,IF(AT123>AI123*'Input-Gen'!$M$31,"Check value","OK"),"") -> 
G124: ='LGIP future infrastructure'!A104 -> DEA-RI-001 | M124: ='LGIP future infrastructure'!A104 -> DEA-RI-001 | N124: ='LGIP future infrastructure'!B104 -> R54 | O124: ='LGIP future infrastructure'!E104 -> Road Intersection Project | S124: =IF('LGIP future infrastructure'!G104="2016 - 2021",DATE(2019,6,30),DATE(2024,6,30)) -> 2019-06-30 | T124: ='LGIP future infrastructure'!J104/1000 -> 20.85 | X124: 20.85 | AB124: 2019-06-30 | AC124: ='LGIP future infrastructure'!K104/1000 -> 552.011 | AD124: =SUM('LGIP future infrastructure'!L104:O104)/1000 -> 398.142 | AF124: 950.153 | AI124: 971.003 | AM124: ='LGIP future infrastructure'!R104/1000 -> 0 | AQ124: 2019-06-30 | AU124: =IF(AR124=1,IF(AT124>AI124*'Input-Gen'!$M$31,"Check value","OK"),"") -> 
G125: ='LGIP future infrastructure'!A105 -> DUR-RC-002 | M125: ='LGIP future infrastructure'!A105 -> DUR-RC-002 | N125: ='LGIP future infrastructure'!B105 -> R291 | O125: ='LGIP future infrastructure'!E105 -> Road Corridor Project | S125: =IF('LGIP future infrastructure'!G105="2016 - 2021",DATE(2019,6,30),DATE(2024,6,30)) -> 2024-06-30 | T125: ='LGIP future infrastructure'!J105/1000 -> 1.026 | X125: 1.026 | AB125: 2024-06-30 | AC125: ='LGIP future infrastructure'!K105/1000 -> 812.535 | AD125: =SUM('LGIP future infrastructure'!L105:O105)/1000 -> 666.616 | AF125: 1479.151 | AI125: 1480.177 | AM125: ='LGIP future infrastructure'!R105/1000 -> 0 | AQ125: 2024-06-30 | AU125: =IF(AR125=1,IF(AT125>AI125*'Input-Gen'!$M$31,"Check value","OK"),"") -> 
G126: ='LGIP future infrastructure'!A106 -> DUR-RI-001 | M126: ='LGIP future infrastructure'!A106 -> DUR-RI-001 | N126: ='LGIP future infrastructure'!B106 -> R291 | O126: ='LGIP future infrastructure'!E106 -> Road Intersection Project | S126: =IF('LGIP future infrastructure'!G106="2016 - 2021",DATE(2019,6,30),DATE(2024,6,30)) -> 2024-06-30 | T126: ='LGIP future infrastructure'!J106/1000 -> 0.3 | X126: 0.3 | AB126: 2024-06-30 | AC126: ='LGIP future infrastructure'!K106/1000 -> 592.269 | AD126: =SUM('LGIP future infrastructure'!L106:O106)/1000 -> 485.907 | AF126: 1078.176 | AI126: 1078.476 | AM126: ='LGIP future infrastructure'!R106/1000 -> 0 | AQ126: 2024-06-30 | AU126: =IF(AR126=1,IF(AT126>AI126*'Input-Gen'!$M$31,"Check value","OK"),"") -> 
G127: ='LGIP future infrastructure'!A107 -> EAB-RC-001 | M127: ='LGIP future infrastructure'!A107 -> EAB-RC-001 | N127: ='LGIP future infrastructure'!B107 -> R193 | O127: ='LGIP future infrastructure'!E107 -> Road Corridor Project | S127: =IF('LGIP future infrastructure'!G107="2016 - 2021",DATE(2019,6,30),DATE(2024,6,30)) -> 2019-06-30 | T127: ='LGIP future infrastructure'!J107/1000 -> 6007.481 | X127: 6007.481 | AB127: 2019-06-30 | AC127: ='LGIP future infrastructure'!K107/1000 -> 1048.05 | AD127: =SUM('LGIP future infrastructure'!L107:O107)/1000 -> 755.914 | AF127: 1803.964 | AI127: =SUM(X127,AF127) -> 7811.445 | AM127: ='LGIP future infrastructure'!R107/1000 -> 0 | AQ127: 2019-06-30 | AU127: =IF(AR127=1,IF(AT127>AI127*'Input-Gen'!$M$31,"Check value","OK"),"") -> 
G128: ='LGIP future infrastructure'!A108 -> EAB-RC-004 | M128: ='LGIP future infrastructure'!A108 -> EAB-RC-004 | N128: ='LGIP future infrastructure'!B108 -> R193 | O128: ='LGIP future infrastructure'!E108 -> Road Corridor Project | S128: =IF('LGIP future infrastructure'!G108="2016 - 2021",DATE(2019,6,30),DATE(2024,6,30)) -> 2019-06-30 | T128: ='LGIP future infrastructure'!J108/1000 -> 3806.002 | X128: 3806.002 | AB128: 2019-06-30 | AC128: ='LGIP future infrastructure'!K108/1000 -> 742.096 | AD128: =SUM('LGIP future infrastructure'!L108:O108)/1000 -> 535.242 | AF128: 1277.338 | AI128: =SUM(X128,AF128) -> 5083.34 | AM128: ='LGIP future infrastructure'!R108/1000 -> 0 | AQ128: 2019-06-30 | AU128: =IF(AR128=1,IF(AT128>AI128*'Input-Gen'!$M$31,"Check value","OK"),"") -> 
G129: ='LGIP future infrastructure'!A109 -> EAB-RC-005 | M129: ='LGIP future infrastructure'!A109 -> EAB-RC-005 | N129: ='LGIP future infrastructure'!B109 -> R193 | O129: ='LGIP future infrastructure'!E109 -> Road Corridor Project | S129: =IF('LGIP future infrastructure'!G109="2016 - 2021",DATE(2019,6,30),DATE(2024,6,30)) -> 2019-06-30 | T129: ='LGIP future infrastructure'!J109/1000 -> 2765.614 | X129: 2765.614 | AB129: 2019-06-30 | AC129: ='LGIP future infrastructure'!K109/1000 -> 775.244 | AD129: =SUM('LGIP future infrastructure'!L109:O109)/1000 -> 559.15 | AF129: 1334.394 | AI129: 4100.008 | AM129: ='LGIP future infrastructure'!R109/1000 -> 0 | AQ129: 2019-06-30 | AU129: =IF(AR129=1,IF(AT129>AI129*'Input-Gen'!$M$31,"Check value","OK"),"") -> 
G130: ='LGIP future infrastructure'!A110 -> EAB-RC-006 | M130: ='LGIP future infrastructure'!A110 -> EAB-RC-006 | N130: ='LGIP future infrastructure'!B110 -> R193, R213 | O130: ='LGIP future infrastructure'!E110 -> Road Corridor Project | S130: =IF('LGIP future infrastructure'!G110="2016 - 2021",DATE(2019,6,30),DATE(2024,6,30)) -> 2024-06-30 | T130: ='LGIP future infrastructure'!J110/1000 -> 7061.112 | X130: 7061.112 | AB130: 2024-06-30 | AC130: ='LGIP future infrastructure'!K110/1000 -> 2051.151 | AD130: =SUM('LGIP future infrastructure'!L110:O110)/1000 -> 1682.795 | AF130: 3733.946 | AI130: 10795.058 | AM130: ='LGIP future infrastructure'!R110/1000 -> 0 | AQ130: 2024-06-30 | AU130: =IF(AR130=1,IF(AT130>AI130*'Input-Gen'!$M$31,"Check value","OK"),"") -> 
G131: ='LGIP future infrastructure'!A111 -> EAB-RC-007 | M131: ='LGIP future infrastructure'!A111 -> EAB-RC-007 | N131: ='LGIP future infrastructure'!B111 -> R193 | O131: ='LGIP future infrastructure'!E111 -> Road Corridor Project | S131: =IF('LGIP future infrastructure'!G111="2016 - 2021",DATE(2019,6,30),DATE(2024,6,30)) -> 2024-06-30 | T131: ='LGIP future infrastructure'!J111/1000 -> 4500.826 | X131: 4500.826 | AB131: 2024-06-30 | AC131: ='LGIP future infrastructure'!K111/1000 -> 610.101 | AD131: =SUM('LGIP future infrastructure'!L111:O111)/1000 -> 500.535 | AF131: 1110.636 | AI131: 5611.462 | AM131: ='LGIP future infrastructure'!R111/1000 -> 0 | AQ131: 2024-06-30 | AU131: =IF(AR131=1,IF(AT131>AI131*'Input-Gen'!$M$31,"Check value","OK"),"") -> 
G132: ='LGIP future infrastructure'!A112 -> EAB-RC-009 | M132: ='LGIP future infrastructure'!A112 -> EAB-RC-009 | N132: ='LGIP future infrastructure'!B112 -> R193 | O132: ='LGIP future infrastructure'!E112 -> Road Corridor Project | S132: =IF('LGIP future infrastructure'!G112="2016 - 2021",DATE(2019,6,30),DATE(2024,6,30)) -> 2024-06-30 | T132: ='LGIP future infrastructure'!J112/1000 -> 503.408 | X132: 503.408 | AB132: 2024-06-30 | AC132: ='LGIP future infrastructure'!K112/1000 -> 278.881 | AD132: =SUM('LGIP future infrastructure'!L112:O112)/1000 -> 228.798 | AF132: 507.679 | AI132: 1011.087 | AM132: ='LGIP future infrastructure'!R112/1000 -> 0 | AQ132: 2024-06-30 | AU132: =IF(AR132=1,IF(AT132>AI132*'Input-Gen'!$M$31,"Check value","OK"),"") -> 
G133: ='LGIP future infrastructure'!A113 -> EAB-RC-010 | M133: ='LGIP future infrastructure'!A113 -> EAB-RC-010 | N133: ='LGIP future infrastructure'!B113 -> R193 | O133: ='LGIP future infrastructure'!E113 -> Road Corridor Project | S133: =IF('LGIP future infrastructure'!G113="2016 - 2021",DATE(2019,6,30),DATE(2024,6,30)) -> 2024-06-30 | T133: ='LGIP future infrastructure'!J113/1000 -> 0 | X133: 0 | AB133: 2024-06-30 | AC133: ='LGIP future infrastructure'!K113/1000 -> 75.908 | AD133: =SUM('LGIP future infrastructure'!L113:O113)/1000 -> 62.276 | AF133: 138.184 | AI133: 138.184 | AM133: ='LGIP future infrastructure'!R113/1000 -> 0 | AQ133: 2024-06-30 | AU133: =IF(AR133=1,IF(AT133>AI133*'Input-Gen'!$M$31,"Check value","OK"),"") -> 
G134: ='LGIP future infrastructure'!A114 -> EAB-RC-011 | M134: ='LGIP future infrastructure'!A114 -> EAB-RC-011 | N134: ='LGIP future infrastructure'!B114 -> R193 | O134: ='LGIP future infrastructure'!E114 -> Road Corridor Project | S134: =IF('LGIP future infrastructure'!G114="2016 - 2021",DATE(2019,6,30),DATE(2024,6,30)) -> 2024-06-30 | T134: ='LGIP future infrastructure'!J114/1000 -> 145.818 | X134: 145.818 | AB134: 2024-06-30 | AC134: ='LGIP future infrastructure'!K114/1000 -> 287.766 | AD134: =SUM('LGIP future infrastructure'!L114:O114)/1000 -> 236.087 | AF134: 523.853 | AI134: 669.671 | AM134: ='LGIP future infrastructure'!R114/1000 -> 0 | AQ134: 2024-06-30 | AU134: =IF(AR134=1,IF(AT134>AI134*'Input-Gen'!$M$31,"Check value","OK"),"") -> 
G135: ='LGIP future infrastructure'!A115 -> EAB-RI-001 | M135: ='LGIP future infrastructure'!A115 -> EAB-RI-001 | N135: ='LGIP future infrastructure'!B115 -> R193 | O135: ='LGIP future infrastructure'!E115 -> Road Intersection Project | S135: =IF('LGIP future infrastructure'!G115="2016 - 2021",DATE(2019,6,30),DATE(2024,6,30)) -> 2019-06-30 | T135: ='LGIP future infrastructure'!J115/1000 -> 241.8 | X135: 241.8 | AB135: 2019-06-30 | AC135: ='LGIP future infrastructure'!K115/1000 -> 552.749 | AD135: =SUM('LGIP future infrastructure'!L115:O115)/1000 -> 398.674 | AF135: 951.423 | AI135: 1193.223 | AM135: ='LGIP future infrastructure'!R115/1000 -> 0 | AQ135: 2019-06-30 | AU135: =IF(AR135=1,IF(AT135>AI135*'Input-Gen'!$M$31,"Check value","OK"),"") -> 
G136: ='LGIP future infrastructure'!A116 -> EAB-RI-002 | M136: ='LGIP future infrastructure'!A116 -> EAB-RI-002 | N136: ='LGIP future infrastructure'!B116 -> R193 | O136: ='LGIP future infrastructure'!E116 -> Road Intersection Project | S136: =IF('LGIP future infrastructure'!G116="2016 - 2021",DATE(2019,6,30),DATE(2024,6,30)) -> 2019-06-30 | T136: ='LGIP future infrastructure'!J116/1000 -> 666.3 | X136: 666.3 | AB136: 2019-06-30 | AC136: ='LGIP future infrastructure'!K116/1000 -> 581.064 | AD136: =SUM('LGIP future infrastructure'!L116:O116)/1000 -> 419.097 | AF136: 1000.161 | AI136: 1666.461 | AM136: ='LGIP future infrastructure'!R116/1000 -> 0 | AQ136: 2019-06-30 | AU136: =IF(AR136=1,IF(AT136>AI136*'Input-Gen'!$M$31,"Check value","OK"),"") -> 
G137: ='LGIP future infrastructure'!A117 -> EAB-RI-003 | M137: ='LGIP future infrastructure'!A117 -> EAB-RI-003 | N137: ='LGIP future infrastructure'!B117 -> R193 | O137: ='LGIP future infrastructure'!E117 -> Road Intersection Project | S137: =IF('LGIP future infrastructure'!G117="2016 - 2021",DATE(2019,6,30),DATE(2024,6,30)) -> 2019-06-30 | T137: ='LGIP future infrastructure'!J117/1000 -> 333.15 | X137: 333.15 | AB137: 2019-06-30 | AC137: ='LGIP future infrastructure'!K117/1000 -> 554.17 | AD137: =SUM('LGIP future infrastructure'!L117:O117)/1000 -> 399.699 | AF137: 953.869 | AI137: 1287.019 | AM137: ='LGIP future infrastructure'!R117/1000 -> 0 | AQ137: 2019-06-30 | AU137: =IF(AR137=1,IF(AT137>AI137*'Input-Gen'!$M$31,"Check value","OK"),"") -> 
G138: ='LGIP future infrastructure'!A118 -> EAB-RI-004 | M138: ='LGIP future infrastructure'!A118 -> EAB-RI-004 | N138: ='LGIP future infrastructure'!B118 -> R193 | O138: ='LGIP future infrastructure'!E118 -> Road Intersection Project | S138: =IF('LGIP future infrastructure'!G118="2016 - 2021",DATE(2019,6,30),DATE(2024,6,30)) -> 2024-06-30 | T138: ='LGIP future infrastructure'!J118/1000 -> 915.45 | X138: 915.45 | AB138: 2024-06-30 | AC138: ='LGIP future infrastructure'!K118/1000 -> 629.348 | AD138: =SUM('LGIP future infrastructure'!L118:O118)/1000 -> 516.326 | AF138: 1145.674 | AI138: 2061.124 | AM138: ='LGIP future infrastructure'!R118/1000 -> 0 | AQ138: 2024-06-30 | AU138: =IF(AR138=1,IF(AT138>AI138*'Input-Gen'!$M$31,"Check value","OK"),"") -> 
G139: ='LGIP future infrastructure'!A119 -> FGR-RB-001 | M139: ='LGIP future infrastructure'!A119 -> FGR-RB-001 | N139: ='LGIP future infrastructure'!B119 -> R129 | O139: ='LGIP future infrastructure'!E119 -> Road Bridge | S139: =IF('LGIP future infrastructure'!G119="2016 - 2021",DATE(2019,6,30),DATE(2024,6,30)) -> 2024-06-30 | T139: ='LGIP future infrastructure'!J119/1000 -> 0.554 | X139: 0.554 | AB139: 2024-06-30 | AC139: ='LGIP future infrastructure'!K119/1000 -> 2515.095 | AD139: =SUM('LGIP future infrastructure'!L119:O119)/1000 -> 1560.403 | AF139: 4075.498 | AI139: 4076.052 | AM139: ='LGIP future infrastructure'!R119/1000 -> 0 | AQ139: 2024-06-30 | AU139: =IF(AR139=1,IF(AT139>AI139*'Input-Gen'!$M$31,"Check value","OK"),"") -> 
G140: ='LGIP future infrastructure'!A120 -> FGR-RC-002 | M140: ='LGIP future infrastructure'!A120 -> FGR-RC-002 | N140: ='LGIP future infrastructure'!B120 -> R129 | O140: ='LGIP future infrastructure'!E120 -> Road Corridor Project | S140: =IF('LGIP future infrastructure'!G120="2016 - 2021",DATE(2019,6,30),DATE(2024,6,30)) -> 2024-06-30 | T140: ='LGIP future infrastructure'!J120/1000 -> 1.132 | X140: 1.132 | AB140: 2024-06-30 | AC140: ='LGIP future infrastructure'!K120/1000 -> 394.784 | AD140: =SUM('LGIP future infrastructure'!L120:O120)/1000 -> 323.887 | AF140: 718.671 | AI140: 719.803 | AM140: ='LGIP future infrastructure'!R120/1000 -> 0 | AQ140: 2024-06-30 | AU140: =IF(AR140=1,IF(AT140>AI140*'Input-Gen'!$M$31,"Check value","OK"),"") -> 
G141: ='LGIP future infrastructure'!A121 -> FGR-RC-003 | M141: ='LGIP future infrastructure'!A121 -> FGR-RC-003 | N141: ='LGIP future infrastructure'!B121 -> R129 | O141: ='LGIP future infrastructure'!E121 -> Road Corridor Project | S141: =IF('LGIP future infrastructure'!G121="2016 - 2021",DATE(2019,6,30),DATE(2024,6,30)) -> 2024-06-30 | T141: ='LGIP future infrastructure'!J121/1000 -> 43.073 | X141: 43.073 | AB141: 2024-06-30 | AC141: ='LGIP future infrastructure'!K121/1000 -> 316.391 | AD141: =SUM('LGIP future infrastructure'!L121:O121)/1000 -> 259.572 | AF141: 575.963 | AI141: 619.036 | AM141: ='LGIP future infrastructure'!R121/1000 -> 0 | AQ141: 2024-06-30 | AU141: =IF(AR141=1,IF(AT141>AI141*'Input-Gen'!$M$31,"Check value","OK"),"") -> 
G142: ='LGIP future infrastructure'!A122 -> FLK-RI-001 | M142: ='LGIP future infrastructure'!A122 -> FLK-RI-001 | N142: ='LGIP future infrastructure'!B122 -> R330 | O142: ='LGIP future infrastructure'!E122 -> Road Intersection Project | S142: =IF('LGIP future infrastructure'!G122="2016 - 2021",DATE(2019,6,30),DATE(2024,6,30)) -> 2024-06-30 | T142: ='LGIP future infrastructure'!J122/1000 -> 135.9 | X142: 135.9 | AB142: 2024-06-30 | AC142: ='LGIP future infrastructure'!K122/1000 -> 817.184 | AD142: =SUM('LGIP future infrastructure'!L122:O122)/1000 -> 670.43 | AF142: 1487.614 | AI142: 1623.514 | AM142: ='LGIP future infrastructure'!R122/1000 -> 0 | AQ142: 2024-06-30 | AU142: =IF(AR142=1,IF(AT142>AI142*'Input-Gen'!$M$31,"Check value","OK"),"") -> 
G143: ='LGIP future infrastructure'!A123 -> FTZ-RB-002 | M143: ='LGIP future infrastructure'!A123 -> FTZ-RB-002 | N143: ='LGIP future infrastructure'!B123 -> R73 | O143: ='LGIP future infrastructure'!E123 -> Road Bridge | S143: =IF('LGIP future infrastructure'!G123="2016 - 2021",DATE(2019,6,30),DATE(2024,6,30)) -> 2019-06-30 | T143: ='LGIP future infrastructure'!J123/1000 -> 0.25 | X143: 0.25 | AB143: 2019-06-30 | AC143: ='LGIP future infrastructure'!K123/1000 -> 4043.784 | AD143: =SUM('LGIP future infrastructure'!L123:O123)/1000 -> 2107.851 | AF143: 6151.635 | AI143: 6151.885 | AM143: ='LGIP future infrastructure'!R123/1000 -> 0 | AQ143: 2019-06-30 | AU143: =IF(AR143=1,IF(AT143>AI143*'Input-Gen'!$M$31,"Check value","OK"),"") -> 
G144: ='LGIP future infrastructure'!A124 -> FTZ-RC-003 | M144: ='LGIP future infrastructure'!A124 -> FTZ-RC-003 | N144: ='LGIP future infrastructure'!B124 -> R73, R72 | O144: ='LGIP future infrastructure'!E124 -> Road Corridor Project | S144: =IF('LGIP future infrastructure'!G124="2016 - 2021",DATE(2019,6,30),DATE(2024,6,30)) -> 2019-06-30 | T144: ='LGIP future infrastructure'!J124/1000 -> 480.718 | X144: 480.718 | AB144: 2019-06-30 | AC144: ='LGIP future infrastructure'!K124/1000 -> 1949.61 | AD144: =SUM('LGIP future infrastructure'!L124:O124)/1000 -> 1406.171 | AF144: 3355.781 | AI144: 3836.499 | AM144: ='LGIP future infrastructure'!R124/1000 -> 0 | AQ144: 2019-06-30 | AU144: =IF(AR144=1,IF(AT144>AI144*'Input-Gen'!$M$31,"Check value","OK"),"") -> 
G145: ='LGIP future infrastructure'!A125 -> FTZ-RC-004 | M145: ='LGIP future infrastructure'!A125 -> FTZ-RC-004 | N145: ='LGIP future infrastructure'!B125 -> R72 | O145: ='LGIP future infrastructure'!E125 -> Road Corridor Project | S145: =IF('LGIP future infrastructure'!G125="2016 - 2021",DATE(2019,6,30),DATE(2024,6,30)) -> 2019-06-30 | T145: ='LGIP future infrastructure'!J125/1000 -> 1029.063 | X145: 1029.063 | AB145: 2019-06-30 | AC145: ='LGIP future infrastructure'!K125/1000 -> 486.515 | AD145: =SUM('LGIP future infrastructure'!L125:O125)/1000 -> 350.903 | AF145: 837.418 | AI145: 1866.481 | AM145: ='LGIP future infrastructure'!R125/1000 -> 0 | AQ145: 2019-06-30 | AU145: =IF(AR145=1,IF(AT145>AI145*'Input-Gen'!$M$31,"Check value","OK"),"") -> 
G146: ='LGIP future infrastructure'!A126 -> FTZ-RC-005 | M146: ='LGIP future infrastructure'!A126 -> FTZ-RC-005 | N146: ='LGIP future infrastructure'!B126 -> R73 | O146: ='LGIP future infrastructure'!E126 -> Road Corridor Project | S146: =IF('LGIP future infrastructure'!G126="2016 - 2021",DATE(2019,6,30),DATE(2024,6,30)) -> 2024-06-30 | T146: ='LGIP future infrastructure'!J126/1000 -> 232.722 | X146: 232.722 | AB146: 2024-06-30 | AC146: ='LGIP future infrastructure'!K126/1000 -> 1927.883 | AD146: =SUM('LGIP future infrastructure'!L126:O126)/1000 -> 1581.664 | AF146: 3509.547 | AI146: 3742.269 | AM146: ='LGIP future infrastructure'!R126/1000 -> 0 | AQ146: 2024-06-30 | AU146: =IF(AR146=1,IF(AT146>AI146*'Input-Gen'!$M$31,"Check value","OK"),"") -> 
G147: ='LGIP future infrastructure'!A127 -> FTZ-RC-006 | M147: ='LGIP future infrastructure'!A127 -> FTZ-RC-006 | N147: ='LGIP future infrastructure'!B127 -> R73 | O147: ='LGIP future infrastructure'!E127 -> Road Corridor Project | S147: =IF('LGIP future infrastructure'!G127="2016 - 2021",DATE(2019,6,30),DATE(2024,6,30)) -> 2019-06-30 | T147: ='LGIP future infrastructure'!J127/1000 -> 0 | X147: 0 | AB147: 2019-06-30 | AC147: ='LGIP future infrastructure'!K127/1000 -> 438.706 | AD147: =SUM('LGIP future infrastructure'!L127:O127)/1000 -> 316.42 | AF147: 755.126 | AI147: 755.126 | AM147: ='LGIP future infrastructure'!R127/1000 -> 0 | AQ147: 2019-06-30 | AU147: =IF(AR147=1,IF(AT147>AI147*'Input-Gen'!$M$31,"Check value","OK"),"") -> 
G148: ='LGIP future infrastructure'!A128 -> FTZ-RI-001 | M148: ='LGIP future infrastructure'!A128 -> FTZ-RI-001 | N148: ='LGIP future infrastructure'!B128 -> R73 | O148: ='LGIP future infrastructure'!E128 -> Road Intersection Project | S148: =IF('LGIP future infrastructure'!G128="2016 - 2021",DATE(2019,6,30),DATE(2024,6,30)) -> 2019-06-30 | T148: ='LGIP future infrastructure'!J128/1000 -> 0 | X148: 0 | AB148: 2019-06-30 | AC148: ='LGIP future infrastructure'!K128/1000 -> 672.616 | AD148: =SUM('LGIP future infrastructure'!L128:O128)/1000 -> 485.13 | AF148: 1157.746 | AI148: 1157.746 | AM148: ='LGIP future infrastructure'!R128/1000 -> 0 | AQ148: 2019-06-30 | AU148: =IF(AR148=1,IF(AT148>AI148*'Input-Gen'!$M$31,"Check value","OK"),"") -> 
G149: ='LGIP future infrastructure'!A129 -> FTZ-RI-002 | M149: ='LGIP future infrastructure'!A129 -> FTZ-RI-002 | N149: ='LGIP future infrastructure'!B129 -> R73 | O149: ='LGIP future infrastructure'!E129 -> Road Intersection Project | S149: =IF('LGIP future infrastructure'!G129="2016 - 2021",DATE(2019,6,30),DATE(2024,6,30)) -> 2019-06-30 | T149: ='LGIP future infrastructure'!J129/1000 -> 251.4 | X149: =SUM(T149:V149) -> 251.4 | AB149: 2019-06-30 | AC149: ='LGIP future infrastructure'!K129/1000 -> 592.269 | AD149: =SUM('LGIP future infrastructure'!L129:O129)/1000 -> 427.179 | AF149: 1019.448 | AI149: 1270.848 | AM149: ='LGIP future infrastructure'!R129/1000 -> 0 | AQ149: 2019-06-30 | AU149: =IF(AR149=1,IF(AT149>AI149*'Input-Gen'!$M$31,"Check value","OK"),"") -> 
G150: ='LGIP future infrastructure'!A130 -> FTZ-RI-003 | M150: ='LGIP future infrastructure'!A130 -> FTZ-RI-003 | N150: ='LGIP future infrastructure'!B130 -> R73 | O150: ='LGIP future infrastructure'!E130 -> Road Intersection Project | S150: =IF('LGIP future infrastructure'!G130="2016 - 2021",DATE(2019,6,30),DATE(2024,6,30)) -> 2024-06-30 | T150: ='LGIP future infrastructure'!J130/1000 -> 41.7 | X150: 41.7 | AB150: 2024-06-30 | AC150: ='LGIP future infrastructure'!K130/1000 -> 474.634 | AD150: =SUM('LGIP future infrastructure'!L130:O130)/1000 -> 389.397 | AF150: 864.031 | AI150: 905.731 | AM150: ='LGIP future infrastructure'!R130/1000 -> 0 | AQ150: 2024-06-30 | AU150: =IF(AR150=1,IF(AT150>AI150*'Input-Gen'!$M$31,"Check value","OK"),"") -> 
G151: ='LGIP future infrastructure'!A131 -> FVA-RI-001 | M151: ='LGIP future infrastructure'!A131 -> FVA-RI-001 | N151: ='LGIP future infrastructure'!B131 -> R173 | O151: ='LGIP future infrastructure'!E131 -> Road Intersection Project | S151: =IF('LGIP future infrastructure'!G131="2016 - 2021",DATE(2019,6,30),DATE(2024,6,30)) -> 2019-06-30 | T151: ='LGIP future infrastructure'!J131/1000 -> 2258.7 | X151: 2258.7 | AB151: =S151 -> 2019-06-30 | AC151: ='LGIP future infrastructure'!K131/1000 -> 708.017 | AD151: =SUM('LGIP future infrastructure'!L131:O131)/1000 -> 510.662 | AF151: =AC151+AD151 -> 1218.679 | AI151: 3477.379 | AM151: ='LGIP future infrastructure'!R131/1000 -> 0 | AQ151: =MAX(AB151,S151) -> 2019-06-30 | AU151: =IF(AR151=1,IF(AT151>AI151*'Input-Gen'!$M$31,"Check value","OK"),"") -> 
G152: ='LGIP future infrastructure'!A132 -> FVA-RI-002 | M152: ='LGIP future infrastructure'!A132 -> FVA-RI-002 | N152: ='LGIP future infrastructure'!B132 -> R173 | O152: ='LGIP future infrastructure'!E132 -> Road Intersection Project | S152: =IF('LGIP future infrastructure'!G132="2016 - 2021",DATE(2019,6,30),DATE(2024,6,30)) -> 2024-06-30 | T152: ='LGIP future infrastructure'!J132/1000 -> 820.2 | X152: 820.2 | AB152: 2024-06-30 | AC152: ='LGIP future infrastructure'!K132/1000 -> 554.17 | AD152: =SUM('LGIP future infrastructure'!L132:O132)/1000 -> 454.649 | AF152: 1008.819 | AI152: 1829.019 | AM152: ='LGIP future infrastructure'!R132/1000 -> 0 | AQ152: 2024-06-30 | AU152: =IF(AR152=1,IF(AT152>AI152*'Input-Gen'!$M$31,"Check value","OK"),"") -> 
G153: ='LGIP future infrastructure'!A133 -> GAP-RI-001 | M153: ='LGIP future infrastructure'!A133 -> GAP-RI-001 | N153: ='LGIP future infrastructure'!B133 -> R170 | O153: ='LGIP future infrastructure'!E133 -> Road Intersection Project | S153: =IF('LGIP future infrastructure'!G133="2016 - 2021",DATE(2019,6,30),DATE(2024,6,30)) -> 2019-06-30 | T153: ='LGIP future infrastructure'!J133/1000 -> 322.8 | X153: 322.8 | AB153: 2019-06-30 | AC153: ='LGIP future infrastructure'!K133/1000 -> 466.452 | AD153: =SUM('LGIP future infrastructure'!L133:O133)/1000 -> 336.432 | AF153: 802.884 | AI153: 1125.684 | AM153: ='LGIP future infrastructure'!R133/1000 -> 0 | AQ153: 2019-06-30 | AU153: =IF(AR153=1,IF(AT153>AI153*'Input-Gen'!$M$31,"Check value","OK"),"") -> 
G154: ='LGIP future infrastructure'!A134 -> GAP-RI-002 | M154: ='LGIP future infrastructure'!A134 -> GAP-RI-002 | N154: ='LGIP future infrastructure'!B134 -> R170 | O154: ='LGIP future infrastructure'!E134 -> Road Intersection Project | S154: =IF('LGIP future infrastructure'!G134="2016 - 2021",DATE(2019,6,30),DATE(2024,6,30)) -> 2024-06-30 | T154: ='LGIP future infrastructure'!J134/1000 -> 280.8 | X154: 280.8 | AB154: 2024-06-30 | AC154: ='LGIP future infrastructure'!K134/1000 -> 597.881 | AD154: =SUM('LGIP future infrastructure'!L134:O134)/1000 -> 490.511 | AF154: 1088.392 | AI154: 1369.192 | AM154: ='LGIP future infrastructure'!R134/1000 -> 0 | AQ154: 2024-06-30 | AU154: =IF(AR154=1,IF(AT154>AI154*'Input-Gen'!$M$31,"Check value","OK"),"") -> 
G155: ='LGIP future infrastructure'!A135 -> GEE-RC-002 | M155: ='LGIP future infrastructure'!A135 -> GEE-RC-002 | N155: ='LGIP future infrastructure'!B135 -> R93 | O155: ='LGIP future infrastructure'!E135 -> Road Corridor Project | S155: =IF('LGIP future infrastructure'!G135="2016 - 2021",DATE(2019,6,30),DATE(2024,6,30)) -> 2024-06-30 | T155: ='LGIP future infrastructure'!J135/1000 -> 2020.423 | X155: 2020.423 | AB155: 2024-06-30 | AC155: ='LGIP future infrastructure'!K135/1000 -> 1547.286 | AD155: =SUM('LGIP future infrastructure'!L135:O135)/1000 -> 1269.417 | AF155: 2816.703 | AI155: 4837.126 | AM155: ='LGIP future infrastructure'!R135/1000 -> 0 | AQ155: 2024-06-30 | AU155: =IF(AR155=1,IF(AT155>AI155*'Input-Gen'!$M$31,"Check value","OK"),"") -> 
G156: ='LGIP future infrastructure'!A136 -> GEE-RI-001 | M156: ='LGIP future infrastructure'!A136 -> GEE-RI-001 | N156: ='LGIP future infrastructure'!B136 -> R93 | O156: ='LGIP future infrastructure'!E136 -> Road Intersection Project | S156: =IF('LGIP future infrastructure'!G136="2016 - 2021",DATE(2019,6,30),DATE(2024,6,30)) -> 2019-06-30 | T156: ='LGIP future infrastructure'!J136/1000 -> 140.4 | X156: 140.4 | AB156: 2019-06-30 | AC156: ='LGIP future infrastructure'!K136/1000 -> 711.951 | AD156: =SUM('LGIP future infrastructure'!L136:O136)/1000 -> 513.5 | AF156: 1225.451 | AI156: 1365.851 | AM156: ='LGIP future infrastructure'!R136/1000 -> 0 | AQ156: 2019-06-30 | AU156: =IF(AR156=1,IF(AT156>AI156*'Input-Gen'!$M$31,"Check value","OK"),"") -> 
G157: ='LGIP future infrastructure'!A137 -> GEE-RI-002 | M157: ='LGIP future infrastructure'!A137 -> GEE-RI-002 | N157: ='LGIP future infrastructure'!B137 -> R93 | O157: ='LGIP future infrastructure'!E137 -> Road Intersection Project | S157: =IF('LGIP future infrastructure'!G137="2016 - 2021",DATE(2019,6,30),DATE(2024,6,30)) -> 2019-06-30 | T157: ='LGIP future infrastructure'!J137/1000 -> 377.1 | X157: 377.1 | AB157: 2019-06-30 | AC157: ='LGIP future infrastructure'!K137/1000 -> 597.881 | AD157: =SUM('LGIP future infrastructure'!L137:O137)/1000 -> 431.226 | AF157: 1029.107 | AI157: 1406.207 | AM157: ='LGIP future infrastructure'!R137/1000 -> 0 | AQ157: 2019-06-30 | AU157: =IF(AR157=1,IF(AT157>AI157*'Input-Gen'!$M$31,"Check value","OK"),"") -> 
G158: ='LGIP future infrastructure'!A138 -> GEE-RI-003 | M158: ='LGIP future infrastructure'!A138 -> GEE-RI-003 | N158: ='LGIP future infrastructure'!B138 -> R93 | O158: ='LGIP future infrastructure'!E138 -> Road Intersection Project | S158: =IF('LGIP future infrastructure'!G138="2016 - 2021",DATE(2019,6,30),DATE(2024,6,30)) -> 2019-06-30 | T158: ='LGIP future infrastructure'!J138/1000 -> 201.45 | X158: 201.45 | AB158: 2019-06-30 | AC158: ='LGIP future infrastructure'!K138/1000 -> 789.691 | AD158: =SUM('LGIP future infrastructure'!L138:O138)/1000 -> 569.571 | AF158: 1359.262 | AI158: 1560.712 | AM158: ='LGIP future infrastructure'!R138/1000 -> 0 | AQ158: 2019-06-30 | AU158: =IF(AR158=1,IF(AT158>AI158*'Input-Gen'!$M$31,"Check value","OK"),"") -> 
G159: ='LGIP future infrastructure'!A139 -> GNG-RI-001 | M159: ='LGIP future infrastructure'!A139 -> GNG-RI-001 | N159: ='LGIP future infrastructure'!B139 -> R152 | O159: ='LGIP future infrastructure'!E139 -> Road Intersection Project | S159: =IF('LGIP future infrastructure'!G139="2016 - 2021",DATE(2019,6,30),DATE(2024,6,30)) -> 2019-06-30 | T159: ='LGIP future infrastructure'!J139/1000 -> 423.6 | X159: 423.6 | AB159: 2019-06-30 | AC159: ='LGIP future infrastructure'!K139/1000 -> 476.691 | AD159: =SUM('LGIP future infrastructure'!L139:O139)/1000 -> 343.816 | AF159: 820.507 | AI159: 1244.107 | AM159: ='LGIP future infrastructure'!R139/1000 -> 0 | AQ159: 2019-06-30 | AU159: =IF(AR159=1,IF(AT159>AI159*'Input-Gen'!$M$31,"Check value","OK"),"") -> 
G160: ='LGIP future infrastructure'!A140 -> GNG-RI-002 | M160: ='LGIP future infrastructure'!A140 -> GNG-RI-002 | N160: ='LGIP future infrastructure'!B140 -> R152 | O160: ='LGIP future infrastructure'!E140 -> Road Intersection Project | S160: =IF('LGIP future infrastructure'!G140="2016 - 2021",DATE(2019,6,30),DATE(2024,6,30)) -> 2019-06-30 | T160: ='LGIP future infrastructure'!J140/1000 -> 211.8 | X160: 211.8 | AB160: 2019-06-30 | AC160: ='LGIP future infrastructure'!K140/1000 -> 612.889 | AD160: =SUM('LGIP future infrastructure'!L140:O140)/1000 -> 442.051 | AF160: 1054.94 | AI160: 1266.74 | AM160: ='LGIP future infrastructure'!R140/1000 -> 0 | AQ160: 2019-06-30 | AU160: =IF(AR160=1,IF(AT160>AI160*'Input-Gen'!$M$31,"Check value","OK"),"") -> 
G161: ='LGIP future infrastructure'!A141 -> GRA-RI-001 | M161: ='LGIP future infrastructure'!A141 -> GRA-RI-001 | N161: ='LGIP future infrastructure'!B141 -> R231 | O161: ='LGIP future infrastructure'!E141 -> Road Intersection Project | S161: =IF('LGIP future infrastructure'!G141="2016 - 2021",DATE(2019,6,30),DATE(2024,6,30)) -> 2024-06-30 | T161: ='LGIP future infrastructure'!J141/1000 -> 489 | X161: 489 | AB161: 2024-06-30 | AC161: ='LGIP future infrastructure'!K141/1000 -> 723.75 | AD161: =SUM('LGIP future infrastructure'!L141:O141)/1000 -> 593.776 | AF161: 1317.526 | AI161: 1806.526 | AM161: ='LGIP future infrastructure'!R141/1000 -> 0 | AQ161: 2024-06-30 | AU161: =IF(AR161=1,IF(AT161>AI161*'Input-Gen'!$M$31,"Check value","OK"),"") -> 
G162: ='LGIP future infrastructure'!A142 -> GRE-RI-001 | M162: ='LGIP future infrastructure'!A142 -> GRE-RI-001 | N162: ='LGIP future infrastructure'!B142 -> R213 | O162: ='LGIP future infrastructure'!E142 -> Road Intersection Project | S162: =IF('LGIP future infrastructure'!G142="2016 - 2021",DATE(2019,6,30),DATE(2024,6,30)) -> 2024-06-30 | T162: ='LGIP future infrastructure'!J142/1000 -> 241.8 | X162: 241.8 | AB162: 2024-06-30 | AC162: ='LGIP future infrastructure'!K142/1000 -> 466.765 | AD162: =SUM('LGIP future infrastructure'!L142:O142)/1000 -> 382.942 | AF162: 849.707 | AI162: 1091.507 | AM162: ='LGIP future infrastructure'!R142/1000 -> 0 | AQ162: 2024-06-30 | AU162: =IF(AR162=1,IF(AT162>AI162*'Input-Gen'!$M$31,"Check value","OK"),"") -> 
G163: ='LGIP future infrastructure'!A143 -> GRE-RI-002 | M163: ='LGIP future infrastructure'!A143 -> GRE-RI-002 | N163: ='LGIP future infrastructure'!B143 -> R213 | O163: ='LGIP future infrastructure'!E143 -> Road Intersection Project | S163: =IF('LGIP future infrastructure'!G143="2016 - 2021",DATE(2019,6,30),DATE(2024,6,30)) -> 2024-06-30 | T163: ='LGIP future infrastructure'!J143/1000 -> 241.8 | X163: 241.8 | AB163: 2024-06-30 | AC163: ='LGIP future infrastructure'!K143/1000 -> 597.881 | AD163: =SUM('LGIP future infrastructure'!L143:O143)/1000 -> 490.511 | AF163: 1088.392 | AI163: 1330.192 | AM163: ='LGIP future infrastructure'!R143/1000 -> 0 | AQ163: 2024-06-30 | AU163: =IF(AR163=1,IF(AT163>AI163*'Input-Gen'!$M$31,"Check value","OK"),"") -> 
G164: ='LGIP future infrastructure'!A144 -> GUM-RI-001 | M164: ='LGIP future infrastructure'!A144 -> GUM-RI-001 | N164: ='LGIP future infrastructure'!B144 -> R217 | O164: ='LGIP future infrastructure'!E144 -> Road Intersection Project | S164: =IF('LGIP future infrastructure'!G144="2016 - 2021",DATE(2019,6,30),DATE(2024,6,30)) -> 2024-06-30 | T164: ='LGIP future infrastructure'!J144/1000 -> 46.65 | X164: 46.65 | AB164: 2024-06-30 | AC164: ='LGIP future infrastructure'!K144/1000 -> 789.691 | AD164: =SUM('LGIP future infrastructure'!L144:O144)/1000 -> 647.875 | AF164: 1437.566 | AI164: 1484.216 | AM164: ='LGIP future infrastructure'!R144/1000 -> 0 | AQ164: 2024-06-30 | AU164: =IF(AR164=1,IF(AT164>AI164*'Input-Gen'!$M$31,"Check value","OK"),"") -> 
G165: ='LGIP future infrastructure'!A145 -> HAM-RC-004 | M165: ='LGIP future infrastructure'!A145 -> HAM-RC-004 | N165: ='LGIP future infrastructure'!B145 -> R153 | O165: ='LGIP future infrastructure'!E145 -> Road Corridor Project | S165: =IF('LGIP future infrastructure'!G145="2016 - 2021",DATE(2019,6,30),DATE(2024,6,30)) -> 2019-06-30 | T165: ='LGIP future infrastructure'!J145/1000 -> 596.416 | X165: 596.416 | AB165: 2019-06-30 | AC165: ='LGIP future infrastructure'!K145/1000 -> 381.419 | AD165: =SUM('LGIP future infrastructure'!L145:O145)/1000 -> 275.102 | AF165: 656.521 | AI165: 1252.937 | AM165: ='LGIP future infrastructure'!R145/1000 -> 0 | AQ165: 2019-06-30 | AU165: =IF(AR165=1,IF(AT165>AI165*'Input-Gen'!$M$31,"Check value","OK"),"") -> 
G166: ='LGIP future infrastructure'!A146 -> HAM-RC-005 | M166: ='LGIP future infrastructure'!A146 -> HAM-RC-005 | N166: ='LGIP future infrastructure'!B146 -> R154 | O166: ='LGIP future infrastructure'!E146 -> Road Corridor Project | S166: =IF('LGIP future infrastructure'!G146="2016 - 2021",DATE(2019,6,30),DATE(2024,6,30)) -> 2019-06-30 | T166: ='LGIP future infrastructure'!J146/1000 -> 58.868 | X166: 58.868 | AB166: 2019-06-30 | AC166: ='LGIP future infrastructure'!K146/1000 -> 306.589 | AD166: =SUM('LGIP future infrastructure'!L146:O146)/1000 -> 221.13 | AF166: 527.719 | AI166: 586.587 | AM166: ='LGIP future infrastructure'!R146/1000 -> 0 | AQ166: 2019-06-30 | AU166: =IF(AR166=1,IF(AT166>AI166*'Input-Gen'!$M$31,"Check value","OK"),"") -> 
G167: ='LGIP future infrastructure'!A147 -> HAM-RC-006 | M167: ='LGIP future infrastructure'!A147 -> HAM-RC-006 | N167: ='LGIP future infrastructure'!B147 -> R154 | O167: ='LGIP future infrastructure'!E147 -> Road Corridor Project | S167: =IF('LGIP future infrastructure'!G147="2016 - 2021",DATE(2019,6,30),DATE(2024,6,30)) -> 2019-06-30 | T167: ='LGIP future infrastructure'!J147/1000 -> 16.865 | X167: =SUM(T167:V167) -> 16.865 | AB167: 2019-06-30 | AC167: ='LGIP future infrastructure'!K147/1000 -> 292.133 | AD167: =SUM('LGIP future infrastructure'!L147:O147)/1000 -> 210.703 | AF167: 502.836 | AI167: =SUM(X167,AF167) -> 519.701 | AM167: ='LGIP future infrastructure'!R147/1000 -> 0 | AQ167: 2019-06-30 | AU167: =IF(AR167=1,IF(AT167>AI167*'Input-Gen'!$M$31,"Check value","OK"),"") -> 
G168: ='LGIP future infrastructure'!A148 -> HAM-RC-007 | M168: ='LGIP future infrastructure'!A148 -> HAM-RC-007 | N168: ='LGIP future infrastructure'!B148 -> R153, R154 | O168: ='LGIP future infrastructure'!E148 -> Road Corridor Project | S168: =IF('LGIP future infrastructure'!G148="2016 - 2021",DATE(2019,6,30),DATE(2024,6,30)) -> 2019-06-30 | T168: ='LGIP future infrastructure'!J148/1000 -> 3410.965 | X168: 3410.965 | AB168: 2019-06-30 | AC168: ='LGIP future infrastructure'!K148/1000 -> 1877.86 | AD168: =SUM('LGIP future infrastructure'!L148:O148)/1000 -> 1354.42 | AF168: 3232.28 | AI168: 6643.245 | AM168: ='LGIP future infrastructure'!R148/1000 -> 0 | AQ168: 2019-06-30 | AU168: =IF(AR168=1,IF(AT168>AI168*'Input-Gen'!$M$31,"Check value","OK"),"") -> 
G169: ='LGIP future infrastructure'!A149 -> HAM-RC-008 | M169: ='LGIP future infrastructure'!A149 -> HAM-RC-008 | N169: ='LGIP future infrastructure'!B149 -> R153 | O169: ='LGIP future infrastructure'!E149 -> Road Corridor Project | S169: =IF('LGIP future infrastructure'!G149="2016 - 2021",DATE(2019,6,30),DATE(2024,6,30)) -> 2019-06-30 | T169: ='LGIP future infrastructure'!J149/1000 -> 1832.287 | X169: 1832.287 | AB169: 2019-06-30 | AC169: ='LGIP future infrastructure'!K149/1000 -> 1616.134 | AD169: =SUM('LGIP future infrastructure'!L149:O149)/1000 -> 1165.649 | AF169: 2781.783 | AI169: 4614.07 | AM169: ='LGIP future infrastructure'!R149/1000 -> 0 | AQ169: 2019-06-30 | AU169: =IF(AR169=1,IF(AT169>AI169*'Input-Gen'!$M$31,"Check value","OK"),"") -> 
G170: ='LGIP future infrastructure'!A150 -> HAM-RC-009 | M170: ='LGIP future infrastructure'!A150 -> HAM-RC-009 | N170: ='LGIP future infrastructure'!B150 -> R154 | O170: ='LGIP future infrastructure'!E150 -> Road Corridor Project | S170: =IF('LGIP future infrastructure'!G150="2016 - 2021",DATE(2019,6,30),DATE(2024,6,30)) -> 2019-06-30 | T170: ='LGIP future infrastructure'!J150/1000 -> 584.63 | X170: 584.63 | AB170: 2019-06-30 | AC170: ='LGIP future infrastructure'!K150/1000 -> 395.64 | AD170: =SUM('LGIP future infrastructure'!L150:O150)/1000 -> 285.359 | AF170: 680.999 | AI170: 1265.629 | AM170: ='LGIP future infrastructure'!R150/1000 -> 0 | AQ170: 2019-06-30 | AU170: =IF(AR170=1,IF(AT170>AI170*'Input-Gen'!$M$31,"Check value","OK"),"") -> 
G171: ='LGIP future infrastructure'!A151 -> HAM-RC-010 | M171: ='LGIP future infrastructure'!A151 -> HAM-RC-010 | N171: ='LGIP future infrastructure'!B151 -> R154 | O171: ='LGIP future infrastructure'!E151 -> Road Corridor Project | S171: =IF('LGIP future infrastructure'!G151="2016 - 2021",DATE(2019,6,30),DATE(2024,6,30)) -> 2019-06-30 | T171: ='LGIP future infrastructure'!J151/1000 -> 2033.079 | X171: 2033.079 | AB171: 2019-06-30 | AC171: ='LGIP future infrastructure'!K151/1000 -> 1446.845 | AD171: =SUM('LGIP future infrastructure'!L151:O151)/1000 -> 1043.548 | AF171: 2490.393 | AI171: 4523.472 | AM171: ='LGIP future infrastructure'!R151/1000 -> 0 | AQ171: 2019-06-30 | AU171: =IF(AR171=1,IF(AT171>AI171*'Input-Gen'!$M$31,"Check value","OK"),"") -> 
G172: ='LGIP future infrastructure'!A152 -> HAM-RC-011 | M172: ='LGIP future infrastructure'!A152 -> HAM-RC-011 | N172: ='LGIP future infrastructure'!B152 -> R154 | O172: ='LGIP future infrastructure'!E152 -> Road Corridor Project | S172: =IF('LGIP future infrastructure'!G152="2016 - 2021",DATE(2019,6,30),DATE(2024,6,30)) -> 2019-06-30 | T172: ='LGIP future infrastructure'!J152/1000 -> 3933.968 | X172: 3933.968 | AB172: 2019-06-30 | AC172: ='LGIP future infrastructure'!K152/1000 -> 2482.2 | AD172: =SUM('LGIP future infrastructure'!L152:O152)/1000 -> 1790.306 | AF172: 4272.506 | AI172: 8206.474 | AM172: ='LGIP future infrastructure'!R152/1000 -> 0 | AQ172: 2019-06-30 | AU172: =IF(AR172=1,IF(AT172>AI172*'Input-Gen'!$M$31,"Check value","OK"),"") -> 
G173: ='LGIP future infrastructure'!A153 -> HAM-RI-001 | M173: ='LGIP future infrastructure'!A153 -> HAM-RI-001 | N173: ='LGIP future infrastructure'!B153 -> R153 | O173: ='LGIP future infrastructure'!E153 -> Road Intersection Project | S173: =IF('LGIP future infrastructure'!G153="2016 - 2021",DATE(2019,6,30),DATE(2024,6,30)) -> 2019-06-30 | T173: ='LGIP future infrastructure'!J153/1000 -> 267.15 | X173: 267.15 | AB173: 2019-06-30 | AC173: ='LGIP future infrastructure'!K153/1000 -> 460.653 | AD173: =SUM('LGIP future infrastructure'!L153:O153)/1000 -> 332.249 | AF173: 792.902 | AI173: 1060.052 | AM173: ='LGIP future infrastructure'!R153/1000 -> 0 | AQ173: 2019-06-30 | AU173: =IF(AR173=1,IF(AT173>AI173*'Input-Gen'!$M$31,"Check value","OK"),"") -> 
G174: ='LGIP future infrastructure'!A154 -> HAM-RI-002 | M174: ='LGIP future infrastructure'!A154 -> HAM-RI-002 | N174: ='LGIP future infrastructure'!B154 -> R154 | O174: ='LGIP future infrastructure'!E154 -> Road Intersection Project | S174: =IF('LGIP future infrastructure'!G154="2016 - 2021",DATE(2019,6,30),DATE(2024,6,30)) -> 2019-06-30 | T174: ='LGIP future infrastructure'!J154/1000 -> 165 | X174: 165 | AB174: 2019-06-30 | AC174: ='LGIP future infrastructure'!K154/1000 -> 597.881 | AD174: =SUM('LGIP future infrastructure'!L154:O154)/1000 -> 431.226 | AF174: 1029.107 | AI174: 1194.107 | AM174: ='LGIP future infrastructure'!R154/1000 -> 0 | AQ174: 2019-06-30 | AU174: =IF(AR174=1,IF(AT174>AI174*'Input-Gen'!$M$31,"Check value","OK"),"") -> 
G175: ='LGIP future infrastructure'!A155 -> HAM-RI-005 | M175: ='LGIP future infrastructure'!A155 -> HAM-RI-005 | N175: ='LGIP future infrastructure'!B155 -> R153 | O175: ='LGIP future infrastructure'!E155 -> Road Intersection Project | S175: =IF('LGIP future infrastructure'!G155="2016 - 2021",DATE(2019,6,30),DATE(2024,6,30)) -> 2019-06-30 | T175: ='LGIP future infrastructure'!J155/1000 -> 333.15 | X175: 333.15 | AB175: 2019-06-30 | AC175: ='LGIP future infrastructure'!K155/1000 -> 672.616 | AD175: =SUM('LGIP future infrastructure'!L155:O155)/1000 -> 485.13 | AF175: 1157.746 | AI175: 1490.896 | AM175: ='LGIP future infrastructure'!R155/1000 -> 0 | AQ175: 2019-06-30 | AU175: =IF(AR175=1,IF(AT175>AI175*'Input-Gen'!$M$31,"Check value","OK"),"") -> 
G176: ='LGIP future infrastructure'!A156 -> HAM-RI-006 | M176: ='LGIP future infrastructure'!A156 -> HAM-RI-006 | N176: ='LGIP future infrastructure'!B156 -> R153 | O176: ='LGIP future infrastructure'!E156 -> Road Intersection Project | S176: =IF('LGIP future infrastructure'!G156="2016 - 2021",DATE(2019,6,30),DATE(2024,6,30)) -> 2019-06-30 | T176: ='LGIP future infrastructure'!J156/1000 -> 241.8 | X176: 241.8 | AB176: 2019-06-30 | AC176: ='LGIP future infrastructure'!K156/1000 -> 525.112 | AD176: =SUM('LGIP future infrastructure'!L156:O156)/1000 -> 378.74 | AF176: 903.852 | AI176: 1145.652 | AM176: ='LGIP future infrastructure'!R156/1000 -> 0 | AQ176: 2019-06-30 | AU176: =IF(AR176=1,IF(AT176>AI176*'Input-Gen'!$M$31,"Check value","OK"),"") -> 
G177: ='LGIP future infrastructure'!A157 -> HAW-RC-001 | M177: ='LGIP future infrastructure'!A157 -> HAW-RC-001 | N177: ='LGIP future infrastructure'!B157 -> R194, R193 | O177: ='LGIP future infrastructure'!E157 -> Road Corridor Project | S177: =IF('LGIP future infrastructure'!G157="2016 - 2021",DATE(2019,6,30),DATE(2024,6,30)) -> 2024-06-30 | T177: ='LGIP future infrastructure'!J157/1000 -> 8413.021 | X177: 8413.021 | AB177: 2024-06-30 | AC177: ='LGIP future infrastructure'!K157/1000 -> 1327.174 | AD177: =SUM('LGIP future infrastructure'!L157:O157)/1000 -> 1088.834 | AF177: 2416.008 | AI177: 10829.029 | AM177: ='LGIP future infrastructure'!R157/1000 -> 0 | AQ177: 2024-06-30 | AU177: =IF(AR177=1,IF(AT177>AI177*'Input-Gen'!$M$31,"Check value","OK"),"") -> 
G178: ='LGIP future infrastructure'!A158 -> HAW-RI-001 | M178: ='LGIP future infrastructure'!A158 -> HAW-RI-001 | N178: ='LGIP future infrastructure'!B158 -> R194 | O178: ='LGIP future infrastructure'!E158 -> Road Intersection Project | S178: =IF('LGIP future infrastructure'!G158="2016 - 2021",DATE(2019,6,30),DATE(2024,6,30)) -> 2024-06-30 | T178: ='LGIP future infrastructure'!J158/1000 -> 213.3 | X178: 213.3 | AB178: 2024-06-30 | AC178: ='LGIP future infrastructure'!K158/1000 -> 597.881 | AD178: =SUM('LGIP future infrastructure'!L158:O158)/1000 -> 490.511 | AF178: 1088.392 | AI178: 1301.692 | AM178: ='LGIP future infrastructure'!R158/1000 -> 0 | AQ178: 2024-06-30 | AU178: =IF(AR178=1,IF(AT178>AI178*'Input-Gen'!$M$31,"Check value","OK"),"") -> 
G179: ='LGIP future infrastructure'!A159 -> HEA-RC-002 | M179: ='LGIP future infrastructure'!A159 -> HEA-RC-002 | N179: ='LGIP future infrastructure'!B159 -> R331 | O179: ='LGIP future infrastructure'!E159 -> Road Corridor Project | S179: =IF('LGIP future infrastructure'!G159="2016 - 2021",DATE(2019,6,30),DATE(2024,6,30)) -> 2024-06-30 | T179: ='LGIP future infrastructure'!J159/1000 -> 593.119 | X179: 593.119 | AB179: 2024-06-30 | AC179: ='LGIP future infrastructure'!K159/1000 -> 1947.368 | AD179: =SUM('LGIP future infrastructure'!L159:O159)/1000 -> 1597.651 | AF179: 3545.019 | AI179: 4138.138 | AM179: ='LGIP future infrastructure'!R159/1000 -> 0 | AQ179: 2024-06-30 | AU179: =IF(AR179=1,IF(AT179>AI179*'Input-Gen'!$M$31,"Check value","OK"),"") -> 
G180: ='LGIP future infrastructure'!A160 -> HEA-RC-004 | M180: ='LGIP future infrastructure'!A160 -> HEA-RC-004 | N180: ='LGIP future infrastructure'!B160 -> R331 | O180: ='LGIP future infrastructure'!E160 -> Road Corridor Project | S180: =IF('LGIP future infrastructure'!G160="2016 - 2021",DATE(2019,6,30),DATE(2024,6,30)) -> 2019-06-30 | T180: ='LGIP future infrastructure'!J160/1000 -> 1281.963 | X180: 1281.963 | AB180: 2019-06-30 | AC180: ='LGIP future infrastructure'!K160/1000 -> 2863.257 | AD180: =SUM('LGIP future infrastructure'!L160:O160)/1000 -> 2065.145 | AF180: 4928.402 | AI180: 6210.365 | AM180: ='LGIP future infrastructure'!R160/1000 -> 0 | AQ180: 2019-06-30 | AU180: =IF(AR180=1,IF(AT180>AI180*'Input-Gen'!$M$31,"Check value","OK"),"") -> 
G181: ='LGIP future infrastructure'!A161 -> HEA-RC-007 | M181: ='LGIP future infrastructure'!A161 -> HEA-RC-007 | N181: ='LGIP future infrastructure'!B161 -> R330, R331, R351 | O181: ='LGIP future infrastructure'!E161 -> Road Corridor Project | S181: =IF('LGIP future infrastructure'!G161="2016 - 2021",DATE(2019,6,30),DATE(2024,6,30)) -> 2024-06-30 | T181: ='LGIP future infrastructure'!J161/1000 -> 274.465 | X181: 274.465 | AB181: 2024-06-30 | AC181: ='LGIP future infrastructure'!K161/1000 -> 9052.274 | AD181: =SUM('LGIP future infrastructure'!L161:O161)/1000 -> 7426.622 | AF181: 16478.896 | AI181: 16753.361 | AM181: ='LGIP future infrastructure'!R161/1000 -> 0 | AQ181: 2024-06-30 | AU181: =IF(AR181=1,IF(AT181>AI181*'Input-Gen'!$M$31,"Check value","OK"),"") -> 
G182: ='LGIP future infrastructure'!A162 -> HEA-RC-008 | M182: ='LGIP future infrastructure'!A162 -> HEA-RC-008 | N182: ='LGIP future infrastructure'!B162 -> R351, R352 | O182: ='LGIP future infrastructure'!E162 -> Road Corridor Project | S182: =IF('LGIP future infrastructure'!G162="2016 - 2021",DATE(2019,6,30),DATE(2024,6,30)) -> 2024-06-30 | T182: ='LGIP future infrastructure'!J162/1000 -> 888.669 | X182: 888.669 | AB182: 2024-06-30 | AC182: ='LGIP future infrastructure'!K162/1000 -> 5050.681 | AD182: =SUM('LGIP future infrastructure'!L162:O162)/1000 -> 4143.655 | AF182: 9194.336 | AI182: 10083.005 | AM182: ='LGIP future infrastructure'!R162/1000 -> 0 | AQ182: 2024-06-30 | AU182: =IF(AR182=1,IF(AT182>AI182*'Input-Gen'!$M$31,"Check value","OK"),"") -> 
G183: ='LGIP future infrastructure'!A163 -> HEA-RI-001 | M183: ='LGIP future infrastructure'!A163 -> HEA-RI-001 | N183: ='LGIP future infrastructure'!B163 -> R351 | O183: ='LGIP future infrastructure'!E163 -> Road Intersection Project | S183: =IF('LGIP future infrastructure'!G163="2016 - 2021",DATE(2019,6,30),DATE(2024,6,30)) -> 2019-06-30 | T183: ='LGIP future infrastructure'!J163/1000 -> 0 | X183: 0 | AB183: 2019-06-30 | AC183: ='LGIP future infrastructure'!K163/1000 -> 817.184 | AD183: =SUM('LGIP future infrastructure'!L163:O163)/1000 -> 589.4 | AF183: 1406.584 | AI183: 1406.584 | AM183: ='LGIP future infrastructure'!R163/1000 -> 0 | AQ183: 2019-06-30 | AU183: =IF(AR183=1,IF(AT183>AI183*'Input-Gen'!$M$31,"Check value","OK"),"") -> 
G184: ='LGIP future infrastructure'!A164 -> HEN-RI-003 | M184: ='LGIP future infrastructure'!A164 -> HEN-RI-003 | N184: ='LGIP future infrastructure'!B164 -> R134 | O184: ='LGIP future infrastructure'!E164 -> Road Intersection Project | S184: =IF('LGIP future infrastructure'!G164="2016 - 2021",DATE(2019,6,30),DATE(2024,6,30)) -> 2019-06-30 | T184: ='LGIP future infrastructure'!J164/1000 -> 423.6 | X184: 423.6 | AB184: 2019-06-30 | AC184: ='LGIP future infrastructure'!K164/1000 -> 309.186 | AD184: =SUM('LGIP future infrastructure'!L164:O164)/1000 -> 223.003 | AF184: 532.189 | AI184: 955.789 | AM184: ='LGIP future infrastructure'!R164/1000 -> 0 | AQ184: 2019-06-30 | AU184: =IF(AR184=1,IF(AT184>AI184*'Input-Gen'!$M$31,"Check value","OK"),"") -> 
G185: ='LGIP future infrastructure'!A165 -> INA-RI-004 | M185: ='LGIP future infrastructure'!A165 -> INA-RI-004 | N185: ='LGIP future infrastructure'!B165 -> R291 | O185: ='LGIP future infrastructure'!E165 -> Road Intersection Project | S185: =IF('LGIP future infrastructure'!G165="2016 - 2021",DATE(2019,6,30),DATE(2024,6,30)) -> 2019-06-30 | T185: ='LGIP future infrastructure'!J165/1000 -> 489 | X185: 489 | AB185: 2019-06-30 | AC185: ='LGIP future infrastructure'!K165/1000 -> 646.377 | AD185: =SUM('LGIP future infrastructure'!L165:O165)/1000 -> 466.204 | AF185: 1112.581 | AI185: 1601.581 | AM185: ='LGIP future infrastructure'!R165/1000 -> 0 | AQ185: 2019-06-30 | AU185: =IF(AR185=1,IF(AT185>AI185*'Input-Gen'!$M$31,"Check value","OK"),"") -> 
G186: ='LGIP future infrastructure'!A166 -> IND-RI-003 | M186: ='LGIP future infrastructure'!A166 -> IND-RI-003 | N186: ='LGIP future infrastructure'!B166 -> R211 | O186: ='LGIP future infrastructure'!E166 -> Road Intersection Project | S186: =IF('LGIP future infrastructure'!G166="2016 - 2021",DATE(2019,6,30),DATE(2024,6,30)) -> 2019-06-30 | T186: ='LGIP future infrastructure'!J166/1000 -> 0 | X186: 0 | AB186: 2019-06-30 | AC186: ='LGIP future infrastructure'!K166/1000 -> 859.144 | AD186: =SUM('LGIP future infrastructure'!L166:O166)/1000 -> 619.665 | AF186: 1478.809 | AI186: 1478.809 | AM186: ='LGIP future infrastructure'!R166/1000 -> 0 | AQ186: 2019-06-30 | AU186: =IF(AR186=1,IF(AT186>AI186*'Input-Gen'!$M$31,"Check value","OK"),"") -> 
G187: ='LGIP future infrastructure'!A167 -> KRR-RC-002 | M187: ='LGIP future infrastructure'!A167 -> KRR-RC-002 | N187: ='LGIP future infrastructure'!B167 -> R150 | O187: ='LGIP future infrastructure'!E167 -> Road Corridor Project | S187: =IF('LGIP future infrastructure'!G167="2016 - 2021",DATE(2019,6,30),DATE(2024,6,30)) -> 2024-06-30 | T187: ='LGIP future infrastructure'!J167/1000 -> 276.732 | X187: 276.732 | AB187: 2024-06-30 | AC187: ='LGIP future infrastructure'!K167/1000 -> 4121.564 | AD187: =SUM('LGIP future infrastructure'!L167:O167)/1000 -> 3381.393 | AF187: 7502.957 | AI187: 7779.689 | AM187: ='LGIP future infrastructure'!R167/1000 -> 0 | AQ187: 2024-06-30 | AU187: =IF(AR187=1,IF(AT187>AI187*'Input-Gen'!$M$31,"Check value","OK"),"") -> 
G188: ='LGIP future infrastructure'!A168 -> KRR-RI-001 | M188: ='LGIP future infrastructure'!A168 -> KRR-RI-001 | N188: ='LGIP future infrastructure'!B168 -> R130 | O188: ='LGIP future infrastructure'!E168 -> Road Intersection Project | S188: =IF('LGIP future infrastructure'!G168="2016 - 2021",DATE(2019,6,30),DATE(2024,6,30)) -> 2019-06-30 | T188: ='LGIP future infrastructure'!J168/1000 -> 140.4 | X188: 140.4 | AB188: 2019-06-30 | AC188: ='LGIP future infrastructure'!K168/1000 -> 533.964 | AD188: =SUM('LGIP future infrastructure'!L168:O168)/1000 -> 385.126 | AF188: 919.09 | AI188: 1059.49 | AM188: ='LGIP future infrastructure'!R168/1000 -> 0 | AQ188: 2019-06-30 | AU188: =IF(AR188=1,IF(AT188>AI188*'Input-Gen'!$M$31,"Check value","OK"),"") -> 
G189: ='LGIP future infrastructure'!A169 -> LPA-RC-002 | M189: ='LGIP future infrastructure'!A169 -> LPA-RC-002 | N189: ='LGIP future infrastructure'!B169 -> R332 | O189: ='LGIP future infrastructure'!E169 -> Road Corridor Project | S189: =IF('LGIP future infrastructure'!G169="2016 - 2021",DATE(2019,6,30),DATE(2024,6,30)) -> 2019-06-30 | T189: ='LGIP future infrastructure'!J169/1000 -> 19.457 | X189: 19.457 | AB189: 2019-06-30 | AC189: ='LGIP future infrastructure'!K169/1000 -> 3928.344 | AD189: =SUM('LGIP future infrastructure'!L169:O169)/1000 -> 2833.348 | AF189: 6761.692 | AI189: 6781.149 | AM189: ='LGIP future infrastructure'!R169/1000 -> 0 | AQ189: 2019-06-30 | AU189: =IF(AR189=1,IF(AT189>AI189*'Input-Gen'!$M$31,"Check value","OK"),"") -> 
G190: ='LGIP future infrastructure'!A170 -> LPA-RC-003 | M190: ='LGIP future infrastructure'!A170 -> LPA-RC-003 | N190: ='LGIP future infrastructure'!B170 -> R352, R353 | O190: ='LGIP future infrastructure'!E170 -> Road Corridor Project | S190: =IF('LGIP future infrastructure'!G170="2016 - 2021",DATE(2019,6,30),DATE(2024,6,30)) -> 2024-06-30 | T190: ='LGIP future infrastructure'!J170/1000 -> 0 | X190: 0 | AB190: 2024-06-30 | AC190: ='LGIP future infrastructure'!K170/1000 -> 6942.309 | AD190: =SUM('LGIP future infrastructure'!L170:O170)/1000 -> 5695.575 | AF190: 12637.884 | AI190: 12637.884 | AM190: ='LGIP future infrastructure'!R170/1000 -> 0 | AQ190: 2024-06-30 | AU190: =IF(AR190=1,IF(AT190>AI190*'Input-Gen'!$M$31,"Check value","OK"),"") -> 
G191: ='LGIP future infrastructure'!A171 -> LPA-RI-001 | M191: ='LGIP future infrastructure'!A171 -> LPA-RI-001 | N191: ='LGIP future infrastructure'!B171 -> R352 | O191: ='LGIP future infrastructure'!E171 -> Road Intersection Project | S191: =IF('LGIP future infrastructure'!G171="2016 - 2021",DATE(2019,6,30),DATE(2024,6,30)) -> 2024-06-30 | T191: ='LGIP future infrastructure'!J171/1000 -> 0 | X191: 0 | AB191: 2024-06-30 | AC191: ='LGIP future infrastructure'!K171/1000 -> 544.79 | AD191: =SUM('LGIP future infrastructure'!L171:O171)/1000 -> 446.954 | AF191: 991.744 | AI191: 991.744 | AM191: ='LGIP future infrastructure'!R171/1000 -> 0 | AQ191: 2024-06-30 | AU191: =IF(AR191=1,IF(AT191>AI191*'Input-Gen'!$M$31,"Check value","OK"),"") -> 
G192: ='LGIP future infrastructure'!A172 -> LUT-RI-001 | M192: ='LGIP future infrastructure'!A172 -> LUT-RI-001 | N192: ='LGIP future infrastructure'!B172 -> R153 | O192: ='LGIP future infrastructure'!E172 -> Road Intersection Project | S192: =IF('LGIP future infrastructure'!G172="2016 - 2021",DATE(2019,6,30),DATE(2024,6,30)) -> 2024-06-30 | T192: ='LGIP future infrastructure'!J172/1000 -> 631.8 | X192: 631.8 | AB192: 2024-06-30 | AC192: ='LGIP future infrastructure'!K172/1000 -> 637.296 | AD192: =SUM('LGIP future infrastructure'!L172:O172)/1000 -> 522.847 | AF192: 1160.143 | AI192: 1791.943 | AM192: ='LGIP future infrastructure'!R172/1000 -> 0 | AQ192: 2024-06-30 | AU192: =IF(AR192=1,IF(AT192>AI192*'Input-Gen'!$M$31,"Check value","OK"),"") -> 
G193: ='LGIP future infrastructure'!A173 -> MDW-RC-001 | M193: ='LGIP future infrastructure'!A173 -> MDW-RC-001 | N193: ='LGIP future infrastructure'!B173 -> R111 | O193: ='LGIP future infrastructure'!E173 -> Road Corridor Project | S193: =IF('LGIP future infrastructure'!G173="2016 - 2021",DATE(2019,6,30),DATE(2024,6,30)) -> 2019-06-30 | T193: ='LGIP future infrastructure'!J173/1000 -> 1579.931 | X193: 1579.931 | AB193: 2019-06-30 | AC193: ='LGIP future infrastructure'!K173/1000 -> 950.374 | AD193: =SUM('LGIP future infrastructure'!L173:O173)/1000 -> 685.465 | AF193: 1635.839 | AI193: 3215.77 | AM193: ='LGIP future infrastructure'!R173/1000 -> 0 | AQ193: 2019-06-30 | AU193: =IF(AR193=1,IF(AT193>AI193*'Input-Gen'!$M$31,"Check value","OK"),"") -> 
G194: ='LGIP future infrastructure'!A174 -> MDW-RC-002 | M194: ='LGIP future infrastructure'!A174 -> MDW-RC-002 | N194: ='LGIP future infrastructure'!B174 -> R111 | O194: ='LGIP future infrastructure'!E174 -> Road Corridor Project | S194: =IF('LGIP future infrastructure'!G174="2016 - 2021",DATE(2019,6,30),DATE(2024,6,30)) -> 2019-06-30 | T194: ='LGIP future infrastructure'!J174/1000 -> 541.546 | X194: 541.546 | AB194: 2019-06-30 | AC194: ='LGIP future infrastructure'!K174/1000 -> 865.907 | AD194: =SUM('LGIP future infrastructure'!L174:O174)/1000 -> 624.541 | AF194: 1490.448 | AI194: 2031.994 | AM194: ='LGIP future infrastructure'!R174/1000 -> 0 | AQ194: 2019-06-30 | AU194: =IF(AR194=1,IF(AT194>AI194*'Input-Gen'!$M$31,"Check value","OK"),"") -> 
G195: ='LGIP future infrastructure'!A175 -> MDW-RI-003 | M195: ='LGIP future infrastructure'!A175 -> MDW-RI-003 | N195: ='LGIP future infrastructure'!B175 -> R111 | O195: ='LGIP future infrastructure'!E175 -> Road Intersection Project | S195: =IF('LGIP future infrastructure'!G175="2016 - 2021",DATE(2019,6,30),DATE(2024,6,30)) -> 2019-06-30 | T195: ='LGIP future infrastructure'!J175/1000 -> 125.7 | X195: 125.7 | AB195: 2019-06-30 | AC195: ='LGIP future infrastructure'!K175/1000 -> 597.881 | AD195: =SUM('LGIP future infrastructure'!L175:O175)/1000 -> 431.226 | AF195: 1029.107 | AI195: 1154.807 | AM195: ='LGIP future infrastructure'!R175/1000 -> 0 | AQ195: 2019-06-30 | AU195: =IF(AR195=1,IF(AT195>AI195*'Input-Gen'!$M$31,"Check value","OK"),"") -> 
G196: ='LGIP future infrastructure'!A176 -> MGE-RC-001 | M196: ='LGIP future infrastructure'!A176 -> MGE-RC-001 | N196: ='LGIP future infrastructure'!B176 -> R254, R255 | O196: ='LGIP future infrastructure'!E176 -> Road Corridor Project | S196: =IF('LGIP future infrastructure'!G176="2016 - 2021",DATE(2019,6,30),DATE(2024,6,30)) -> 2024-06-30 | T196: ='LGIP future infrastructure'!J176/1000 -> 6214.095 | X196: 6214.095 | AB196: 2024-06-30 | AC196: ='LGIP future infrastructure'!K176/1000 -> 2599.915 | AD196: =SUM('LGIP future infrastructure'!L176:O176)/1000 -> 2133.01 | AF196: 4732.925 | AI196: 10947.02 | AM196: ='LGIP future infrastructure'!R176/1000 -> 0 | AQ196: 2024-06-30 | AU196: =IF(AR196=1,IF(AT196>AI196*'Input-Gen'!$M$31,"Check value","OK"),"") -> 
G197: ='LGIP future infrastructure'!A177 -> MGE-RI-001 | M197: ='LGIP future infrastructure'!A177 -> MGE-RI-001 | N197: ='LGIP future infrastructure'!B177 -> R235 | O197: ='LGIP future infrastructure'!E177 -> Road Intersection Project | S197: =IF('LGIP future infrastructure'!G177="2016 - 2021",DATE(2019,6,30),DATE(2024,6,30)) -> 2019-06-30 | T197: ='LGIP future infrastructure'!J177/1000 -> 125.7 | X197: 125.7 | AB197: 2019-06-30 | AC197: ='LGIP future infrastructure'!K177/1000 -> 597.881 | AD197: =SUM('LGIP future infrastructure'!L177:O177)/1000 -> 431.226 | AF197: 1029.107 | AI197: 1154.807 | AM197: ='LGIP future infrastructure'!R177/1000 -> 0 | AQ197: 2019-06-30 | AU197: =IF(AR197=1,IF(AT197>AI197*'Input-Gen'!$M$31,"Check value","OK"),"") -> 
G198: ='LGIP future infrastructure'!A178 -> MGR-RI-001 | M198: ='LGIP future infrastructure'!A178 -> MGR-RI-001 | N198: ='LGIP future infrastructure'!B178 -> R254 | O198: ='LGIP future infrastructure'!E178 -> Road Intersection Project | S198: =IF('LGIP future infrastructure'!G178="2016 - 2021",DATE(2019,6,30),DATE(2024,6,30)) -> 2024-06-30 | T198: ='LGIP future infrastructure'!J178/1000 -> 118.5 | X198: 118.5 | AB198: 2024-06-30 | AC198: ='LGIP future infrastructure'!K178/1000 -> 633.282 | AD198: =SUM('LGIP future infrastructure'!L178:O178)/1000 -> 519.554 | AF198: 1152.836 | AI198: 1271.336 | AM198: ='LGIP future infrastructure'!R178/1000 -> 0 | AQ198: 2024-06-30 | AU198: =IF(AR198=1,IF(AT198>AI198*'Input-Gen'!$M$31,"Check value","OK"),"") -> 
G199: ='LGIP future infrastructure'!A179 -> MGR-RI-002 | M199: ='LGIP future infrastructure'!A179 -> MGR-RI-002 | N199: ='LGIP future infrastructure'!B179 -> R254 | O199: ='LGIP future infrastructure'!E179 -> Road Intersection Project | S199: =IF('LGIP future infrastructure'!G179="2016 - 2021",DATE(2019,6,30),DATE(2024,6,30)) -> 2024-06-30 | T199: ='LGIP future infrastructure'!J179/1000 -> 348.9 | X199: 348.9 | AB199: 2024-06-30 | AC199: ='LGIP future infrastructure'!K179/1000 -> 523.146 | AD199: =SUM('LGIP future infrastructure'!L179:O179)/1000 -> 429.198 | AF199: 952.344 | AI199: 1301.244 | AM199: ='LGIP future infrastructure'!R179/1000 -> 0 | AQ199: 2024-06-30 | AU199: =IF(AR199=1,IF(AT199>AI199*'Input-Gen'!$M$31,"Check value","OK"),"") -> 
G200: ='LGIP future infrastructure'!A180 -> MNW-RI-001 | M200: ='LGIP future infrastructure'!A180 -> MNW-RI-001 | N200: ='LGIP future infrastructure'!B180 -> R196 | O200: ='LGIP future infrastructure'!E180 -> Road Intersection Project | S200: =IF('LGIP future infrastructure'!G180="2016 - 2021",DATE(2019,6,30),DATE(2024,6,30)) -> 2019-06-30 | T200: ='LGIP future infrastructure'!J180/1000 -> 125.7 | X200: 125.7 | AB200: 2019-06-30 | AC200: ='LGIP future infrastructure'!K180/1000 -> 397.526 | AD200: =SUM('LGIP future infrastructure'!L180:O180)/1000 -> 286.719 | AF200: 684.245 | AI200: 809.945 | AM200: ='LGIP future infrastructure'!R180/1000 -> 0 | AQ200: 2019-06-30 | AU200: =IF(AR200=1,IF(AT200>AI200*'Input-Gen'!$M$31,"Check value","OK"),"") -> 
G201: ='LGIP future infrastructure'!A181 -> MOM-RI-001 | M201: ='LGIP future infrastructure'!A181 -> MOM-RI-001 | N201: ='LGIP future infrastructure'!B181 -> R249 | O201: ='LGIP future infrastructure'!E181 -> Road Intersection Project | S201: =IF('LGIP future infrastructure'!G181="2016 - 2021",DATE(2019,6,30),DATE(2024,6,30)) -> 2019-06-30 | T201: ='LGIP future infrastructure'!J181/1000 -> 259.2 | X201: 259.2 | AB201: 2019-06-30 | AC201: ='LGIP future infrastructure'!K181/1000 -> 621.937 | AD201: =SUM('LGIP future infrastructure'!L181:O181)/1000 -> 448.577 | AF201: 1070.514 | AI201: 1329.714 | AM201: ='LGIP future infrastructure'!R181/1000 -> 0 | AQ201: 2019-06-30 | AU201: =IF(AR201=1,IF(AT201>AI201*'Input-Gen'!$M$31,"Check value","OK"),"") -> 
G202: ='LGIP future infrastructure'!A182 -> MOR-RI-001 | M202: ='LGIP future infrastructure'!A182 -> MOR-RI-001 | N202: ='LGIP future infrastructure'!B182 -> R174 | O202: ='LGIP future infrastructure'!E182 -> Road Intersection Project | S202: =IF('LGIP future infrastructure'!G182="2016 - 2021",DATE(2019,6,30),DATE(2024,6,30)) -> 2024-06-30 | T202: ='LGIP future infrastructure'!J182/1000 -> 106.35 | X202: 106.35 | AB202: 2024-06-30 | AC202: ='LGIP future infrastructure'!K182/1000 -> 896.822 | AD202: =SUM('LGIP future infrastructure'!L182:O182)/1000 -> 735.767 | AF202: 1632.589 | AI202: 1738.939 | AM202: ='LGIP future infrastructure'!R182/1000 -> 0 | AQ202: 2024-06-30 | AU202: =IF(AR202=1,IF(AT202>AI202*'Input-Gen'!$M$31,"Check value","OK"),"") -> 
G203: ='LGIP future infrastructure'!A183 -> MUR-RC-001 | M203: ='LGIP future infrastructure'!A183 -> MUR-RC-001 | N203: ='LGIP future infrastructure'!B183 -> R175, R174 | O203: ='LGIP future infrastructure'!E183 -> Road Corridor Project | S203: =IF('LGIP future infrastructure'!G183="2016 - 2021",DATE(2019,6,30),DATE(2024,6,30)) -> 2024-06-30 | T203: ='LGIP future infrastructure'!J183/1000 -> 926.121 | X203: 926.121 | AB203: 2024-06-30 | AC203: ='LGIP future infrastructure'!K183/1000 -> 2797.175 | AD203: =SUM('LGIP future infrastructure'!L183:O183)/1000 -> 2294.845 | AF203: 5092.02 | AI203: 6018.141 | AM203: ='LGIP future infrastructure'!R183/1000 -> 0 | AQ203: 2024-06-30 | AU203: =IF(AR203=1,IF(AT203>AI203*'Input-Gen'!$M$31,"Check value","OK"),"") -> 
G204: ='LGIP future infrastructure'!A184 -> MUR-RC-002 | M204: ='LGIP future infrastructure'!A184 -> MUR-RC-002 | N204: ='LGIP future infrastructure'!B184 -> R175 | O204: ='LGIP future infrastructure'!E184 -> Road Corridor Project | S204: =IF('LGIP future infrastructure'!G184="2016 - 2021",DATE(2019,6,30),DATE(2024,6,30)) -> 2024-06-30 | T204: ='LGIP future infrastructure'!J184/1000 -> 863.436 | X204: 863.436 | AB204: 2024-06-30 | AC204: ='LGIP future infrastructure'!K184/1000 -> 2126.97 | AD204: =SUM('LGIP future infrastructure'!L184:O184)/1000 -> 1744.998 | AF204: 3871.968 | AI204: 4735.404 | AM204: ='LGIP future infrastructure'!R184/1000 -> 0 | AQ204: 2024-06-30 | AU204: =IF(AR204=1,IF(AT204>AI204*'Input-Gen'!$M$31,"Check value","OK"),"") -> 
G205: ='LGIP future infrastructure'!A185 -> MUR-RI-001 | M205: ='LGIP future infrastructure'!A185 -> MUR-RI-001 | N205: ='LGIP future infrastructure'!B185 -> R175 | O205: ='LGIP future infrastructure'!E185 -> Road Intersection Project | S205: =IF('LGIP future infrastructure'!G185="2016 - 2021",DATE(2019,6,30),DATE(2024,6,30)) -> 2024-06-30 | T205: ='LGIP future infrastructure'!J185/1000 -> 67.95 | X205: 67.95 | AB205: 2024-06-30 | AC205: ='LGIP future infrastructure'!K185/1000 -> 630.869 | AD205: =SUM('LGIP future infrastructure'!L185:O185)/1000 -> 517.575 | AF205: 1148.444 | AI205: 1216.394 | AM205: ='LGIP future infrastructure'!R185/1000 -> 0 | AQ205: 2024-06-30 | AU205: =IF(AR205=1,IF(AT205>AI205*'Input-Gen'!$M$31,"Check value","OK"),"") -> 
G206: ='LGIP future infrastructure'!A186 -> NRP-RB-001 | M206: ='LGIP future infrastructure'!A186 -> NRP-RB-001 | N206: ='LGIP future infrastructure'!B186 -> R193 | O206: ='LGIP future infrastructure'!E186 -> Road Bridge | S206: =IF('LGIP future infrastructure'!G186="2016 - 2021",DATE(2019,6,30),DATE(2024,6,30)) -> 2024-06-30 | T206: ='LGIP future infrastructure'!J186/1000 -> 0.011 | X206: 0.011 | AB206: 2024-06-30 | AC206: ='LGIP future infrastructure'!K186/1000 -> 3407.273 | AD206: =SUM('LGIP future infrastructure'!L186:O186)/1000 -> 2113.922 | AF206: 5521.195 | AI206: 5521.206 | AM206: ='LGIP future infrastructure'!R186/1000 -> 0 | AQ206: 2024-06-30 | AU206: =IF(AR206=1,IF(AT206>AI206*'Input-Gen'!$M$31,"Check value","OK"),"") -> 
G207: ='LGIP future infrastructure'!A187 -> NRP-RC-003 | M207: ='LGIP future infrastructure'!A187 -> NRP-RC-003 | N207: ='LGIP future infrastructure'!B187 -> R194, R193 | O207: ='LGIP future infrastructure'!E187 -> Road Corridor Project | S207: =IF('LGIP future infrastructure'!G187="2016 - 2021",DATE(2019,6,30),DATE(2024,6,30)) -> 2024-06-30 | T207: ='LGIP future infrastructure'!J187/1000 -> 6786.807 | X207: 6786.807 | AB207: 2024-06-30 | AC207: ='LGIP future infrastructure'!K187/1000 -> 1090.528 | AD207: =SUM('LGIP future infrastructure'!L187:O187)/1000 -> 894.685 | AF207: 1985.213 | AI207: 8772.02 | AM207: ='LGIP future infrastructure'!R187/1000 -> 0 | AQ207: 2024-06-30 | AU207: =IF(AR207=1,IF(AT207>AI207*'Input-Gen'!$M$31,"Check value","OK"),"") -> 
... 195 more rows

Sheet Input-Time Series
F2: Brisbane City Council
F3: ='Input-Gen'!$F$3 -> LGIP SOW model - Road network
F5: Input - Time Series
G6: =IF(BaseCaseCheck=0,BaseCase,NotBaseCase) -> Please Note: Model is not currently applying Base Case parameter values
G7: =IF(Integrity=0,IntOK,IntErr) -> Model integrity error
G9: Period Number | K9: ="PV as at" & " " & TEXT(Model_Start_Date-1,"dd-mmm-yyyy") -> PV as at 30-Jun-2016 | S9: =S17 -> 0 | T9: =T17 -> 1 | U9: 2 | V9: 3 | W9: 4 | X9: 5 | Y9: 6 | Z9: 7 | AA9: 8 | AB9: 9 | AC9: 10 | AD9: 0 | AE9: 0 | AF9: 0 | AG9: 0 | AH9: 0 | AI9: 0 | AJ9: 0 | AK9: 0 | AL9: 0 | AM9: 0
G10: Period Beginning Date | M10: Total Nominal Demand | S10: =FY_Begin -> 2015-07-01 | T10: 2016-07-01 | U10: 2017-07-01 | V10: 2018-07-01 | W10: 2019-07-01 | X10: 2020-07-01 | Y10: 2021-07-01 | Z10: 2022-07-01 | AA10: 2023-07-01 | AB10: 2024-07-01 | AC10: 2025-07-01
G11: Period Ending Date | L11: 2005-06-30 | S11: =FY_End -> 2016-06-30 | T11: 2017-06-30 | U11: 2018-06-30 | V11: 2019-06-30 | W11: 2020-06-30 | X11: 2021-06-30 | Y11: 2022-06-30 | Z11: 2023-06-30 | AA11: 2024-06-30 | AB11: 2025-06-30 | AC11: 2026-06-30 | AO11: Source
F15: Timing and indexation calculations
G17: Period Number | I17: # | S17: 0 | T17: =S17+1 -> 1 | U17: =T17+1 -> 2 | V17: 3 | W17: 4 | X17: 5 | Y17: 6 | Z17: 7 | AA17: 8 | AB17: 9 | AC17: 10
G18: Financial Year Beginning | I18: dd-mmm-yy | S18: =EOMONTH(S19,-Months_in_Year)+1 -> 2015-07-01 | T18: 2016-07-01 | U18: 2017-07-01 | V18: 2018-07-01 | W18: 2019-07-01 | X18: 2020-07-01 | Y18: 2021-07-01 | Z18: 2022-07-01 | AA18: 2023-07-01 | AB18: 2024-07-01 | AC18: 2025-07-01
G19: Financial Year Ending | I19: dd-mmm-yy | S19: =IF(S17=0,Model_Start_Date-1,EOMONTH(R19,Months_in_Year)) -> 2016-06-30 | T19: 2017-06-30 | U19: 2018-06-30 | V19: 2019-06-30 | W19: 2020-06-30 | X19: 2021-06-30 | Y19: 2022-06-30 | Z19: 2023-06-30 | AA19: 2024-06-30 | AB19: 2025-06-30 | AC19: 2026-06-30
G21: Escalation Rate - Historical
G23: Consumer Price Index (CPI) | I23: % pa | T23: 0.025 | U23: 0.025 | V23: 0.025 | W23: 0.025 | X23: 0.025 | Y23: 0.025 | Z23: 0.025 | AA23: 0.025 | AB23: 0.025 | AC23: 0.025
G24: Land cost escalation | I24: % pa | T24: 0.025 | U24: 0.025 | V24: 0.025 | W24: 0.025 | X24: 0.025 | Y24: 0.025 | Z24: 0.025 | AA24: 0.025 | AB24: 0.025 | AC24: 0.025
G25: Constructed Asset cost escalation | I25: % pa | T25: 0.0187258123 | U25: 0.0187258123 | V25: 0.0187258123 | W25: 0.0187258123 | X25: 0.0187258123 | Y25: 0.0187258123 | Z25: 0.0187258123 | AA25: 0.0187258123 | AB25: 0.0187258123 | AC25: 0.0187258123
G26: Administration cost escalation | I26: % pa | T26: 0.0125 | U26: 0.03 | V26: 0.025 | W26: 0.025 | X26: 0.025 | Y26: 0.025 | Z26: 0.025 | AA26: 0.025 | AB26: 0.025 | AC26: 0.025
G27: Spare 1 | I27: % pa
G29: Escalation Rate used in model
G31: Consumer Price Index (CPI) | I31: % pa | S31: =IF(S$17>0,(1+S23)*R31,1) -> 1 | T31: 1.025 | U31: 1.050625 | V31: 1.076890625 | W31: 1.103812891 | X31: 1.131408213 | Y31: 1.159693418 | Z31: 1.188685754 | AA31: 1.218402898 | AB31: 1.24886297 | AC31: 1.280084544
G32: Land cost escalation | I32: % pa | S32: =IF(S$17>0,(1+S24)*R32,1) -> 1 | T32: 1.025 | U32: 1.050625 | V32: 1.076890625 | W32: 1.103812891 | X32: 1.131408213 | Y32: 1.159693418 | Z32: 1.188685754 | AA32: 1.218402898 | AB32: 1.24886297 | AC32: 1.280084544
G33: Constructed Asset cost escalation | I33: % pa | S33: =IF(S$17>0,(1+S25)*R33,1) -> 1 | T33: 1.018725812 | U33: 1.037802281 | V33: 1.057235971 | W33: 1.077033574 | X33: 1.097201902 | Y33: 1.117747899 | Z33: 1.138678636 | AA33: 1.160001319 | AB33: 1.181723286 | AC33: 1.203852014
G34: Administration cost escalation | I34: % pa | S34: =IF(S$17>0,(1+S26)*R34,1) -> 1 | T34: 1.0125 | U34: 1.042875 | V34: 1.068946875 | W34: 1.095670547 | X34: 1.123062311 | Y34: 1.151138868 | Z34: 1.17991734 | AA34: 1.209415274 | AB34: 1.239650655 | AC34: 1.270641922
G35: Spare 1 | I35: % pa | S35: =IF(S$17>0,(1+S27)*R35,1) -> 1 | T35: 1 | U35: 1 | V35: 1 | W35: 1 | X35: 1 | Y35: 1 | Z35: 1 | AA35: 1 | AB35: 1 | AC35: 1
G36: Revenue escalation | I36: % pa | S36: =IF(S$17>0,(1+RevEsc)*R36,1) -> 1 | T36: =IF(T$17>0,(1+RevEsc)*S36,1) -> 1 | U36: =IF(U$17>0,(1+RevEsc)*T36,1) -> 1 | V36: =IF(V$17>0,(1+RevEsc)*U36,1) -> 1 | W36: =IF(W$17>0,(1+RevEsc)*V36,1) -> 1 | X36: =IF(X$17>0,(1+RevEsc)*W36,1) -> 1 | Y36: =IF(Y$17>0,(1+RevEsc)*X36,1) -> 1 | Z36: =IF(Z$17>0,(1+RevEsc)*Y36,1) -> 1 | AA36: =IF(AA$17>0,(1+RevEsc)*Z36,1) -> 1 | AB36: =IF(AB$17>0,(1+RevEsc)*AA36,1) -> 1 | AC36: =IF(AC$17>0,(1+RevEsc)*AB36,1) -> 1
F38: BSTM Cumulative Demand by Service Catchment
G40: Total Demand | AP40: Growth | AQ40: Rank
G42: Catchment 1 | I42: Trips | S42: 400068 | T42: 401876.27 | U42: 403684.54 | V42: 405492.81 | W42: 407301.08 | X42: 409109.35 | Y42: 410917.62 | Z42: 412725.89 | AA42: 414534.16 | AB42: 416342.43 | AC42: 418150.7 | AP42: =AC42/S42-1 -> 0.04519906616 | AQ42: =RANK(AP42,$AP$42:$AP$58) -> 13
G43: Catchment 2 | I43: Trips | S43: 76888 | T43: 77273.679 | U43: 77659.358 | V43: 78045.037 | W43: 78430.716 | X43: 78816.395 | Y43: 79202.074 | Z43: 79587.753 | AA43: 79973.432 | AB43: 80359.111 | AC43: 80744.79 | AP43: =AC43/S43-1 -> 0.05016114348 | AQ43: =RANK(AP43,$AP$42:$AP$58) -> 12
G44: Catchment 3 | I44: Trips | S44: 296785 | T44: 302367.24 | U44: 307949.48 | V44: 313531.72 | W44: 319113.96 | X44: 324696.2 | Y44: 330278.44 | Z44: 335860.68 | AA44: 341442.92 | AB44: 347025.16 | AC44: 352607.4 | AP44: 0.1880903684 | AQ44: 2
G45: Catchment 4 | I45: Trips | S45: 268520 | T45: 268905.43 | U45: 269290.86 | V45: 269676.29 | W45: 270061.72 | X45: 270447.15 | Y45: 270832.58 | Z45: 271218.01 | AA45: 271603.44 | AB45: 271988.87 | AC45: 272374.3 | AP45: 0.01435386563 | AQ45: 16
G46: Catchment 5 | I46: Trips | S46: 239216 | T46: 242366.38 | U46: 245516.76 | V46: 248667.14 | W46: 251817.52 | X46: 254967.9 | Y46: 258118.28 | Z46: 261268.66 | AA46: 264419.04 | AB46: 267569.42 | AC46: 270719.8 | AP46: 0.1316960404 | AQ46: 6
G47: Catchment 6 | I47: Trips | S47: 428682 | T47: 431973.29 | U47: 435264.58 | V47: 438555.87 | W47: 441847.16 | X47: 445138.45 | Y47: 448429.74 | Z47: 451721.03 | AA47: 455012.32 | AB47: 458303.61 | AC47: 461594.9 | AP47: 0.07677695821 | AQ47: 10
G48: Catchment 7 | I48: Trips | S48: 560299 | T48: 564623.31 | U48: 568947.62 | V48: 573271.93 | W48: 577596.24 | X48: 581920.55 | Y48: 586244.86 | Z48: 590569.17 | AA48: 594893.48 | AB48: 599217.79 | AC48: 603542.1 | AP48: 0.07717861356 | AQ48: 9
G49: Catchment 8 | I49: Trips | S49: 1111403 | T49: 1127889.79 | U49: 1144376.58 | V49: 1160863.37 | W49: 1177350.16 | X49: 1193836.95 | Y49: 1210323.74 | Z49: 1226810.53 | AA49: 1243297.32 | AB49: 1259784.11 | AC49: 1276270.9 | AP49: 0.1483421405 | AQ49: 4
G50: Catchment 9 | I50: Trips | S50: 214720 | T50: 217796.13 | U50: 220872.26 | V50: 223948.39 | W50: 227024.52 | X50: 230100.65 | Y50: 233176.78 | Z50: 236252.91 | AA50: 239329.04 | AB50: 242405.17 | AC50: 245481.3 | AP50: 0.1432623882 | AQ50: 5
G51: Catchment 10 | I51: Trips | S51: 430033 | T51: 436477.41 | U51: 442921.82 | V51: 449366.23 | W51: 455810.64 | X51: 462255.05 | Y51: 468699.46 | Z51: 475143.87 | AA51: 481588.28 | AB51: 488032.69 | AC51: 494477.1 | AP51: 0.1498584992 | AQ51: 3
G52: Catchment 11 | I52: Trips | S52: 209368 | T52: 210419.41 | U52: 211470.82 | V52: 212522.23 | W52: 213573.64 | X52: 214625.05 | Y52: 215676.46 | Z52: 216727.87 | AA52: 217779.28 | AB52: 218830.69 | AC52: 219882.1 | AP52: 0.05021827595 | AQ52: 11
G53: Catchment 12 | I53: Trips | S53: 132327 | T53: 132554.513 | U53: 132782.026 | V53: 133009.539 | W53: 133237.052 | X53: 133464.565 | Y53: 133692.078 | Z53: 133919.591 | AA53: 134147.104 | AB53: 134374.617 | AC53: 134602.13 | AP53: 0.01719324099 | AQ53: 15
G54: Catchment 13 | I54: Trips | S54: 204861 | T54: 206503.8 | U54: 208146.6 | V54: 209789.4 | W54: 211432.2 | X54: 213075 | Y54: 214717.8 | Z54: 216360.6 | AA54: 218003.4 | AB54: 219646.2 | AC54: 221289 | AP54: 0.08019095875 | AQ54: 8
G55: Catchment 14 | I55: Trips | S55: 381068 | T55: 384143.57 | U55: 387219.14 | V55: 390294.71 | W55: 393370.28 | X55: 396445.85 | Y55: 399521.42 | Z55: 402596.99 | AA55: 405672.56 | AB55: 408748.13 | AC55: 411823.7 | AP55: 0.08070921725 | AQ55: 7
G56: Catchment 15 | I56: Trips | S56: 526197 | T56: 527848.54 | U56: 529500.08 | V56: 531151.62 | W56: 532803.16 | X56: 534454.7 | Y56: 536106.24 | Z56: 537757.78 | AA56: 539409.32 | AB56: 541060.86 | AC56: 542712.4 | AP56: 0.0313863439 | AQ56: 14
G57: Catchment 16 | I57: Trips | S57: 701732 | T57: 714985.67 | U57: 728239.34 | V57: 741493.01 | W57: 754746.68 | X57: 768000.35 | Y57: 781254.02 | Z57: 794507.69 | AA57: 807761.36 | AB57: 821015.03 | AC57: 834268.7 | AP57: 0.1888708225 | AQ57: 1
G58: Catchment 17 | I58: Trips | S58: 71445 | T58: 71475.323 | U58: 71505.646 | V58: 71535.969 | W58: 71566.292 | X58: 71596.615 | Y58: 71626.938 | Z58: 71657.261 | AA58: 71687.584 | AB58: 71717.907 | AC58: 71748.23 | AP58: 0.004244243824 | AQ58: 17
G60: Total | I60: Trips | S60: =SUM(S42:S58) -> 6253612 | T60: =SUM(T42:T58) -> 6319479.755 | U60: 6385347.51 | V60: 6451215.265 | W60: 6517083.02 | X60: 6582950.775 | Y60: 6648818.53 | Z60: 6714686.285 | AA60: 6780554.04 | AB60: 6846421.795 | AC60: 6912289.55 | AP60: =AC60/S60-1 -> 0.1053275371
G62: Existing Demand
G64: =PIPSectors -> Catchment 1 | I64: Trips | K64: =S64 -> 400068 | M64: =S64 -> 400068 | S64: =IF(S$17=0,S42,0) -> 400068 | T64: 0 | U64: 0 | V64: 0 | W64: 0 | X64: 0 | Y64: 0 | Z64: 0 | AA64: 0 | AB64: 0 | AC64: 0
G65: Catchment 2 | I65: Trips | K65: =S65 -> 76888 | M65: =S65 -> 76888 | S65: =IF(S$17=0,S43,0) -> 76888 | T65: 0 | U65: 0 | V65: 0 | W65: 0 | X65: 0 | Y65: 0 | Z65: 0 | AA65: 0 | AB65: 0 | AC65: 0
G66: Catchment 3 | I66: Trips | K66: 296785 | M66: 296785 | S66: =IF(S$17=0,S44,0) -> 296785 | T66: 0 | U66: 0 | V66: 0 | W66: 0 | X66: 0 | Y66: 0 | Z66: 0 | AA66: 0 | AB66: 0 | AC66: 0
G67: Catchment 4 | I67: Trips | K67: 268520 | M67: 268520 | S67: =IF(S$17=0,S45,0) -> 268520 | T67: 0 | U67: 0 | V67: 0 | W67: 0 | X67: 0 | Y67: 0 | Z67: 0 | AA67: 0 | AB67: 0 | AC67: 0
G68: Catchment 5 | I68: Trips | K68: 239216 | M68: 239216 | S68: =IF(S$17=0,S46,0) -> 239216 | T68: 0 | U68: 0 | V68: 0 | W68: 0 | X68: 0 | Y68: 0 | Z68: 0 | AA68: 0 | AB68: 0 | AC68: 0
G69: Catchment 6 | I69: Trips | K69: 428682 | M69: 428682 | S69: =IF(S$17=0,S47,0) -> 428682 | T69: 0 | U69: 0 | V69: 0 | W69: 0 | X69: 0 | Y69: 0 | Z69: 0 | AA69: 0 | AB69: 0 | AC69: 0
G70: Catchment 7 | I70: Trips | K70: 560299 | M70: 560299 | S70: =IF(S$17=0,S48,0) -> 560299 | T70: 0 | U70: 0 | V70: 0 | W70: 0 | X70: 0 | Y70: 0 | Z70: 0 | AA70: 0 | AB70: 0 | AC70: 0
G71: Catchment 8 | I71: Trips | K71: 1111403 | M71: 1111403 | S71: =IF(S$17=0,S49,0) -> 1111403 | T71: 0 | U71: 0 | V71: 0 | W71: 0 | X71: 0 | Y71: 0 | Z71: 0 | AA71: 0 | AB71: 0 | AC71: 0
G72: Catchment 9 | I72: Trips | K72: 214720 | M72: 214720 | S72: =IF(S$17=0,S50,0) -> 214720 | T72: 0 | U72: 0 | V72: 0 | W72: 0 | X72: 0 | Y72: 0 | Z72: 0 | AA72: 0 | AB72: 0 | AC72: 0
G73: Catchment 10 | I73: Trips | K73: 430033 | M73: 430033 | S73: =IF(S$17=0,S51,0) -> 430033 | T73: 0 | U73: 0 | V73: 0 | W73: 0 | X73: 0 | Y73: 0 | Z73: 0 | AA73: 0 | AB73: 0 | AC73: 0
G74: Catchment 11 | I74: Trips | K74: 209368 | M74: =S74 -> 209368 | S74: =IF(S$17=0,S52,0) -> 209368 | T74: 0 | U74: 0 | V74: 0 | W74: 0 | X74: 0 | Y74: 0 | Z74: 0 | AA74: 0 | AB74: 0 | AC74: 0
G75: Catchment 12 | I75: Trips | K75: 132327 | M75: 132327 | S75: =IF(S$17=0,S53,0) -> 132327 | T75: 0 | U75: 0 | V75: 0 | W75: 0 | X75: 0 | Y75: 0 | Z75: 0 | AA75: 0 | AB75: 0 | AC75: 0
G76: Catchment 13 | I76: Trips | K76: 204861 | M76: 204861 | S76: =IF(S$17=0,S54,0) -> 204861 | T76: 0 | U76: 0 | V76: 0 | W76: 0 | X76: 0 | Y76: 0 | Z76: 0 | AA76: 0 | AB76: 0 | AC76: 0
G77: Catchment 14 | I77: Trips | K77: 381068 | M77: 381068 | S77: =IF(S$17=0,S55,0) -> 381068 | T77: 0 | U77: 0 | V77: 0 | W77: 0 | X77: 0 | Y77: 0 | Z77: 0 | AA77: 0 | AB77: 0 | AC77: 0
G78: Catchment 15 | I78: Trips | K78: 526197 | M78: 526197 | S78: =IF(S$17=0,S56,0) -> 526197 | T78: 0 | U78: 0 | V78: 0 | W78: 0 | X78: 0 | Y78: 0 | Z78: 0 | AA78: 0 | AB78: 0 | AC78: 0
G79: Catchment 16 | I79: Trips | K79: 701732 | M79: 701732 | S79: =IF(S$17=0,S57,0) -> 701732 | T79: 0 | U79: 0 | V79: 0 | W79: 0 | X79: 0 | Y79: 0 | Z79: 0 | AA79: 0 | AB79: 0 | AC79: 0
G80: Catchment 17 | I80: Trips | K80: 71445 | M80: 71445 | S80: =IF(S$17=0,S58,0) -> 71445 | T80: 0 | U80: 0 | V80: 0 | W80: 0 | X80: 0 | Y80: 0 | Z80: 0 | AA80: 0 | AB80: 0 | AC80: 0
G82: Total | I82: Trips | K82: =SUM(K64:K80) -> 6253612 | M82: =SUM(M64:M80) -> 6253612 | S82: =SUM(S64:S80) -> 6253612 | T82: =SUM(T64:T80) -> 0 | U82: 0 | V82: 0 | W82: 0 | X82: 0 | Y82: 0 | Z82: 0 | AA82: 0 | AB82: 0 | AC82: 0
G84: Future Demand
G86: Year of Next Input
G87: =PIPSectors -> Catchment 1 | I87: Demand unit | S87: =IF(S$9=MAX($S$9:$AM$9),S$9,SMALL((S$9:$AM$9)*ISNUMBER(S42:$AM42),SUM(IF((S$9:$AM$9)*ISNUMBER(S42:$AM42)=0,1,0))+1)) -> 1 | T87: =IF(T$9=MAX($S$9:$AM$9),T$9,SMALL((T$9:$AM$9)*ISNUMBER(T42:$AM42),SUM(IF((T$9:$AM$9)*ISNUMBER(T42:$AM42)=0,1,0))+1)) -> 1 | U87: =IF(U$9=MAX($S$9:$AM$9),U$9,SMALL((U$9:$AM$9)*ISNUMBER(U42:$AM42),SUM(IF((U$9:$AM$9)*ISNUMBER(U42:$AM42)=0,1,0))+1)) -> 2 | V87: =IF(V$9=MAX($S$9:$AM$9),V$9,SMALL((V$9:$AM$9)*ISNUMBER(V42:$AM42),SUM(IF((V$9:$AM$9)*ISNUMBER(V42:$AM42)=0,1,0))+1)) -> 3 | W87: =IF(W$9=MAX($S$9:$AM$9),W$9,SMALL((W$9:$AM$9)*ISNUMBER(W42:$AM42),SUM(IF((W$9:$AM$9)*ISNUMBER(W42:$AM42)=0,1,0))+1)) -> 4 | X87: =IF(X$9=MAX($S$9:$AM$9),X$9,SMALL((X$9:$AM$9)*ISNUMBER(X42:$AM42),SUM(IF((X$9:$AM$9)*ISNUMBER(X42:$AM42)=0,1,0))+1)) -> 5 | Y87: =IF(Y$9=MAX($S$9:$AM$9),Y$9,SMALL((Y$9:$AM$9)*ISNUMBER(Y42:$AM42),SUM(IF((Y$9:$AM$9)*ISNUMBER(Y42:$AM42)=0,1,0))+1)) -> 6 | Z87: =IF(Z$9=MAX($S$9:$AM$9),Z$9,SMALL((Z$9:$AM$9)*ISNUMBER(Z42:$AM42),SUM(IF((Z$9:$AM$9)*ISNUMBER(Z42:$AM42)=0,1,0))+1)) -> 7 | AA87: =IF(AA$9=MAX($S$9:$AM$9),AA$9,SMALL((AA$9:$AM$9)*ISNUMBER(AA42:$AM42),SUM(IF((AA$9:$AM$9)*ISNUMBER(AA42:$AM42)=0,1,0))+1)) -> 8 | AB87: =IF(AB$9=MAX($S$9:$AM$9),AB$9,SMALL((AB$9:$AM$9)*ISNUMBER(AB42:$AM42),SUM(IF((AB$9:$AM$9)*ISNUMBER(AB42:$AM42)=0,1,0))+1)) -> 9 | AC87: =IF(AC$9=MAX($S$9:$AM$9),AC$9,SMALL((AC$9:$AM$9)*ISNUMBER(AC42:$AM42),SUM(IF((AC$9:$AM$9)*ISNUMBER(AC42:$AM42)=0,1,0))+1)) -> 10
G88: Catchment 2 | I88: Demand unit | S88: =IF(S$9=MAX($S$9:$AM$9),S$9,SMALL((S$9:$AM$9)*ISNUMBER(S43:$AM43),SUM(IF((S$9:$AM$9)*ISNUMBER(S43:$AM43)=0,1,0))+1)) -> 1 | T88: =IF(T$9=MAX($S$9:$AM$9),T$9,SMALL((T$9:$AM$9)*ISNUMBER(T43:$AM43),SUM(IF((T$9:$AM$9)*ISNUMBER(T43:$AM43)=0,1,0))+1)) -> 1 | U88: =IF(U$9=MAX($S$9:$AM$9),U$9,SMALL((U$9:$AM$9)*ISNUMBER(U43:$AM43),SUM(IF((U$9:$AM$9)*ISNUMBER(U43:$AM43)=0,1,0))+1)) -> 2 | V88: =IF(V$9=MAX($S$9:$AM$9),V$9,SMALL((V$9:$AM$9)*ISNUMBER(V43:$AM43),SUM(IF((V$9:$AM$9)*ISNUMBER(V43:$AM43)=0,1,0))+1)) -> 3 | W88: =IF(W$9=MAX($S$9:$AM$9),W$9,SMALL((W$9:$AM$9)*ISNUMBER(W43:$AM43),SUM(IF((W$9:$AM$9)*ISNUMBER(W43:$AM43)=0,1,0))+1)) -> 4 | X88: =IF(X$9=MAX($S$9:$AM$9),X$9,SMALL((X$9:$AM$9)*ISNUMBER(X43:$AM43),SUM(IF((X$9:$AM$9)*ISNUMBER(X43:$AM43)=0,1,0))+1)) -> 5 | Y88: =IF(Y$9=MAX($S$9:$AM$9),Y$9,SMALL((Y$9:$AM$9)*ISNUMBER(Y43:$AM43),SUM(IF((Y$9:$AM$9)*ISNUMBER(Y43:$AM43)=0,1,0))+1)) -> 6 | Z88: =IF(Z$9=MAX($S$9:$AM$9),Z$9,SMALL((Z$9:$AM$9)*ISNUMBER(Z43:$AM43),SUM(IF((Z$9:$AM$9)*ISNUMBER(Z43:$AM43)=0,1,0))+1)) -> 7 | AA88: =IF(AA$9=MAX($S$9:$AM$9),AA$9,SMALL((AA$9:$AM$9)*ISNUMBER(AA43:$AM43),SUM(IF((AA$9:$AM$9)*ISNUMBER(AA43:$AM43)=0,1,0))+1)) -> 8 | AB88: =IF(AB$9=MAX($S$9:$AM$9),AB$9,SMALL((AB$9:$AM$9)*ISNUMBER(AB43:$AM43),SUM(IF((AB$9:$AM$9)*ISNUMBER(AB43:$AM43)=0,1,0))+1)) -> 9 | AC88: =IF(AC$9=MAX($S$9:$AM$9),AC$9,SMALL((AC$9:$AM$9)*ISNUMBER(AC43:$AM43),SUM(IF((AC$9:$AM$9)*ISNUMBER(AC43:$AM43)=0,1,0))+1)) -> 10
G89: Catchment 3 | I89: Demand unit | S89: =IF(S$9=MAX($S$9:$AM$9),S$9,SMALL((S$9:$AM$9)*ISNUMBER(S44:$AM44),SUM(IF((S$9:$AM$9)*ISNUMBER(S44:$AM44)=0,1,0))+1)) -> 1 | T89: =IF(T$9=MAX($S$9:$AM$9),T$9,SMALL((T$9:$AM$9)*ISNUMBER(T44:$AM44),SUM(IF((T$9:$AM$9)*ISNUMBER(T44:$AM44)=0,1,0))+1)) -> 1 | U89: =IF(U$9=MAX($S$9:$AM$9),U$9,SMALL((U$9:$AM$9)*ISNUMBER(U44:$AM44),SUM(IF((U$9:$AM$9)*ISNUMBER(U44:$AM44)=0,1,0))+1)) -> 2 | V89: =IF(V$9=MAX($S$9:$AM$9),V$9,SMALL((V$9:$AM$9)*ISNUMBER(V44:$AM44),SUM(IF((V$9:$AM$9)*ISNUMBER(V44:$AM44)=0,1,0))+1)) -> 3 | W89: =IF(W$9=MAX($S$9:$AM$9),W$9,SMALL((W$9:$AM$9)*ISNUMBER(W44:$AM44),SUM(IF((W$9:$AM$9)*ISNUMBER(W44:$AM44)=0,1,0))+1)) -> 4 | X89: =IF(X$9=MAX($S$9:$AM$9),X$9,SMALL((X$9:$AM$9)*ISNUMBER(X44:$AM44),SUM(IF((X$9:$AM$9)*ISNUMBER(X44:$AM44)=0,1,0))+1)) -> 5 | Y89: =IF(Y$9=MAX($S$9:$AM$9),Y$9,SMALL((Y$9:$AM$9)*ISNUMBER(Y44:$AM44),SUM(IF((Y$9:$AM$9)*ISNUMBER(Y44:$AM44)=0,1,0))+1)) -> 6 | Z89: =IF(Z$9=MAX($S$9:$AM$9),Z$9,SMALL((Z$9:$AM$9)*ISNUMBER(Z44:$AM44),SUM(IF((Z$9:$AM$9)*ISNUMBER(Z44:$AM44)=0,1,0))+1)) -> 7 | AA89: =IF(AA$9=MAX($S$9:$AM$9),AA$9,SMALL((AA$9:$AM$9)*ISNUMBER(AA44:$AM44),SUM(IF((AA$9:$AM$9)*ISNUMBER(AA44:$AM44)=0,1,0))+1)) -> 8 | AB89: =IF(AB$9=MAX($S$9:$AM$9),AB$9,SMALL((AB$9:$AM$9)*ISNUMBER(AB44:$AM44),SUM(IF((AB$9:$AM$9)*ISNUMBER(AB44:$AM44)=0,1,0))+1)) -> 9 | AC89: =IF(AC$9=MAX($S$9:$AM$9),AC$9,SMALL((AC$9:$AM$9)*ISNUMBER(AC44:$AM44),SUM(IF((AC$9:$AM$9)*ISNUMBER(AC44:$AM44)=0,1,0))+1)) -> 10
G90: Catchment 4 | I90: Demand unit | S90: =IF(S$9=MAX($S$9:$AM$9),S$9,SMALL((S$9:$AM$9)*ISNUMBER(S45:$AM45),SUM(IF((S$9:$AM$9)*ISNUMBER(S45:$AM45)=0,1,0))+1)) -> 1 | T90: =IF(T$9=MAX($S$9:$AM$9),T$9,SMALL((T$9:$AM$9)*ISNUMBER(T45:$AM45),SUM(IF((T$9:$AM$9)*ISNUMBER(T45:$AM45)=0,1,0))+1)) -> 1 | U90: =IF(U$9=MAX($S$9:$AM$9),U$9,SMALL((U$9:$AM$9)*ISNUMBER(U45:$AM45),SUM(IF((U$9:$AM$9)*ISNUMBER(U45:$AM45)=0,1,0))+1)) -> 2 | V90: =IF(V$9=MAX($S$9:$AM$9),V$9,SMALL((V$9:$AM$9)*ISNUMBER(V45:$AM45),SUM(IF((V$9:$AM$9)*ISNUMBER(V45:$AM45)=0,1,0))+1)) -> 3 | W90: =IF(W$9=MAX($S$9:$AM$9),W$9,SMALL((W$9:$AM$9)*ISNUMBER(W45:$AM45),SUM(IF((W$9:$AM$9)*ISNUMBER(W45:$AM45)=0,1,0))+1)) -> 4 | X90: =IF(X$9=MAX($S$9:$AM$9),X$9,SMALL((X$9:$AM$9)*ISNUMBER(X45:$AM45),SUM(IF((X$9:$AM$9)*ISNUMBER(X45:$AM45)=0,1,0))+1)) -> 5 | Y90: =IF(Y$9=MAX($S$9:$AM$9),Y$9,SMALL((Y$9:$AM$9)*ISNUMBER(Y45:$AM45),SUM(IF((Y$9:$AM$9)*ISNUMBER(Y45:$AM45)=0,1,0))+1)) -> 6 | Z90: =IF(Z$9=MAX($S$9:$AM$9),Z$9,SMALL((Z$9:$AM$9)*ISNUMBER(Z45:$AM45),SUM(IF((Z$9:$AM$9)*ISNUMBER(Z45:$AM45)=0,1,0))+1)) -> 7 | AA90: =IF(AA$9=MAX($S$9:$AM$9),AA$9,SMALL((AA$9:$AM$9)*ISNUMBER(AA45:$AM45),SUM(IF((AA$9:$AM$9)*ISNUMBER(AA45:$AM45)=0,1,0))+1)) -> 8 | AB90: =IF(AB$9=MAX($S$9:$AM$9),AB$9,SMALL((AB$9:$AM$9)*ISNUMBER(AB45:$AM45),SUM(IF((AB$9:$AM$9)*ISNUMBER(AB45:$AM45)=0,1,0))+1)) -> 9 | AC90: =IF(AC$9=MAX($S$9:$AM$9),AC$9,SMALL((AC$9:$AM$9)*ISNUMBER(AC45:$AM45),SUM(IF((AC$9:$AM$9)*ISNUMBER(AC45:$AM45)=0,1,0))+1)) -> 10
G91: Catchment 5 | I91: Demand unit | S91: =IF(S$9=MAX($S$9:$AM$9),S$9,SMALL((S$9:$AM$9)*ISNUMBER(S46:$AM46),SUM(IF((S$9:$AM$9)*ISNUMBER(S46:$AM46)=0,1,0))+1)) -> 1 | T91: =IF(T$9=MAX($S$9:$AM$9),T$9,SMALL((T$9:$AM$9)*ISNUMBER(T46:$AM46),SUM(IF((T$9:$AM$9)*ISNUMBER(T46:$AM46)=0,1,0))+1)) -> 1 | U91: =IF(U$9=MAX($S$9:$AM$9),U$9,SMALL((U$9:$AM$9)*ISNUMBER(U46:$AM46),SUM(IF((U$9:$AM$9)*ISNUMBER(U46:$AM46)=0,1,0))+1)) -> 2 | V91: =IF(V$9=MAX($S$9:$AM$9),V$9,SMALL((V$9:$AM$9)*ISNUMBER(V46:$AM46),SUM(IF((V$9:$AM$9)*ISNUMBER(V46:$AM46)=0,1,0))+1)) -> 3 | W91: =IF(W$9=MAX($S$9:$AM$9),W$9,SMALL((W$9:$AM$9)*ISNUMBER(W46:$AM46),SUM(IF((W$9:$AM$9)*ISNUMBER(W46:$AM46)=0,1,0))+1)) -> 4 | X91: =IF(X$9=MAX($S$9:$AM$9),X$9,SMALL((X$9:$AM$9)*ISNUMBER(X46:$AM46),SUM(IF((X$9:$AM$9)*ISNUMBER(X46:$AM46)=0,1,0))+1)) -> 5 | Y91: =IF(Y$9=MAX($S$9:$AM$9),Y$9,SMALL((Y$9:$AM$9)*ISNUMBER(Y46:$AM46),SUM(IF((Y$9:$AM$9)*ISNUMBER(Y46:$AM46)=0,1,0))+1)) -> 6 | Z91: =IF(Z$9=MAX($S$9:$AM$9),Z$9,SMALL((Z$9:$AM$9)*ISNUMBER(Z46:$AM46),SUM(IF((Z$9:$AM$9)*ISNUMBER(Z46:$AM46)=0,1,0))+1)) -> 7 | AA91: =IF(AA$9=MAX($S$9:$AM$9),AA$9,SMALL((AA$9:$AM$9)*ISNUMBER(AA46:$AM46),SUM(IF((AA$9:$AM$9)*ISNUMBER(AA46:$AM46)=0,1,0))+1)) -> 8 | AB91: =IF(AB$9=MAX($S$9:$AM$9),AB$9,SMALL((AB$9:$AM$9)*ISNUMBER(AB46:$AM46),SUM(IF((AB$9:$AM$9)*ISNUMBER(AB46:$AM46)=0,1,0))+1)) -> 9 | AC91: =IF(AC$9=MAX($S$9:$AM$9),AC$9,SMALL((AC$9:$AM$9)*ISNUMBER(AC46:$AM46),SUM(IF((AC$9:$AM$9)*ISNUMBER(AC46:$AM46)=0,1,0))+1)) -> 10
G92: Catchment 6 | I92: Demand unit | S92: =IF(S$9=MAX($S$9:$AM$9),S$9,SMALL((S$9:$AM$9)*ISNUMBER(S47:$AM47),SUM(IF((S$9:$AM$9)*ISNUMBER(S47:$AM47)=0,1,0))+1)) -> 1 | T92: =IF(T$9=MAX($S$9:$AM$9),T$9,SMALL((T$9:$AM$9)*ISNUMBER(T47:$AM47),SUM(IF((T$9:$AM$9)*ISNUMBER(T47:$AM47)=0,1,0))+1)) -> 1 | U92: =IF(U$9=MAX($S$9:$AM$9),U$9,SMALL((U$9:$AM$9)*ISNUMBER(U47:$AM47),SUM(IF((U$9:$AM$9)*ISNUMBER(U47:$AM47)=0,1,0))+1)) -> 2 | V92: =IF(V$9=MAX($S$9:$AM$9),V$9,SMALL((V$9:$AM$9)*ISNUMBER(V47:$AM47),SUM(IF((V$9:$AM$9)*ISNUMBER(V47:$AM47)=0,1,0))+1)) -> 3 | W92: =IF(W$9=MAX($S$9:$AM$9),W$9,SMALL((W$9:$AM$9)*ISNUMBER(W47:$AM47),SUM(IF((W$9:$AM$9)*ISNUMBER(W47:$AM47)=0,1,0))+1)) -> 4 | X92: =IF(X$9=MAX($S$9:$AM$9),X$9,SMALL((X$9:$AM$9)*ISNUMBER(X47:$AM47),SUM(IF((X$9:$AM$9)*ISNUMBER(X47:$AM47)=0,1,0))+1)) -> 5 | Y92: =IF(Y$9=MAX($S$9:$AM$9),Y$9,SMALL((Y$9:$AM$9)*ISNUMBER(Y47:$AM47),SUM(IF((Y$9:$AM$9)*ISNUMBER(Y47:$AM47)=0,1,0))+1)) -> 6 | Z92: =IF(Z$9=MAX($S$9:$AM$9),Z$9,SMALL((Z$9:$AM$9)*ISNUMBER(Z47:$AM47),SUM(IF((Z$9:$AM$9)*ISNUMBER(Z47:$AM47)=0,1,0))+1)) -> 7 | AA92: =IF(AA$9=MAX($S$9:$AM$9),AA$9,SMALL((AA$9:$AM$9)*ISNUMBER(AA47:$AM47),SUM(IF((AA$9:$AM$9)*ISNUMBER(AA47:$AM47)=0,1,0))+1)) -> 8 | AB92: =IF(AB$9=MAX($S$9:$AM$9),AB$9,SMALL((AB$9:$AM$9)*ISNUMBER(AB47:$AM47),SUM(IF((AB$9:$AM$9)*ISNUMBER(AB47:$AM47)=0,1,0))+1)) -> 9 | AC92: =IF(AC$9=MAX($S$9:$AM$9),AC$9,SMALL((AC$9:$AM$9)*ISNUMBER(AC47:$AM47),SUM(IF((AC$9:$AM$9)*ISNUMBER(AC47:$AM47)=0,1,0))+1)) -> 10
G93: Catchment 7 | I93: Demand unit | S93: =IF(S$9=MAX($S$9:$AM$9),S$9,SMALL((S$9:$AM$9)*ISNUMBER(S48:$AM48),SUM(IF((S$9:$AM$9)*ISNUMBER(S48:$AM48)=0,1,0))+1)) -> 1 | T93: =IF(T$9=MAX($S$9:$AM$9),T$9,SMALL((T$9:$AM$9)*ISNUMBER(T48:$AM48),SUM(IF((T$9:$AM$9)*ISNUMBER(T48:$AM48)=0,1,0))+1)) -> 1 | U93: =IF(U$9=MAX($S$9:$AM$9),U$9,SMALL((U$9:$AM$9)*ISNUMBER(U48:$AM48),SUM(IF((U$9:$AM$9)*ISNUMBER(U48:$AM48)=0,1,0))+1)) -> 2 | V93: =IF(V$9=MAX($S$9:$AM$9),V$9,SMALL((V$9:$AM$9)*ISNUMBER(V48:$AM48),SUM(IF((V$9:$AM$9)*ISNUMBER(V48:$AM48)=0,1,0))+1)) -> 3 | W93: =IF(W$9=MAX($S$9:$AM$9),W$9,SMALL((W$9:$AM$9)*ISNUMBER(W48:$AM48),SUM(IF((W$9:$AM$9)*ISNUMBER(W48:$AM48)=0,1,0))+1)) -> 4 | X93: =IF(X$9=MAX($S$9:$AM$9),X$9,SMALL((X$9:$AM$9)*ISNUMBER(X48:$AM48),SUM(IF((X$9:$AM$9)*ISNUMBER(X48:$AM48)=0,1,0))+1)) -> 5 | Y93: =IF(Y$9=MAX($S$9:$AM$9),Y$9,SMALL((Y$9:$AM$9)*ISNUMBER(Y48:$AM48),SUM(IF((Y$9:$AM$9)*ISNUMBER(Y48:$AM48)=0,1,0))+1)) -> 6 | Z93: =IF(Z$9=MAX($S$9:$AM$9),Z$9,SMALL((Z$9:$AM$9)*ISNUMBER(Z48:$AM48),SUM(IF((Z$9:$AM$9)*ISNUMBER(Z48:$AM48)=0,1,0))+1)) -> 7 | AA93: =IF(AA$9=MAX($S$9:$AM$9),AA$9,SMALL((AA$9:$AM$9)*ISNUMBER(AA48:$AM48),SUM(IF((AA$9:$AM$9)*ISNUMBER(AA48:$AM48)=0,1,0))+1)) -> 8 | AB93: =IF(AB$9=MAX($S$9:$AM$9),AB$9,SMALL((AB$9:$AM$9)*ISNUMBER(AB48:$AM48),SUM(IF((AB$9:$AM$9)*ISNUMBER(AB48:$AM48)=0,1,0))+1)) -> 9 | AC93: =IF(AC$9=MAX($S$9:$AM$9),AC$9,SMALL((AC$9:$AM$9)*ISNUMBER(AC48:$AM48),SUM(IF((AC$9:$AM$9)*ISNUMBER(AC48:$AM48)=0,1,0))+1)) -> 10
G94: Catchment 8 | I94: Demand unit | S94: =IF(S$9=MAX($S$9:$AM$9),S$9,SMALL((S$9:$AM$9)*ISNUMBER(S49:$AM49),SUM(IF((S$9:$AM$9)*ISNUMBER(S49:$AM49)=0,1,0))+1)) -> 1 | T94: =IF(T$9=MAX($S$9:$AM$9),T$9,SMALL((T$9:$AM$9)*ISNUMBER(T49:$AM49),SUM(IF((T$9:$AM$9)*ISNUMBER(T49:$AM49)=0,1,0))+1)) -> 1 | U94: =IF(U$9=MAX($S$9:$AM$9),U$9,SMALL((U$9:$AM$9)*ISNUMBER(U49:$AM49),SUM(IF((U$9:$AM$9)*ISNUMBER(U49:$AM49)=0,1,0))+1)) -> 2 | V94: =IF(V$9=MAX($S$9:$AM$9),V$9,SMALL((V$9:$AM$9)*ISNUMBER(V49:$AM49),SUM(IF((V$9:$AM$9)*ISNUMBER(V49:$AM49)=0,1,0))+1)) -> 3 | W94: =IF(W$9=MAX($S$9:$AM$9),W$9,SMALL((W$9:$AM$9)*ISNUMBER(W49:$AM49),SUM(IF((W$9:$AM$9)*ISNUMBER(W49:$AM49)=0,1,0))+1)) -> 4 | X94: =IF(X$9=MAX($S$9:$AM$9),X$9,SMALL((X$9:$AM$9)*ISNUMBER(X49:$AM49),SUM(IF((X$9:$AM$9)*ISNUMBER(X49:$AM49)=0,1,0))+1)) -> 5 | Y94: =IF(Y$9=MAX($S$9:$AM$9),Y$9,SMALL((Y$9:$AM$9)*ISNUMBER(Y49:$AM49),SUM(IF((Y$9:$AM$9)*ISNUMBER(Y49:$AM49)=0,1,0))+1)) -> 6 | Z94: =IF(Z$9=MAX($S$9:$AM$9),Z$9,SMALL((Z$9:$AM$9)*ISNUMBER(Z49:$AM49),SUM(IF((Z$9:$AM$9)*ISNUMBER(Z49:$AM49)=0,1,0))+1)) -> 7 | AA94: =IF(AA$9=MAX($S$9:$AM$9),AA$9,SMALL((AA$9:$AM$9)*ISNUMBER(AA49:$AM49),SUM(IF((AA$9:$AM$9)*ISNUMBER(AA49:$AM49)=0,1,0))+1)) -> 8 | AB94: =IF(AB$9=MAX($S$9:$AM$9),AB$9,SMALL((AB$9:$AM$9)*ISNUMBER(AB49:$AM49),SUM(IF((AB$9:$AM$9)*ISNUMBER(AB49:$AM49)=0,1,0))+1)) -> 9 | AC94: =IF(AC$9=MAX($S$9:$AM$9),AC$9,SMALL((AC$9:$AM$9)*ISNUMBER(AC49:$AM49),SUM(IF((AC$9:$AM$9)*ISNUMBER(AC49:$AM49)=0,1,0))+1)) -> 10
G95: Catchment 9 | I95: Demand unit | S95: =IF(S$9=MAX($S$9:$AM$9),S$9,SMALL((S$9:$AM$9)*ISNUMBER(S50:$AM50),SUM(IF((S$9:$AM$9)*ISNUMBER(S50:$AM50)=0,1,0))+1)) -> 1 | T95: =IF(T$9=MAX($S$9:$AM$9),T$9,SMALL((T$9:$AM$9)*ISNUMBER(T50:$AM50),SUM(IF((T$9:$AM$9)*ISNUMBER(T50:$AM50)=0,1,0))+1)) -> 1 | U95: =IF(U$9=MAX($S$9:$AM$9),U$9,SMALL((U$9:$AM$9)*ISNUMBER(U50:$AM50),SUM(IF((U$9:$AM$9)*ISNUMBER(U50:$AM50)=0,1,0))+1)) -> 2 | V95: =IF(V$9=MAX($S$9:$AM$9),V$9,SMALL((V$9:$AM$9)*ISNUMBER(V50:$AM50),SUM(IF((V$9:$AM$9)*ISNUMBER(V50:$AM50)=0,1,0))+1)) -> 3 | W95: =IF(W$9=MAX($S$9:$AM$9),W$9,SMALL((W$9:$AM$9)*ISNUMBER(W50:$AM50),SUM(IF((W$9:$AM$9)*ISNUMBER(W50:$AM50)=0,1,0))+1)) -> 4 | X95: =IF(X$9=MAX($S$9:$AM$9),X$9,SMALL((X$9:$AM$9)*ISNUMBER(X50:$AM50),SUM(IF((X$9:$AM$9)*ISNUMBER(X50:$AM50)=0,1,0))+1)) -> 5 | Y95: =IF(Y$9=MAX($S$9:$AM$9),Y$9,SMALL((Y$9:$AM$9)*ISNUMBER(Y50:$AM50),SUM(IF((Y$9:$AM$9)*ISNUMBER(Y50:$AM50)=0,1,0))+1)) -> 6 | Z95: =IF(Z$9=MAX($S$9:$AM$9),Z$9,SMALL((Z$9:$AM$9)*ISNUMBER(Z50:$AM50),SUM(IF((Z$9:$AM$9)*ISNUMBER(Z50:$AM50)=0,1,0))+1)) -> 7 | AA95: =IF(AA$9=MAX($S$9:$AM$9),AA$9,SMALL((AA$9:$AM$9)*ISNUMBER(AA50:$AM50),SUM(IF((AA$9:$AM$9)*ISNUMBER(AA50:$AM50)=0,1,0))+1)) -> 8 | AB95: =IF(AB$9=MAX($S$9:$AM$9),AB$9,SMALL((AB$9:$AM$9)*ISNUMBER(AB50:$AM50),SUM(IF((AB$9:$AM$9)*ISNUMBER(AB50:$AM50)=0,1,0))+1)) -> 9 | AC95: =IF(AC$9=MAX($S$9:$AM$9),AC$9,SMALL((AC$9:$AM$9)*ISNUMBER(AC50:$AM50),SUM(IF((AC$9:$AM$9)*ISNUMBER(AC50:$AM50)=0,1,0))+1)) -> 10
G96: Catchment 10 | I96: Demand unit | S96: 1 | T96: 1 | U96: 2 | V96: 3 | W96: 4 | X96: 5 | Y96: 6 | Z96: 7 | AA96: 8 | AB96: 9 | AC96: 10
G97: Catchment 11 | I97: Demand unit | S97: 1 | T97: 1 | U97: 2 | V97: 3 | W97: 4 | X97: 5 | Y97: 6 | Z97: 7 | AA97: 8 | AB97: 9 | AC97: 10
G98: Catchment 12 | I98: Demand unit | S98: 1 | T98: 1 | U98: 2 | V98: 3 | W98: 4 | X98: 5 | Y98: 6 | Z98: 7 | AA98: 8 | AB98: 9 | AC98: 10
G99: Catchment 13 | I99: Demand unit | S99: 1 | T99: 1 | U99: 2 | V99: 3 | W99: 4 | X99: 5 | Y99: 6 | Z99: 7 | AA99: 8 | AB99: 9 | AC99: 10
G100: Catchment 14 | I100: Demand unit | S100: 1 | T100: 1 | U100: 2 | V100: 3 | W100: 4 | X100: 5 | Y100: 6 | Z100: 7 | AA100: 8 | AB100: 9 | AC100: 10
G101: Catchment 15 | I101: Demand unit | S101: 1 | T101: 1 | U101: 2 | V101: 3 | W101: 4 | X101: 5 | Y101: 6 | Z101: 7 | AA101: 8 | AB101: 9 | AC101: 10
G102: Catchment 16 | I102: Demand unit | S102: 1 | T102: 1 | U102: 2 | V102: 3 | W102: 4 | X102: 5 | Y102: 6 | Z102: 7 | AA102: 8 | AB102: 9 | AC102: 10
G103: Catchment 17 | I103: Demand unit | S103: 1 | T103: 1 | U103: 2 | V103: 3 | W103: 4 | X103: 5 | Y103: 6 | Z103: 7 | AA103: 8 | AB103: 9 | AC103: 10
G105: Year of Previous Input
G106: =PIPSectors -> Catchment 1 | I106: Demand unit | S106: =IFERROR(SMALL(($R$9:S$9)*ISNUMBER($R42:S42),SUM(IF(($R$9:S$9)*ISNUMBER($R42:S42)<S$9,1,0))),S$9) -> 0 | T106: =IFERROR(SMALL(($R$9:T$9)*ISNUMBER($R42:T42),SUM(IF(($R$9:T$9)*ISNUMBER($R42:T42)<T$9,1,0))),T$9) -> 0 | U106: =IFERROR(SMALL(($R$9:U$9)*ISNUMBER($R42:U42),SUM(IF(($R$9:U$9)*ISNUMBER($R42:U42)<U$9,1,0))),U$9) -> 1 | V106: =IFERROR(SMALL(($R$9:V$9)*ISNUMBER($R42:V42),SUM(IF(($R$9:V$9)*ISNUMBER($R42:V42)<V$9,1,0))),V$9) -> 2 | W106: =IFERROR(SMALL(($R$9:W$9)*ISNUMBER($R42:W42),SUM(IF(($R$9:W$9)*ISNUMBER($R42:W42)<W$9,1,0))),W$9) -> 3 | X106: =IFERROR(SMALL(($R$9:X$9)*ISNUMBER($R42:X42),SUM(IF(($R$9:X$9)*ISNUMBER($R42:X42)<X$9,1,0))),X$9) -> 4 | Y106: =IFERROR(SMALL(($R$9:Y$9)*ISNUMBER($R42:Y42),SUM(IF(($R$9:Y$9)*ISNUMBER($R42:Y42)<Y$9,1,0))),Y$9) -> 5 | Z106: =IFERROR(SMALL(($R$9:Z$9)*ISNUMBER($R42:Z42),SUM(IF(($R$9:Z$9)*ISNUMBER($R42:Z42)<Z$9,1,0))),Z$9) -> 6 | AA106: =IFERROR(SMALL(($R$9:AA$9)*ISNUMBER($R42:AA42),SUM(IF(($R$9:AA$9)*ISNUMBER($R42:AA42)<AA$9,1,0))),AA$9) -> 7 | AB106: =IFERROR(SMALL(($R$9:AB$9)*ISNUMBER($R42:AB42),SUM(IF(($R$9:AB$9)*ISNUMBER($R42:AB42)<AB$9,1,0))),AB$9) -> 8 | AC106: =IFERROR(SMALL(($R$9:AC$9)*ISNUMBER($R42:AC42),SUM(IF(($R$9:AC$9)*ISNUMBER($R42:AC42)<AC$9,1,0))),AC$9) -> 9
G107: Catchment 2 | I107: Demand unit | S107: =IFERROR(SMALL(($R$9:S$9)*ISNUMBER($R43:S43),SUM(IF(($R$9:S$9)*ISNUMBER($R43:S43)<S$9,1,0))),S$9) -> 0 | T107: =IFERROR(SMALL(($R$9:T$9)*ISNUMBER($R43:T43),SUM(IF(($R$9:T$9)*ISNUMBER($R43:T43)<T$9,1,0))),T$9) -> 0 | U107: =IFERROR(SMALL(($R$9:U$9)*ISNUMBER($R43:U43),SUM(IF(($R$9:U$9)*ISNUMBER($R43:U43)<U$9,1,0))),U$9) -> 1 | V107: =IFERROR(SMALL(($R$9:V$9)*ISNUMBER($R43:V43),SUM(IF(($R$9:V$9)*ISNUMBER($R43:V43)<V$9,1,0))),V$9) -> 2 | W107: =IFERROR(SMALL(($R$9:W$9)*ISNUMBER($R43:W43),SUM(IF(($R$9:W$9)*ISNUMBER($R43:W43)<W$9,1,0))),W$9) -> 3 | X107: =IFERROR(SMALL(($R$9:X$9)*ISNUMBER($R43:X43),SUM(IF(($R$9:X$9)*ISNUMBER($R43:X43)<X$9,1,0))),X$9) -> 4 | Y107: =IFERROR(SMALL(($R$9:Y$9)*ISNUMBER($R43:Y43),SUM(IF(($R$9:Y$9)*ISNUMBER($R43:Y43)<Y$9,1,0))),Y$9) -> 5 | Z107: =IFERROR(SMALL(($R$9:Z$9)*ISNUMBER($R43:Z43),SUM(IF(($R$9:Z$9)*ISNUMBER($R43:Z43)<Z$9,1,0))),Z$9) -> 6 | AA107: =IFERROR(SMALL(($R$9:AA$9)*ISNUMBER($R43:AA43),SUM(IF(($R$9:AA$9)*ISNUMBER($R43:AA43)<AA$9,1,0))),AA$9) -> 7 | AB107: =IFERROR(SMALL(($R$9:AB$9)*ISNUMBER($R43:AB43),SUM(IF(($R$9:AB$9)*ISNUMBER($R43:AB43)<AB$9,1,0))),AB$9) -> 8 | AC107: =IFERROR(SMALL(($R$9:AC$9)*ISNUMBER($R43:AC43),SUM(IF(($R$9:AC$9)*ISNUMBER($R43:AC43)<AC$9,1,0))),AC$9) -> 9
G108: Catchment 3 | I108: Demand unit | S108: =IFERROR(SMALL(($R$9:S$9)*ISNUMBER($R44:S44),SUM(IF(($R$9:S$9)*ISNUMBER($R44:S44)<S$9,1,0))),S$9) -> 0 | T108: =IFERROR(SMALL(($R$9:T$9)*ISNUMBER($R44:T44),SUM(IF(($R$9:T$9)*ISNUMBER($R44:T44)<T$9,1,0))),T$9) -> 0 | U108: =IFERROR(SMALL(($R$9:U$9)*ISNUMBER($R44:U44),SUM(IF(($R$9:U$9)*ISNUMBER($R44:U44)<U$9,1,0))),U$9) -> 1 | V108: =IFERROR(SMALL(($R$9:V$9)*ISNUMBER($R44:V44),SUM(IF(($R$9:V$9)*ISNUMBER($R44:V44)<V$9,1,0))),V$9) -> 2 | W108: =IFERROR(SMALL(($R$9:W$9)*ISNUMBER($R44:W44),SUM(IF(($R$9:W$9)*ISNUMBER($R44:W44)<W$9,1,0))),W$9) -> 3 | X108: =IFERROR(SMALL(($R$9:X$9)*ISNUMBER($R44:X44),SUM(IF(($R$9:X$9)*ISNUMBER($R44:X44)<X$9,1,0))),X$9) -> 4 | Y108: =IFERROR(SMALL(($R$9:Y$9)*ISNUMBER($R44:Y44),SUM(IF(($R$9:Y$9)*ISNUMBER($R44:Y44)<Y$9,1,0))),Y$9) -> 5 | Z108: =IFERROR(SMALL(($R$9:Z$9)*ISNUMBER($R44:Z44),SUM(IF(($R$9:Z$9)*ISNUMBER($R44:Z44)<Z$9,1,0))),Z$9) -> 6 | AA108: =IFERROR(SMALL(($R$9:AA$9)*ISNUMBER($R44:AA44),SUM(IF(($R$9:AA$9)*ISNUMBER($R44:AA44)<AA$9,1,0))),AA$9) -> 7 | AB108: =IFERROR(SMALL(($R$9:AB$9)*ISNUMBER($R44:AB44),SUM(IF(($R$9:AB$9)*ISNUMBER($R44:AB44)<AB$9,1,0))),AB$9) -> 8 | AC108: =IFERROR(SMALL(($R$9:AC$9)*ISNUMBER($R44:AC44),SUM(IF(($R$9:AC$9)*ISNUMBER($R44:AC44)<AC$9,1,0))),AC$9) -> 9
G109: Catchment 4 | I109: Demand unit | S109: =IFERROR(SMALL(($R$9:S$9)*ISNUMBER($R45:S45),SUM(IF(($R$9:S$9)*ISNUMBER($R45:S45)<S$9,1,0))),S$9) -> 0 | T109: =IFERROR(SMALL(($R$9:T$9)*ISNUMBER($R45:T45),SUM(IF(($R$9:T$9)*ISNUMBER($R45:T45)<T$9,1,0))),T$9) -> 0 | U109: =IFERROR(SMALL(($R$9:U$9)*ISNUMBER($R45:U45),SUM(IF(($R$9:U$9)*ISNUMBER($R45:U45)<U$9,1,0))),U$9) -> 1 | V109: =IFERROR(SMALL(($R$9:V$9)*ISNUMBER($R45:V45),SUM(IF(($R$9:V$9)*ISNUMBER($R45:V45)<V$9,1,0))),V$9) -> 2 | W109: =IFERROR(SMALL(($R$9:W$9)*ISNUMBER($R45:W45),SUM(IF(($R$9:W$9)*ISNUMBER($R45:W45)<W$9,1,0))),W$9) -> 3 | X109: =IFERROR(SMALL(($R$9:X$9)*ISNUMBER($R45:X45),SUM(IF(($R$9:X$9)*ISNUMBER($R45:X45)<X$9,1,0))),X$9) -> 4 | Y109: =IFERROR(SMALL(($R$9:Y$9)*ISNUMBER($R45:Y45),SUM(IF(($R$9:Y$9)*ISNUMBER($R45:Y45)<Y$9,1,0))),Y$9) -> 5 | Z109: =IFERROR(SMALL(($R$9:Z$9)*ISNUMBER($R45:Z45),SUM(IF(($R$9:Z$9)*ISNUMBER($R45:Z45)<Z$9,1,0))),Z$9) -> 6 | AA109: =IFERROR(SMALL(($R$9:AA$9)*ISNUMBER($R45:AA45),SUM(IF(($R$9:AA$9)*ISNUMBER($R45:AA45)<AA$9,1,0))),AA$9) -> 7 | AB109: =IFERROR(SMALL(($R$9:AB$9)*ISNUMBER($R45:AB45),SUM(IF(($R$9:AB$9)*ISNUMBER($R45:AB45)<AB$9,1,0))),AB$9) -> 8 | AC109: =IFERROR(SMALL(($R$9:AC$9)*ISNUMBER($R45:AC45),SUM(IF(($R$9:AC$9)*ISNUMBER($R45:AC45)<AC$9,1,0))),AC$9) -> 9
G110: Catchment 5 | I110: Demand unit | S110: =IFERROR(SMALL(($R$9:S$9)*ISNUMBER($R46:S46),SUM(IF(($R$9:S$9)*ISNUMBER($R46:S46)<S$9,1,0))),S$9) -> 0 | T110: =IFERROR(SMALL(($R$9:T$9)*ISNUMBER($R46:T46),SUM(IF(($R$9:T$9)*ISNUMBER($R46:T46)<T$9,1,0))),T$9) -> 0 | U110: =IFERROR(SMALL(($R$9:U$9)*ISNUMBER($R46:U46),SUM(IF(($R$9:U$9)*ISNUMBER($R46:U46)<U$9,1,0))),U$9) -> 1 | V110: =IFERROR(SMALL(($R$9:V$9)*ISNUMBER($R46:V46),SUM(IF(($R$9:V$9)*ISNUMBER($R46:V46)<V$9,1,0))),V$9) -> 2 | W110: =IFERROR(SMALL(($R$9:W$9)*ISNUMBER($R46:W46),SUM(IF(($R$9:W$9)*ISNUMBER($R46:W46)<W$9,1,0))),W$9) -> 3 | X110: =IFERROR(SMALL(($R$9:X$9)*ISNUMBER($R46:X46),SUM(IF(($R$9:X$9)*ISNUMBER($R46:X46)<X$9,1,0))),X$9) -> 4 | Y110: =IFERROR(SMALL(($R$9:Y$9)*ISNUMBER($R46:Y46),SUM(IF(($R$9:Y$9)*ISNUMBER($R46:Y46)<Y$9,1,0))),Y$9) -> 5 | Z110: =IFERROR(SMALL(($R$9:Z$9)*ISNUMBER($R46:Z46),SUM(IF(($R$9:Z$9)*ISNUMBER($R46:Z46)<Z$9,1,0))),Z$9) -> 6 | AA110: =IFERROR(SMALL(($R$9:AA$9)*ISNUMBER($R46:AA46),SUM(IF(($R$9:AA$9)*ISNUMBER($R46:AA46)<AA$9,1,0))),AA$9) -> 7 | AB110: =IFERROR(SMALL(($R$9:AB$9)*ISNUMBER($R46:AB46),SUM(IF(($R$9:AB$9)*ISNUMBER($R46:AB46)<AB$9,1,0))),AB$9) -> 8 | AC110: =IFERROR(SMALL(($R$9:AC$9)*ISNUMBER($R46:AC46),SUM(IF(($R$9:AC$9)*ISNUMBER($R46:AC46)<AC$9,1,0))),AC$9) -> 9
G111: Catchment 6 | I111: Demand unit | S111: =IFERROR(SMALL(($R$9:S$9)*ISNUMBER($R47:S47),SUM(IF(($R$9:S$9)*ISNUMBER($R47:S47)<S$9,1,0))),S$9) -> 0 | T111: =IFERROR(SMALL(($R$9:T$9)*ISNUMBER($R47:T47),SUM(IF(($R$9:T$9)*ISNUMBER($R47:T47)<T$9,1,0))),T$9) -> 0 | U111: =IFERROR(SMALL(($R$9:U$9)*ISNUMBER($R47:U47),SUM(IF(($R$9:U$9)*ISNUMBER($R47:U47)<U$9,1,0))),U$9) -> 1 | V111: =IFERROR(SMALL(($R$9:V$9)*ISNUMBER($R47:V47),SUM(IF(($R$9:V$9)*ISNUMBER($R47:V47)<V$9,1,0))),V$9) -> 2 | W111: =IFERROR(SMALL(($R$9:W$9)*ISNUMBER($R47:W47),SUM(IF(($R$9:W$9)*ISNUMBER($R47:W47)<W$9,1,0))),W$9) -> 3 | X111: =IFERROR(SMALL(($R$9:X$9)*ISNUMBER($R47:X47),SUM(IF(($R$9:X$9)*ISNUMBER($R47:X47)<X$9,1,0))),X$9) -> 4 | Y111: =IFERROR(SMALL(($R$9:Y$9)*ISNUMBER($R47:Y47),SUM(IF(($R$9:Y$9)*ISNUMBER($R47:Y47)<Y$9,1,0))),Y$9) -> 5 | Z111: =IFERROR(SMALL(($R$9:Z$9)*ISNUMBER($R47:Z47),SUM(IF(($R$9:Z$9)*ISNUMBER($R47:Z47)<Z$9,1,0))),Z$9) -> 6 | AA111: =IFERROR(SMALL(($R$9:AA$9)*ISNUMBER($R47:AA47),SUM(IF(($R$9:AA$9)*ISNUMBER($R47:AA47)<AA$9,1,0))),AA$9) -> 7 | AB111: =IFERROR(SMALL(($R$9:AB$9)*ISNUMBER($R47:AB47),SUM(IF(($R$9:AB$9)*ISNUMBER($R47:AB47)<AB$9,1,0))),AB$9) -> 8 | AC111: =IFERROR(SMALL(($R$9:AC$9)*ISNUMBER($R47:AC47),SUM(IF(($R$9:AC$9)*ISNUMBER($R47:AC47)<AC$9,1,0))),AC$9) -> 9
G112: Catchment 7 | I112: Demand unit | S112: =IFERROR(SMALL(($R$9:S$9)*ISNUMBER($R48:S48),SUM(IF(($R$9:S$9)*ISNUMBER($R48:S48)<S$9,1,0))),S$9) -> 0 | T112: =IFERROR(SMALL(($R$9:T$9)*ISNUMBER($R48:T48),SUM(IF(($R$9:T$9)*ISNUMBER($R48:T48)<T$9,1,0))),T$9) -> 0 | U112: =IFERROR(SMALL(($R$9:U$9)*ISNUMBER($R48:U48),SUM(IF(($R$9:U$9)*ISNUMBER($R48:U48)<U$9,1,0))),U$9) -> 1 | V112: =IFERROR(SMALL(($R$9:V$9)*ISNUMBER($R48:V48),SUM(IF(($R$9:V$9)*ISNUMBER($R48:V48)<V$9,1,0))),V$9) -> 2 | W112: =IFERROR(SMALL(($R$9:W$9)*ISNUMBER($R48:W48),SUM(IF(($R$9:W$9)*ISNUMBER($R48:W48)<W$9,1,0))),W$9) -> 3 | X112: =IFERROR(SMALL(($R$9:X$9)*ISNUMBER($R48:X48),SUM(IF(($R$9:X$9)*ISNUMBER($R48:X48)<X$9,1,0))),X$9) -> 4 | Y112: =IFERROR(SMALL(($R$9:Y$9)*ISNUMBER($R48:Y48),SUM(IF(($R$9:Y$9)*ISNUMBER($R48:Y48)<Y$9,1,0))),Y$9) -> 5 | Z112: =IFERROR(SMALL(($R$9:Z$9)*ISNUMBER($R48:Z48),SUM(IF(($R$9:Z$9)*ISNUMBER($R48:Z48)<Z$9,1,0))),Z$9) -> 6 | AA112: =IFERROR(SMALL(($R$9:AA$9)*ISNUMBER($R48:AA48),SUM(IF(($R$9:AA$9)*ISNUMBER($R48:AA48)<AA$9,1,0))),AA$9) -> 7 | AB112: =IFERROR(SMALL(($R$9:AB$9)*ISNUMBER($R48:AB48),SUM(IF(($R$9:AB$9)*ISNUMBER($R48:AB48)<AB$9,1,0))),AB$9) -> 8 | AC112: =IFERROR(SMALL(($R$9:AC$9)*ISNUMBER($R48:AC48),SUM(IF(($R$9:AC$9)*ISNUMBER($R48:AC48)<AC$9,1,0))),AC$9) -> 9
G113: Catchment 8 | I113: Demand unit | S113: =IFERROR(SMALL(($R$9:S$9)*ISNUMBER($R49:S49),SUM(IF(($R$9:S$9)*ISNUMBER($R49:S49)<S$9,1,0))),S$9) -> 0 | T113: =IFERROR(SMALL(($R$9:T$9)*ISNUMBER($R49:T49),SUM(IF(($R$9:T$9)*ISNUMBER($R49:T49)<T$9,1,0))),T$9) -> 0 | U113: =IFERROR(SMALL(($R$9:U$9)*ISNUMBER($R49:U49),SUM(IF(($R$9:U$9)*ISNUMBER($R49:U49)<U$9,1,0))),U$9) -> 1 | V113: =IFERROR(SMALL(($R$9:V$9)*ISNUMBER($R49:V49),SUM(IF(($R$9:V$9)*ISNUMBER($R49:V49)<V$9,1,0))),V$9) -> 2 | W113: =IFERROR(SMALL(($R$9:W$9)*ISNUMBER($R49:W49),SUM(IF(($R$9:W$9)*ISNUMBER($R49:W49)<W$9,1,0))),W$9) -> 3 | X113: =IFERROR(SMALL(($R$9:X$9)*ISNUMBER($R49:X49),SUM(IF(($R$9:X$9)*ISNUMBER($R49:X49)<X$9,1,0))),X$9) -> 4 | Y113: =IFERROR(SMALL(($R$9:Y$9)*ISNUMBER($R49:Y49),SUM(IF(($R$9:Y$9)*ISNUMBER($R49:Y49)<Y$9,1,0))),Y$9) -> 5 | Z113: =IFERROR(SMALL(($R$9:Z$9)*ISNUMBER($R49:Z49),SUM(IF(($R$9:Z$9)*ISNUMBER($R49:Z49)<Z$9,1,0))),Z$9) -> 6 | AA113: =IFERROR(SMALL(($R$9:AA$9)*ISNUMBER($R49:AA49),SUM(IF(($R$9:AA$9)*ISNUMBER($R49:AA49)<AA$9,1,0))),AA$9) -> 7 | AB113: =IFERROR(SMALL(($R$9:AB$9)*ISNUMBER($R49:AB49),SUM(IF(($R$9:AB$9)*ISNUMBER($R49:AB49)<AB$9,1,0))),AB$9) -> 8 | AC113: =IFERROR(SMALL(($R$9:AC$9)*ISNUMBER($R49:AC49),SUM(IF(($R$9:AC$9)*ISNUMBER($R49:AC49)<AC$9,1,0))),AC$9) -> 9
G114: Catchment 9 | I114: Demand unit | S114: =IFERROR(SMALL(($R$9:S$9)*ISNUMBER($R50:S50),SUM(IF(($R$9:S$9)*ISNUMBER($R50:S50)<S$9,1,0))),S$9) -> 0 | T114: =IFERROR(SMALL(($R$9:T$9)*ISNUMBER($R50:T50),SUM(IF(($R$9:T$9)*ISNUMBER($R50:T50)<T$9,1,0))),T$9) -> 0 | U114: =IFERROR(SMALL(($R$9:U$9)*ISNUMBER($R50:U50),SUM(IF(($R$9:U$9)*ISNUMBER($R50:U50)<U$9,1,0))),U$9) -> 1 | V114: =IFERROR(SMALL(($R$9:V$9)*ISNUMBER($R50:V50),SUM(IF(($R$9:V$9)*ISNUMBER($R50:V50)<V$9,1,0))),V$9) -> 2 | W114: =IFERROR(SMALL(($R$9:W$9)*ISNUMBER($R50:W50),SUM(IF(($R$9:W$9)*ISNUMBER($R50:W50)<W$9,1,0))),W$9) -> 3 | X114: =IFERROR(SMALL(($R$9:X$9)*ISNUMBER($R50:X50),SUM(IF(($R$9:X$9)*ISNUMBER($R50:X50)<X$9,1,0))),X$9) -> 4 | Y114: =IFERROR(SMALL(($R$9:Y$9)*ISNUMBER($R50:Y50),SUM(IF(($R$9:Y$9)*ISNUMBER($R50:Y50)<Y$9,1,0))),Y$9) -> 5 | Z114: =IFERROR(SMALL(($R$9:Z$9)*ISNUMBER($R50:Z50),SUM(IF(($R$9:Z$9)*ISNUMBER($R50:Z50)<Z$9,1,0))),Z$9) -> 6 | AA114: =IFERROR(SMALL(($R$9:AA$9)*ISNUMBER($R50:AA50),SUM(IF(($R$9:AA$9)*ISNUMBER($R50:AA50)<AA$9,1,0))),AA$9) -> 7 | AB114: =IFERROR(SMALL(($R$9:AB$9)*ISNUMBER($R50:AB50),SUM(IF(($R$9:AB$9)*ISNUMBER($R50:AB50)<AB$9,1,0))),AB$9) -> 8 | AC114: =IFERROR(SMALL(($R$9:AC$9)*ISNUMBER($R50:AC50),SUM(IF(($R$9:AC$9)*ISNUMBER($R50:AC50)<AC$9,1,0))),AC$9) -> 9
G115: Catchment 10 | I115: Demand unit | S115: 0 | T115: 0 | U115: 1 | V115: 2 | W115: 3 | X115: 4 | Y115: 5 | Z115: 6 | AA115: 7 | AB115: 8 | AC115: 9
G116: Catchment 11 | I116: Demand unit | S116: 0 | T116: 0 | U116: 1 | V116: 2 | W116: 3 | X116: 4 | Y116: 5 | Z116: 6 | AA116: 7 | AB116: 8 | AC116: 9
G117: Catchment 12 | I117: Demand unit | S117: 0 | T117: 0 | U117: 1 | V117: 2 | W117: 3 | X117: 4 | Y117: 5 | Z117: 6 | AA117: 7 | AB117: 8 | AC117: 9
G118: Catchment 13 | I118: Demand unit | S118: 0 | T118: 0 | U118: 1 | V118: 2 | W118: 3 | X118: 4 | Y118: 5 | Z118: 6 | AA118: 7 | AB118: 8 | AC118: 9
G119: Catchment 14 | I119: Demand unit | S119: 0 | T119: 0 | U119: 1 | V119: 2 | W119: 3 | X119: 4 | Y119: 5 | Z119: 6 | AA119: 7 | AB119: 8 | AC119: 9
G120: Catchment 15 | I120: Demand unit | S120: 0 | T120: 0 | U120: 1 | V120: 2 | W120: 3 | X120: 4 | Y120: 5 | Z120: 6 | AA120: 7 | AB120: 8 | AC120: 9
G121: Catchment 16 | I121: Demand unit | S121: 0 | T121: 0 | U121: 1 | V121: 2 | W121: 3 | X121: 4 | Y121: 5 | Z121: 6 | AA121: 7 | AB121: 8 | AC121: 9
G122: Catchment 17 | I122: Demand unit | S122: 0 | T122: 0 | U122: 1 | V122: 2 | W122: 3 | X122: 4 | Y122: 5 | Z122: 6 | AA122: 7 | AB122: 8 | AC122: 9
G124: Annual Demand
G125: =PIPSectors -> Catchment 1 | I125: Trips | K125: =NPV(WACC_real,T125:AC125) -> 13365.95835 | M125: =SUM(S125:AC125) -> 18082.7 | S125: =IF(S$9=MIN($S$9:$AM$9),0,(INDEX($S42:$AM42,,S87+1)-INDEX($S42:$AM42,,S106+1))/(S87-S106)) -> 0 | T125: 1808.27 | U125: 1808.27 | V125: 1808.27 | W125: 1808.27 | X125: 1808.27 | Y125: 1808.27 | Z125: 1808.27 | AA125: 1808.27 | AB125: 1808.27 | AC125: 1808.27
G126: Catchment 2 | I126: Trips | K126: 2850.774194 | M126: =SUM(S126:AC126) -> 3856.79 | S126: =IF(S$9=MIN($S$9:$AM$9),0,(INDEX($S43:$AM43,,S88+1)-INDEX($S43:$AM43,,S107+1))/(S88-S107)) -> 0 | T126: 385.679 | U126: 385.679 | V126: 385.679 | W126: 385.679 | X126: 385.679 | Y126: 385.679 | Z126: 385.679 | AA126: 385.679 | AB126: 385.679 | AC126: 385.679
G127: Catchment 3 | I127: Trips | K127: 41261.53028 | M127: 55822.4 | S127: =IF(S$9=MIN($S$9:$AM$9),0,(INDEX($S44:$AM44,,S89+1)-INDEX($S44:$AM44,,S108+1))/(S89-S108)) -> 0 | T127: 5582.24 | U127: 5582.24 | V127: 5582.24 | W127: 5582.24 | X127: 5582.24 | Y127: 5582.24 | Z127: 5582.24 | AA127: 5582.24 | AB127: 5582.24 | AC127: 5582.24
G128: Catchment 4 | I128: Trips | K128: 2848.933692 | M128: 3854.3 | S128: =IF(S$9=MIN($S$9:$AM$9),0,(INDEX($S45:$AM45,,S90+1)-INDEX($S45:$AM45,,S109+1))/(S90-S109)) -> 0 | T128: 385.43 | U128: 385.43 | V128: 385.43 | W128: 385.43 | X128: 385.43 | Y128: 385.43 | Z128: 385.43 | AA128: 385.43 | AB128: 385.43 | AC128: 385.43
G129: Catchment 5 | I129: Trips | K129: 23286.26138 | M129: 31503.8 | S129: =IF(S$9=MIN($S$9:$AM$9),0,(INDEX($S46:$AM46,,S91+1)-INDEX($S46:$AM46,,S110+1))/(S91-S110)) -> 0 | T129: 3150.38 | U129: 3150.38 | V129: 3150.38 | W129: 3150.38 | X129: 3150.38 | Y129: 3150.38 | Z129: 3150.38 | AA129: 3150.38 | AB129: 3150.38 | AC129: 3150.38
G130: Catchment 6 | I130: Trips | K130: 24327.80783 | M130: 32912.9 | S130: =IF(S$9=MIN($S$9:$AM$9),0,(INDEX($S47:$AM47,,S92+1)-INDEX($S47:$AM47,,S111+1))/(S92-S111)) -> 0 | T130: 3291.29 | U130: 3291.29 | V130: 3291.29 | W130: 3291.29 | X130: 3291.29 | Y130: 3291.29 | Z130: 3291.29 | AA130: 3291.29 | AB130: 3291.29 | AC130: 3291.29
G131: Catchment 7 | I131: Trips | K131: 31963.4498 | M131: 43243.1 | S131: =IF(S$9=MIN($S$9:$AM$9),0,(INDEX($S48:$AM48,,S93+1)-INDEX($S48:$AM48,,S112+1))/(S93-S112)) -> 0 | T131: 4324.31 | U131: 4324.31 | V131: 4324.31 | W131: 4324.31 | X131: 4324.31 | Y131: 4324.31 | Z131: 4324.31 | AA131: 4324.31 | AB131: 4324.31 | AC131: 4324.31
G132: Catchment 8 | I132: Trips | K132: 121863.2995 | M132: 164867.9 | S132: =IF(S$9=MIN($S$9:$AM$9),0,(INDEX($S49:$AM49,,S94+1)-INDEX($S49:$AM49,,S113+1))/(S94-S113)) -> 0 | T132: 16486.79 | U132: 16486.79 | V132: 16486.79 | W132: 16486.79 | X132: 16486.79 | Y132: 16486.79 | Z132: 16486.79 | AA132: 16486.79 | AB132: 16486.79 | AC132: 16486.79
G133: Catchment 9 | I133: Trips | K133: 22737.43715 | M133: 30761.3 | S133: =IF(S$9=MIN($S$9:$AM$9),0,(INDEX($S50:$AM50,,S95+1)-INDEX($S50:$AM50,,S114+1))/(S95-S114)) -> 0 | T133: 3076.13 | U133: 3076.13 | V133: 3076.13 | W133: 3076.13 | X133: 3076.13 | Y133: 3076.13 | Z133: 3076.13 | AA133: 3076.13 | AB133: 3076.13 | AC133: 3076.13
G134: Catchment 10 | I134: Trips | K134: 47634.32212 | M134: 64444.1 | S134: =IF(S$9=MIN($S$9:$AM$9),0,(INDEX($S51:$AM51,,S96+1)-INDEX($S51:$AM51,,S115+1))/(S96-S115)) -> 0 | T134: 6444.41 | U134: 6444.41 | V134: 6444.41 | W134: 6444.41 | X134: 6444.41 | Y134: 6444.41 | Z134: 6444.41 | AA134: 6444.41 | AB134: 6444.41 | AC134: 6444.41
G135: Catchment 11 | I135: Trips | K135: 7771.572979 | M135: 10514.1 | S135: =IF(S$9=MIN($S$9:$AM$9),0,(INDEX($S52:$AM52,,S97+1)-INDEX($S52:$AM52,,S116+1))/(S97-S116)) -> 0 | T135: 1051.41 | U135: 1051.41 | V135: 1051.41 | W135: 1051.41 | X135: 1051.41 | Y135: 1051.41 | Z135: 1051.41 | AA135: 1051.41 | AB135: 1051.41 | AC135: 1051.41
G136: Catchment 12 | I136: Trips | K136: 1681.678777 | M136: 2275.13 | S136: =IF(S$9=MIN($S$9:$AM$9),0,(INDEX($S53:$AM53,,S98+1)-INDEX($S53:$AM53,,S117+1))/(S98-S117)) -> 0 | T136: 227.513 | U136: 227.513 | V136: 227.513 | W136: 227.513 | X136: 227.513 | Y136: 227.513 | Z136: 227.513 | AA136: 227.513 | AB136: 227.513 | AC136: 227.513
G137: Catchment 13 | I137: Trips | K137: 12142.87489 | M137: 16428 | S137: =IF(S$9=MIN($S$9:$AM$9),0,(INDEX($S54:$AM54,,S99+1)-INDEX($S54:$AM54,,S118+1))/(S99-S118)) -> 0 | T137: 1642.8 | U137: 1642.8 | V137: 1642.8 | W137: 1642.8 | X137: 1642.8 | Y137: 1642.8 | Z137: 1642.8 | AA137: 1642.8 | AB137: 1642.8 | AC137: 1642.8
G138: Catchment 14 | I138: Trips | K138: 22733.29786 | M138: 30755.7 | S138: =IF(S$9=MIN($S$9:$AM$9),0,(INDEX($S55:$AM55,,S100+1)-INDEX($S55:$AM55,,S119+1))/(S100-S119)) -> 0 | T138: 3075.57 | U138: 3075.57 | V138: 3075.57 | W138: 3075.57 | X138: 3075.57 | Y138: 3075.57 | Z138: 3075.57 | AA138: 3075.57 | AB138: 3075.57 | AC138: 3075.57
G139: Catchment 15 | I139: Trips | K139: 12207.47723 | M139: 16515.4 | S139: =IF(S$9=MIN($S$9:$AM$9),0,(INDEX($S56:$AM56,,S101+1)-INDEX($S56:$AM56,,S120+1))/(S101-S120)) -> 0 | T139: 1651.54 | U139: 1651.54 | V139: 1651.54 | W139: 1651.54 | X139: 1651.54 | Y139: 1651.54 | Z139: 1651.54 | AA139: 1651.54 | AB139: 1651.54 | AC139: 1651.54
G140: Catchment 16 | I140: Trips | K140: 97965.45938 | M140: 132536.7 | S140: =IF(S$9=MIN($S$9:$AM$9),0,(INDEX($S57:$AM57,,S102+1)-INDEX($S57:$AM57,,S121+1))/(S102-S121)) -> 0 | T140: 13253.67 | U140: 13253.67 | V140: 13253.67 | W140: 13253.67 | X140: 13253.67 | Y140: 13253.67 | Z140: 13253.67 | AA140: 13253.67 | AB140: 13253.67 | AC140: 13253.67
G141: Catchment 17 | I141: Trips | K141: 224.1346453 | M141: 303.23 | S141: =IF(S$9=MIN($S$9:$AM$9),0,(INDEX($S58:$AM58,,S103+1)-INDEX($S58:$AM58,,S122+1))/(S103-S122)) -> 0 | T141: 30.323 | U141: 30.323 | V141: 30.323 | W141: 30.323 | X141: 30.323 | Y141: 30.323 | Z141: 30.323 | AA141: 30.323 | AB141: 30.323 | AC141: 30.323
G143: Total | I143: Trips | K143: =SUM(K125:K141) -> 486866.27 | M143: =SUM(M125:M141) -> 658677.55 | S143: =SUM(S125:S141) -> 0 | T143: =SUM(T125:T141) -> 65867.755 | U143: 65867.755 | V143: 65867.755 | W143: 65867.755 | X143: 65867.755 | Y143: 65867.755 | Z143: 65867.755 | AA143: 65867.755 | AB143: 65867.755 | AC143: 65867.755
G145: Future Demand as a percentage of Ultimate Demand | I145: %
G147: Cumulative Total
G149: =PIPSectors -> Catchment 1 | I149: Trips | K149: =K64+K125 -> 413433.9584 | M149: =M64+M125 -> 418150.7 | N149: =RANK(K149,$K$149:$K$158) -> 5 | S149: =IF(S$17=0,S64,R149+S125) -> 400068 | T149: 401876.27 | U149: 403684.54 | V149: 405492.81 | W149: 407301.08 | X149: 409109.35 | Y149: 410917.62 | Z149: 412725.89 | AA149: 414534.16 | AB149: 416342.43 | AC149: 418150.7
G150: Catchment 2 | I150: Trips | K150: 79738.77419 | M150: 80744.79 | N150: =RANK(K150,$K$149:$K$158) -> 10 | S150: =IF(S$17=0,S65,R150+S126) -> 76888 | T150: 77273.679 | U150: 77659.358 | V150: 78045.037 | W150: 78430.716 | X150: 78816.395 | Y150: 79202.074 | Z150: 79587.753 | AA150: 79973.432 | AB150: 80359.111 | AC150: 80744.79
G151: Catchment 3 | I151: Trips | K151: 338046.5303 | M151: 352607.4 | N151: 6 | S151: =IF(S$17=0,S66,R151+S127) -> 296785 | T151: 302367.24 | U151: 307949.48 | V151: 313531.72 | W151: 319113.96 | X151: 324696.2 | Y151: 330278.44 | Z151: 335860.68 | AA151: 341442.92 | AB151: 347025.16 | AC151: 352607.4
G152: Catchment 4 | I152: Trips | K152: 271368.9337 | M152: 272374.3 | N152: 7 | S152: =IF(S$17=0,S67,R152+S128) -> 268520 | T152: 268905.43 | U152: 269290.86 | V152: 269676.29 | W152: 270061.72 | X152: 270447.15 | Y152: 270832.58 | Z152: 271218.01 | AA152: 271603.44 | AB152: 271988.87 | AC152: 272374.3
G153: Catchment 5 | I153: Trips | K153: 262502.2614 | M153: 270719.8 | N153: 8 | S153: =IF(S$17=0,S68,R153+S129) -> 239216 | T153: 242366.38 | U153: 245516.76 | V153: 248667.14 | W153: 251817.52 | X153: 254967.9 | Y153: 258118.28 | Z153: 261268.66 | AA153: 264419.04 | AB153: 267569.42 | AC153: 270719.8
G154: Catchment 6 | I154: Trips | K154: 453009.8078 | M154: 461594.9 | N154: 4 | S154: =IF(S$17=0,S69,R154+S130) -> 428682 | T154: 431973.29 | U154: 435264.58 | V154: 438555.87 | W154: 441847.16 | X154: 445138.45 | Y154: 448429.74 | Z154: 451721.03 | AA154: 455012.32 | AB154: 458303.61 | AC154: 461594.9
G155: Catchment 7 | I155: Trips | K155: 592262.4498 | M155: 603542.1 | N155: 2 | S155: =IF(S$17=0,S70,R155+S131) -> 560299 | T155: 564623.31 | U155: 568947.62 | V155: 573271.93 | W155: 577596.24 | X155: 581920.55 | Y155: 586244.86 | Z155: 590569.17 | AA155: 594893.48 | AB155: 599217.79 | AC155: 603542.1
G156: Catchment 8 | I156: Trips | K156: 1233266.299 | M156: 1276270.9 | N156: 1 | S156: =IF(S$17=0,S71,R156+S132) -> 1111403 | T156: 1127889.79 | U156: 1144376.58 | V156: 1160863.37 | W156: 1177350.16 | X156: 1193836.95 | Y156: 1210323.74 | Z156: 1226810.53 | AA156: 1243297.32 | AB156: 1259784.11 | AC156: 1276270.9
G157: Catchment 9 | I157: Trips | K157: 237457.4371 | M157: 245481.3 | N157: 9 | S157: =IF(S$17=0,S72,R157+S133) -> 214720 | T157: 217796.13 | U157: 220872.26 | V157: 223948.39 | W157: 227024.52 | X157: 230100.65 | Y157: 233176.78 | Z157: 236252.91 | AA157: 239329.04 | AB157: 242405.17 | AC157: 245481.3
G158: Catchment 10 | I158: Trips | K158: 477667.3221 | M158: 494477.1 | N158: 3 | S158: =IF(S$17=0,S73,R158+S134) -> 430033 | T158: 436477.41 | U158: 442921.82 | V158: 449366.23 | W158: 455810.64 | X158: 462255.05 | Y158: 468699.46 | Z158: 475143.87 | AA158: 481588.28 | AB158: 488032.69 | AC158: 494477.1
G159: Catchment 11 | I159: Trips | K159: =K74+K135 -> 217139.573 | M159: =M74+M135 -> 219882.1 | N159: =RANK(K159,$K$149:$K$158) ->  | S159: =IF(S$17=0,S74,R159+S135) -> 209368 | T159: 210419.41 | U159: 211470.82 | V159: 212522.23 | W159: 213573.64 | X159: 214625.05 | Y159: 215676.46 | Z159: 216727.87 | AA159: 217779.28 | AB159: 218830.69 | AC159: 219882.1
G160: Catchment 12 | I160: Trips | K160: 134008.6788 | M160: 134602.13 | S160: =IF(S$17=0,S75,R160+S136) -> 132327 | T160: 132554.513 | U160: 132782.026 | V160: 133009.539 | W160: 133237.052 | X160: 133464.565 | Y160: 133692.078 | Z160: 133919.591 | AA160: 134147.104 | AB160: 134374.617 | AC160: 134602.13
G161: Catchment 13 | I161: Trips | K161: 217003.8749 | M161: 221289 | S161: =IF(S$17=0,S76,R161+S137) -> 204861 | T161: 206503.8 | U161: 208146.6 | V161: 209789.4 | W161: 211432.2 | X161: 213075 | Y161: 214717.8 | Z161: 216360.6 | AA161: 218003.4 | AB161: 219646.2 | AC161: 221289
G162: Catchment 14 | I162: Trips | K162: 403801.2979 | M162: 411823.7 | S162: =IF(S$17=0,S77,R162+S138) -> 381068 | T162: 384143.57 | U162: 387219.14 | V162: 390294.71 | W162: 393370.28 | X162: 396445.85 | Y162: 399521.42 | Z162: 402596.99 | AA162: 405672.56 | AB162: 408748.13 | AC162: 411823.7
G163: Catchment 15 | I163: Trips | K163: 538404.4772 | M163: 542712.4 | S163: =IF(S$17=0,S78,R163+S139) -> 526197 | T163: 527848.54 | U163: 529500.08 | V163: 531151.62 | W163: 532803.16 | X163: 534454.7 | Y163: 536106.24 | Z163: 537757.78 | AA163: 539409.32 | AB163: 541060.86 | AC163: 542712.4
G164: Catchment 16 | I164: Trips | K164: 799697.4594 | M164: 834268.7 | S164: =IF(S$17=0,S79,R164+S140) -> 701732 | T164: 714985.67 | U164: 728239.34 | V164: 741493.01 | W164: 754746.68 | X164: 768000.35 | Y164: 781254.02 | Z164: 794507.69 | AA164: 807761.36 | AB164: 821015.03 | AC164: 834268.7
G165: Catchment 17 | I165: Trips | K165: 71669.13465 | M165: 71748.23 | S165: =IF(S$17=0,S80,R165+S141) -> 71445 | T165: 71475.323 | U165: 71505.646 | V165: 71535.969 | W165: 71566.292 | X165: 71596.615 | Y165: 71626.938 | Z165: 71657.261 | AA165: 71687.584 | AB165: 71717.907 | AC165: 71748.23
G167: Total | I167: Trips | K167: =SUM(K149:K165) -> 6740478.27 | M167: =SUM(M149:M165) -> 6912289.55 | S167: =SUM(S149:S165) -> 6253612 | T167: =SUM(T149:T165) -> 6319479.755 | U167: 6385347.51 | V167: 6451215.265 | W167: 6517083.02 | X167: 6582950.775 | Y167: 6648818.53 | Z167: 6714686.285 | AA167: 6780554.04 | AB167: 6846421.795 | AC167: 6912289.55
G169: Internal Checks | S169: =S167-S60 -> 0 | T169: 0 | U169: 0 | V169: 0 | W169: 0 | X169: 0 | Y169: 0 | Z169: 0 | AA169: 0 | AB169: 0 | AC169: 0
F172: End of Page

Sheet Input-Capacity Cost
F2: Brisbane City Council
F3: ='Input-Gen'!$F$3 -> LGIP SOW model - Road network
F5: Input - Capacity Cost
G6: =IF(BaseCaseCheck=0,BaseCase,NotBaseCase) -> Please Note: Model is not currently applying Base Case parameter values
G7: =IF(Integrity=0,IntOK,IntErr) -> Model integrity error
G9: Period Number | K9: ="PV as at" & " " & TEXT(Model_Start_Date-1,"dd-mmm-yyyy") -> PV as at 30-Jun-2016 | S9: =ForecastPeriod -> 0 | T9: 1 | U9: 2 | V9: 3 | W9: 4 | X9: 5 | Y9: 6 | Z9: 7 | AA9: 8 | AB9: 9 | AC9: 10 | AD9: 0 | AE9: 0 | AF9: 0 | AG9: 0 | AH9: 0 | AI9: 0 | AJ9: 0 | AK9: 0 | AL9: 0 | AM9: 0
G10: Period Beginning Date | M10: Admin | S10: =FY_Begin -> 2016-07-01 | T10: 2017-07-01 | U10: 2018-07-01 | V10: 2019-07-01 | W10: 2020-07-01 | X10: 2021-07-01 | Y10: 2022-07-01 | Z10: 2023-07-01 | AA10: 2024-07-01 | AB10: 2025-07-01 | AC10: 2026-07-01
G11: Period Ending Date | L11: 2005-06-30 | S11: =FY_End -> 2017-06-30 | T11: 2018-06-30 | U11: 2019-06-30 | V11: 2020-06-30 | W11: 2021-06-30 | X11: 2022-06-30 | Y11: 2023-06-30 | Z11: 2024-06-30 | AA11: 2025-06-30 | AB11: 2026-06-30
F15: Timing
G17: Period Number | I17: # | S17: 0 | T17: 1 | U17: 2 | V17: 3 | W17: 4 | X17: 5 | Y17: 6 | Z17: 7 | AA17: 8 | AB17: 9 | AC17: 10
G18: Financial Year Beginning | I18: dd-mmm-yy | S18: =IF(S17=0,'Input-Gen'!$M$19,IF(S17<0,EOMONTH('Input-Gen'!$M$19,'Input-Gen'!$M$23*S17-1)+1,R19+1)) -> 2016-07-01 | T18: =IF(T17=0,'Input-Gen'!$M$19,IF(T17<0,EOMONTH('Input-Gen'!$M$19,'Input-Gen'!$M$23*T17-1)+1,S19+1)) -> 2017-07-01 | U18: =IF(U17=0,'Input-Gen'!$M$19,IF(U17<0,EOMONTH('Input-Gen'!$M$19,'Input-Gen'!$M$23*U17-1)+1,T19+1)) -> 2018-07-01 | V18: =IF(V17=0,'Input-Gen'!$M$19,IF(V17<0,EOMONTH('Input-Gen'!$M$19,'Input-Gen'!$M$23*V17-1)+1,U19+1)) -> 2019-07-01 | W18: =IF(W17=0,'Input-Gen'!$M$19,IF(W17<0,EOMONTH('Input-Gen'!$M$19,'Input-Gen'!$M$23*W17-1)+1,V19+1)) -> 2020-07-01 | X18: =IF(X17=0,'Input-Gen'!$M$19,IF(X17<0,EOMONTH('Input-Gen'!$M$19,'Input-Gen'!$M$23*X17-1)+1,W19+1)) -> 2021-07-01 | Y18: =IF(Y17=0,'Input-Gen'!$M$19,IF(Y17<0,EOMONTH('Input-Gen'!$M$19,'Input-Gen'!$M$23*Y17-1)+1,X19+1)) -> 2022-07-01 | Z18: =IF(Z17=0,'Input-Gen'!$M$19,IF(Z17<0,EOMONTH('Input-Gen'!$M$19,'Input-Gen'!$M$23*Z17-1)+1,Y19+1)) -> 2023-07-01 | AA18: =IF(AA17=0,'Input-Gen'!$M$19,IF(AA17<0,EOMONTH('Input-Gen'!$M$19,'Input-Gen'!$M$23*AA17-1)+1,Z19+1)) -> 2024-07-01 | AB18: =IF(AB17=0,'Input-Gen'!$M$19,IF(AB17<0,EOMONTH('Input-Gen'!$M$19,'Input-Gen'!$M$23*AB17-1)+1,AA19+1)) -> 2025-07-01 | AC18: =IF(AC17=0,'Input-Gen'!$M$19,IF(AC17<0,EOMONTH('Input-Gen'!$M$19,'Input-Gen'!$M$23*AC17-1)+1,AB19+1)) -> 2026-07-01
G19: Financial Year Ending | I19: dd-mmm-yy | S19: =EOMONTH(S18-1,Months_in_Year) -> 2017-06-30 | T19: 2018-06-30 | U19: 2019-06-30 | V19: 2020-06-30 | W19: 2021-06-30 | X19: 2022-06-30 | Y19: 2023-06-30 | Z19: 2024-06-30 | AA19: 2025-06-30 | AB19: 2026-06-30 | AC19: 2027-06-30
F22: BSTM Cumulative Capacity Cost Output by Service Catchment
G24: ="Cumulative Capacity Cost (admin excl., FY"&TEXT(Model_Start_Date,"yy")&" dollars)" -> Cumulative Capacity Cost (admin excl., FY16 dollars)
G26: =PIPSectors -> Catchment 1 | I26: $'000 | S26: 359814.0587 | T26: 360964.8361 | U26: 362115.6136 | V26: 363266.3911 | W26: 364417.1685 | X26: 365567.946 | Y26: 366718.7235 | Z26: 367869.5009 | AA26: 369020.2784 | AB26: 370171.0559 | AC26: 371321.8333
G27: Catchment 2 | I27: $'000 | S27: 69936.68 | T27: 70524.28825 | U27: 71111.8965 | V27: 71699.50475 | W27: 72287.113 | X27: 72874.72125 | Y27: 73462.3295 | Z27: 74049.93775 | AA27: 74637.546 | AB27: 75225.15425 | AC27: 75812.7625
G28: Catchment 3 | I28: $'000 | S28: 248636.7253 | T28: 251684.0195 | U28: 254731.3136 | V28: 257778.6077 | W28: 260825.9019 | X28: 263873.196 | Y28: 266920.4901 | Z28: 269967.7843 | AA28: 273015.0784 | AB28: 276062.3725 | AC28: 279109.6667
G29: Catchment 4 | I29: $'000 | S29: 420143.5733 | T29: 420904.266 | U29: 421664.9587 | V29: 422425.6513 | W29: 423186.344 | X29: 423947.0367 | Y29: 424707.7293 | Z29: 425468.422 | AA29: 426229.1147 | AB29: 426989.8073 | AC29: 427750.5
G30: Catchment 5 | I30: $'000 | S30: 426307.0507 | T30: 431495.8873 | U30: 436684.7239 | V30: 441873.5605 | W30: 447062.3971 | X30: 452251.2337 | Y30: 457440.0703 | Z30: 462628.9069 | AA30: 467817.7435 | AB30: 473006.5801 | AC30: 478195.4167
G31: Catchment 6 | I31: $'000 | S31: 257122.3147 | T31: 258394.554 | U31: 259666.7934 | V31: 260939.0328 | W31: 262211.2721 | X31: 263483.5115 | Y31: 264755.7509 | Z31: 266027.9902 | AA31: 267300.2296 | AB31: 268572.469 | AC31: 269844.7083
G32: Catchment 7 | I32: $'000 | S32: 688440.0853 | T32: 693955.4185 | U32: 699470.7516 | V32: 704986.0847 | W32: 710501.4179 | X32: 716016.751 | Y32: 721532.0841 | Z32: 727047.4173 | AA32: 732562.7504 | AB32: 738078.0835 | AC32: 743593.4167
G33: Catchment 8 | I33: $'000 | S33: 1922202.795 | T33: 1942002.515 | U33: 1961802.236 | V33: 1981601.956 | W33: 2001401.677 | X33: 2021201.397 | Y33: 2041001.118 | Z33: 2060800.838 | AA33: 2080600.559 | AB33: 2100400.279 | AC33: 2120200
G34: Catchment 9 | I34: $'000 | S34: 264056.7573 | T34: 265429.5524 | U34: 266802.3475 | V34: 268175.1426 | W34: 269547.9377 | X34: 270920.7328 | Y34: 272293.5279 | Z34: 273666.323 | AA34: 275039.1181 | AB34: 276411.9132 | AC34: 277784.7083
G35: Catchment 10 | I35: $'000 | S35: 300047.8933 | T35: 304080.2123 | U35: 308112.5313 | V35: 312144.8503 | W35: 316177.1693 | X35: 320209.4883 | Y35: 324241.8073 | Z35: 328274.1263 | AA35: 332306.4453 | AB35: 336338.7643 | AC35: 340371.0833
G36: Catchment 11 | I36: $'000 | S36: 303840.2773 | T36: 304695.4121 | U36: 305550.5469 | V36: 306405.6816 | W36: 307260.8164 | X36: 308115.9512 | Y36: 308971.0859 | Z36: 309826.2207 | AA36: 310681.3555 | AB36: 311536.4902 | AC36: 312391.625
G37: Catchment 12 | I37: $'000 | S37: 287368.992 | T37: 287821.5303 | U37: 288274.0686 | V37: 288726.6069 | W37: 289179.1452 | X37: 289631.6835 | Y37: 290084.2218 | Z37: 290536.7601 | AA37: 290989.2984 | AB37: 291441.8367 | AC37: 291894.375
G38: Catchment 13 | I38: $'000 | S38: 282154.88 | T38: 284370.1253 | U38: 286585.3707 | V38: 288800.616 | W38: 291015.8613 | X38: 293231.1067 | Y38: 295446.352 | Z38: 297661.5973 | AA38: 299876.8427 | AB38: 302092.088 | AC38: 304307.3333
G39: Catchment 14 | I39: $'000 | S39: 516973.9733 | T39: 517764.8885 | U39: 518555.8037 | V39: 519346.7188 | W39: 520137.634 | X39: 520928.5492 | Y39: 521719.4643 | Z39: 522510.3795 | AA39: 523301.2947 | AB39: 524092.2098 | AC39: 524883.125
G40: Catchment 15 | I40: $'000 | S40: 486955.2427 | T40: 487839.9059 | U40: 488724.5691 | V40: 489609.2324 | W40: 490493.8956 | X40: 491378.5588 | Y40: 492263.2221 | Z40: 493147.8853 | AA40: 494032.5485 | AB40: 494917.2118 | AC40: 495801.875
G41: Catchment 16 | I41: $'000 | S41: 850520.7253 | T41: 859253.2361 | U41: 867985.7469 | V41: 876718.2577 | W41: 885450.7685 | X41: 894183.2793 | Y41: 902915.7901 | Z41: 911648.3009 | AA41: 920380.8117 | AB41: 929113.3225 | AC41: 937845.8333
G42: Catchment 17 | I42: $'000 | S42: 63210.736 | T42: 62811.82698 | U42: 62412.91797 | V42: 62014.00895 | W42: 61615.09993 | X42: 61216.19092 | Y42: 60817.2819 | Z42: 60418.37288 | AA42: 60019.46387 | AB42: 59620.55485 | AC42: 59221.64583
G44: Total | I44: $'000 | S44: =SUM(S26:S42) -> 7747732.76 | T44: =SUM(T26:T42) -> 7803992.475 | U44: 7860252.19 | V44: 7916511.904 | W44: 7972771.619 | X44: 8029031.334 | Y44: 8085291.049 | Z44: 8141550.764 | AA44: 8197810.479 | AB44: 8254070.194 | AC44: 8310329.908
G46: Nominal Marginal Capacity Cost (admin excl.)
G48: =PIPSectors -> Catchment 1 | I48: $'000 | S48: =(S26-R26)*'Input-Time Series'!S$33 -> 359814.0587 | T48: =(T26-S26)*'Input-Time Series'!T$33 -> 1172.32671 | U48: =(U26-T26)*'Input-Time Series'!U$33 -> 1194.279479 | V48: =(V26-U26)*'Input-Time Series'!V$33 -> 1216.643333 | W48: =(W26-V26)*'Input-Time Series'!W$33 -> 1239.425967 | X48: =(X26-W26)*'Input-Time Series'!X$33 -> 1262.635225 | Y48: =(Y26-X26)*'Input-Time Series'!Y$33 -> 1286.279096 | Z48: =(Z26-Y26)*'Input-Time Series'!Z$33 -> 1310.365717 | AA48: =(AA26-Z26)*'Input-Time Series'!AA$33 -> 1334.903379 | AB48: =(AB26-AA26)*'Input-Time Series'!AB$33 -> 1359.900529 | AC48: =(AC26-AB26)*'Input-Time Series'!AC$33 -> 1385.365771
G49: Catchment 2 | I49: $'000 | S49: =(S27-R27)*'Input-Time Series'!S$33 -> 69936.68 | T49: =(T27-S27)*'Input-Time Series'!T$33 -> 598.6116918 | U49: =(U27-T27)*'Input-Time Series'!U$33 -> 609.821182 | V49: =(V27-U27)*'Input-Time Series'!V$33 -> 621.240579 | W49: =(W27-V27)*'Input-Time Series'!W$33 -> 632.8738134 | X49: =(X27-W27)*'Input-Time Series'!X$33 -> 644.7248897 | Y49: =(Y27-X27)*'Input-Time Series'!Y$33 -> 656.7978869 | Z49: =(Z27-Y27)*'Input-Time Series'!Z$33 -> 669.0969609 | AA49: =(AA27-Z27)*'Input-Time Series'!AA$33 -> 681.626345 | AB49: =(AB27-AA27)*'Input-Time Series'!AB$33 -> 694.390352 | AC49: =(AC27-AB27)*'Input-Time Series'!AC$33 -> 707.3933754
G50: Catchment 3 | I50: $'000 | S50: =(S28-R28)*'Input-Time Series'!S$33 -> 248636.7253 | T50: =(T28-S28)*'Input-Time Series'!T$33 -> 3104.357191 | U50: =(U28-T28)*'Input-Time Series'!U$33 -> 3162.488801 | V50: =(V28-U28)*'Input-Time Series'!V$33 -> 3221.708973 | W50: =(W28-V28)*'Input-Time Series'!W$33 -> 3282.038091 | X50: =(X28-W28)*'Input-Time Series'!X$33 -> 3343.49692 | Y50: =(Y28-X28)*'Input-Time Series'!Y$33 -> 3406.106616 | Z50: =(Z28-Y28)*'Input-Time Series'!Z$33 -> 3469.888729 | AA50: =(AA28-Z28)*'Input-Time Series'!AA$33 -> 3534.865214 | AB50: =(AB28-AA28)*'Input-Time Series'!AB$33 -> 3601.058436 | AC50: =(AC28-AB28)*'Input-Time Series'!AC$33 -> 3668.491181
G51: Catchment 4 | I51: $'000 | S51: =(S29-R29)*'Input-Time Series'!S$33 -> 420143.5733 | T51: =(T29-S29)*'Input-Time Series'!T$33 -> 774.9372548 | U51: =(U29-T29)*'Input-Time Series'!U$33 -> 789.4485843 | V51: =(V29-U29)*'Input-Time Series'!V$33 -> 804.2316503 | W51: =(W29-V29)*'Input-Time Series'!W$33 -> 819.2915413 | X51: =(X29-W29)*'Input-Time Series'!X$33 -> 834.6334409 | Y51: =(Y29-X29)*'Input-Time Series'!Y$33 -> 850.26263 | Z51: =(Z29-Y29)*'Input-Time Series'!Z$33 -> 866.1844885 | AA51: =(AA29-Z29)*'Input-Time Series'!AA$33 -> 882.4044966 | AB51: =(AB29-AA29)*'Input-Time Series'!AB$33 -> 898.9282376 | AC51: =(AC29-AB29)*'Input-Time Series'!AC$33 -> 915.761399
G52: Catchment 5 | I52: $'000 | S52: =(S30-R30)*'Input-Time Series'!S$33 -> 426307.0507 | T52: =(T30-S30)*'Input-Time Series'!T$33 -> 5286.00178 | U52: =(U30-T30)*'Input-Time Series'!U$33 -> 5384.986457 | V52: =(V30-U30)*'Input-Time Series'!V$33 -> 5485.824703 | W52: =(W30-V30)*'Input-Time Series'!W$33 -> 5588.551227 | X52: =(X30-W30)*'Input-Time Series'!X$33 -> 5693.201388 | Y52: =(Y30-X30)*'Input-Time Series'!Y$33 -> 5799.811209 | Z52: =(Z30-Y30)*'Input-Time Series'!Z$33 -> 5908.417385 | AA52: =(AA30-Z30)*'Input-Time Series'!AA$33 -> 6019.0573 | AB52: =(AB30-AA30)*'Input-Time Series'!AB$33 -> 6131.769037 | AC52: =(AC30-AB30)*'Input-Time Series'!AC$33 -> 6246.591393
G53: Catchment 6 | I53: $'000 | S53: =(S31-R31)*'Input-Time Series'!S$33 -> 257122.3147 | T53: =(T31-S31)*'Input-Time Series'!T$33 -> 1296.063082 | U53: =(U31-T31)*'Input-Time Series'!U$33 -> 1320.332916 | V53: =(V31-U31)*'Input-Time Series'!V$33 -> 1345.057223 | W53: =(W31-V31)*'Input-Time Series'!W$33 -> 1370.244512 | X53: =(X31-W31)*'Input-Time Series'!X$33 -> 1395.903453 | Y53: =(Y31-X31)*'Input-Time Series'!Y$33 -> 1422.042879 | Z53: =(Z31-Y31)*'Input-Time Series'!Z$33 -> 1448.671787 | AA53: =(AA31-Z31)*'Input-Time Series'!AA$33 -> 1475.799343 | AB53: =(AB31-AA31)*'Input-Time Series'!AB$33 -> 1503.434885 | AC53: =(AC31-AB31)*'Input-Time Series'!AC$33 -> 1531.587924
G54: Catchment 7 | I54: $'000 | S54: =(S32-R32)*'Input-Time Series'!S$33 -> 688440.0853 | T54: =(T32-S32)*'Input-Time Series'!T$33 -> 5618.612226 | U54: =(U32-T32)*'Input-Time Series'!U$33 -> 5723.825304 | V54: =(V32-U32)*'Input-Time Series'!V$33 -> 5831.008583 | W54: =(W32-V32)*'Input-Time Series'!W$33 -> 5940.198955 | X54: =(X32-W32)*'Input-Time Series'!X$33 -> 6051.434005 | Y54: =(Y32-X32)*'Input-Time Series'!Y$33 -> 6164.752023 | Z54: =(Z32-Y32)*'Input-Time Series'!Z$33 -> 6280.192012 | AA54: =(AA32-Z32)*'Input-Time Series'!AA$33 -> 6397.793709 | AB54: =(AB32-AA32)*'Input-Time Series'!AB$33 -> 6517.597593 | AC54: =(AC32-AB32)*'Input-Time Series'!AC$33 -> 6639.644902
G55: Catchment 8 | I55: $'000 | S55: =(S33-R33)*'Input-Time Series'!S$33 -> 1922202.795 | T55: =(T33-S33)*'Input-Time Series'!T$33 -> 20170.48638 | U55: =(U33-T33)*'Input-Time Series'!U$33 -> 20548.19513 | V55: =(V33-U33)*'Input-Time Series'!V$33 -> 20932.97677 | W55: =(W33-V33)*'Input-Time Series'!W$33 -> 21324.96376 | X55: =(X33-W33)*'Input-Time Series'!X$33 -> 21724.29103 | Y55: =(Y33-X33)*'Input-Time Series'!Y$33 -> 22131.09603 | Z55: =(Z33-Y33)*'Input-Time Series'!Z$33 -> 22545.51878 | AA55: =(AA33-Z33)*'Input-Time Series'!AA$33 -> 22967.70193 | AB55: =(AB33-AA33)*'Input-Time Series'!AB$33 -> 23397.79081 | AC55: =(AC33-AB33)*'Input-Time Series'!AC$33 -> 23835.93345
G56: Catchment 9 | I56: $'000 | S56: =(S34-R34)*'Input-Time Series'!S$33 -> 264056.7573 | T56: =(T34-S34)*'Input-Time Series'!T$33 -> 1398.501803 | U56: =(U34-T34)*'Input-Time Series'!U$33 -> 1424.689886 | V56: =(V34-U34)*'Input-Time Series'!V$33 -> 1451.368361 | W56: =(W34-V34)*'Input-Time Series'!W$33 -> 1478.546413 | X56: =(X34-W34)*'Input-Time Series'!X$33 -> 1506.233395 | Y56: =(Y34-X34)*'Input-Time Series'!Y$33 -> 1534.438839 | Z56: =(Z34-Y34)*'Input-Time Series'!Z$33 -> 1563.172453 | AA56: =(AA34-Z34)*'Input-Time Series'!AA$33 -> 1592.444127 | AB56: =(AB34-AA34)*'Input-Time Series'!AB$33 -> 1622.263936 | AC56: =(AC34-AB34)*'Input-Time Series'!AC$33 -> 1652.642146
G57: Catchment 10 | I57: $'000 | S57: =(S35-R35)*'Input-Time Series'!S$33 -> 300047.8933 | T57: =(T35-S35)*'Input-Time Series'!T$33 -> 4107.827449 | U57: =(U35-T35)*'Input-Time Series'!U$33 -> 4184.749854 | V57: =(V35-U35)*'Input-Time Series'!V$33 -> 4263.112695 | W57: =(W35-V35)*'Input-Time Series'!W$33 -> 4342.942943 | X57: =(X35-W35)*'Input-Time Series'!X$33 -> 4424.268077 | Y57: =(Y35-X35)*'Input-Time Series'!Y$33 -> 4507.116091 | Z57: =(Z35-Y35)*'Input-Time Series'!Z$33 -> 4591.515501 | AA57: =(AA35-Z35)*'Input-Time Series'!AA$33 -> 4677.495358 | AB57: =(AB35-AA35)*'Input-Time Series'!AB$33 -> 4765.085258 | AC57: =(AC35-AB35)*'Input-Time Series'!AC$33 -> 4854.31535
G58: Catchment 11 | I58: $'000 | S58: =(S36-R36)*'Input-Time Series'!S$33 -> 303840.2773 | T58: =(T36-S36)*'Input-Time Series'!T$33 -> 871.1478598 | U58: =(U36-T36)*'Input-Time Series'!U$33 -> 887.4608111 | V58: =(V36-U36)*'Input-Time Series'!V$33 -> 904.0792357 | W58: =(W36-V36)*'Input-Time Series'!W$33 -> 921.0088537 | X58: =(X36-W36)*'Input-Time Series'!X$33 -> 938.2554927 | Y58: =(Y36-X36)*'Input-Time Series'!Y$33 -> 955.8250889 | Z58: =(Z36-Y36)*'Input-Time Series'!Z$33 -> 973.7236901 | AA58: =(AA36-Z36)*'Input-Time Series'!AA$33 -> 991.9574572 | AB58: =(AB36-AA36)*'Input-Time Series'!AB$33 -> 1010.532666 | AC58: =(AC36-AB36)*'Input-Time Series'!AC$33 -> 1029.455711
G59: Catchment 12 | I59: $'000 | S59: =(S37-R37)*'Input-Time Series'!S$33 -> 287368.992 | T59: =(T37-S37)*'Input-Time Series'!T$33 -> 461.0124473 | U59: =(U37-T37)*'Input-Time Series'!U$33 -> 469.6452798 | V59: =(V37-U37)*'Input-Time Series'!V$33 -> 478.4397692 | W59: =(W37-V37)*'Input-Time Series'!W$33 -> 487.3989425 | X59: =(X37-W37)*'Input-Time Series'!X$33 -> 496.5258836 | Y59: =(Y37-X37)*'Input-Time Series'!Y$33 -> 505.8237341 | Z59: =(Z37-Y37)*'Input-Time Series'!Z$33 -> 515.2956944 | AA59: =(AA37-Z37)*'Input-Time Series'!AA$33 -> 524.9450248 | AB59: =(AB37-AA37)*'Input-Time Series'!AB$33 -> 534.7750469 | AC59: =(AC37-AB37)*'Input-Time Series'!AC$33 -> 544.789144
G60: Catchment 13 | I60: $'000 | S60: =(S38-R38)*'Input-Time Series'!S$33 -> 282154.88 | T60: =(T38-S38)*'Input-Time Series'!T$33 -> 2256.727602 | U60: =(U38-T38)*'Input-Time Series'!U$33 -> 2298.986659 | V60: =(V38-U38)*'Input-Time Series'!V$33 -> 2342.037052 | W60: =(W38-V38)*'Input-Time Series'!W$33 -> 2385.893598 | X60: =(X38-W38)*'Input-Time Series'!X$33 -> 2430.571394 | Y60: =(Y38-X38)*'Input-Time Series'!Y$33 -> 2476.085817 | Z60: =(Z38-Y38)*'Input-Time Series'!Z$33 -> 2522.452536 | AA60: =(AA38-Z38)*'Input-Time Series'!AA$33 -> 2569.687508 | AB60: =(AB38-AA38)*'Input-Time Series'!AB$33 -> 2617.806994 | AC60: =(AC38-AB38)*'Input-Time Series'!AC$33 -> 2666.827557
G61: Catchment 14 | I61: $'000 | S61: =(S39-R39)*'Input-Time Series'!S$33 -> 516973.9733 | T61: =(T39-S39)*'Input-Time Series'!T$33 -> 805.7256956 | U61: =(U39-T39)*'Input-Time Series'!U$33 -> 820.8135638 | V61: =(V39-U39)*'Input-Time Series'!V$33 -> 836.1839645 | W61: =(W39-V39)*'Input-Time Series'!W$33 -> 851.8421885 | X61: =(X39-W39)*'Input-Time Series'!X$33 -> 867.7936254 | Y61: =(Y39-X39)*'Input-Time Series'!Y$33 -> 884.0437659 | Z61: =(Z39-Y39)*'Input-Time Series'!Z$33 -> 900.5982035 | AA61: =(AA39-Z39)*'Input-Time Series'!AA$33 -> 917.4626365 | AB61: =(AB39-AA39)*'Input-Time Series'!AB$33 -> 934.6428696 | AC61: =(AC39-AB39)*'Input-Time Series'!AC$33 -> 952.1448165
G62: Catchment 15 | I62: $'000 | S62: =(S40-R40)*'Input-Time Series'!S$33 -> 486955.2427 | T62: =(T40-S40)*'Input-Time Series'!T$33 -> 901.229271 | U62: =(U40-T40)*'Input-Time Series'!U$33 -> 918.1055212 | V62: =(V40-U40)*'Input-Time Series'!V$33 -> 935.2977928 | W62: =(W40-V40)*'Input-Time Series'!W$33 -> 952.8120037 | X62: =(X40-W40)*'Input-Time Series'!X$33 -> 970.6541825 | Y62: =(Y40-X40)*'Input-Time Series'!Y$33 -> 988.8304705 | Z62: =(Z40-Y40)*'Input-Time Series'!Z$33 -> 1007.347124 | AA62: =(AA40-Z40)*'Input-Time Series'!AA$33 -> 1026.210517 | AB62: =(AB40-AA40)*'Input-Time Series'!AB$33 -> 1045.427143 | AC62: =(AC40-AB40)*'Input-Time Series'!AC$33 -> 1065.003615
G63: Catchment 16 | I63: $'000 | S63: =(S41-R41)*'Input-Time Series'!S$33 -> 850520.7253 | T63: =(T41-S41)*'Input-Time Series'!T$33 -> 8896.034158 | U63: =(U41-T41)*'Input-Time Series'!U$33 -> 9062.619624 | V63: =(V41-U41)*'Input-Time Series'!V$33 -> 9232.324538 | W63: =(W41-V41)*'Input-Time Series'!W$33 -> 9405.207314 | X63: =(X41-W41)*'Input-Time Series'!X$33 -> 9581.327461 | Y63: =(Y41-X41)*'Input-Time Series'!Y$33 -> 9760.745601 | Z63: =(Z41-Y41)*'Input-Time Series'!Z$33 -> 9943.523491 | AA63: =(AA41-Z41)*'Input-Time Series'!AA$33 -> 10129.72405 | AB63: =(AB41-AA41)*'Input-Time Series'!AB$33 -> 10319.41136 | AC63: =(AC41-AB41)*'Input-Time Series'!AC$33 -> 10512.65072
G64: Catchment 17 | I64: $'000 | S64: =(S42-R42)*'Input-Time Series'!S$33 -> 63210.736 | T64: =(T42-S42)*'Input-Time Series'!T$33 -> -406.378912 | U64: =(U42-T42)*'Input-Time Series'!U$33 -> -413.9886873 | V64: =(V42-U42)*'Input-Time Series'!V$33 -> -421.7409617 | W64: =(W42-V42)*'Input-Time Series'!W$33 -> -429.6384038 | X64: =(X42-W42)*'Input-Time Series'!X$33 -> -437.6837319 | Y64: =(Y42-X42)*'Input-Time Series'!Y$33 -> -445.8797153 | Z64: =(Z42-Y42)*'Input-Time Series'!Z$33 -> -454.2291752 | AA64: =(AA42-Z42)*'Input-Time Series'!AA$33 -> -462.7349855 | AB64: =(AB42-AA42)*'Input-Time Series'!AB$33 -> -471.4000739 | AC64: =(AC42-AB42)*'Input-Time Series'!AC$33 -> -480.2274232
G66: Total | I66: $'000 | S66: =SUM(S48:S64) -> 7747732.76 | T66: =SUM(T48:T64) -> 57313.22369 | U66: =SUM(U48:U64) -> 58386.46036 | V66: 59479.79426 | W66: 60593.60172 | X66: 61728.26614 | Y66: 62884.17806 | Z66: 64061.73538 | AA66: 65261.34341 | AB66: 66483.41507 | AC66: 67728.37103
G68: Marginal NPV Capacity Cost (admin excl.)
G70: =PIPSectors -> Catchment 1 | I70: $'000 | K70: =SUM(S70:AC70) -> 369165.0153 | S70: =S48/(1+WACC_nom)^S$9 -> 359814.0587 | T70: 1106.908422 | U70: 1064.711719 | V70: 1024.123605 | W70: 985.0827605 | X70: 947.5302005 | Y70: 911.4091901 | Z70: 876.6651567 | AA70: 843.2456085 | AB70: 811.1000542 | AC70: 780.1799279
G71: Catchment 2 | I71: $'000 | K71: =SUM(S71:AC71) -> 74711.45134 | S71: =S49/(1+WACC_nom)^S$9 -> 69936.68 | T71: 565.2079046 | U71: 543.6614878 | V71: 522.9364468 | W71: 503.0014697 | X71: 483.8264383 | Y71: 465.3823826 | Z71: 447.6414368 | AA71: 430.5767976 | AB71: 414.1626833 | AC71: 398.3742951
G72: Catchment 3 | I72: $'000 | K72: 273398.3462 | S72: =S50/(1+WACC_nom)^S$9 -> 248636.7253 | T72: 2931.127553 | U72: 2819.389385 | V72: 2711.910812 | W72: 2608.529454 | X72: 2509.08912 | Y72: 2413.439573 | Z72: 2321.436304 | AA72: 2232.940312 | AB72: 2147.817896 | AC72: 2065.94045
G73: Catchment 4 | I73: $'000 | K73: 426324.7894 | S73: =S51/(1+WACC_nom)^S$9 -> 420143.5733 | T73: 731.6941316 | U73: 703.8010561 | V73: 676.9712988 | W73: 651.1643247 | X73: 626.341144 | Y73: 602.4642534 | Z73: 579.497579 | AA73: 557.4064223 | AB73: 536.1574076 | AC73: 515.7184312
G74: Catchment 5 | I74: $'000 | K74: 468470.3598 | S74: =S52/(1+WACC_nom)^S$9 -> 426307.0507 | T74: 4991.031801 | U74: 4800.767563 | V74: 4617.75643 | W74: 4441.721905 | X74: 4272.398032 | Y74: 4109.528992 | Z74: 3952.86872 | AA74: 3802.180528 | AB74: 3657.236755 | AC74: 3517.818415
G75: Catchment 6 | I75: $'000 | K75: 267460.2432 | S75: =S53/(1+WACC_nom)^S$9 -> 257122.3147 | T75: 1223.740046 | U75: 1177.089578 | V75: 1132.217483 | W75: 1089.055968 | X75: 1047.539822 | Y75: 1007.606322 | Z75: 969.1951364 | AA75: 932.2482321 | AB75: 896.709789 | AC75: 862.5261148
G76: Catchment 7 | I76: $'000 | K76: 733256.4312 | S76: =S54/(1+WACC_nom)^S$9 -> 688440.0853 | T76: 5305.081887 | U76: 5102.845675 | V76: 4908.318955 | W76: 4721.207832 | X76: 4541.229613 | Y76: 4368.112385 | Z76: 4201.594597 | AA76: 4041.42467 | AB76: 3887.360618 | AC76: 3739.169675
G77: Catchment 8 | I77: $'000 | K77: 2083090.832 | S77: =S55/(1+WACC_nom)^S$9 -> 1922202.795 | T77: 19044.93096 | U77: 18318.9149 | V77: 17620.57545 | W77: 16948.85756 | X77: 16302.74637 | Y77: 15681.26573 | Z77: 15083.4767 | AA77: 14508.47611 | AB77: 13955.39526 | AC77: 13423.39852
G78: Catchment 9 | I78: $'000 | K78: 275211.7789 | S78: =S56/(1+WACC_nom)^S$9 -> 264056.7573 | T78: 1320.462471 | U78: 1270.124826 | V78: 1221.706114 | W78: 1175.133182 | X78: 1130.335668 | Y78: 1087.245889 | Z78: 1045.798746 | AA78: 1005.931618 | AB78: 967.5842744 | AC78: 930.6987781
G79: Catchment 10 | I79: $'000 | K79: 332813.6028 | S79: =S57/(1+WACC_nom)^S$9 -> 300047.8933 | T79: 3878.602067 | U79: 3730.745011 | V79: 3588.524447 | W79: 3451.725505 | X79: 3320.141506 | Y79: 3193.57365 | Z79: 3071.830715 | AA79: 2954.72877 | AB79: 2842.090895 | AC79: 2733.746913
G80: Catchment 11 | I80: $'000 | K80: 310788.9085 | S80: =S58/(1+WACC_nom)^S$9 -> 303840.2773 | T80: 822.5359832 | U80: 791.1799052 | V80: 761.0191593 | W80: 732.0081779 | X80: 704.1031306 | Y80: 677.2618579 | Z80: 651.4438073 | AA80: 626.6099724 | AB80: 602.7228337 | AC80: 579.7463019
G81: Catchment 12 | I81: $'000 | K81: 291046.2156 | S81: =S59/(1+WACC_nom)^S$9 -> 287368.992 | T81: 435.2869864 | U81: 418.6933139 | V81: 402.7322126 | W81: 387.3795679 | X81: 372.6121849 | Y81: 358.4077525 | Z81: 344.7448105 | AA81: 331.6027166 | AB81: 318.9616154 | AC81: 306.8024084
G82: Catchment 13 | I82: $'000 | K82: 300155.4611 | S82: =S60/(1+WACC_nom)^S$9 -> 282154.88 | T82: 2130.797471 | U82: 2049.568865 | V82: 1971.436792 | W82: 1896.28321 | X82: 1823.994574 | Y82: 1754.461669 | Z82: 1687.579444 | AA82: 1623.246851 | AB82: 1561.366695 | AC82: 1501.845487
G83: Catchment 14 | I83: $'000 | K83: 523400.7706 | S83: =S61/(1+WACC_nom)^S$9 -> 516973.9733 | T83: 760.7645129 | U83: 731.763239 | V83: 703.8675291 | W83: 677.0352377 | X83: 651.2258262 | Y83: 626.400301 | Z83: 602.5211552 | AA83: 579.5523116 | AB83: 557.4590685 | AC83: 536.2080468
G84: Catchment 15 | I84: $'000 | K84: 494143.8154 | S84: =S62/(1+WACC_nom)^S$9 -> 486955.2427 | T84: 850.9387886 | U84: 818.4999609 | V84: 787.2977411 | W84: 757.284988 | X84: 728.4163578 | Y84: 700.6482351 | Z84: 673.9386672 | AA84: 648.2473007 | AB84: 623.5353205 | AC84: 599.7653913
G85: Catchment 16 | I85: $'000 | K85: 921479.1272 | S85: =S63/(1+WACC_nom)^S$9 -> 850520.7253 | T85: 8399.616805 | U85: 8079.413136 | V85: 7771.416023 | W85: 7475.160137 | X85: 7190.197887 | Y85: 6916.098747 | Z85: 6652.448602 | AA85: 6398.849123 | AB85: 6154.917166 | AC85: 5920.284193
G86: Catchment 17 | I86: $'000 | K86: 59969.29182 | S86: =S64/(1+WACC_nom)^S$9 -> 63210.736 | T86: -383.7021169 | U86: -369.0749228 | V86: -355.0053352 | W86: -341.4720975 | X86: -328.4547634 | Y86: -315.933666 | Z86: -303.8898881 | AA86: -292.3052338 | AB86: -281.1622007 | AC86: -270.4439536
G88: Total | I88: $'000 | K88: =SUM(K70:K86) -> 8204886.44 | S88: =SUM(S70:S86) -> 7747732.76 | T88: =SUM(T70:T86) -> 54115.02568 | U88: 52052.09469 | V88: 50067.80516 | W88: 48159.15918 | X88: 46323.27311 | Y88: 44557.37327 | Z88: 42858.79169 | AA88: 41224.96212 | AB88: 39653.41612 | AC88: 38141.77939
G90: Marginal NPV Capacity Cost (admin incl.)
G92: =PIPSectors -> Catchment 1 | I92: $'000 | K92: =SUM(S92:AC92) -> 369165.0153 | M92: 0 | S92: =S70*(1+$M92) -> 359814.0587 | T92: =T70*(1+$M92) -> 1106.908422 | U92: 1064.711719 | V92: 1024.123605 | W92: 985.0827605 | X92: 947.5302005 | Y92: 911.4091901 | Z92: 876.6651567 | AA92: 843.2456085 | AB92: 811.1000542 | AC92: 780.1799279
G93: Catchment 2 | I93: $'000 | K93: =SUM(S93:AC93) -> 74711.45134 | M93: 0 | S93: =S71*(1+$M93) -> 69936.68 | T93: 565.2079046 | U93: 543.6614878 | V93: 522.9364468 | W93: 503.0014697 | X93: 483.8264383 | Y93: 465.3823826 | Z93: 447.6414368 | AA93: 430.5767976 | AB93: 414.1626833 | AC93: 398.3742951
G94: Catchment 3 | I94: $'000 | K94: 273398.3462 | M94: 0 | S94: =S72*(1+$M94) -> 248636.7253 | T94: 2931.127553 | U94: 2819.389385 | V94: 2711.910812 | W94: 2608.529454 | X94: 2509.08912 | Y94: 2413.439573 | Z94: 2321.436304 | AA94: 2232.940312 | AB94: 2147.817896 | AC94: 2065.94045
G95: Catchment 4 | I95: $'000 | K95: 426324.7894 | M95: 0 | S95: =S73*(1+$M95) -> 420143.5733 | T95: 731.6941316 | U95: 703.8010561 | V95: 676.9712988 | W95: 651.1643247 | X95: 626.341144 | Y95: 602.4642534 | Z95: 579.497579 | AA95: 557.4064223 | AB95: 536.1574076 | AC95: 515.7184312
G96: Catchment 5 | I96: $'000 | K96: 468470.3598 | M96: 0 | S96: =S74*(1+$M96) -> 426307.0507 | T96: 4991.031801 | U96: 4800.767563 | V96: 4617.75643 | W96: 4441.721905 | X96: 4272.398032 | Y96: 4109.528992 | Z96: 3952.86872 | AA96: 3802.180528 | AB96: 3657.236755 | AC96: 3517.818415
G97: Catchment 6 | I97: $'000 | K97: 267460.2432 | M97: 0 | S97: =S75*(1+$M97) -> 257122.3147 | T97: 1223.740046 | U97: 1177.089578 | V97: 1132.217483 | W97: 1089.055968 | X97: 1047.539822 | Y97: 1007.606322 | Z97: 969.1951364 | AA97: 932.2482321 | AB97: 896.709789 | AC97: 862.5261148
G98: Catchment 7 | I98: $'000 | K98: 733256.4312 | M98: 0 | S98: =S76*(1+$M98) -> 688440.0853 | T98: 5305.081887 | U98: 5102.845675 | V98: 4908.318955 | W98: 4721.207832 | X98: 4541.229613 | Y98: 4368.112385 | Z98: 4201.594597 | AA98: 4041.42467 | AB98: 3887.360618 | AC98: 3739.169675
G99: Catchment 8 | I99: $'000 | K99: 2083090.832 | M99: 0 | S99: =S77*(1+$M99) -> 1922202.795 | T99: 19044.93096 | U99: 18318.9149 | V99: 17620.57545 | W99: 16948.85756 | X99: 16302.74637 | Y99: 15681.26573 | Z99: 15083.4767 | AA99: 14508.47611 | AB99: 13955.39526 | AC99: 13423.39852
G100: Catchment 9 | I100: $'000 | K100: 275211.7789 | M100: 0 | S100: =S78*(1+$M100) -> 264056.7573 | T100: 1320.462471 | U100: 1270.124826 | V100: 1221.706114 | W100: 1175.133182 | X100: 1130.335668 | Y100: 1087.245889 | Z100: 1045.798746 | AA100: 1005.931618 | AB100: 967.5842744 | AC100: 930.6987781
G101: Catchment 10 | I101: $'000 | K101: 332813.6028 | M101: 0 | S101: =S79*(1+$M101) -> 300047.8933 | T101: 3878.602067 | U101: 3730.745011 | V101: 3588.524447 | W101: 3451.725505 | X101: 3320.141506 | Y101: 3193.57365 | Z101: 3071.830715 | AA101: 2954.72877 | AB101: 2842.090895 | AC101: 2733.746913
G102: Catchment 11 | I102: $'000 | K102: 310788.9085 | M102: 0 | S102: =S80*(1+$M102) -> 303840.2773 | T102: 822.5359832 | U102: 791.1799052 | V102: 761.0191593 | W102: 732.0081779 | X102: 704.1031306 | Y102: 677.2618579 | Z102: 651.4438073 | AA102: 626.6099724 | AB102: 602.7228337 | AC102: 579.7463019
G103: Catchment 12 | I103: $'000 | K103: 291046.2156 | M103: 0 | S103: =S81*(1+$M103) -> 287368.992 | T103: 435.2869864 | U103: 418.6933139 | V103: 402.7322126 | W103: 387.3795679 | X103: 372.6121849 | Y103: 358.4077525 | Z103: 344.7448105 | AA103: 331.6027166 | AB103: 318.9616154 | AC103: 306.8024084
G104: Catchment 13 | I104: $'000 | K104: 300155.4611 | M104: 0 | S104: =S82*(1+$M104) -> 282154.88 | T104: 2130.797471 | U104: 2049.568865 | V104: 1971.436792 | W104: 1896.28321 | X104: 1823.994574 | Y104: 1754.461669 | Z104: 1687.579444 | AA104: 1623.246851 | AB104: 1561.366695 | AC104: 1501.845487
G105: Catchment 14 | I105: $'000 | K105: 523400.7706 | M105: 0 | S105: =S83*(1+$M105) -> 516973.9733 | T105: 760.7645129 | U105: 731.763239 | V105: 703.8675291 | W105: 677.0352377 | X105: 651.2258262 | Y105: 626.400301 | Z105: 602.5211552 | AA105: 579.5523116 | AB105: 557.4590685 | AC105: 536.2080468
G106: Catchment 15 | I106: $'000 | K106: 494143.8154 | M106: 0 | S106: =S84*(1+$M106) -> 486955.2427 | T106: 850.9387886 | U106: 818.4999609 | V106: 787.2977411 | W106: 757.284988 | X106: 728.4163578 | Y106: 700.6482351 | Z106: 673.9386672 | AA106: 648.2473007 | AB106: 623.5353205 | AC106: 599.7653913
G107: Catchment 16 | I107: $'000 | K107: 921479.1272 | M107: 0 | S107: =S85*(1+$M107) -> 850520.7253 | T107: 8399.616805 | U107: 8079.413136 | V107: 7771.416023 | W107: 7475.160137 | X107: 7190.197887 | Y107: 6916.098747 | Z107: 6652.448602 | AA107: 6398.849123 | AB107: 6154.917166 | AC107: 5920.284193
G108: Catchment 17 | I108: $'000 | K108: 59969.29182 | M108: 0 | S108: =S86*(1+$M108) -> 63210.736 | T108: -383.7021169 | U108: -369.0749228 | V108: -355.0053352 | W108: -341.4720975 | X108: -328.4547634 | Y108: -315.933666 | Z108: -303.8898881 | AA108: -292.3052338 | AB108: -281.1622007 | AC108: -270.4439536
G110: Total | I110: $'000 | K110: =SUM(K92:L108) -> 8204886.44 | S110: =SUM(S92:S108) -> 7747732.76 | T110: =SUM(T92:T108) -> 54115.02568 | U110: 52052.09469 | V110: 50067.80516 | W110: 48159.15918 | X110: 46323.27311 | Y110: 44557.37327 | Z110: 42858.79169 | AA110: 41224.96212 | AB110: 39653.41612 | AC110: 38141.77939
F112: End of Page

Sheet Calculations
F19: =MID(CELL("filename",A15),FIND("]",CELL("filename",A15))+1,256) -> Calculations

Sheet Nominal cost (Ave)
F2: Brisbane City Council
F3: ='Input-Gen'!$F$3 -> LGIP SOW model - Road network
F5: Allocation | G5: Future Infrastructure Outputs
G6: =IF(BaseCaseCheck=0,BaseCase,NotBaseCase) -> Please Note: Model is not currently applying Base Case parameter values
G7: =IF(Integrity=0,IntOK,IntErr) -> Model integrity error
G9: Period Number | K9: ="PV as at" & " " & TEXT(Model_Start_Date-1,"dd-mmm-yyyy") -> PV as at 30-Jun-2016 | M9: Difference between Input Value & Nominal Value | Q9: Total Nominal Value | S9: =ForecastPeriod -> 0 | T9: 1 | U9: 2 | V9: 3 | W9: 4 | X9: 5 | Y9: 6 | Z9: 7 | AA9: 8 | AB9: 9 | AC9: 10 | AD9: 0 | AE9: 0 | AF9: 0 | AG9: 0 | AH9: 0 | AI9: 0 | AJ9: 0 | AK9: 0 | AL9: 0 | AM9: 0
G10: Period Beginning Date | S10: =FY_Begin -> 2015-07-01 | T10: 2016-07-01 | U10: 2017-07-01 | V10: 2018-07-01 | W10: 2019-07-01 | X10: 2020-07-01 | Y10: 2021-07-01 | Z10: 2022-07-01 | AA10: 2023-07-01 | AB10: 2024-07-01 | AC10: 2025-07-01
G11: Period Ending Date | S11: =FY_End -> 2016-06-30 | T11: 2017-06-30 | U11: 2018-06-30 | V11: 2019-06-30 | W11: 2020-06-30 | X11: 2021-06-30 | Y11: 2022-06-30 | Z11: 2023-06-30 | AA11: 2024-06-30 | AB11: 2025-06-30 | AC11: 2026-06-30
F15: Index Calculations
G17: Cost and Revenue Indices
G18: Consumer Price Index (CPI) | I18: # | S18: ='Input-Time Series'!S31 -> 1 | T18: ='Input-Time Series'!T31 -> 1.025 | U18: ='Input-Time Series'!U31 -> 1.050625 | V18: ='Input-Time Series'!V31 -> 1.076890625 | W18: ='Input-Time Series'!W31 -> 1.103812891 | X18: ='Input-Time Series'!X31 -> 1.131408213 | Y18: ='Input-Time Series'!Y31 -> 1.159693418 | Z18: ='Input-Time Series'!Z31 -> 1.188685754 | AA18: ='Input-Time Series'!AA31 -> 1.218402898 | AB18: ='Input-Time Series'!AB31 -> 1.24886297 | AC18: ='Input-Time Series'!AC31 -> 1.280084544
G19: Land cost escalation | I19: # | S19: ='Input-Time Series'!S32 -> 1 | T19: ='Input-Time Series'!T32 -> 1.025 | U19: ='Input-Time Series'!U32 -> 1.050625 | V19: ='Input-Time Series'!V32 -> 1.076890625 | W19: ='Input-Time Series'!W32 -> 1.103812891 | X19: ='Input-Time Series'!X32 -> 1.131408213 | Y19: ='Input-Time Series'!Y32 -> 1.159693418 | Z19: ='Input-Time Series'!Z32 -> 1.188685754 | AA19: ='Input-Time Series'!AA32 -> 1.218402898 | AB19: ='Input-Time Series'!AB32 -> 1.24886297 | AC19: ='Input-Time Series'!AC32 -> 1.280084544
